Workbook

Sheet Index
B2: Power Sector Only model? | E2: N
B3: Export All to ANSWER? | E3: Y
B4: Starting RE Costs | E4: UNEP
B5: Technology Learning | E5: Conservative
B6: Export only Learning? | E6: N | F6: If this is Y, Export All should be N
B7: Baseload IPP procurement? | E7: N | F7: If this is Y, Export All should be N
B8: IRP2010 Investment Decisions? | E8: N | F8: If this is Y, Export All should be N
B9: Add revaluation of existing assets to FOM? | E9: Y
B11: 5 yr intervals | E11: Y
B12: 10 Timeslices? | E12: Y
B13: Life Extensions? | E13: Y
B14: Year of imposed FGD retrofit | E14: N | F14: (N if never imposed)
B22: Discount Rate | E22: 0.08
B23: Exchange Rate (2010 ZAR/2010USD) | E23: 8.2
B24: Conversion from 2012 to 2010 rands | E24: 0.108

Sheet Existing capacity basic data
B1: South African Existing system | D1: Rands | AG1: -2 | AH1: -1 | AI1: retirement year | AJ1: +1 | AK1: +2 | AL1: +3 | AM1: +4 | AN1: +5 | AO1: +6
B2: Notes | H2: for SNAPP | K2: =MAX(K7:K24)/2 -> 335 | M2: Return to service schedule - MW added | W2: Exchange rate: 1 '07US$: | Y2: '07 ZAR | AF2: Retirement Profile (mid, start, end) | AH2: -0.33333 | AI2: -0.5 | AJ2: -1 | BY2: -0.167 | BZ2: -0.2 | CA2: -0.25 | CB2: -0.33 | CC2: -0.5 | CD2: -1
B3: Parameter | C3: Sub-category TIMES | D3: Sub-category SNAPP | E3: Broad Category | F3: Heat rate or efficiency | G3: Heat rate | H3: Efficiency | I3: Output 2006 | J3: # units | K3: Max unit capacity | L3: Total Cap before 2010 | M3: Return to service schedule - MW added | Q3: Planned Outage Rate | R3: Forced Outage rate | S3: Contribution to Peak | T3: Availability factor | U3: Maximum availability | V3: Minimum utilisation | W3: Variable Costs | X3: Fixed Costs | Y3: Year online | Z3: Life of Plant | AA3: Known retirements | AB3: Retirement year | AC3: FGD Retrofit cost | AD3: Water use | AF3: Residual Capacity | CB3: Planned Outage Rate - Previous | CC3: Forced Outage rate - Previous
B4: Year (time series) - default 2006 | M4: 2010 | N4: 2011 | O4: 2012 | P4: 2013 | AF4: 2010 | AG4: =AF4+1 -> 2011 | AH4: 2012 | AI4: 2013 | AJ4: 2014 | AK4: 2015 | AL4: 2016 | AM4: 2017 | AN4: 2018 | AO4: 2019 | AP4: 2020 | AQ4: 2021 | AR4: 2022 | AS4: 2023 | AT4: 2024 | AU4: 2025 | AV4: 2026 | AW4: 2027 | AX4: 2028 | AY4: 2029 | AZ4: 2030 | BA4: 2031 | BB4: 2032 | BC4: 2033 | BD4: 2034 | BE4: 2035 | BF4: 2036 | BG4: 2037 | BH4: 2038 | BI4: 2039 | BJ4: 2040 | BK4: 2041 | BL4: 2042 | BM4: 2043 | BN4: 2044 | BO4: 2045 | BP4: 2046 | BQ4: 2047 | BR4: 2048 | BS4: 2049 | BT4: 2050
B5: Units | F5: Btu/kWh | I5: GWh | K5: MW | L5: MW | W5: R/MWh | X5: R/kW | AD5: l/MWh
B6: Lookup row | C6: =IF(C3<>"",C3&C4,IF(AND(B3<>"",C3=""),B3&C4,LEFT(B6,LEN(B6)-LEN(B4))&C4)) -> Sub-category TIMES | D6: =IF(D3<>"",D3&D4,IF(AND(#REF!<>"",D3=""),#REF!&D4,LEFT(#REF!,LEN(#REF!)-LEN(#REF!))&D4)) -> Sub-category SNAPP | E6: =IF(E3<>"",E3&E4,IF(AND(#REF!<>"",E3=""),#REF!&E4,LEFT(#REF!,LEN(#REF!)-LEN(#REF!))&E4)) -> Broad Category | F6: =IF(F3<>"",F3&F4,IF(AND(E3<>"",F3=""),E3&F4,LEFT(E6,LEN(E6)-LEN(E4))&F4)) -> Heat rate or efficiency | G6: =IF(G3<>"",G3&G4,IF(AND(F3<>"",G3=""),F3&G4,LEFT(F6,LEN(F6)-LEN(F4))&G4)) -> Heat rate | H6: =IF(H3<>"",H3&H4,IF(AND(G3<>"",H3=""),G3&H4,LEFT(G6,LEN(G6)-LEN(G4))&H4)) -> Efficiency | I6: =IF(I3<>"",I3&I4,IF(AND(#REF!<>"",I3=""),#REF!&I4,LEFT(#REF!,LEN(#REF!)-LEN(#REF!))&I4)) -> Output 2006 | J6: =IF(J3<>"",J3&J4,IF(AND(I3<>"",J3=""),I3&J4,LEFT(I6,LEN(I6)-LEN(I4))&J4)) -> # units | K6: =IF(K3<>"",K3&K4,IF(AND(J3<>"",K3=""),J3&K4,LEFT(J6,LEN(J6)-LEN(J4))&K4)) -> Max unit capacity | L6: =IF(L3<>"",L3&L4,IF(AND(#REF!<>"",L3=""),#REF!&L4,LEFT(#REF!,LEN(#REF!)-LEN(#REF!))&L4)) -> Total Cap before 2010 | M6: =IF(M3<>"",M3&M4,IF(AND(L3<>"",M3=""),L3&M4,LEFT(L6,LEN(L6)-LEN(L4))&M4)) -> Return to service schedule - MW added2010 | N6: Return to service schedule - MW added2011 | O6: Return to service schedule - MW added2012 | P6: Return to service schedule - MW added2013 | Q6: Planned Outage Rate | R6: Forced Outage rate | S6: Contribution to Peak | T6: Availability factor | U6: Maximum availability | V6: Minimum utilisation | W6: =IF(W3<>"",W3&W4,IF(AND(U3<>"",W3=""),U3&W4,LEFT(U6,LEN(U6)-LEN(U4))&W4)) -> Variable Costs | X6: Fixed Costs | Y6: Year online | Z6: Life of Plant | AA6: Known retirements | AB6: Retirement year | AC6: =AC3 -> FGD Retrofit cost | AD6: =IF(AD3<>"",AD3&AD4,IF(AND(AB3<>"",AD3=""),AB3&AD4,LEFT(AB6,LEN(AB6)-LEN(AB4))&AD4)) -> Water use | AF6: =IF(AF3<>"",AF3&AF4,IF(AND(AE3<>"",AF3=""),AE3&AF4,LEFT(AE6,LEN(AE6)-LEN(AE4))&AF4)) -> Residual Capacity2010 | AG6: Residual Capacity2011 | AH6: Residual Capacity2012 | AI6: Residual Capacity2013 | AJ6: Residual Capacity2014 | AK6: Residual Capacity2015 | AL6: Residual Capacity2016 | AM6: Residual Capacity2017 | AN6: Residual Capacity2018 | AO6: Residual Capacity2019 | AP6: Residual Capacity2020 | AQ6: Residual Capacity2021 | AR6: Residual Capacity2022 | AS6: Residual Capacity2023 | AT6: Residual Capacity2024 | AU6: Residual Capacity2025 | AV6: Residual Capacity2026 | AW6: Residual Capacity2027 | AX6: Residual Capacity2028 | AY6: Residual Capacity2029 | AZ6: Residual Capacity2030 | BA6: Residual Capacity2031 | BB6: Residual Capacity2032 | BC6: Residual Capacity2033 | BD6: Residual Capacity2034 | BE6: Residual Capacity2035 | BF6: Residual Capacity2036 | BG6: Residual Capacity2037 | BH6: Residual Capacity2038 | BI6: Residual Capacity2039 | BJ6: Residual Capacity2040 | BK6: Residual Capacity2041 | BL6: Residual Capacity2042 | BM6: Residual Capacity2043 | BN6: Residual Capacity2044 | BO6: Residual Capacity2045 | BP6: Residual Capacity2046 | BQ6: Residual Capacity2047 | BR6: Residual Capacity2048 | BS6: Residual Capacity2049 | BT6: Residual Capacity2050
B7: Name of Station | AC7: =Index!E14 -> N
B8: Simple technologies | M8: IRP2010 - T.12 | N8: IRP2010 - T.13 | O8: IRP2010 - T.14 | P8: IRP2010 - T.15
B9: Camden | C9: Coal PF Eskom Small Existing | D9: small coal existing | F9: 12214 | G9: =IF(F9>1,F9,"") -> 12214 | H9: 0.2793779495 | I9: 1769 | J9: 8 | K9: 190 | L9: =K9*J9 -> 1520 | Q9: 0.1 | R9: 0.1 | S9: 1 | T9: =(1-Q9)*(1-R9) -> 0.81 | U9: =1-R9 -> 0.9 | V9: ="" ->  | W9: 7 | X9: 127 | Y9: 1986 | Z9: =AA9-Y9 -> 37 | AA9: 2023 | AB9: =IF(AA9="",Z9+Y9,AA9) -> 2023 | AC9: =IF(AA9>$AC$7,-PMT(dr,AA9-$AC$7+5,'fgd costs'!$F$22,0,1)+'fgd costs'!$F$23,0) -> 0 | AD9: =SUMIF($B$124:$B$137,$B9,$C$124:$C$137) -> 2565.333333 | AF9: =L9+M9 -> 1520 | AG9: =IF(AG$4<=2013,AF9+M9,IF(AG$4>$AB9,0,AF9)) -> 1520 | AH9: =IF(AH$4<=2013,AG9+N9,IF(AH$4>$AB9,0,AG9)) -> 1520 | AI9: =IF(AI$4<=2013,AH9+O9,IF(AI$4>$AB9,0,AH9)) -> 1520 | AJ9: =IF(AJ$4<=2013,AI9+P9,IF(AJ$4>=$AB9-2,AI9*(1+OFFSET($AI$2,0,AJ$4-$AB9)),AI9)) -> 1520 | AK9: 1520 | AL9: 1520 | AM9: 1520 | AN9: 1520 | AO9: 1520 | AP9: =AO9-380 -> 1140 | AQ9: =AP9-190 -> 950 | AR9: =AQ9-570 -> 380 | AS9: =AR9-380 -> 0 | AT9: =IF(AT$4<=2013,AS9+AA9,IF(AT$4>=$AB9-2,AS9*(1+OFFSET($AI$2,0,AT$4-$AB9)),AS9)) -> 0 | AU9: =IF(AU$4<=2013,AT9+AB9,IF(AU$4>=$AB9-2,AT9*(1+OFFSET($AI$2,0,AU$4-$AB9)),AT9)) -> 0 | AV9: =IF(AV$4<=2013,AU9+AD9,IF(AV$4>=$AB9-2,AU9*(1+OFFSET($AI$2,0,AV$4-$AB9)),AU9)) -> 0 | AW9: 0 | AX9: 0 | AY9: 0 | AZ9: 0 | BA9: 0 | BB9: 0 | BC9: 0 | BD9: 0 | BE9: 0 | BF9: 0 | BG9: 0 | BH9: 0 | BI9: 0 | BJ9: 0 | BK9: 0 | BL9: 0 | BM9: 0 | BN9: 0 | BO9: 0 | BP9: 0 | BQ9: 0 | BR9: 0 | BS9: 0 | BT9: 0 | CB9: 0.0796 | CC9: 0.1699
B10: Grootvlei | C10: Coal PF Eskom Small Existing | D10: small coal existing | F10: 12638 | G10: 12638 | H10: 0.2700049276 | I10: 0 | J10: 2 | K10: 180 | L10: 360 | M10: 360 | N10: 360 | O10: 0 | P10: 0 | Q10: 0.1 | R10: 0.1 | S10: 1 | T10: 0.81 | U10: 0.9 | V10: ="" ->  | W10: 4.39 | X10: 204 | Y10: 1988 | Z10: 50 | AA10: 2028 | AB10: 2028 | AC10: =IF(AA10>$AC$7,-PMT(dr,AA10-$AC$7+5,'fgd costs'!$F$22,0,1)+'fgd costs'!$F$23,0) -> 0 | AD10: =SUMIF($B$124:$B$137,$B10,$C$124:$C$137) -> 2248.25 | AF10: 720 | AG10: =IF(AG$4<=2013,AF10+N10,IF(AG$4>$AB10,0,AF10)) -> 1080 | AH10: =IF(AH$4<=2013,AG10+O10,IF(AH$4>$AB10,0,AG10)) -> 1080 | AI10: =IF(AI$4<=2013,AH10+P10,IF(AI$4>$AB10,0,AH10)) -> 1080 | AJ10: =IF(AJ$4<=2013,AI10,IF(AJ$4>=$AB10-2,AI10*(1+OFFSET($AI$2,0,AJ$4-$AB10)),AI10)) -> 1080 | AK10: 1080 | AL10: 1080 | AM10: 1080 | AN10: 1080 | AO10: 1080 | AP10: 1080 | AQ10: 1080 | AR10: 1080 | AS10: 1080 | AT10: 1080 | AU10: =AT10-180 -> 900 | AV10: =AU10-360 -> 540 | AW10: =AV10-180 -> 360 | AX10: =AW10-360 -> 0 | AY10: =IF(AY$4<=2013,AX10+AG10,IF(AY$4>=$AB10-2,AX10*(1+OFFSET($AI$2,0,AY$4-$AB10)),AX10)) -> 0 | AZ10: 0 | BA10: 0 | BB10: 0 | BC10: 0 | BD10: 0 | BE10: 0 | BF10: 0 | BG10: 0 | BH10: 0 | BI10: =IF(BI$4<=2013,BH10+AQ10,IF(BI$4>=$AB10-2,BH10*(1+OFFSET($AI$2,0,BI$4-$AB10)),BH10)) -> 0 | BJ10: 0 | BK10: 0 | BL10: 0 | BM10: 0 | BN10: 0 | BO10: 0 | BP10: 0 | BQ10: 0 | BR10: 0 | BS10: =IF(BS$4<=2013,BR10+BA10,IF(BS$4>=$AB10-2,BR10*(1+OFFSET($AI$2,0,BS$4-$AB10)),BR10)) -> 0 | BT10: =IF(BT$4<=2013,BS10+BB10,IF(BT$4>=$AB10-2,BS10*(1+OFFSET($AI$2,0,BT$4-$AB10)),BS10)) -> 0 | CB10: 0.0796 | CC10: 0.1699
B11: Komati | C11: Coal PF Eskom Small Existing | D11: small coal existing | F11: 13382 | G11: 13382 | H11: 0.2549934445 | I11: 0 | J11: 2 | K11: 100 | L11: 200 | M11: 0 | N11: 300 | O11: 300 | P11: 100 | Q11: 0.1 | R11: 0.1 | S11: 1 | T11: 0.81 | U11: 0.9 | V11: ="" ->  | W11: 2.65 | X11: 187 | Y11: 1989 | Z11: 50 | AA11: 2028 | AB11: 2025 | AC11: =IF(AA11>$AC$7,-PMT(dr,AA11-$AC$7+5,'fgd costs'!$F$22,0,1)+'fgd costs'!$F$23,0) -> 0 | AD11: 3032.083333 | AF11: 200 | AG11: 500 | AH11: 800 | AI11: 900 | AJ11: =IF(AJ$4<=2013,AI11,IF(AJ$4>=$AB11-2,AI11*(1+OFFSET($AI$2,0,AJ$4-$AB11)),AI11)) -> 900 | AK11: 900 | AL11: 900 | AM11: 900 | AN11: 900 | AO11: 900 | AP11: 900 | AQ11: 900 | AR11: =IF(AR$4<=2013,AQ11+Y11,IF(AR$4>=$AB11-2,AQ11*(1+OFFSET($AI$2,0,AR$4-$AB11)),AQ11)) -> 900 | AS11: =IF(AS$4<=2013,AR11+Z11,IF(AS$4>=$AB11-2,AR11*(1+OFFSET($AI$2,0,AS$4-$AB11)),AR11)) -> 900 | AT11: =AS11-200 -> 700 | AU11: =AT11-100 -> 600 | AV11: =AU11-100 -> 500 | AW11: =AV11-300 -> 200 | AX11: =AW11-200 -> 0 | AY11: 0 | AZ11: 0 | BA11: 0 | BB11: 0 | BC11: 0 | BD11: 0 | BE11: 0 | BF11: 0 | BG11: 0 | BH11: 0 | BI11: 0 | BJ11: 0 | BK11: 0 | BL11: 0 | BM11: 0 | BN11: 0 | BO11: 0 | BP11: 0 | BQ11: 0 | BR11: 0 | BS11: =IF(BS$4<=2013,BR11+BA11,IF(BS$4>=$AB11-2,BR11*(1+OFFSET($AI$2,0,BS$4-$AB11)),BR11)) -> 0 | BT11: =IF(BT$4<=2013,BS11+BB11,IF(BT$4>=$AB11-2,BS11*(1+OFFSET($AI$2,0,BT$4-$AB11)),BS11)) -> 0 | CB11: 0.0796 | CC11: 0.1699
B12: Arnot | C12: Coal PF Eskom Large Existing | D12: Large coal existing | F12: 10555 | G12: 10555 | H12: 0.3232896518 | I12: 12683 | J12: 6 | K12: 370 | L12: 2220 | Q12: 0.1 | R12: 0.1 | S12: 1 | T12: 0.81 | U12: 0.9 | V12: ="" ->  | W12: 10 | X12: 314 | Y12: 1975 | Z12: 50 | AA12: 2029 | AB12: 2025 | AC12: =IF(AA12>$AC$7,-PMT(dr,AA12-$AC$7+5,'fgd costs'!$F$22,0,1)+'fgd costs'!$F$23,0) -> 0 | AD12: 2124.166667 | AF12: 2220 | AG12: 2220 | AH12: 2220 | AI12: 2220 | AJ12: 2220 | AK12: 2220 | AL12: 2220 | AM12: 2220 | AN12: 2220 | AO12: 2220 | AP12: 2220 | AQ12: 2220 | AR12: =AQ12 -> 2220 | AS12: =AR12 -> 2220 | AT12: =AS12 -> 2220 | AU12: =AT12-740 -> 1480 | AV12: =AU12-370 -> 1110 | AW12: =AV12-370 -> 740 | AX12: =AW12-370 -> 370 | AY12: =AX12-370 -> 0 | AZ12: =IF(AZ$4<=2013,AY12+AH12,IF(AZ$4>=$AB12-2,AY12*(1+OFFSET($AI$2,0,AZ$4-$AB12)),AY12)) -> 0 | BA12: 0 | BB12: 0 | BC12: 0 | BD12: 0 | BE12: 0 | BF12: 0 | BG12: 0 | BH12: 0 | BI12: 0 | BJ12: 0 | BK12: 0 | BL12: 0 | BM12: 0 | BN12: 0 | BO12: 0 | BP12: 0 | BQ12: 0 | BR12: 0 | BS12: 0 | BT12: 0 | CB12: 0.0895 | CC12: 0.0715
B13: Duvha | C13: Coal PF Eskom Large Existing | D13: Large coal existing | F13: 9831 | G13: 9831 | H13: 0.3470981868 | I13: 25246 | J13: 6 | K13: 580 | L13: 3480 | Q13: 0.1 | R13: 0.1 | S13: 1 | T13: 0.81 | U13: 0.9 | V13: ="" ->  | W13: 3 | X13: 169 | Y13: 1980 | Z13: 50 | AA13: 2034 | AB13: 2034 | AC13: =IF(AA13>$AC$7,-PMT(dr,AA13-$AC$7+5,'fgd costs'!$F$22,0,1)+'fgd costs'!$F$23,0) -> 0 | AD13: 2064 | AF13: 3480 | AG13: 3480 | AH13: 3480 | AI13: 3480 | AJ13: 3480 | AK13: 3480 | AL13: 3480 | AM13: 3480 | AN13: 3480 | AO13: 3480 | AP13: 3480 | AQ13: 3480 | AR13: =IF(AR$4<=2013,AQ13+Y13,IF(AR$4>=$AB13-2,AQ13*(1+OFFSET($AI$2,0,AR$4-$AB13)),AQ13)) -> 3480 | AS13: =IF(AS$4<=2013,AR13+Z13,IF(AS$4>=$AB13-2,AR13*(1+OFFSET($AI$2,0,AS$4-$AB13)),AR13)) -> 3480 | AT13: =IF(AT$4<=2013,AS13+AA13,IF(AT$4>=$AB13-2,AS13*(1+OFFSET($AI$2,0,AT$4-$AB13)),AS13)) -> 3480 | AU13: =IF(AU$4<=2013,AT13+AB13,IF(AU$4>=$AB13-2,AT13*(1+OFFSET($AI$2,0,AU$4-$AB13)),AT13)) -> 3480 | AV13: =IF(AV$4<=2013,AU13+AD13,IF(AV$4>=$AB13-2,AU13*(1+OFFSET($AI$2,0,AV$4-$AB13)),AU13)) -> 3480 | AW13: =IF(AW$4<=2013,AV13+AE13,IF(AW$4>=$AB13-2,AV13*(1+OFFSET($AI$2,0,AW$4-$AB13)),AV13)) -> 3480 | AX13: =IF(AX$4<=2013,AW13+AF13,IF(AX$4>=$AB13-2,AW13*(1+OFFSET($AI$2,0,AX$4-$AB13)),AW13)) -> 3480 | AY13: =IF(AY$4<=2013,AX13+AG13,IF(AY$4>=$AB13-2,AX13*(1+OFFSET($AI$2,0,AY$4-$AB13)),AX13)) -> 3480 | AZ13: =AY13-1160 -> 2320 | BA13: =AZ13-580 -> 1740 | BB13: =BA13-580 -> 1160 | BC13: =BB13-580 -> 580 | BD13: =BC13-580 -> 0 | BE13: =IF(BE$4<=2013,BD13+AM13,IF(BE$4>=$AB13-2,BD13*(1+OFFSET($AI$2,0,BE$4-$AB13)),BD13)) -> 0 | BF13: 0 | BG13: 0 | BH13: 0 | BI13: 0 | BJ13: 0 | BK13: 0 | BL13: 0 | BM13: 0 | BN13: 0 | BO13: 0 | BP13: 0 | BQ13: 0 | BR13: 0 | BS13: 0 | BT13: 0 | CB13: 0.0898 | CC13: 0.0474
B14: Hendrina | C14: Coal PF Eskom Small Existing | D14: small coal existing | F14: 10792 | G14: 10792 | H14: 0.316189981 | I14: 11718 | J14: 10 | K14: 190 | L14: 1900 | Q14: 0.1 | R14: 0.1 | S14: 1 | T14: 0.81 | U14: 0.9 | V14: ="" ->  | W14: 8 | X14: 351 | Y14: 1970 | Z14: 50 | AA14: 2027 | AB14: 2027 | AC14: =IF(AA14>$AC$7,-PMT(dr,AA14-$AC$7+5,'fgd costs'!$F$22,0,1)+'fgd costs'!$F$23,0) -> 0 | AD14: 2399.083333 | AF14: 1900 | AG14: 1900 | AH14: 1900 | AI14: 1900 | AJ14: =IF(AJ$4<=2013,AI14,IF(AJ$4>=$AB14-2,AI14*(1+OFFSET($AI$2,0,AJ$4-$AB14)),AI14)) -> 1900 | AK14: 1900 | AL14: 1900 | AM14: 1900 | AN14: 1900 | AO14: 1900 | AP14: 1900 | AQ14: =AP14-380 -> 1520 | AR14: =AQ14-380 -> 1140 | AS14: =AR14-190 -> 950 | AT14: =AS14-190 -> 760 | AU14: =AT14-190 -> 570 | AV14: =AU14-190 -> 380 | AW14: =AV14-380 -> 0 | AX14: =IF(AX$4<=2013,AW14+AF14,IF(AX$4>=$AB14-2,AW14*(1+OFFSET($AI$2,0,AX$4-$AB14)),AW14)) -> 0 | AY14: 0 | AZ14: 0 | BA14: 0 | BB14: 0 | BC14: 0 | BD14: 0 | BE14: 0 | BF14: 0 | BG14: 0 | BH14: 0 | BI14: 0 | BJ14: 0 | BK14: 0 | BL14: 0 | BM14: 0 | BN14: 0 | BO14: 0 | BP14: 0 | BQ14: 0 | BR14: 0 | BS14: 0 | BT14: 0 | CB14: 0.0737 | CC14: 0.0915
B15: Kendal | C15: Coal PF Eskom Large Dry Existing | D15: Large coal dry cooling existing | F15: 9755 | G15: 9755 | H15: 0.3498023859 | I15: 27934 | J15: 6 | K15: 640 | L15: 3840 | Q15: 0.1 | R15: 0.1 | S15: 1 | T15: 0.81 | U15: 0.9 | V15: ="" ->  | W15: 4 | X15: 122 | Y15: 1988 | Z15: 50 | AA15: 2043 | AB15: 2043 | AC15: =IF(AA15>$AC$7,-PMT(dr,AA15-$AC$7+5,'fgd costs'!$F$22,0,1)+'fgd costs'!$F$23,0) -> 0 | AD15: 144.0833333 | AF15: 3840 | AG15: 3840 | AH15: 3840 | AI15: 3840 | AJ15: 3840 | AK15: 3840 | AL15: 3840 | AM15: 3840 | AN15: 3840 | AO15: 3840 | AP15: 3840 | AQ15: =IF(AQ$4<=2013,AP15,IF(AQ$4>=$AB15-2,AP15*(1+OFFSET($AI$2,0,AQ$4-$AB15)),AP15)) -> 3840 | AR15: =IF(AR$4<=2013,AQ15+Y15,IF(AR$4>=$AB15-2,AQ15*(1+OFFSET($AI$2,0,AR$4-$AB15)),AQ15)) -> 3840 | AS15: 3840 | AT15: 3840 | AU15: 3840 | AV15: =IF(AV$4<=2013,AU15+AD15,IF(AV$4>=$AB15-2,AU15*(1+OFFSET($AI$2,0,AV$4-$AB15)),AU15)) -> 3840 | AW15: =AV15-60 -> 3780 | AX15: 3780 | AY15: 3780 | AZ15: 3780 | BA15: 3780 | BB15: 3780 | BC15: 3780 | BD15: 3780 | BE15: =IF(BE$4<=2013,BD15+AM15,IF(BE$4>=$AB15-2,BD15*(1+OFFSET($AI$2,0,BE$4-$AB15)),BD15)) -> 3780 | BF15: 3780 | BG15: 3780 | BH15: =BG15-630 -> 3150 | BI15: =BH15 -> 3150 | BJ15: =BI15 -> 3150 | BK15: =BJ15-1890 -> 1260 | BL15: =BK15-630 -> 630 | BM15: =BL15-630 -> 0 | BN15: =IF(BN$4<=2013,BM15+AV15,IF(BN$4>=$AB15-2,BM15*(1+OFFSET($AI$2,0,BN$4-$AB15)),BM15)) -> 0 | BO15: 0 | BP15: 0 | BQ15: 0 | BR15: 0 | BS15: 0 | BT15: 0 | CB15: 0.0589 | CC15: 0.032
B16: Kriel | C16: Coal PF Eskom Large Existing | D16: Large coal existing | F16: 9510 | G16: 9510 | H16: 0.3588141193 | I16: 19209 | J16: 6 | K16: 480 | L16: 2880 | Q16: 0.1 | R16: 0.1 | S16: 1 | T16: 0.81 | U16: 0.9 | V16: ="" ->  | W16: 8 | X16: 298 | Y16: 1976 | Z16: 50 | AA16: 2029 | AB16: 2029 | AC16: =IF(AA16>$AC$7,-PMT(dr,AA16-$AC$7+5,'fgd costs'!$F$22,0,1)+'fgd costs'!$F$23,0) -> 0 | AD16: =SUMIF($B$124:$B$137,$B16,$C$124:$C$137) -> 2215 | AF16: 2880 | AG16: 2880 | AH16: 2880 | AI16: 2880 | AJ16: 2880 | AK16: 2880 | AL16: 2880 | AM16: 2880 | AN16: 2880 | AO16: 2880 | AP16: 2880 | AQ16: 2880 | AR16: 2880 | AS16: 2880 | AT16: 2880 | AU16: 2880 | AV16: =AU16-480 -> 2400 | AW16: =AV16-480 -> 1920 | AX16: =AW16-960 -> 960 | AY16: =AX16-960 -> 0 | AZ16: =IF(AZ$4<=2013,AY16+AH16,IF(AZ$4>=$AB16-2,AY16*(1+OFFSET($AI$2,0,AZ$4-$AB16)),AY16)) -> 0 | BA16: 0 | BB16: 0 | BC16: 0 | BD16: 0 | BE16: 0 | BF16: 0 | BG16: 0 | BH16: =IF(BH$4<=2013,BG16+AP16,IF(BH$4>=$AB16-2,BG16*(1+OFFSET($AI$2,0,BH$4-$AB16)),BG16)) -> 0 | BI16: 0 | BJ16: 0 | BK16: 0 | BL16: 0 | BM16: 0 | BN16: 0 | BO16: 0 | BP16: 0 | BQ16: 0 | BR16: 0 | BS16: 0 | BT16: 0 | CB16: 0.0698 | CC16: 0.0938
B17: Lethabo | C17: Coal PF Eskom Large Existing | D17: Large coal existing | F17: 9671 | G17: 9671 | H17: 0.3528406861 | I17: 24868 | J17: 6 | K17: 590 | L17: 3540 | Q17: 0.1 | R17: 0.1 | S17: 1 | T17: 0.81 | U17: 0.9 | V17: ="" ->  | W17: 8 | X17: 129 | Y17: 1985 | Z17: 50 | AA17: 2040 | AB17: 2040 | AC17: =IF(AA17>$AC$7,-PMT(dr,AA17-$AC$7+5,'fgd costs'!$F$22,0,1)+'fgd costs'!$F$23,0) -> 0 | AD17: =SUMIF($B$124:$B$137,$B17,$C$124:$C$137) -> 1817.583333 | AF17: 3540 | AG17: 3540 | AH17: 3540 | AI17: 3540 | AJ17: 3540 | AK17: 3540 | AL17: 3540 | AM17: 3540 | AN17: 3540 | AO17: 3540 | AP17: 3540 | AQ17: 3540 | AR17: 3540 | AS17: 3540 | AT17: 3540 | AU17: 3540 | AV17: =IF(AV$4<=2013,AU17+AD17,IF(AV$4>=$AB17-2,AU17*(1+OFFSET($AI$2,0,AV$4-$AB17)),AU17)) -> 3540 | AW17: 3540 | AX17: 3540 | AY17: 3540 | AZ17: 3540 | BA17: 3540 | BB17: 3540 | BC17: 3540 | BD17: 3540 | BE17: =BD17-590 -> 2950 | BF17: =BE17-590 -> 2360 | BG17: =BF17 -> 2360 | BH17: =BG17-1180 -> 1180 | BI17: =BH17-590 -> 590 | BJ17: =BI17-590 -> 0 | BK17: =IF(BK$4<=2013,BJ17+AS17,IF(BK$4>=$AB17-2,BJ17*(1+OFFSET($AI$2,0,BK$4-$AB17)),BJ17)) -> 0 | BL17: 0 | BM17: 0 | BN17: 0 | BO17: 0 | BP17: 0 | BQ17: 0 | BR17: 0 | BS17: 0 | BT17: 0 | CB17: 0.0805 | CC17: 0.0681
B18: Majuba Dry | C18: Coal PF Eskom Large Dry Existing | D18: Large coal dry cooling existing | F18: 9763 | G18: 9763 | H18: 0.3495157508 | I18: 8569.604996 | J18: 3 | K18: 610 | L18: 1830 | Q18: 0.1 | R18: 0.1 | S18: 1 | T18: 0.81 | U18: 0.9 | V18: ="" ->  | W18: 7 | X18: 134 | Y18: 1996 | Z18: 50 | AA18: 2048 | AB18: 2048 | AC18: =IF(AA18>$AC$7,-PMT(dr,AA18-$AC$7+5,'fgd costs'!$F$22,0,1)+'fgd costs'!$F$23,0) -> 0 | AD18: 130 | AF18: 1830 | AG18: 1830 | AH18: 1830 | AI18: 1830 | AJ18: 1830 | AK18: 1830 | AL18: 1830 | AM18: 1830 | AN18: 1830 | AO18: 1830 | AP18: 1830 | AQ18: 1830 | AR18: 1830 | AS18: 1830 | AT18: 1830 | AU18: 1830 | AV18: 1830 | AW18: 1830 | AX18: 1830 | AY18: 1830 | AZ18: 1830 | BA18: 1830 | BB18: 1830 | BC18: 1830 | BD18: 1830 | BE18: =IF(BE$4<=2013,BD18+AM18,IF(BE$4>=$AB18-2,BD18*(1+OFFSET($AI$2,0,BE$4-$AB18)),BD18)) -> 1830 | BF18: 1830 | BG18: 1830 | BH18: 1830 | BI18: 1830 | BJ18: 1830 | BK18: 1830 | BL18: 1830 | BM18: 1830 | BN18: =IF(BN$4<=2013,BM18+AV18,IF(BN$4>=$AB18-2,BM18*(1+OFFSET($AI$2,0,BN$4-$AB18)),BM18)) -> 1830 | BO18: =IF(BO$4<=2013,BN18+AW18,IF(BO$4>=$AB18-2,BN18*(1+OFFSET($AI$2,0,BO$4-$AB18)),BN18)) -> 1830 | BP18: =BO18-610 -> 1220 | BQ18: =BP18-610 -> 610 | BR18: =BQ18-610 -> 0 | BS18: =IF(BS$4<=2013,BR18+BA18,IF(BS$4>=$AB18-2,BR18*(1+OFFSET($AI$2,0,BS$4-$AB18)),BR18)) -> 0 | BT18: =IF(BT$4<=2013,BS18+BB18,IF(BT$4>=$AB18-2,BS18*(1+OFFSET($AI$2,0,BT$4-$AB18)),BS18)) -> 0 | CB18: 0.0578 | CC18: 0.0578
B19: Majuba Wet | C19: Coal PF Eskom Large Existing | D19: Large coal existing | F19: 9074 | G19: 9074 | H19: 0.3760549124 | I19: 9222.395004 | J19: 3 | K19: 670 | L19: 2010 | Q19: 0.1 | R19: 0.1 | S19: 1 | T19: 0.81 | U19: 0.9 | V19: ="" ->  | W19: 13 | X19: 90 | Y19: 1996 | Z19: 50 | AA19: 2049 | AB19: 2049 | AC19: =IF(AA19>$AC$7,-PMT(dr,AA19-$AC$7+5,'fgd costs'!$F$22,0,1)+'fgd costs'!$F$23,0) -> 0 | AD19: 1800 | AF19: 2010 | AG19: 2010 | AH19: 2010 | AI19: 2010 | AJ19: 2010 | AK19: 2010 | AL19: 2010 | AM19: 2010 | AN19: 2010 | AO19: 2010 | AP19: 2010 | AQ19: 2010 | AR19: 2010 | AS19: 2010 | AT19: 2010 | AU19: 2010 | AV19: 2010 | AW19: 2010 | AX19: 2010 | AY19: 2010 | AZ19: 2010 | BA19: 2010 | BB19: 2010 | BC19: 2010 | BD19: 2010 | BE19: 2010 | BF19: 2010 | BG19: 2010 | BH19: 2010 | BI19: 2010 | BJ19: 2010 | BK19: 2010 | BL19: 2010 | BM19: 2010 | BN19: 2010 | BO19: 2010 | BP19: =IF(BP$4<=2013,BO19+AX19,IF(BP$4>=$AB19-2,BO19*(1+OFFSET($AI$2,0,BP$4-$AB19)),BO19)) -> 2010 | BQ19: =IF(BQ$4<=2013,BP19+AY19,IF(BQ$4>=$AB19-2,BP19*(1+OFFSET($AI$2,0,BQ$4-$AB19)),BP19)) -> 2010 | BR19: =IF(BR$4<=2013,BQ19+AZ19,IF(BR$4>=$AB19-2,BQ19*(1+OFFSET($AI$2,0,BR$4-$AB19)),BQ19)) -> 1340.0067 | BS19: =BR19-670 -> 670.0067 | BT19: =IF(BT$4<=2013,BS19+BB19,IF(BT$4>=$AB19-2,BS19*(1+OFFSET($AI$2,0,BT$4-$AB19)),BS19)) -> 0 | CB19: 0.0678 | CC19: 0.0583
B20: Matimba | C20: =C18 -> Coal PF Eskom Large Dry Existing | D20: Large coal dry cooling existing | F20: 9648 | G20: 9648 | H20: =35.3681827827686%-OtherRegionalProjects!E13 -> 0.3393718278 | I20: 28212 | J20: 6 | K20: 610 | L20: =K20*J20+60 -> 3720 | Q20: 0.1 | R20: 0.1 | S20: 1 | T20: 0.81 | U20: 0.9 | V20: ="" ->  | W20: 6 | X20: 200 | Y20: 1987 | Z20: 50 | AA20: 2042 | AB20: 2042 | AC20: =IF(AA20>$AC$7,-PMT(dr,AA20-$AC$7+5,'fgd costs'!$F$22,0,1)+'fgd costs'!$F$23,0) -> 0 | AD20: =SUMIF($B$124:$B$137,$B20,$C$124:$C$137) -> 111.0833333 | AF20: 3720 | AG20: 3720 | AH20: 3720 | AI20: 3720 | AJ20: 3720 | AK20: 3720 | AL20: 3720 | AM20: 3720 | AN20: 3720 | AO20: 3720 | AP20: 3720 | AQ20: 3720 | AR20: =IF(AR$4<=2013,AQ20+Y20,IF(AR$4>=$AB20-2,AQ20*(1+OFFSET($AI$2,0,AR$4-$AB20)),AQ20)) -> 3720 | AS20: =AR20-60 -> 3660 | AT20: =IF(AT$4<=2013,AS20+AA20,IF(AT$4>=$AB20-2,AS20*(1+OFFSET($AI$2,0,AT$4-$AB20)),AS20)) -> 3660 | AU20: =IF(AU$4<=2013,AT20+AB20,IF(AU$4>=$AB20-2,AT20*(1+OFFSET($AI$2,0,AU$4-$AB20)),AT20)) -> 3660 | AV20: 3660 | AW20: 3660 | AX20: 3660 | AY20: 3660 | AZ20: 3660 | BA20: 3660 | BB20: 3660 | BC20: 3660 | BD20: 3660 | BE20: =IF(BE$4<=2013,BD20+AM20,IF(BE$4>=$AB20-2,BD20*(1+OFFSET($AI$2,0,BE$4-$AB20)),BD20)) -> 3660 | BF20: 3660 | BG20: 3660 | BH20: =BG20-1220 -> 2440 | BI20: =BH20-610 -> 1830 | BJ20: =BI20-610 -> 1220 | BK20: =BJ20-610 -> 610 | BL20: =BK20-610 -> 0 | BM20: =IF(BM$4<=2013,BL20+AU20,IF(BM$4>=$AB20-2,BL20*(1+OFFSET($AI$2,0,BM$4-$AB20)),BL20)) -> 0 | BN20: 0 | BO20: 0 | BP20: 0 | BQ20: 0 | BR20: 0 | BS20: =IF(BS$4<=2013,BR20+BA20,IF(BS$4>=$AB20-2,BR20*(1+OFFSET($AI$2,0,BS$4-$AB20)),BR20)) -> 0 | BT20: 0 | CB20: 0.078 | CC20: 0.0549
B21: Matla | C21: Coal PF Eskom Large Existing | D21: Large coal existing | F21: 9692 | G21: 9692 | H21: 0.3520761736 | I21: 25388 | J21: 6 | K21: 580 | L21: 3480 | Q21: 0.1 | R21: 0.1 | S21: 1 | T21: 0.81 | U21: 0.9 | V21: ="" ->  | W21: 10 | X21: 188 | Y21: 1979 | Z21: 50 | AA21: 2031 | AB21: 2031 | AC21: =IF(AA21>$AC$7,-PMT(dr,AA21-$AC$7+5,'fgd costs'!$F$22,0,1)+'fgd costs'!$F$23,0) -> 0 | AD21: =SUMIF($B$124:$B$137,$B21,$C$124:$C$137) -> 1963.583333 | AF21: 3480 | AG21: 3480 | AH21: 3480 | AI21: 3480 | AJ21: 3480 | AK21: 3480 | AL21: 3480 | AM21: 3480 | AN21: 3480 | AO21: 3480 | AP21: 3480 | AQ21: 3480 | AR21: 3480 | AS21: =IF(AS$4<=2013,AR21+Z21,IF(AS$4>=$AB21-2,AR21*(1+OFFSET($AI$2,0,AS$4-$AB21)),AR21)) -> 3480 | AT21: =IF(AT$4<=2013,AS21+AA21,IF(AT$4>=$AB21-2,AS21*(1+OFFSET($AI$2,0,AT$4-$AB21)),AS21)) -> 3480 | AU21: =IF(AU$4<=2013,AT21+AB21,IF(AU$4>=$AB21-2,AT21*(1+OFFSET($AI$2,0,AU$4-$AB21)),AT21)) -> 3480 | AV21: =IF(AV$4<=2013,AU21+AD21,IF(AV$4>=$AB21-2,AU21*(1+OFFSET($AI$2,0,AV$4-$AB21)),AU21)) -> 3480 | AW21: 3480 | AX21: 3480 | AY21: =AX21-580 -> 2900 | AZ21: =AY21-1160 -> 1740 | BA21: =AZ21-580 -> 1160 | BB21: =BA21-580 -> 580 | BC21: =BB21-580 -> 0 | BD21: =IF(BD$4<=2013,BC21+AL21,IF(BD$4>=$AB21-2,BC21*(1+OFFSET($AI$2,0,BD$4-$AB21)),BC21)) -> 0 | BE21: 0 | BF21: 0 | BG21: 0 | BH21: =IF(BH$4<=2013,BG21+AP21,IF(BH$4>=$AB21-2,BG21*(1+OFFSET($AI$2,0,BH$4-$AB21)),BG21)) -> 0 | BI21: =IF(BI$4<=2013,BH21+AQ21,IF(BI$4>=$AB21-2,BH21*(1+OFFSET($AI$2,0,BI$4-$AB21)),BH21)) -> 0 | BJ21: =IF(BJ$4<=2013,BI21+AR21,IF(BJ$4>=$AB21-2,BI21*(1+OFFSET($AI$2,0,BJ$4-$AB21)),BI21)) -> 0 | BK21: =IF(BK$4<=2013,BJ21+AS21,IF(BK$4>=$AB21-2,BJ21*(1+OFFSET($AI$2,0,BK$4-$AB21)),BJ21)) -> 0 | BL21: =IF(BL$4<=2013,BK21+AT21,IF(BL$4>=$AB21-2,BK21*(1+OFFSET($AI$2,0,BL$4-$AB21)),BK21)) -> 0 | BM21: 0 | BN21: 0 | BO21: 0 | BP21: 0 | BQ21: 0 | BR21: 0 | BS21: 0 | BT21: 0 | CB21: 0.0546 | CC21: 0.0673
B22: Tutuka | C22: Coal PF Eskom Large Existing | D22: Large coal existing | F22: 9100 | G22: 9100 | H22: 0.3749804698 | I22: 18374 | J22: 6 | K22: 580 | L22: =K22*J22+60 -> 3540 | Q22: 0.1 | R22: 0.1 | S22: 1 | T22: 0.81 | U22: 0.9 | V22: ="" ->  | W22: 7 | X22: 127 | Y22: 1985 | Z22: 50 | AA22: 2037 | AB22: 2037 | AC22: =IF(AA22>$AC$7,-PMT(dr,AA22-$AC$7+5,'fgd costs'!$F$22,0,1)+'fgd costs'!$F$23,0) -> 0 | AD22: =SUMIF($B$124:$B$137,$B22,$C$124:$C$137) -> 1965.916667 | AF22: 3540 | AG22: 3540 | AH22: 3540 | AI22: 3540 | AJ22: 3540 | AK22: 3540 | AL22: 3540 | AM22: 3540 | AN22: 3540 | AO22: 3540 | AP22: 3540 | AQ22: 3540 | AR22: 3540 | AS22: 3540 | AT22: =AS22-60 -> 3480 | AU22: =IF(AU$4<=2013,AT22+AB22,IF(AU$4>=$AB22-2,AT22*(1+OFFSET($AI$2,0,AU$4-$AB22)),AT22)) -> 3480 | AV22: 3480 | AW22: 3480 | AX22: 3480 | AY22: =IF(AY$4<=2013,AX22+AG22,IF(AY$4>=$AB22-2,AX22*(1+OFFSET($AI$2,0,AY$4-$AB22)),AX22)) -> 3480 | AZ22: =IF(AZ$4<=2013,AY22+AH22,IF(AZ$4>=$AB22-2,AY22*(1+OFFSET($AI$2,0,AZ$4-$AB22)),AY22)) -> 3480 | BA22: =IF(BA$4<=2013,AZ22+AI22,IF(BA$4>=$AB22-2,AZ22*(1+OFFSET($AI$2,0,BA$4-$AB22)),AZ22)) -> 3480 | BB22: =IF(BB$4<=2013,BA22+AJ22,IF(BB$4>=$AB22-2,BA22*(1+OFFSET($AI$2,0,BB$4-$AB22)),BA22)) -> 3480 | BC22: =IF(BC$4<=2013,BB22+AK22,IF(BC$4>=$AB22-2,BB22*(1+OFFSET($AI$2,0,BC$4-$AB22)),BB22)) -> 3480 | BD22: 3480 | BE22: =BD22-580 -> 2900 | BF22: =BE22-1160 -> 1740 | BG22: =BF22-580 -> 1160 | BH22: =BG22-580 -> 580 | BI22: =BH22 -> 580 | BJ22: =BI22-580 -> 0 | BK22: =IF(BK$4<=2013,BJ22+AS22,IF(BK$4>=$AB22-2,BJ22*(1+OFFSET($AI$2,0,BK$4-$AB22)),BJ22)) -> 0 | BL22: 0 | BM22: 0 | BN22: 0 | BO22: 0 | BP22: 0 | BQ22: 0 | BR22: 0 | BS22: 0 | BT22: 0 | CB22: 0.1009 | CC22: 0.0465
B23: Kelvin "A" | C23: Coal PF Munic Existing | D23: small coal existing | F23: 14239 | G23: 14239 | H23: 0.2396462023 | I23: 230.7690945 | J23: 2 | K23: 25 | L23: 50 | Q23: 0.1 | R23: 0.1 | S23: 1 | T23: 0.81 | U23: 0.9 | V23: ="" ->  | W23: 18 | X23: 371 | Y23: 1982 | Z23: 50 | AA23: 2015 | AB23: 2015 | AC23: =IF(AA23>$AC$7,-PMT(dr,AA23-$AC$7+5,'fgd costs'!$F$22,0,1)+'fgd costs'!$F$23,0) -> 0 | AD23: =AD9 -> 2565.333333 | AF23: 50 | AG23: 50 | AH23: 50 | AI23: 50 | AJ23: 33.3335 | AK23: 16.66675 | AL23: 0 | AM23: 0 | AN23: 0 | AO23: 0 | AP23: 0 | AQ23: 0 | AR23: 0 | AS23: 0 | AT23: =IF(AT$4<=2013,AS23+AA23,IF(AT$4>=$AB23-2,AS23*(1+OFFSET($AI$2,0,AT$4-$AB23)),AS23)) -> 0 | AU23: =IF(AU$4<=2013,AT23+AB23,IF(AU$4>=$AB23-2,AT23*(1+OFFSET($AI$2,0,AU$4-$AB23)),AT23)) -> 0 | AV23: 0 | AW23: 0 | AX23: 0 | AY23: 0 | AZ23: 0 | BA23: 0 | BB23: 0 | BC23: 0 | BD23: 0 | BE23: =IF(BE$4<=2013,BD23+AM23,IF(BE$4>=$AB23-2,BD23*(1+OFFSET($AI$2,0,BE$4-$AB23)),BD23)) -> 0 | BF23: 0 | BG23: 0 | BH23: 0 | BI23: 0 | BJ23: 0 | BK23: 0 | BL23: 0 | BM23: 0 | BN23: 0 | BO23: 0 | BP23: 0 | BQ23: 0 | BR23: 0 | BS23: 0 | BT23: 0 | CB23: 0.1009 | CC23: 0.0938
B24: Kelvin "B" | C24: Coal PF Munic Existing | D24: small coal existing | F24: 13688 | G24: 13688 | H24: 0.2492929774 | I24: 941.5379055 | J24: 3 | K24: 50 | L24: 150 | Q24: 0.1 | R24: 0.1 | S24: 1 | T24: 0.81 | U24: 0.9 | V24: ="" ->  | W24: 18 | X24: 302 | Y24: 1982 | Z24: 50 | AA24: 2033 | AB24: 2033 | AC24: =IF(AA24>$AC$7,-PMT(dr,AA24-$AC$7+5,'fgd costs'!$F$22,0,1)+'fgd costs'!$F$23,0) -> 0 | AD24: =AD23 -> 2565.333333 | AF24: 150 | AG24: 150 | AH24: 150 | AI24: 150 | AJ24: 150 | AK24: 150 | AL24: 150 | AM24: 150 | AN24: 150 | AO24: 150 | AP24: 150 | AQ24: 150 | AR24: 150 | AS24: 150 | AT24: =IF(AT$4<=2013,AS24+AA24,IF(AT$4>=$AB24-2,AS24*(1+OFFSET($AI$2,0,AT$4-$AB24)),AS24)) -> 150 | AU24: =IF(AU$4<=2013,AT24+AB24,IF(AU$4>=$AB24-2,AT24*(1+OFFSET($AI$2,0,AU$4-$AB24)),AT24)) -> 150 | AV24: 150 | AW24: 150 | AX24: 150 | AY24: 150 | AZ24: 150 | BA24: 150 | BB24: 100.0005 | BC24: 50.00025 | BD24: 0 | BE24: 0 | BF24: 0 | BG24: 0 | BH24: 0 | BI24: 0 | BJ24: 0 | BK24: 0 | BL24: 0 | BM24: 0 | BN24: 0 | BO24: 0 | BP24: 0 | BQ24: 0 | BR24: 0 | BS24: 0 | BT24: 0 | CB24: 0.1009 | CC24: 0.0938
B25: Pretoria West | C25: Coal PF Munic Existing | D25: small coal existing | F25: 14545 | G25: 14545 | H25: 0.2346044878 | I25: 130 | J25: 3 | K25: 30 | L25: =K25*J25 -> 90 | Q25: 0.1 | R25: 0.1 | S25: 1 | T25: 0.81 | U25: 0.9 | V25: ="" ->  | W25: 18 | X25: 697 | Y25: 1982 | Z25: 50 | AA25: 2016 | AB25: 2017 | AC25: =IF(AA25>$AC$7,-PMT(dr,AA25-$AC$7+5,'fgd costs'!$F$22,0,1)+'fgd costs'!$F$23,0) -> 0 | AD25: =AD24 -> 2565.333333 | AF25: 90 | AG25: 90 | AH25: 90 | AI25: 90 | AJ25: =IF(AJ$4<=2013,AI25,IF(AJ$4>=$AB25-2,AI25*(1+OFFSET($AI$2,0,AJ$4-$AB25)),AI25)) -> 90 | AK25: 90 | AL25: =AK25 -> 90 | AM25: =AL25-90 -> 0 | AN25: =IF(AN$4<=2013,AM25,IF(AN$4>=$AB25-2,AM25*(1+OFFSET($AI$2,0,AN$4-$AB25)),AM25)) -> 0 | AO25: 0 | AP25: 0 | AQ25: 0 | AR25: 0 | AS25: 0 | AT25: =IF(AT$4<=2013,AS25+AA25,IF(AT$4>=$AB25-2,AS25*(1+OFFSET($AI$2,0,AT$4-$AB25)),AS25)) -> 0 | AU25: =IF(AU$4<=2013,AT25+AB25,IF(AU$4>=$AB25-2,AT25*(1+OFFSET($AI$2,0,AU$4-$AB25)),AT25)) -> 0 | AV25: 0 | AW25: 0 | AX25: 0 | AY25: 0 | AZ25: 0 | BA25: 0 | BB25: 0 | BC25: 0 | BD25: 0 | BE25: 0 | BF25: 0 | BG25: 0 | BH25: 0 | BI25: 0 | BJ25: 0 | BK25: 0 | BL25: 0 | BM25: 0 | BN25: 0 | BO25: 0 | BP25: 0 | BQ25: 0 | BR25: 0 | BS25: 0 | BT25: 0 | CB25: 0.1009 | CC25: 0.0938
B26: Rooiwal | C26: Coal PF Munic Existing | D26: small coal existing | F26: 13688 | G26: 13688 | H26: 0.2492929774 | I26: 816 | J26: 3 | K26: 60 | L26: =K26*J26 -> 180 | Q26: 0.1 | R26: 0.1 | S26: 1 | T26: 0.81 | U26: 0.9 | V26: ="" ->  | W26: 17 | X26: 241 | Y26: 1982 | Z26: 50 | AA26: 2025 | AB26: 2025 | AC26: =IF(AA26>$AC$7,-PMT(dr,AA26-$AC$7+5,'fgd costs'!$F$22,0,1)+'fgd costs'!$F$23,0) -> 0 | AD26: =AD25 -> 2565.333333 | AF26: 180 | AG26: 180 | AH26: 180 | AI26: 180 | AJ26: 180 | AK26: 180 | AL26: =IF(AL$4<=2013,AK26,IF(AL$4>=$AB26-2,AK26*(1+OFFSET($AI$2,0,AL$4-$AB26)),AK26)) -> 180 | AM26: 180 | AN26: 180 | AO26: 180 | AP26: 180 | AQ26: 180 | AR26: 180 | AS26: 180 | AT26: =AS26 -> 180 | AU26: =AT26-180 -> 0 | AV26: 0 | AW26: 0 | AX26: 0 | AY26: 0 | AZ26: 0 | BA26: 0 | BB26: 0 | BC26: 0 | BD26: 0 | BE26: 0 | BF26: 0 | BG26: 0 | BH26: 0 | BI26: 0 | BJ26: 0 | BK26: 0 | BL26: 0 | BM26: 0 | BN26: 0 | BO26: 0 | BP26: 0 | BQ26: 0 | BR26: 0 | BS26: 0 | BT26: 0 | CB26: 0.1009 | CC26: 0.0938
B27: Sasol Infrachem | C27: Sasol Infrachem | D27: small coal existing | F27: =F28 -> 13419 | G27: 13419 | H27: 0.2542903551 | I27: 632 | J27: 3 | K27: 50 | L27: =K27*J27 -> 150 | Q27: 0.1 | R27: 0.1 | S27: 1 | T27: 0.81 | U27: 0.9 | V27: ="" ->  | W27: 14 | X27: 138 | Y27: 1982 | Z27: 50 | AA27: 2043 | AB27: 2043 | AC27: =IF(AA27>$AC$7,-PMT(dr,AA27-$AC$7+5,'fgd costs'!$F$22,0,1)+'fgd costs'!$F$23,0) -> 0 | AD27: =AD26 -> 2565.333333 | AF27: 150 | AG27: 150 | AH27: 150 | AI27: 150 | AJ27: 150 | AK27: 150 | AL27: 150 | AM27: 150 | AN27: 150 | AO27: 150 | AP27: 150 | AQ27: 150 | AR27: 150 | AS27: 150 | AT27: =IF(AT$4<=2013,AS27+AA27,IF(AT$4>=$AB27-2,AS27*(1+OFFSET($AI$2,0,AT$4-$AB27)),AS27)) -> 150 | AU27: =IF(AU$4<=2013,AT27+AB27,IF(AU$4>=$AB27-2,AT27*(1+OFFSET($AI$2,0,AU$4-$AB27)),AT27)) -> 150 | AV27: 150 | AW27: 150 | AX27: 150 | AY27: 150 | AZ27: 150 | BA27: 150 | BB27: 150 | BC27: 150 | BD27: 150 | BE27: 150 | BF27: 150 | BG27: 150 | BH27: 150 | BI27: 150 | BJ27: 150 | BK27: =IF(BK$4<=2013,BJ27+AS27,IF(BK$4>=$AB27-2,BJ27*(1+OFFSET($AI$2,0,BK$4-$AB27)),BJ27)) -> 150 | BL27: =BK27 -> 150 | BM27: =BL27-150 -> 0 | BN27: 0 | BO27: 0 | BP27: 0 | BQ27: 0 | BR27: 0 | BS27: 0 | BT27: 0 | CB27: 0.0898 | CC27: 0.0715
B28: Sasol SSF | C28: Sasol SSF | D28: small coal existing | F28: 13419 | G28: 13419 | H28: 0.2542903551 | I28: 3880 | J28: 10 | K28: 50 | L28: =K28*J28 -> 500 | Q28: 0.1 | R28: 0.1 | S28: 1 | T28: 0.81 | U28: 0.9 | V28: ="" ->  | W28: 14 | X28: 138 | Y28: 1982 | Z28: 50 | AA28: 2025 | AB28: 2025 | AC28: =IF(AA28>$AC$7,-PMT(dr,AA28-$AC$7+5,'fgd costs'!$F$22,0,1)+'fgd costs'!$F$23,0) -> 0 | AD28: =AD27 -> 2565.333333 | AF28: 500 | AG28: 500 | AH28: 500 | AI28: 500 | AJ28: 500 | AK28: 500 | AL28: 500 | AM28: 500 | AN28: 500 | AO28: 500 | AP28: 500 | AQ28: 500 | AR28: 500 | AS28: 500 | AT28: =AS28 -> 500 | AU28: =AT28-500 -> 0 | AV28: 0 | AW28: 0 | AX28: 0 | AY28: 0 | AZ28: 0 | BA28: 0 | BB28: 0 | BC28: 0 | BD28: 0 | BE28: 0 | BF28: 0 | BG28: 0 | BH28: 0 | BI28: 0 | BJ28: 0 | BK28: 0 | BL28: =IF(BL$4<=2013,BK28+AT28,IF(BL$4>=$AB28-2,BK28*(1+OFFSET($AI$2,0,BL$4-$AB28)),BK28)) -> 0 | BM28: =IF(BM$4<=2013,BL28+AU28,IF(BM$4>=$AB28-2,BL28*(1+OFFSET($AI$2,0,BM$4-$AB28)),BL28)) -> 0 | BN28: 0 | BO28: 0 | BP28: 0 | BQ28: 0 | BR28: 0 | BS28: 0 | BT28: 0 | CB28: 0.0898 | CC28: 0.0715
B29: Acacia | C29: OCGT liquid fuels Existing | D29: Open-Cycle Gas Turbine diesel | F29: 12186 | G29: 12186 | H29: 0.2800198814 | I29: 36 | J29: 3 | K29: 60 | L29: =K29*J29 -> 180 | Q29: 0.0348 | R29: 0.0455 | S29: 1 | T29: 0.09 | U29: 0.9545 | V29: 0.05 | W29: 101 | X29: 67 | Y29: 1976 | Z29: 50 | AA29: 2031 | AB29: 2031 | AF29: 180 | AG29: 180 | AH29: 180 | AI29: 180 | AJ29: 180 | AK29: 180 | AL29: 180 | AM29: 180 | AN29: 180 | AO29: 180 | AP29: 180 | AQ29: 180 | AR29: 180 | AS29: 180 | AT29: =IF(AT$4<=2013,AS29+AA29,IF(AT$4>=$AB29-2,AS29*(1+OFFSET($AI$2,0,AT$4-$AB29)),AS29)) -> 180 | AU29: =IF(AU$4<=2013,AT29+AB29,IF(AU$4>=$AB29-2,AT29*(1+OFFSET($AI$2,0,AU$4-$AB29)),AT29)) -> 180 | AV29: =AU29-180 -> 0 | AW29: =IF(AW$4<=2013,AV29+AE29,IF(AW$4>=$AB29-2,AV29*(1+OFFSET($AI$2,0,AW$4-$AB29)),AV29)) -> 0 | AX29: =IF(AX$4<=2013,AW29+AF29,IF(AX$4>=$AB29-2,AW29*(1+OFFSET($AI$2,0,AX$4-$AB29)),AW29)) -> 0 | AY29: 0 | AZ29: 0 | BA29: 0 | BB29: 0 | BC29: 0 | BD29: 0 | BE29: 0 | BF29: 0 | BG29: 0 | BH29: 0 | BI29: 0 | BJ29: 0 | BK29: 0 | BL29: 0 | BM29: 0 | BN29: 0 | BO29: 0 | BP29: 0 | BQ29: 0 | BR29: 0 | BS29: 0 | BT29: 0
B30: Atlantis | C30: OCGT liquid fuels Existing | D30: Open-Cycle Gas Turbine diesel | F30: 10432 | G30: 10432 | H30: 0.3271014451 | I30: 0 | J30: 9 | K30: 150 | L30: 1350 | Q30: 0.0736 | R30: 0.0525 | S30: 1 | T30: 0.09 | U30: 0.9475 | V30: 0.05 | W30: 268 | X30: 65 | Y30: 2007 | Z30: 50 | AA30: 2037 | AB30: 2037 | AF30: 1350 | AG30: 1350 | AH30: 1350 | AI30: 1350 | AJ30: 1350 | AK30: 1350 | AL30: 1350 | AM30: 1350 | AN30: 1350 | AO30: 1350 | AP30: 1350 | AQ30: 1350 | AR30: 1350 | AS30: 1350 | AT30: 1350 | AU30: 1350 | AV30: =IF(AV$4<=2013,AU30+AD30,IF(AV$4>=$AB30-2,AU30*(1+OFFSET($AI$2,0,AV$4-$AB30)),AU30)) -> 1350 | AW30: 1350 | AX30: 1350 | AY30: 1350 | AZ30: 1350 | BA30: 1350 | BB30: 1350 | BC30: 1350 | BD30: 1350 | BE30: =IF(BE$4<=2013,BD30+AM30,IF(BE$4>=$AB30-2,BD30*(1+OFFSET($AI$2,0,BE$4-$AB30)),BD30)) -> 1350 | BF30: =BE30 -> 1350 | BG30: =BF30-1350 -> 0 | BH30: =IF(BH$4<=2013,BG30+AP30,IF(BH$4>=$AB30-2,BG30*(1+OFFSET($AI$2,0,BH$4-$AB30)),BG30)) -> 0 | BI30: =IF(BI$4<=2013,BH30+AQ30,IF(BI$4>=$AB30-2,BH30*(1+OFFSET($AI$2,0,BI$4-$AB30)),BH30)) -> 0 | BJ30: =IF(BJ$4<=2013,BI30+AR30,IF(BJ$4>=$AB30-2,BI30*(1+OFFSET($AI$2,0,BJ$4-$AB30)),BI30)) -> 0 | BK30: 0 | BL30: 0 | BM30: 0 | BN30: 0 | BO30: 0 | BP30: 0 | BQ30: 0 | BR30: 0 | BS30: 0 | BT30: 0
B31: Mossel Bay | C31: OCGT liquid fuels Existing | D31: Open-Cycle Gas Turbine diesel | F31: 10177 | G31: 10177 | H31: 0.3352974624 | I31: 0 | J31: 5 | K31: 150 | L31: 750 | Q31: 0.0736 | R31: 0.0525 | S31: 1 | T31: 0.09 | U31: 0.9475 | V31: 0.05 | W31: 268 | X31: 67 | Y31: 2007 | Z31: 50 | AA31: 2037 | AB31: 2037 | AF31: 750 | AG31: 750 | AH31: 750 | AI31: 750 | AJ31: 750 | AK31: 750 | AL31: 750 | AM31: 750 | AN31: 750 | AO31: 750 | AP31: 750 | AQ31: 750 | AR31: 750 | AS31: 750 | AT31: 750 | AU31: 750 | AV31: 750 | AW31: 750 | AX31: 750 | AY31: 750 | AZ31: 750 | BA31: 750 | BB31: 750 | BC31: 750 | BD31: 750 | BE31: 750 | BF31: =BE31 -> 750 | BG31: =BF31-750 -> 0 | BH31: 0 | BI31: 0 | BJ31: 0 | BK31: 0 | BL31: 0 | BM31: 0 | BN31: 0 | BO31: 0 | BP31: 0 | BQ31: 0 | BR31: 0 | BS31: 0 | BT31: 0
B32: Port Rex | C32: OCGT liquid fuels Existing | D32: Open-Cycle Gas Turbine diesel | F32: 12186 | G32: 12186 | H32: 0.2800198814 | I32: 22 | J32: 3 | K32: 60 | L32: 180 | Q32: 0.0326 | R32: 0.0435 | S32: 1 | T32: 0.09 | U32: 0.9565 | V32: 0.05 | W32: 106 | X32: 71 | Y32: 1976 | Z32: 50 | AB32: 2026 | AF32: 180 | AG32: 180 | AH32: 180 | AI32: 180 | AJ32: 180 | AK32: 180 | AL32: 180 | AM32: 180 | AN32: 180 | AO32: 180 | AP32: 180 | AQ32: 180 | AR32: 180 | AS32: 180 | AT32: 180 | AU32: 120.0006 | AV32: 60.0003 | AW32: 0 | AX32: 0 | AY32: 0 | AZ32: 0 | BA32: 0 | BB32: 0 | BC32: 0 | BD32: 0 | BE32: 0 | BF32: =IF(BF$4<=2013,BE32+AN32,IF(BF$4>=$AB32-2,BE32*(1+OFFSET($AI$2,0,BF$4-$AB32)),BE32)) -> 0 | BG32: =IF(BG$4<=2013,BF32+AO32,IF(BG$4>=$AB32-2,BF32*(1+OFFSET($AI$2,0,BG$4-$AB32)),BF32)) -> 0 | BH32: 0 | BI32: 0 | BJ32: 0 | BK32: 0 | BL32: 0 | BM32: 0 | BN32: 0 | BO32: 0 | BP32: 0 | BQ32: 0 | BR32: 0 | BS32: 0 | BT32: 0
B33: Cahora Bassa | C33: Hydro Existing Region | D33: Cahora Bassa existing | F33: 1 | H33: 1 | I33: 7146 | J33: 5 | K33: 300 | L33: =J33*K33 -> 1500 | Q33: 0.26 | R33: 0.1 | S33: 1 | T33: 0.666 | U33: 0.9 | V33: ="" ->  | X33: 106 | Y33: 1984 | Z33: 100 | AB33: 2084 | AF33: 1500 | AG33: 1500 | AH33: 1500 | AI33: 1500 | AJ33: 1500 | AK33: 1500 | AL33: 1500 | AM33: 1500 | AN33: 1500 | AO33: 1500 | AP33: 1500 | AQ33: 1500 | AR33: 1500 | AS33: 1500 | AT33: 1500 | AU33: 1500 | AV33: 1500 | AW33: 1500 | AX33: 1500 | AY33: 1500 | AZ33: 1500 | BA33: 1500 | BB33: 1500 | BC33: 1500 | BD33: 1500 | BE33: 1500 | BF33: 1500 | BG33: 1500 | BH33: 1500 | BI33: 1500 | BJ33: 1500 | BK33: 1500 | BL33: 1500 | BM33: 1500 | BN33: 1500 | BO33: 1500 | BP33: 1500 | BQ33: 1500 | BR33: 1500 | BS33: 1500 | BT33: 1500
B34: Mini Hydros | C34: Hydro existing South Africa | D34: mini hydro existing | F34: 1 | H34: 1 | I34: - | J34: 1 | K34: 70 | L34: 70 | Q34: 0.0391 | R34: 0.085 | S34: 1 | T34: 0.8792235 | U34: 0.915 | V34: ="" ->  | X34: 114 | Y34: =2005-29 -> 1976 | Z34: 100 | AB34: 2076 | AF34: 70 | AG34: 70 | AH34: 70 | AI34: 70 | AJ34: 70 | AK34: 70 | AL34: 70 | AM34: 70 | AN34: 70 | AO34: 70 | AP34: 70 | AQ34: 70 | AR34: 70 | AS34: 70 | AT34: 70 | AU34: 70 | AV34: 70 | AW34: 70 | AX34: 70 | AY34: 70 | AZ34: 70 | BA34: 70 | BB34: 70 | BC34: 70 | BD34: 70 | BE34: 70 | BF34: 70 | BG34: 70 | BH34: 70 | BI34: 70 | BJ34: 70 | BK34: 70 | BL34: 70 | BM34: 70 | BN34: 70 | BO34: 70 | BP34: 70 | BQ34: 70 | BR34: 70 | BS34: 70 | BT34: 70
B35: Gariep | C35: Hydro existing South Africa | D35: hydro existing | F35: 1 | H35: 1 | I35: 1325 | J35: 4 | K35: 90 | L35: 360 | Q35: 0.0485 | R35: 0.0499 | S35: 1 | T35: 0.90402015 | U35: 0.9501 | V35: ="" ->  | X35: 115 | Y35: 1971 | Z35: 100 | AB35: 2071 | AF35: 360 | AG35: 360 | AH35: 360 | AI35: 360 | AJ35: 360 | AK35: 360 | AL35: 360 | AM35: 360 | AN35: 360 | AO35: 360 | AP35: 360 | AQ35: 360 | AR35: 360 | AS35: 360 | AT35: 360 | AU35: 360 | AV35: 360 | AW35: 360 | AX35: 360 | AY35: 360 | AZ35: 360 | BA35: 360 | BB35: 360 | BC35: 360 | BD35: 360 | BE35: 360 | BF35: 360 | BG35: 360 | BH35: 360 | BI35: 360 | BJ35: 360 | BK35: 360 | BL35: 360 | BM35: 360 | BN35: 360 | BO35: 360 | BP35: 360 | BQ35: 360 | BR35: 360 | BS35: 360 | BT35: 360
B36: Vanderkloof | C36: Hydro existing South Africa | D36: hydro existing | F36: 1 | H36: 1 | I36: 1409 | J36: 2 | K36: 120 | L36: 240 | Q36: 0.0391 | R36: 0.085 | S36: 1 | T36: 0.8792235 | U36: 0.915 | V36: ="" ->  | X36: 115 | Y36: 1977 | Z36: 100 | AB36: 2077 | AF36: 240 | AG36: 240 | AH36: 240 | AI36: 240 | AJ36: 240 | AK36: 240 | AL36: 240 | AM36: 240 | AN36: 240 | AO36: 240 | AP36: 240 | AQ36: 240 | AR36: 240 | AS36: 240 | AT36: 240 | AU36: 240 | AV36: 240 | AW36: 240 | AX36: 240 | AY36: 240 | AZ36: 240 | BA36: 240 | BB36: 240 | BC36: 240 | BD36: 240 | BE36: 240 | BF36: 240 | BG36: 240 | BH36: 240 | BI36: 240 | BJ36: 240 | BK36: 240 | BL36: 240 | BM36: 240 | BN36: 240 | BO36: 240 | BP36: 240 | BQ36: 240 | BR36: 240 | BS36: 240 | BT36: 240
B37: Koeberg | C37: Nuclear Existing | D37: Nuclear Existing | F37: 10663 | G37: 10663 | H37: 0.3200152185 | I37: 13668 | J37: 2 | K37: 930 | L37: 1860 | Q37: 0.1123 | R37: 0.0871 | S37: 1 | T37: 0.81038133 | U37: 0.9129 | V37: ="" ->  | W37: 10 | X37: 416 | Y37: 1984 | Z37: 50 | AA37: 2044 | AB37: 2044 | AD37: =SUMIF($B$124:$B$137,$B37,$C$124:$C$137) -> 0 | AF37: 1860 | AG37: 1860 | AH37: 1860 | AI37: 1860 | AJ37: 1860 | AK37: 1860 | AL37: 1860 | AM37: 1860 | AN37: 1860 | AO37: 1860 | AP37: 1860 | AQ37: 1860 | AR37: 1860 | AS37: 1860 | AT37: 1860 | AU37: 1860 | AV37: 1860 | AW37: 1860 | AX37: 1860 | AY37: 1860 | AZ37: 1860 | BA37: 1860 | BB37: 1860 | BC37: 1860 | BD37: 1860 | BE37: 1860 | BF37: 1860 | BG37: 1860 | BH37: 1860 | BI37: 1860 | BJ37: 1860 | BK37: 1860 | BL37: =IF(BL$4<=2013,BK37+AT37,IF(BL$4>=$AB37-2,BK37*(1+OFFSET($AI$2,0,BL$4-$AB37)),BK37)) -> 1860 | BM37: =BL37 -> 1860 | BN37: =BM37-1860 -> 0 | BO37: =IF(BO$4<=2013,BN37+AW37,IF(BO$4>=$AB37-2,BN37*(1+OFFSET($AI$2,0,BO$4-$AB37)),BN37)) -> 0 | BP37: 0 | BQ37: 0 | BR37: 0 | BS37: 0 | BT37: 0
AF38: 0 | AG38: 0 | AH38: 0 | AI38: 0 | AJ38: 0 | AK38: 0 | AL38: 0 | AM38: 0 | AN38: 0 | AO38: 0 | AP38: 0 | AQ38: 0 | AR38: 0 | AS38: 0 | AT38: 0 | AU38: 0 | AV38: 0 | AW38: 0 | AX38: 0 | AY38: 0 | AZ38: 0 | BA38: 0 | BB38: 0 | BC38: 0 | BD38: 0 | BE38: 0 | BF38: 0 | BG38: 0 | BH38: 0 | BI38: 0 | BJ38: 0 | BK38: 0 | BL38: 0 | BM38: =IF(BM$4<=2013,BL38+AU38,IF(BM$4>=$AB38-2,BL38*(1+OFFSET($AI$2,0,BM$4-$AB38)),BL38)) -> 0 | BN38: =IF(BN$4<=2013,BM38+AV38,IF(BN$4>=$AB38-2,BM38*(1+OFFSET($AI$2,0,BN$4-$AB38)),BM38)) -> 0 | BO38: 0 | BP38: 0 | BQ38: 0 | BR38: 0 | BS38: 0 | BT38: 0
AF39: 0 | AG39: 0 | AH39: 0 | AI39: 0 | AJ39: 0 | AK39: 0 | AL39: 0 | AM39: 0 | AN39: 0 | AO39: 0 | AP39: 0 | AQ39: 0 | AR39: 0 | AS39: 0 | AT39: 0 | AU39: 0 | AV39: 0 | AW39: 0 | AX39: 0 | AY39: 0 | AZ39: 0 | BA39: 0 | BB39: 0 | BC39: 0 | BD39: 0 | BE39: 0 | BF39: 0 | BG39: 0 | BH39: 0 | BI39: 0 | BJ39: 0 | BK39: 0 | BL39: 0 | BM39: 0 | BN39: 0 | BO39: 0 | BP39: 0 | BQ39: 0 | BR39: 0 | BS39: 0 | BT39: 0
AF40: 0 | AG40: 0 | AH40: 0 | AI40: 0 | AJ40: 0 | AK40: 0 | AL40: 0 | AM40: 0 | AN40: 0 | AO40: 0 | AP40: 0 | AQ40: 0 | AR40: 0 | AS40: 0 | AT40: 0 | AU40: 0 | AV40: 0 | AW40: 0 | AX40: 0 | AY40: 0 | AZ40: 0 | BA40: 0 | BB40: 0 | BC40: 0 | BD40: 0 | BE40: 0 | BF40: 0 | BG40: 0 | BH40: 0 | BI40: 0 | BJ40: 0 | BK40: 0 | BL40: 0 | BM40: 0 | BN40: 0 | BO40: 0 | BP40: 0 | BQ40: 0 | BR40: 0 | BS40: 0 | BT40: 0
AF41: 0 | AG41: 0 | AH41: 0 | AI41: 0 | AJ41: 0 | AK41: 0 | AL41: 0 | AM41: 0 | AN41: 0 | AO41: 0 | AP41: 0 | AQ41: 0 | AR41: 0 | AS41: 0 | AT41: 0 | AU41: 0 | AV41: 0 | AW41: 0 | AX41: 0 | AY41: 0 | AZ41: 0 | BA41: 0 | BB41: 0 | BC41: 0 | BD41: 0 | BE41: 0 | BF41: 0 | BG41: 0 | BH41: 0 | BI41: 0 | BJ41: 0 | BK41: 0 | BL41: 0 | BM41: 0 | BN41: 0 | BO41: 0 | BP41: 0 | BQ41: 0 | BR41: 0 | BS41: 0 | BT41: 0
AF42: 0 | AG42: 0 | AH42: 0 | AI42: 0 | AJ42: 0 | AK42: 0 | AL42: 0 | AM42: 0 | AN42: 0 | AO42: 0 | AP42: 0 | AQ42: 0 | AR42: 0 | AS42: 0 | AT42: 0 | AU42: 0 | AV42: 0 | AW42: 0 | AX42: 0 | AY42: 0 | AZ42: 0 | BA42: 0 | BB42: 0 | BC42: 0 | BD42: 0 | BE42: 0 | BF42: 0 | BG42: 0 | BH42: 0 | BI42: 0 | BJ42: 0 | BK42: 0 | BL42: 0 | BM42: 0 | BN42: 0 | BO42: 0 | BP42: 0 | BQ42: 0 | BR42: 0 | BS42: 0 | BT42: 0
AF43: 0 | AG43: 0 | AH43: 0 | AI43: 0 | AJ43: 0 | AK43: 0 | AL43: 0 | AM43: 0 | AN43: 0 | AO43: 0 | AP43: 0 | AQ43: 0 | AR43: 0 | AS43: 0 | AT43: 0 | AU43: 0 | AV43: 0 | AW43: 0 | AX43: 0 | AY43: 0 | AZ43: 0 | BA43: 0 | BB43: 0 | BC43: 0 | BD43: 0 | BE43: 0 | BF43: 0 | BG43: 0 | BH43: 0 | BI43: 0 | BJ43: 0 | BK43: 0 | BL43: 0 | BM43: 0 | BN43: 0 | BO43: 0 | BP43: 0 | BQ43: 0 | BR43: 0 | BS43: 0 | BT43: 0
B44: Complex technologies | AF44: 0 | AG44: 0 | AH44: 0 | AI44: 0 | AJ44: 0 | AK44: 0 | AL44: 0 | AM44: 0 | AN44: 0 | AO44: 0 | AP44: 0 | AQ44: 0 | AR44: 0 | AS44: 0 | AT44: 0 | AU44: 0 | AV44: 0 | AW44: 0 | AX44: 0 | AY44: 0 | AZ44: 0 | BA44: 0 | BB44: 0 | BC44: 0 | BD44: 0 | BE44: 0 | BF44: 0 | BG44: 0 | BH44: 0 | BI44: 0 | BJ44: 0 | BK44: 0 | BL44: 0 | BM44: 0 | BN44: 0 | BO44: 0 | BP44: 0 | BQ44: 0 | BR44: 0 | BS44: 0 | BT44: 0
B45: Sappi Stanger | C45: Biomass/Coal CHPs Existing - Pulp and Paper | D45: Biomass pulp and paper existing | G45: =IF(F45>1,F45,"") ->  | H45: 0.25 | K45: 20 | L45: 155 | R45: 0.09 | S45: 1 | T45: 0.624 | U45: =1-R45 -> 0.91 | V45: ="" ->  | Y45: 2000 | Z45: 50 | AB45: =IF(AA45="",Z45+Y45,AA45) -> 2050 | AF45: 155 | AG45: 155 | AH45: 155 | AI45: 155 | AJ45: 155 | AK45: 155 | AL45: 155 | AM45: 155 | AN45: 155 | AO45: 155 | AP45: 155 | AQ45: 155 | AR45: 155 | AS45: 155 | AT45: 155 | AU45: 155 | AV45: 155 | AW45: 155 | AX45: 155 | AY45: 155 | AZ45: 155 | BA45: 155 | BB45: 155 | BC45: 155 | BD45: 155 | BE45: 155 | BF45: 155 | BG45: 155 | BH45: 155 | BI45: 155 | BJ45: 155 | BK45: 155 | BL45: 155 | BM45: 155 | BN45: 155 | BO45: 155 | BP45: 155 | BQ45: 155 | BR45: 155 | BS45: 103.33385 | BT45: 51.666925
B46: Mondi Merebank | C46: Biomass/Coal CHPs Existing - Pulp and Paper | D46: Biomass pulp and paper existing | H46: 0.25 | K46: 25 | L46: 50 | R46: 0.09 | S46: 1 | T46: 0.624 | U46: 0.91 | V46: ="" ->  | Y46: 2000 | Z46: 50 | AB46: 2050 | AF46: 50 | AG46: 50 | AH46: 50 | AI46: 50 | AJ46: 50 | AK46: 50 | AL46: 50 | AM46: 50 | AN46: 50 | AO46: 50 | AP46: 50 | AQ46: 50 | AR46: 50 | AS46: 50 | AT46: 50 | AU46: 50 | AV46: 50 | AW46: 50 | AX46: 50 | AY46: 50 | AZ46: 50 | BA46: 50 | BB46: 50 | BC46: 50 | BD46: 50 | BE46: 50 | BF46: 50 | BG46: 50 | BH46: 50 | BI46: 50 | BJ46: 50 | BK46: 50 | BL46: 50 | BM46: 50 | BN46: 50 | BO46: 50 | BP46: 50 | BQ46: 50 | BR46: 50 | BS46: 33.3335 | BT46: 16.66675
B47: Mondi Felixton | C47: Biomass/Coal CHPs Existing - Pulp and Paper | D47: Biomass pulp and paper existing | H47: 0.25 | K47: 5 | L47: 10 | R47: 0.09 | S47: 1 | T47: 0.624 | U47: 0.91 | V47: ="" ->  | Y47: 2000 | Z47: 50 | AB47: 2050 | AF47: 10 | AG47: 10 | AH47: 10 | AI47: 10 | AJ47: 10 | AK47: 10 | AL47: 10 | AM47: 10 | AN47: 10 | AO47: 10 | AP47: 10 | AQ47: 10 | AR47: 10 | AS47: 10 | AT47: 10 | AU47: 10 | AV47: 10 | AW47: 10 | AX47: 10 | AY47: 10 | AZ47: 10 | BA47: 10 | BB47: 10 | BC47: 10 | BD47: 10 | BE47: 10 | BF47: 10 | BG47: 10 | BH47: 10 | BI47: 10 | BJ47: 10 | BK47: 10 | BL47: 10 | BM47: 10 | BN47: 10 | BO47: 10 | BP47: 10 | BQ47: 10 | BR47: 10 | BS47: 6.6667 | BT47: 3.33335
B48: Mondi Umhlathuze | C48: Biomass/Coal CHPs Existing - Pulp and Paper | D48: Biomass pulp and paper existing | H48: 0.25 | K48: 2 | L48: 13 | R48: 0.09 | S48: 1 | T48: 0.624 | U48: 0.91 | V48: ="" ->  | Y48: 2000 | Z48: 50 | AB48: 2050 | AF48: 13 | AG48: 13 | AH48: 13 | AI48: 13 | AJ48: 13 | AK48: 13 | AL48: 13 | AM48: 13 | AN48: 13 | AO48: 13 | AP48: 13 | AQ48: 13 | AR48: 13 | AS48: 13 | AT48: 13 | AU48: 13 | AV48: 13 | AW48: 13 | AX48: 13 | AY48: 13 | AZ48: 13 | BA48: 13 | BB48: 13 | BC48: 13 | BD48: 13 | BE48: 13 | BF48: 13 | BG48: 13 | BH48: 13 | BI48: 13 | BJ48: 13 | BK48: 13 | BL48: 13 | BM48: 13 | BN48: 13 | BO48: 13 | BP48: 13 | BQ48: 13 | BR48: 13 | BS48: 8.66671 | BT48: 4.333355
B49: Biomass bagasse | C49: Biomass Bagasse | D49: Biomass bagasse existing | H49: 0.25 | K49: 20 | L49: 100 | R49: 0.09 | S49: 1 | T49: 0.624 | U49: 0.91 | V49: ="" ->  | W49: 31.1 | X49: 972 | Y49: 2000 | Z49: 50 | AB49: 2050 | AD49: 210 | AF49: 100 | AG49: 100 | AH49: 100 | AI49: 100 | AJ49: 100 | AK49: 100 | AL49: 100 | AM49: 100 | AN49: 100 | AO49: 100 | AP49: 100 | AQ49: 100 | AR49: 100 | AS49: 100 | AT49: 100 | AU49: 100 | AV49: 100 | AW49: 100 | AX49: 100 | AY49: 100 | AZ49: 100 | BA49: 100 | BB49: 100 | BC49: 100 | BD49: 100 | BE49: 100 | BF49: 100 | BG49: 100 | BH49: 100 | BI49: 100 | BJ49: 100 | BK49: 100 | BL49: 100 | BM49: 100 | BN49: 100 | BO49: 100 | BP49: 100 | BQ49: 100 | BR49: 100 | BS49: 66.667 | BT49: 33.3335
B50: Methane Waste gas | C50: Gas CHPs Existing | D50: Landfill gas existing | H50: 0.25 | K50: 4.5 | L50: 9 | R50: 0.09 | S50: 1 | T50: 0.624 | U50: 0.91 | V50: ="" ->  | Y50: 2000 | Z50: 50 | AB50: 2050 | AF50: 9 | AG50: 9 | AH50: 9 | AI50: 9 | AJ50: 9 | AK50: 9 | AL50: 9 | AM50: 9 | AN50: 9 | AO50: 9 | AP50: 9 | AQ50: 9 | AR50: 9 | AS50: 9 | AT50: 9 | AU50: 9 | AV50: 9 | AW50: 9 | AX50: 9 | AY50: 9 | AZ50: 9 | BA50: 9 | BB50: 9 | BC50: 9 | BD50: 9 | BE50: 9 | BF50: 9 | BG50: 9 | BH50: 9 | BI50: 9 | BJ50: 9 | BK50: 9 | BL50: 9 | BM50: 9 | BN50: 9 | BO50: 9 | BP50: 9 | BQ50: 9 | BR50: 9 | BS50: 6.00003 | BT50: 3.000015
B51: Mossgas | C51: Gas CHPs Existing | D51: Gas CHPs Existing | H51: 0.25 | K51: 10 | L51: 90 | R51: 0.09 | S51: 1 | T51: 0.624 | U51: 0.91 | V51: ="" ->  | Y51: 2000 | Z51: 50 | AB51: 2050 | AF51: 90 | AG51: 90 | AH51: 90 | AI51: 90 | AJ51: 90 | AK51: 90 | AL51: 90 | AM51: 90 | AN51: 90 | AO51: 90 | AP51: 90 | AQ51: 90 | AR51: 90 | AS51: 90 | AT51: 90 | AU51: 90 | AV51: 90 | AW51: 90 | AX51: 90 | AY51: 90 | AZ51: 90 | BA51: 90 | BB51: 90 | BC51: 90 | BD51: 90 | BE51: 90 | BF51: 90 | BG51: 90 | BH51: 90 | BI51: 90 | BJ51: 90 | BK51: 90 | BL51: 90 | BM51: 90 | BN51: 90 | BO51: 90 | BP51: 90 | BQ51: 90 | BR51: 90 | BS51: 60.0003 | BT51: 30.00015
B52: Drakensberg | C52: Pumped storage | D52: Pumped storage | H52: 0.73 | I52: 2033 | J52: 4 | K52: 250 | L52: =K52*J52 -> 1000 | Q52: 0.0551 | R52: 0.078 | S52: 1 | T52: =T53 -> 0.245 | U52: 0.922 | V52: 0.15 | W52: 3 | X52: 60 | Y52: 1981 | Z52: 55 | AB52: 2036 | AF52: 1000 | AG52: 1000 | AH52: 1000 | AI52: 1000 | AJ52: 1000 | AK52: 1000 | AL52: 1000 | AM52: 1000 | AN52: 1000 | AO52: 1000 | AP52: 1000 | AQ52: 1000 | AR52: 1000 | AS52: 1000 | AT52: 1000 | AU52: 1000 | AV52: 1000 | AW52: 1000 | AX52: 1000 | AY52: 1000 | AZ52: 1000 | BA52: 1000 | BB52: 1000 | BC52: 1000 | BD52: 1000 | BE52: 666.67 | BF52: 333.335 | BG52: 0 | BH52: 0 | BI52: 0 | BJ52: 0 | BK52: 0 | BL52: 0 | BM52: 0 | BN52: 0 | BO52: 0 | BP52: 0 | BQ52: 0 | BR52: 0 | BS52: 0 | BT52: 0
B53: Palmiet | C53: Pumped storage | D53: Pumped storage | H53: 0.73 | I53: 900 | J53: 2 | K53: 200 | L53: =K53*J53 -> 400 | Q53: 0.04 | R53: 0.0386 | S53: 1 | T53: 0.245 | U53: 0.9614 | V53: 0.15 | W53: 4 | X53: 64 | Y53: 1988 | Z53: 55 | AB53: 2043 | AF53: 400 | AG53: 400 | AH53: 400 | AI53: 400 | AJ53: 400 | AK53: 400 | AL53: 400 | AM53: 400 | AN53: 400 | AO53: 400 | AP53: 400 | AQ53: 400 | AR53: 400 | AS53: 400 | AT53: 400 | AU53: 400 | AV53: 400 | AW53: 400 | AX53: 400 | AY53: 400 | AZ53: 400 | BA53: 400 | BB53: 400 | BC53: 400 | BD53: 400 | BE53: 400 | BF53: 400 | BG53: 400 | BH53: 400 | BI53: 400 | BJ53: 400 | BK53: 400 | BL53: 266.668 | BM53: 133.334 | BN53: 0 | BO53: 0 | BP53: 0 | BQ53: 0 | BR53: 0 | BS53: 0 | BT53: 0
B54: Steenbras | C54: Pumped storage | D54: Pumped storage | H54: 0.73 | I54: 163 | J54: 3 | K54: 60 | L54: =K54*J54 -> 180 | Q54: 0.0551 | R54: 0.078 | S54: 1 | T54: =T53 -> 0.245 | U54: 0.922 | V54: 0.15 | W54: 4 | X54: 46 | Y54: =2005-34 -> 1971 | Z54: 55 | AB54: 2026 | AF54: 180 | AG54: 180 | AH54: 180 | AI54: 180 | AJ54: 180 | AK54: 180 | AL54: 180 | AM54: 180 | AN54: 180 | AO54: 180 | AP54: 180 | AQ54: 180 | AR54: 180 | AS54: 180 | AT54: 180 | AU54: 120.0006 | AV54: 60.0003 | AW54: 0 | AX54: 0 | AY54: 0 | AZ54: 0 | BA54: 0 | BB54: 0 | BC54: 0 | BD54: 0 | BE54: 0 | BF54: 0 | BG54: 0 | BH54: 0 | BI54: 0 | BJ54: 0 | BK54: 0 | BL54: 0 | BM54: 0 | BN54: 0 | BO54: 0 | BP54: 0 | BQ54: 0 | BR54: 0 | BS54: 0 | BT54: 0
AA58: 0.03 | AB58: 1145.734625
B60: TIMES Aggregated Existing Technologies | AA60: Adj. Factor | AB60: 1
Y61: Investment Cost of replacement | Z61: Life | AA61: Ann.Inv.Cost | AB61: Adj.Ann.Inv.Cost
B62: Coal PF Eskom Large Existing | H62: =I111 -> 0.3452487314 | K62: =SUMPRODUCT(($C$9:$C$59=$B62)*$L$9:$L$59*K$9:K$59)/SUMIF($C$9:$C$59,$B62,$L$9:$L$59) -> 554.5673759 | Q62: =SUMPRODUCT(($C$9:$C$59=$B62)*$L$9:$L$59*Q$9:Q$59)/SUMIF($C$9:$C$59,$B62,$L$9:$L$59) -> 0.1 | R62: 0.1 | S62: 1 | T62: 0.81 | U62: 0.9 | V62: ="" ->  | W62: ='New Capacity basic data'!$T$13*0.75 -> 33.3 | X62: ='New Capacity basic data'!$S$13*0.75 -> 341.25 | Y62: ='New Capacity basic data'!S84 -> 23217.17793 | Z62: 30 | AA62: =PMT($AA$58,Z62,-Y62,0,1) -> 1150.022545 | AB62: =$AB$60*AA62 -> 1150.022545 | AC62: =SUMPRODUCT(($C$9:$C$59=$B62)*$L$9:$L$59*AC$9:AC$59)/SUMIF($C$9:$C$59,$B62,$L$9:$L$59) -> 0 | AD62: =SUMPRODUCT(($C$9:$C$59=$B62)*$L$9:$L$59*AD$9:AD$59)/SUMIF($C$9:$C$59,$B62,$L$9:$L$59) -> 1991.604255 | AF62: =SUMIF($C$9:$C$59,$B62,AF$9:AF$59) -> 21150 | AG62: 21150 | AH62: 21150 | AI62: 21150 | AJ62: 21150 | AK62: 21150 | AL62: 21150 | AM62: 21150 | AN62: 21150 | AO62: 21150 | AP62: 21150 | AQ62: 21150 | AR62: 21150 | AS62: 21150 | AT62: 21090 | AU62: 20350 | AV62: =SUMIF($C$9:$C$59,$B62,AV$9:AV$59) -> 19500 | AW62: 18650 | AX62: 17320 | AY62: 15410 | AZ62: 13090 | BA62: 11930 | BB62: 10770 | BC62: 9610 | BD62: 9030 | BE62: 7860 | BF62: 6110 | BG62: 5530 | BH62: 3770 | BI62: 3180 | BJ62: 2010 | BK62: 2010 | BL62: =SUMIF($C$9:$C$59,$B62,BL$9:BL$59) -> 2010 | BM62: 2010 | BN62: 2010 | BO62: 2010 | BP62: 2010 | BQ62: 2010 | BR62: 1340.0067 | BS62: 670.0067 | BT62: 0
B63: Coal PF Eskom Large Dry Existing | H63: =I112 -> 0.3357487063 | K63: 622.2683706 | Q63: 0.1 | R63: 0.1 | S63: 1 | T63: 0.81 | U63: 0.9 | V63: ="" ->  | W63: =W62 -> 33.3 | X63: =X62 -> 341.25 | Y63: =Y62 -> 23217.17793 | Z63: =Z$62 -> 30 | AA63: =PMT($AA$58,Z63,-Y63,0,1) -> 1150.022545 | AB63: =$AB$60*AA63 -> 1150.022545 | AC63: 0 | AD63: 128.2651757 | AF63: 9390 | AG63: 9390 | AH63: 9390 | AI63: 9390 | AJ63: 9390 | AK63: 9390 | AL63: 9390 | AM63: 9390 | AN63: 9390 | AO63: 9390 | AP63: 9390 | AQ63: 9390 | AR63: 9390 | AS63: 9330 | AT63: 9330 | AU63: 9330 | AV63: 9330 | AW63: 9270 | AX63: 9270 | AY63: 9270 | AZ63: 9270 | BA63: 9270 | BB63: 9270 | BC63: 9270 | BD63: 9270 | BE63: 9270 | BF63: 9270 | BG63: 9270 | BH63: 7420 | BI63: 6810 | BJ63: 6200 | BK63: 3700 | BL63: 2460 | BM63: 1830 | BN63: 1830 | BO63: 1830 | BP63: 1220 | BQ63: 610 | BR63: 0 | BS63: 0 | BT63: 0
B64: Coal PF Eskom Small Existing | H64: =I113 -> 0.2864610458 | K64: 184.5728643 | Q64: 0.1 | R64: 0.1 | S64: 1 | T64: 0.81 | U64: 0.9 | V64: ="" ->  | W64: =W63 -> 33.3 | X64: 341.25 | Y64: 23217.17793 | Z64: =Z$62 -> 30 | AA64: 1150.022545 | AB64: 1150.022545 | AC64: 0 | AD64: 2480.741625 | AF64: 4340 | AG64: 5000 | AH64: 5300 | AI64: 5400 | AJ64: 5400 | AK64: 5400 | AL64: 5400 | AM64: 5400 | AN64: 5400 | AO64: 5400 | AP64: 5020 | AQ64: 4450 | AR64: 3500 | AS64: 2930 | AT64: 2540 | AU64: 2070 | AV64: 1420 | AW64: 560 | AX64: 0 | AY64: 0 | AZ64: 0 | BA64: 0 | BB64: 0 | BC64: 0 | BD64: 0 | BE64: 0 | BF64: 0 | BG64: 0 | BH64: 0 | BI64: 0 | BJ64: 0 | BK64: 0 | BL64: 0 | BM64: 0 | BN64: 0 | BO64: 0 | BP64: 0 | BQ64: 0 | BR64: 0 | BS64: 0 | BT64: 0
B65: Coal PF Munic Existing | H65: =SUMPRODUCT(($C$9:$C$59=$B65)*$L$9:$L$59*H$9:H$59)/SUMIF($C$9:$C$59,$B65,$L$9:$L$59) -> 0.2454540352 | K65: 47.34042553 | Q65: 0.1 | R65: 0.1 | S65: 1 | T65: 0.81 | U65: 0.9 | V65: ="" ->  | W65: 33.3 | X65: 341.25 | Y65: 23217.17793 | Z65: 30 | AA65: 1150.022545 | AB65: 1150.022545 | AC65: =SUMPRODUCT(($C$9:$C$59=$B65)*$L$9:$L$59*AC$9:AC$59)/SUMIF($C$9:$C$59,$B65,$L$9:$L$59) -> 0 | AD65: 2565.333333 | AF65: 470 | AG65: 470 | AH65: 470 | AI65: 470 | AJ65: 453.3335 | AK65: 436.66675 | AL65: 420 | AM65: 330 | AN65: 330 | AO65: 330 | AP65: 330 | AQ65: 330 | AR65: 330 | AS65: 330 | AT65: 330 | AU65: 150 | AV65: 150 | AW65: 150 | AX65: 150 | AY65: 150 | AZ65: 150 | BA65: 150 | BB65: 100.0005 | BC65: 50.00025 | BD65: 0 | BE65: 0 | BF65: 0 | BG65: 0 | BH65: 0 | BI65: 0 | BJ65: 0 | BK65: 0 | BL65: 0 | BM65: 0 | BN65: 0 | BO65: 0 | BP65: 0 | BQ65: 0 | BR65: 0 | BS65: 0 | BT65: 0
B66: Sasol SSF | H66: 0.2542903551 | K66: 50 | Q66: 0.1 | R66: 0.1 | S66: 1 | T66: 0.81 | U66: 0.9 | V66: ="" ->  | W66: 33.3 | X66: 341.25 | Y66: 23217.17793 | Z66: 30 | AA66: 1150.022545 | AB66: 1150.022545 | AC66: 0 | AD66: 2565.333333 | AF66: 500 | AG66: 500 | AH66: 500 | AI66: 500 | AJ66: 500 | AK66: 500 | AL66: 500 | AM66: 500 | AN66: 500 | AO66: 500 | AP66: 500 | AQ66: 500 | AR66: 500 | AS66: 500 | AT66: 500 | AU66: 0 | AV66: 0 | AW66: 0 | AX66: 0 | AY66: 0 | AZ66: 0 | BA66: 0 | BB66: 0 | BC66: 0 | BD66: 0 | BE66: 0 | BF66: 0 | BG66: 0 | BH66: 0 | BI66: 0 | BJ66: 0 | BK66: 0 | BL66: 0 | BM66: 0 | BN66: 0 | BO66: 0 | BP66: 0 | BQ66: 0 | BR66: 0 | BS66: 0 | BT66: 0
B67: Sasol Infrachem | H67: 0.2542903551 | K67: 50 | Q67: 0.1 | R67: 0.1 | S67: 1 | T67: 0.81 | U67: 0.9 | V67: ="" ->  | W67: 33.3 | X67: 341.25 | Y67: 23217.17793 | Z67: 30 | AA67: 1150.022545 | AB67: 1150.022545 | AC67: 0 | AD67: 2565.333333 | AF67: 150 | AG67: 150 | AH67: 150 | AI67: 150 | AJ67: 150 | AK67: 150 | AL67: 150 | AM67: 150 | AN67: 150 | AO67: 150 | AP67: 150 | AQ67: 150 | AR67: 150 | AS67: 150 | AT67: 150 | AU67: 150 | AV67: 150 | AW67: 150 | AX67: 150 | AY67: 150 | AZ67: 150 | BA67: 150 | BB67: 150 | BC67: 150 | BD67: 150 | BE67: 150 | BF67: 150 | BG67: 150 | BH67: 150 | BI67: 150 | BJ67: 150 | BK67: 150 | BL67: 150 | BM67: 0 | BN67: 0 | BO67: 0 | BP67: 0 | BQ67: 0 | BR67: 0 | BS67: 0 | BT67: 0
B68: OCGT liquid fuels Existing | H68: 0.3227102459 | K68: 136.8292683 | Q68: 0.06776097561 | R68: 0.05132926829 | S68: 1 | T68: 0.09 | U68: 0.9486707317 | V68: 0.05 | W68: 0 | X68: 66.19512195 | Y68: ='New Capacity basic data'!U84 -> 0 | Z68: 30 | AA68: 0 | AB68: 0 | AD68: 0 | AF68: 2460 | AG68: 2460 | AH68: 2460 | AI68: 2460 | AJ68: 2460 | AK68: 2460 | AL68: 2460 | AM68: 2460 | AN68: 2460 | AO68: 2460 | AP68: 2460 | AQ68: 2460 | AR68: 2460 | AS68: 2460 | AT68: 2460 | AU68: 2400.0006 | AV68: 2160.0003 | AW68: 2100 | AX68: 2100 | AY68: 2100 | AZ68: 2100 | BA68: 2100 | BB68: 2100 | BC68: 2100 | BD68: 2100 | BE68: 2100 | BF68: 2100 | BG68: 0 | BH68: 0 | BI68: 0 | BJ68: 0 | BK68: 0 | BL68: 0 | BM68: 0 | BN68: 0 | BO68: 0 | BP68: 0 | BQ68: 0 | BR68: 0 | BS68: 0 | BT68: 0
B69: Hydro Existing South Africa | H69: 1 | K69: 98.65671642 | Q69: 0.04415074627 | R69: 0.06614029851 | S69: 1 | T69: 0.8925470731 | U69: 0.9338597015 | V69: ="" ->  | W69: 0 | X69: 114.8955224 | Y69: =2500*7.4*(1+'New Capacity basic data'!BJ37) -> 25468.23016 | Z69: 30 | AA69: 1261.524504 | AB69: 1261.524504 | AD69: 0 | AF69: 670 | AG69: 670 | AH69: 670 | AI69: 670 | AJ69: 670 | AK69: 670 | AL69: 670 | AM69: 670 | AN69: 670 | AO69: 670 | AP69: 670 | AQ69: 670 | AR69: 670 | AS69: 670 | AT69: 670 | AU69: 670 | AV69: 670 | AW69: 670 | AX69: 670 | AY69: 670 | AZ69: 670 | BA69: 670 | BB69: 670 | BC69: 670 | BD69: 670 | BE69: 670 | BF69: 670 | BG69: 670 | BH69: 670 | BI69: 670 | BJ69: 670 | BK69: 670 | BL69: 670 | BM69: 670 | BN69: 670 | BO69: 670 | BP69: 670 | BQ69: 670 | BR69: 670 | BS69: 670 | BT69: 670
B70: Hydro Existing Region | H70: 1 | K70: 300 | Q70: 0.26 | R70: 0.1 | S70: 1 | T70: 0.666 | U70: 0.9 | V70: ="" ->  | W70: 0 | X70: 106 | Y70: =Y69 -> 25468.23016 | Z70: 30 | AA70: 1261.524504 | AB70: 1261.524504 | AD70: 0 | AF70: 1500 | AG70: 1500 | AH70: 1500 | AI70: 1500 | AJ70: 1500 | AK70: 1500 | AL70: 1500 | AM70: 1500 | AN70: 1500 | AO70: 1500 | AP70: 1500 | AQ70: 1500 | AR70: 1500 | AS70: 1500 | AT70: 1500 | AU70: 1500 | AV70: 1500 | AW70: 1500 | AX70: 1500 | AY70: 1500 | AZ70: 1500 | BA70: 1500 | BB70: 1500 | BC70: 1500 | BD70: 1500 | BE70: 1500 | BF70: 1500 | BG70: 1500 | BH70: 1500 | BI70: 1500 | BJ70: 1500 | BK70: 1500 | BL70: 1500 | BM70: 1500 | BN70: 1500 | BO70: 1500 | BP70: 1500 | BQ70: 1500 | BR70: 1500 | BS70: 1500 | BT70: 1500
B71: Nuclear Existing | H71: 0.3200152185 | K71: 930 | Q71: 0.1123 | R71: 0.0871 | S71: 1 | T71: 0.81038133 | U71: 0.9129 | V71: ="" ->  | W71: 10 | X71: 416 | Y71: ='New Capacity basic data'!P16*(1+'New Capacity basic data'!BJ16) -> 73529.65205 | Z71: 30 | AA71: 3642.163481 | AB71: 3642.163481 | AD71: 0 | AF71: 1860 | AG71: 1860 | AH71: 1860 | AI71: 1860 | AJ71: 1860 | AK71: 1860 | AL71: 1860 | AM71: 1860 | AN71: 1860 | AO71: 1860 | AP71: 1860 | AQ71: 1860 | AR71: 1860 | AS71: 1860 | AT71: 1860 | AU71: 1860 | AV71: 1860 | AW71: 1860 | AX71: 1860 | AY71: 1860 | AZ71: 1860 | BA71: 1860 | BB71: 1860 | BC71: 1860 | BD71: 1860 | BE71: 1860 | BF71: 1860 | BG71: 1860 | BH71: 1860 | BI71: 1860 | BJ71: 1860 | BK71: 1860 | BL71: 1860 | BM71: 1860 | BN71: 0 | BO71: 0 | BP71: 0 | BQ71: 0 | BR71: 0 | BS71: 0 | BT71: 0
B73: Pumped storage | H73: =SUMPRODUCT(($C$9:$C$59=$B73)*$L$9:$L$59*H$9:H$59)/SUMIF($C$9:$C$59,$B73,$L$9:$L$59) -> 0.73 | K73: =SUMPRODUCT(($C$9:$C$59=$B73)*$L$9:$L$59*K$9:K$59)/SUMIF($C$9:$C$59,$B73,$L$9:$L$59) -> 215.6962025 | Q73: =SUMPRODUCT(($C$9:$C$59=$B73)*$L$9:$L$59*Q$9:Q$59)/SUMIF($C$9:$C$59,$B73,$L$9:$L$59) -> 0.05127721519 | R73: 0.06802531646 | S73: 1 | T73: 0.245 | U73: 0.9319746835 | V73: 0.15 | W73: 3.367088608 | X73: 59.41772152 | Y73: ='New Capacity basic data'!P56*(1+'New Capacity basic data'!BJ56) -> 23492.5724 | Z73: 30 | AA73: 1163.663731 | AB73: 1163.663731 | AD73: =SUMPRODUCT(($C$9:$C$59=$B73)*$L$9:$L$59*AD$9:AD$59)/SUMIF($C$9:$C$59,$B73,$L$9:$L$59) -> 0 | AF73: =SUMIF($C$9:$C$59,$B73,$L$9:$L$59) -> 1580 | AG73: 1580 | AH73: 1580 | AI73: 1580 | AJ73: 1580 | AK73: 1580 | AL73: 1580 | AM73: 1580 | AN73: 1580 | AO73: 1580 | AP73: 1580 | AQ73: 1580 | AR73: 1580 | AS73: 1580 | AT73: 1580 | AU73: 1580 | AV73: =SUMIF($C$9:$C$59,$B73,$L$9:$L$59) -> 1580 | AW73: 1580 | AX73: 1580 | AY73: 1580 | AZ73: 1580 | BA73: 1580 | BB73: 1580 | BC73: 1580 | BD73: 1580 | BE73: 1580 | BF73: 1580 | BG73: 1580 | BH73: 1580 | BI73: 1580 | BJ73: 1580 | BK73: 1580 | BL73: =SUMIF($C$9:$C$59,$B73,$L$9:$L$59) -> 1580 | BM73: 1580 | BN73: 1580 | BO73: 1580 | BP73: 1580 | BQ73: 1580 | BR73: 1580 | BS73: 1580 | BT73: 1580
B74: Biomass/Coal CHPs Existing - Pulp and Paper | H74: =SUMPRODUCT(($C$9:$C$59=$B74)*$L$9:$L$59*H$9:H$59)/SUMIF($C$9:$C$59,$B74,$L$9:$L$59) -> 0.25 | K74: =SUMPRODUCT(($C$9:$C$59=$B74)*$L$9:$L$59*K$9:K$59)/SUMIF($C$9:$C$59,$B74,$L$9:$L$59) -> 19.4122807 | Q74: 0 | R74: 0.09 | S74: 1 | T74: 0.624 | U74: 0.91 | V74: ="" ->  | W74: 0 | X74: 0 | Y74: ='New Capacity basic data'!P45*(1+'New Capacity basic data'!BJ45) -> 24737.16217 | Z74: 30 | AA74: 1225.312322 | AB74: 1225.312322 | AD74: =SUMPRODUCT(($C$9:$C$59=$B74)*$L$9:$L$59*AD$9:AD$59)/SUMIF($C$9:$C$59,$B74,$L$9:$L$59) -> 0 | AF74: 228 | AG74: 228 | AH74: 228 | AI74: 228 | AJ74: 228 | AK74: 228 | AL74: 228 | AM74: 228 | AN74: 228 | AO74: 228 | AP74: 228 | AQ74: 228 | AR74: 228 | AS74: 228 | AT74: 228 | AU74: 228 | AV74: 228 | AW74: 228 | AX74: 228 | AY74: 228 | AZ74: 228 | BA74: 228 | BB74: 228 | BC74: 228 | BD74: 228 | BE74: 228 | BF74: 228 | BG74: 228 | BH74: 228 | BI74: 228 | BJ74: 228 | BK74: 228 | BL74: 228 | BM74: 228 | BN74: 228 | BO74: 228 | BP74: 228 | BQ74: 228 | BR74: 228 | BS74: 228 | BT74: 228
B75: Biomass Bagasse | H75: =SUMPRODUCT(($C$9:$C$59=$B75)*$L$9:$L$59*H$9:H$59)/SUMIF($C$9:$C$59,$B75,$L$9:$L$59) -> 0.25 | K75: =SUMPRODUCT(($C$9:$C$59=$B75)*$L$9:$L$59*K$9:K$59)/SUMIF($C$9:$C$59,$B75,$L$9:$L$59) -> 20 | Q75: 0 | R75: 0.09 | S75: 1 | T75: 0.624 | U75: 0.91 | V75: ="" ->  | W75: 31.1 | X75: 972 | Y75: =Y74 -> 24737.16217 | Z75: 30 | AA75: 1225.312322 | AB75: 1225.312322 | AD75: =SUMPRODUCT(($C$9:$C$59=$B75)*$L$9:$L$59*AD$9:AD$59)/SUMIF($C$9:$C$59,$B75,$L$9:$L$59) -> 210 | AF75: 100 | AG75: 100 | AH75: 100 | AI75: 100 | AJ75: 100 | AK75: 100 | AL75: 100 | AM75: 100 | AN75: 100 | AO75: 100 | AP75: 100 | AQ75: 100 | AR75: 100 | AS75: 100 | AT75: 100 | AU75: 100 | AV75: 100 | AW75: 100 | AX75: 100 | AY75: 100 | AZ75: 100 | BA75: 100 | BB75: 100 | BC75: 100 | BD75: 100 | BE75: 100 | BF75: 100 | BG75: 100 | BH75: 100 | BI75: 100 | BJ75: 100 | BK75: 100 | BL75: 100 | BM75: 100 | BN75: 100 | BO75: 100 | BP75: 100 | BQ75: 100 | BR75: 100 | BS75: 100 | BT75: 100
B76: Gas CHPs Existing | H76: =SUMPRODUCT(($C$9:$C$59=$B76)*$L$9:$L$59*H$9:H$59)/SUMIF($C$9:$C$59,$B76,$L$9:$L$59) -> 0.25 | K76: =SUMPRODUCT(($C$9:$C$59=$B76)*$L$9:$L$59*K$9:K$59)/SUMIF($C$9:$C$59,$B76,$L$9:$L$59) -> 9.5 | Q76: 0 | R76: 0.09 | S76: 1 | T76: 0.624 | U76: 0.91 | V76: ="" ->  | W76: 0 | X76: 0 | Y76: =Y75 -> 24737.16217 | Z76: 30 | AA76: 1225.312322 | AB76: 1225.312322 | AD76: =SUMPRODUCT(($C$9:$C$59=$B76)*$L$9:$L$59*AD$9:AD$59)/SUMIF($C$9:$C$59,$B76,$L$9:$L$59) -> 0 | AF76: 99 | AG76: 99 | AH76: 99 | AI76: 99 | AJ76: 99 | AK76: 99 | AL76: 99 | AM76: 99 | AN76: 99 | AO76: 99 | AP76: 99 | AQ76: 99 | AR76: 99 | AS76: 99 | AT76: 99 | AU76: 99 | AV76: 99 | AW76: 99 | AX76: 99 | AY76: 99 | AZ76: 99 | BA76: 99 | BB76: 99 | BC76: 99 | BD76: 99 | BE76: 99 | BF76: 99 | BG76: 99 | BH76: 99 | BI76: 99 | BJ76: 99 | BK76: 99 | BL76: 99 | BM76: 99 | BN76: 99 | BO76: 99 | BP76: 99 | BQ76: 99 | BR76: 99 | BS76: 99 | BT76: 99
X78: =SUMPRODUCT(X62:X76,$AF62:$AF76)/1000 -> 13648.66 | AB78: =SUMPRODUCT(AB62:AB76,$AF62:$AF76)/1000 -> 53274.54093
B79: SNAPP Aggregated Existing Technologies
A81: 1 | B81: Large coal existing | E81: coal | H81: =SUMPRODUCT(($D$9:$D$59=$B81)*$L$9:$L$59*H$9:H$59)/SUMIF($D$9:$D$59,$B81,$L$9:$L$59) -> 0.3553934624 | K81: =SUMPRODUCT(($D$9:$D$59=$B81)*$L$9:$L$59*K$9:K$59)/SUMIF($D$9:$D$59,$B81,$L$9:$L$59) -> 554.5673759 | Q81: =SUMPRODUCT(($D$9:$D$59=$B81)*$L$9:$L$59*Q$9:Q$59)/SUMIF($D$9:$D$59,$B81,$L$9:$L$59) -> 0.1 | R81: 0.1 | S81: 1 | T81: 0.81 | U81: 0.9 | W81: =W62 -> 33.3 | X81: =X62 -> 341.25 | AD81: =SUMPRODUCT(($D$9:$D$59=$B81)*$L$9:$L$59*AD$9:AD$59)/SUMIF($D$9:$D$59,$B81,$L$9:$L$59) -> 1991.604255 | AF81: =SUMIF($D$9:$D$59,$B81,AF$9:AF$59) -> 21150 | AG81: 21150 | AH81: 21150 | AI81: 21150 | AJ81: 21150 | AK81: 21150 | AL81: 21150 | AM81: 21150 | AN81: 21150 | AO81: 21150 | AP81: 21150 | AQ81: 21150 | AR81: 21150 | AS81: 21150 | AT81: 21090 | AU81: 20350 | AV81: =SUMIF($D$9:$D$59,$B81,AV$9:AV$59) -> 19500 | AW81: 18650 | AX81: 17320 | AY81: 15410 | AZ81: 13090 | BA81: 11930 | BB81: 10770 | BC81: 9610 | BD81: 9030 | BE81: 7860 | BF81: 6110 | BG81: 5530 | BH81: 3770 | BI81: 3180 | BJ81: 2010 | BK81: 2010 | BL81: =SUMIF($D$9:$D$59,$B81,BL$9:BL$59) -> 2010 | BM81: 2010 | BN81: 2010 | BO81: 2010 | BP81: 2010 | BQ81: 2010 | BR81: 1340.0067 | BS81: 670.0067 | BT81: 0
A82: =A81+1 -> 2 | B82: Large coal dry cooling existing | E82: coal | H82: 0.3456142903 | K82: 622.2683706 | Q82: 0.1 | R82: 0.1 | S82: 1 | T82: 0.81 | U82: 0.9 | W82: =W81 -> 33.3 | X82: =X81 -> 341.25 | AD82: 128.2651757 | AF82: 9390 | AG82: 9390 | AH82: 9390 | AI82: 9390 | AJ82: 9390 | AK82: 9390 | AL82: 9390 | AM82: 9390 | AN82: 9390 | AO82: 9390 | AP82: 9390 | AQ82: 9390 | AR82: 9390 | AS82: 9330 | AT82: 9330 | AU82: 9330 | AV82: 9330 | AW82: 9270 | AX82: 9270 | AY82: 9270 | AZ82: 9270 | BA82: 9270 | BB82: 9270 | BC82: 9270 | BD82: 9270 | BE82: 9270 | BF82: 9270 | BG82: 9270 | BH82: 7420 | BI82: 6810 | BJ82: 6200 | BK82: 3700 | BL82: 2460 | BM82: 1830 | BN82: 1830 | BO82: 1830 | BP82: 1220 | BQ82: 610 | BR82: 0 | BS82: 0 | BT82: 0
A83: 3 | B83: Small coal existing | E83: coal | H83: 0.2851505955 | K83: 154.7745098 | Q83: 0.1 | R83: 0.1 | S83: 1 | T83: 0.81 | U83: 0.9 | W83: =W82 -> 33.3 | X83: =X82 -> 341.25 | AD83: 2499.318627 | AF83: 5460 | AG83: 6120 | AH83: 6420 | AI83: 6520 | AJ83: 6503.3335 | AK83: 6486.66675 | AL83: 6470 | AM83: 6380 | AN83: 6380 | AO83: 6380 | AP83: 6000 | AQ83: 5430 | AR83: 4480 | AS83: 3910 | AT83: 3520 | AU83: 2370 | AV83: 1720 | AW83: 860 | AX83: 300 | AY83: 300 | AZ83: 300 | BA83: 300 | BB83: 250.0005 | BC83: 200.00025 | BD83: 150 | BE83: 150 | BF83: 150 | BG83: 150 | BH83: 150 | BI83: 150 | BJ83: 150 | BK83: 150 | BL83: 150 | BM83: 0 | BN83: 0 | BO83: 0 | BP83: 0 | BQ83: 0 | BR83: 0 | BS83: 0 | BT83: 0
A84: 4 | B84: Hydro existing | E84: hydro | H84: 1 | K84: 102 | Q84: 0.04474 | R84: 0.06394 | S84: 1 | T84: 0.89410149 | U84: 0.93606 | W84: 0 | X84: 115 | AD84: 0 | AF84: 600 | AG84: 600 | AH84: 600 | AI84: 600 | AJ84: 600 | AK84: 600 | AL84: 600 | AM84: 600 | AN84: 600 | AO84: 600 | AP84: 600 | AQ84: 600 | AR84: 600 | AS84: 600 | AT84: 600 | AU84: 600 | AV84: 600 | AW84: 600 | AX84: 600 | AY84: 600 | AZ84: 600 | BA84: 600 | BB84: 600 | BC84: 600 | BD84: 600 | BE84: 600 | BF84: 600 | BG84: 600 | BH84: 600 | BI84: 600 | BJ84: 600 | BK84: 600 | BL84: 600 | BM84: 600 | BN84: 600 | BO84: 600 | BP84: 600 | BQ84: 600 | BR84: 600 | BS84: 600 | BT84: 600
A85: 5 | B85: Cahora Bassa existing | E85: hydro | H85: 1 | K85: 300 | Q85: 0.26 | R85: 0.1 | S85: 1 | T85: 0.666 | U85: 0.9 | W85: 0 | X85: 106 | AD85: 0 | AF85: 1500 | AG85: 1500 | AH85: 1500 | AI85: 1500 | AJ85: 1500 | AK85: 1500 | AL85: 1500 | AM85: 1500 | AN85: 1500 | AO85: 1500 | AP85: 1500 | AQ85: 1500 | AR85: 1500 | AS85: 1500 | AT85: 1500 | AU85: 1500 | AV85: 1500 | AW85: 1500 | AX85: 1500 | AY85: 1500 | AZ85: 1500 | BA85: 1500 | BB85: 1500 | BC85: 1500 | BD85: 1500 | BE85: 1500 | BF85: 1500 | BG85: 1500 | BH85: 1500 | BI85: 1500 | BJ85: 1500 | BK85: 1500 | BL85: 1500 | BM85: 1500 | BN85: 1500 | BO85: 1500 | BP85: 1500 | BQ85: 1500 | BR85: 1500 | BS85: 1500 | BT85: 1500
A86: 6 | B86: Open-Cycle Gas Turbine diesel | E86: liquid fuels | H86: 0.3227102459 | K86: 136.8292683 | Q86: 0.06776097561 | R86: 0.05132926829 | S86: 1 | T86: 0.09 | U86: 0.9486707317 | W86: 0 | X86: 66.19512195 | AD86: 0 | AF86: 2460 | AG86: 2460 | AH86: 2460 | AI86: 2460 | AJ86: 2460 | AK86: 2460 | AL86: 2460 | AM86: 2460 | AN86: 2460 | AO86: 2460 | AP86: 2460 | AQ86: 2460 | AR86: 2460 | AS86: 2460 | AT86: 2460 | AU86: 2400.0006 | AV86: 2160.0003 | AW86: 2100 | AX86: 2100 | AY86: 2100 | AZ86: 2100 | BA86: 2100 | BB86: 2100 | BC86: 2100 | BD86: 2100 | BE86: 2100 | BF86: 2100 | BG86: 0 | BH86: 0 | BI86: 0 | BJ86: 0 | BK86: 0 | BL86: 0 | BM86: 0 | BN86: 0 | BO86: 0 | BP86: 0 | BQ86: 0 | BR86: 0 | BS86: 0 | BT86: 0
A87: 7 | B87: Nuclear Existing | E87: nuclear | H87: 0.3200152185 | K87: 930 | Q87: 0.1123 | R87: 0.0871 | S87: 1 | T87: 0.81038133 | U87: 0.9129 | W87: 10 | X87: 416 | AD87: 0 | AF87: 1860 | AG87: 1860 | AH87: 1860 | AI87: 1860 | AJ87: 1860 | AK87: 1860 | AL87: 1860 | AM87: 1860 | AN87: 1860 | AO87: 1860 | AP87: 1860 | AQ87: 1860 | AR87: 1860 | AS87: 1860 | AT87: 1860 | AU87: 1860 | AV87: 1860 | AW87: 1860 | AX87: 1860 | AY87: 1860 | AZ87: 1860 | BA87: 1860 | BB87: 1860 | BC87: 1860 | BD87: 1860 | BE87: 1860 | BF87: 1860 | BG87: 1860 | BH87: 1860 | BI87: 1860 | BJ87: 1860 | BK87: 1860 | BL87: 1860 | BM87: 1860 | BN87: 0 | BO87: 0 | BP87: 0 | BQ87: 0 | BR87: 0 | BS87: 0 | BT87: 0
A88: 8 | B88: Biomass bagasse existing | E88: biomass and waste | H88: 0.25 | K88: 20 | Q88: 0 | R88: 0.09 | S88: 1 | T88: 0.624 | U88: 0.91 | W88: 31.1 | X88: 972 | AD88: 210 | AF88: 100 | AG88: 100 | AH88: 100 | AI88: 100 | AJ88: 100 | AK88: 100 | AL88: 100 | AM88: 100 | AN88: 100 | AO88: 100 | AP88: 100 | AQ88: 100 | AR88: 100 | AS88: 100 | AT88: 100 | AU88: 100 | AV88: 100 | AW88: 100 | AX88: 100 | AY88: 100 | AZ88: 100 | BA88: 100 | BB88: 100 | BC88: 100 | BD88: 100 | BE88: 100 | BF88: 100 | BG88: 100 | BH88: 100 | BI88: 100 | BJ88: 100 | BK88: 100 | BL88: 100 | BM88: 100 | BN88: 100 | BO88: 100 | BP88: 100 | BQ88: 100 | BR88: 100 | BS88: 66.667 | BT88: 33.3335
A89: 9 | B89: Biomass pulp and paper existing | E89: biomass and waste | H89: 0.25 | K89: 19.4122807 | Q89: 0 | R89: 0.09 | S89: 1 | T89: 0.624 | U89: 0.91 | W89: 0 | X89: 0 | AD89: 0 | AF89: 228 | AG89: 228 | AH89: 228 | AI89: 228 | AJ89: 228 | AK89: 228 | AL89: 228 | AM89: 228 | AN89: 228 | AO89: 228 | AP89: 228 | AQ89: 228 | AR89: 228 | AS89: 228 | AT89: 228 | AU89: 228 | AV89: 228 | AW89: 228 | AX89: 228 | AY89: 228 | AZ89: 228 | BA89: 228 | BB89: 228 | BC89: 228 | BD89: 228 | BE89: 228 | BF89: 228 | BG89: 228 | BH89: 228 | BI89: 228 | BJ89: 228 | BK89: 228 | BL89: 228 | BM89: 228 | BN89: 228 | BO89: 228 | BP89: 228 | BQ89: 228 | BR89: 228 | BS89: 152.00076 | BT89: 76.00038
A90: 10 | B90: Landfill gas existing | E90: biomass and waste | H90: 0.25 | K90: 4.5 | Q90: 0 | R90: 0.09 | S90: 1 | T90: 0.624 | U90: 0.91 | W90: 0 | X90: 0 | AD90: 0 | AF90: 9 | AG90: 9 | AH90: 9 | AI90: 9 | AJ90: 9 | AK90: 9 | AL90: 9 | AM90: 9 | AN90: 9 | AO90: 9 | AP90: 9 | AQ90: 9 | AR90: 9 | AS90: 9 | AT90: 9 | AU90: 9 | AV90: 9 | AW90: 9 | AX90: 9 | AY90: 9 | AZ90: 9 | BA90: 9 | BB90: 9 | BC90: 9 | BD90: 9 | BE90: 9 | BF90: 9 | BG90: 9 | BH90: 9 | BI90: 9 | BJ90: 9 | BK90: 9 | BL90: 9 | BM90: 9 | BN90: 9 | BO90: 9 | BP90: 9 | BQ90: 9 | BR90: 9 | BS90: 6.00003 | BT90: 3.000015
A91: 11 | B91: mini hydro existing | E91: hydro | H91: 1 | K91: 70 | Q91: 0.0391 | R91: 0.085 | S91: 1 | T91: 0.8792235 | U91: 0.915 | W91: 0 | X91: 114 | AD91: 0 | AF91: 70 | AG91: 70 | AH91: 70 | AI91: 70 | AJ91: 70 | AK91: 70 | AL91: 70 | AM91: 70 | AN91: 70 | AO91: 70 | AP91: 70 | AQ91: 70 | AR91: 70 | AS91: 70 | AT91: 70 | AU91: 70 | AV91: 70 | AW91: 70 | AX91: 70 | AY91: 70 | AZ91: 70 | BA91: 70 | BB91: 70 | BC91: 70 | BD91: 70 | BE91: 70 | BF91: 70 | BG91: 70 | BH91: 70 | BI91: 70 | BJ91: 70 | BK91: 70 | BL91: 70 | BM91: 70 | BN91: 70 | BO91: 70 | BP91: 70 | BQ91: 70 | BR91: 70 | BS91: 70 | BT91: 70
A92: 12 | B92: Pumped storage | E92: Pump Storage | H92: 0.73 | K92: 215.6962025 | Q92: 0.05127721519 | R92: 0.06802531646 | S92: 1 | T92: 0.245 | U92: 0.9319746835 | W92: 3.367088608 | X92: 59.41772152 | AD92: 0 | AF92: 1580 | AG92: 1580 | AH92: 1580 | AI92: 1580 | AJ92: 1580 | AK92: 1580 | AL92: 1580 | AM92: 1580 | AN92: 1580 | AO92: 1580 | AP92: 1580 | AQ92: 1580 | AR92: 1580 | AS92: 1580 | AT92: 1580 | AU92: 1520.0006 | AV92: 1460.0003 | AW92: 1400 | AX92: 1400 | AY92: 1400 | AZ92: 1400 | BA92: 1400 | BB92: 1400 | BC92: 1400 | BD92: 1400 | BE92: 1066.67 | BF92: 733.335 | BG92: 400 | BH92: 400 | BI92: 400 | BJ92: 400 | BK92: 400 | BL92: 266.668 | BM92: 133.334 | BN92: 0 | BO92: 0 | BP92: 0 | BQ92: 0 | BR92: 0 | BS92: 0 | BT92: 0
A93: 13 | B93: Gas CHPs Existing | E93: gas | H93: 0.25 | K93: 10 | Q93: 0 | R93: 0.09 | S93: 1 | T93: 0.624 | U93: 0.91 | W93: 0 | X93: 0 | AD93: 0 | AF93: 90 | AG93: 90 | AH93: 90 | AI93: 90 | AJ93: 90 | AK93: 90 | AL93: 90 | AM93: 90 | AN93: 90 | AO93: 90 | AP93: 90 | AQ93: 90 | AR93: 90 | AS93: 90 | AT93: 90 | AU93: 90 | AV93: 90 | AW93: 90 | AX93: 90 | AY93: 90 | AZ93: 90 | BA93: 90 | BB93: 90 | BC93: 90 | BD93: 90 | BE93: 90 | BF93: 90 | BG93: 90 | BH93: 90 | BI93: 90 | BJ93: 90 | BK93: 90 | BL93: 90 | BM93: 90 | BN93: 90 | BO93: 90 | BP93: 90 | BQ93: 90 | BR93: 90 | BS93: 60.0003 | BT93: 30.00015
A94: 14
A95: 15
A96: 16
A97: 17
A98: 18
A99: 19
A100: 20
B101: Sources
B102: p.c Keith Bowen | K102: final irp 2010, table 12
B103: IRP2010 - T.12
I107: adjusted Efficiency
B108: Eskom coal avg eff 2006-2011 | I108: =EskomCoalEff!D9 -> 0.3353764897
H109: =SUMPRODUCT(H111:H113,AF62:AF64)/SUM(AF62:AF64) -> 0.3452311364 | I109: =SUMPRODUCT(I111:I113,AG62:AG64)/SUM(AG62:AG64) -> 0.3344680993
AB110: 2032 | AD110: =SUMIF($AB$9:$AB$37,AB110,$L$9:$L$37) -> 0
B111: Coal PF Eskom Large Existing | H111: =SUMPRODUCT(($C$9:$C$59=$B111)*$L$9:$L$59*H$9:H$59)/SUMIF($C$9:$C$59,$B111,$L$9:$L$59) -> 0.3553934624 | I111: =H111*$H$115 -> 0.3452487314 | AB111: =AB110+1 -> 2033 | AD111: 150
B112: Coal PF Eskom Large Dry Existing | H112: =SUMPRODUCT(($C$9:$C$59=$B112)*$L$9:$L$59*H$9:H$59)/SUMIF($C$9:$C$59,$B112,$L$9:$L$59) -> 0.3456142903 | I112: =H112*$H$115 -> 0.3357487063 | AB112: 2034 | AD112: 3480
B113: Coal PF Eskom Small Existing | H113: =SUMPRODUCT(($C$9:$C$59=$B113)*$L$9:$L$59*H$9:H$59)/SUMIF($C$9:$C$59,$B113,$L$9:$L$59) -> 0.2948783693 | I113: =H113*$H$115 -> 0.2864610458 | AB113: 2035 | AD113: 0
AB114: 2036 | AD114: 0
B115: Adjustment Factor | H115: =I108/H109 -> 0.9714549305 | AB115: 2037 | AD115: 5640
AB116: 2038 | AD116: 0
C123: Water Consumption l/MWh received from Eskom Petro Hendricks via Gina Downes August 2011
B124: Arnot | C124: 2124.166667
B125: Hendrina | C125: 2399.083333
B126: Duvha | C126: 2064
B127: Kriel | C127: 2215
B128: Kendal | C128: 144.0833333
B129: Matla | C129: 1963.583333
B130: Tutuka | C130: 1965.916667
B131: Lethabo | C131: 1817.583333
B132: Matimba | C132: 111.0833333
B133: Majuba | C133: 981.1666667
B134: Camden | C134: 2565.333333
B135: Grootvlei | C135: 2248.25
B136: Komati | C136: 3032.083333
B137: Koeberg | C137: 68.33333333

Sheet PWR
A1: South Africa | B1: Base Year Energy Balance | E1: Power Sector
C3: Base-year final energy aggregated by sector fuel | M3: Entry #
A4: Fuel # | B4: =COUNT(C4:M4) -> 9 | C4: 1 | D4: =C4+1 -> 2 | E4: 3 | F4: 4 | G4: 5 | H4: 6 | I4: 7 | J4: 8 | K4: 9
A5: Power Sector | C5: Coal Existing | D5: Coal Discard | E5: Diesel | F5: Nuclear | G5: Gas | H5: Hydro | I5: Other Biomass | J5: Solar | K5: Wind | L5: Total
A6: Sectoral Fuel Names | B6: PWR | C6: =$B$6&VLOOKUP(C5,FuelNames,2,FALSE) ->  | J6: =$B$6&VLOOKUP(J5,FuelNames,2,FALSE) ->  | K6: =$B$6&VLOOKUP(K5,FuelNames,2,FALSE) -> 
B7: PJ
M10: 1
M11: =M10+1 -> 2
M12: =M11+1 -> 3
M13: =M12+1 -> 4
M14: =M13+1 -> 5
A17: Tranmission Losses | B17: % | C17: =IF(Index!E2="Y",0,1-C20/C19) -> 0.03804858112
A18: Transmission Capacity (estimate) | B18: GW | C18: =C20/(C21*8760) -> 31.76645947
A19: Electricity upstream of Transmission | B19: ELCC | C19: =229450-5083 -> 224367
A20: Electricity downstream of Transmission | B20: ELC | C20: =220720-5083*(1-3.8%) -> 215830.154
A21: Load Factor | C21: 0.7756025016
A22: Electricity to Agriculture | B22: AGRELC
A23: Electricity to Commerce | B23: COMELC
A24: Electricity to Industry | B24: INDELC
A25: Electricity to Residential | B25: RESELC
A26: Electricity to Transport | B26: TRNELC
A27: Electricity to Upstream (Refineries) | B27: UPSELC
A28: Power Plant Types | B28: Code | D28: Generator Types
A29: Thermal Electric | B29: ET | C29: PF | D29: SC | E29: FB | F29: IG | G29: GT | H29: CC
A30: Renewable | B30: ER | C30: PV | D30: ST | E30: CN | F30: DS
A31: Combined Heat and Power | B31: EH
A32: Pump Storage | B32: EP
A34: \I:
A35: \I: | B35: Index for lookup from source data | I35: =MATCH(I39,'Existing capacity basic data'!$C$3:$BT$3,0) -> 6 | L35: =MATCH(L39,'Existing capacity basic data'!$C$3:$BT$3,0) -> 17 | M35: =MATCH(M39,'Existing capacity basic data'!$C$3:$BT$3,0) -> 18 | N35: =MATCH(N39,'Existing capacity basic data'!$C$3:$BT$3,0) -> 19 | O35: =MATCH(O39,'Existing capacity basic data'!$C$3:$BT$3,0) -> 20 | P35: =MATCH(P39,'Existing capacity basic data'!$C$3:$BT$3,0) -> 21 | Q35: =MATCH(Q39,'Existing capacity basic data'!$C$3:$BT$3,0) -> 22 | R35: =MATCH(R39,'Existing capacity basic data'!$C$3:$BT$3,0) -> 28 | U35: =MATCH(U39,'Existing capacity basic data'!$C$3:$BT$3,0) -> 27 | W35: =MATCH(W39,'Existing capacity basic data'!$C$3:$BT$3,0) -> 9 | AB35: =MATCH(AB42,'Existing capacity basic data'!$C$6:$BT$6,0) -> 30 | AC35: =MATCH(AC42,'Existing capacity basic data'!$C$6:$BT$6,0) -> 31 | AD35: =MATCH(AD42,'Existing capacity basic data'!$C$6:$BT$6,0) -> 32 | AE35: =MATCH(AE42,'Existing capacity basic data'!$C$6:$BT$6,0) -> 33 | AF35: =MATCH(AF42,'Existing capacity basic data'!$C$6:$BT$6,0) -> 34 | AG35: =MATCH(AG42,'Existing capacity basic data'!$C$6:$BT$6,0) -> 35 | AH35: =MATCH(AH42,'Existing capacity basic data'!$C$6:$BT$6,0) -> 36 | AI35: =MATCH(AI42,'Existing capacity basic data'!$C$6:$BT$6,0) -> 37 | AJ35: =MATCH(AJ42,'Existing capacity basic data'!$C$6:$BT$6,0) -> 38 | AK35: =MATCH(AK42,'Existing capacity basic data'!$C$6:$BT$6,0) -> 39 | AL35: =MATCH(AL42,'Existing capacity basic data'!$C$6:$BT$6,0) -> 40 | AM35: =MATCH(AM42,'Existing capacity basic data'!$C$6:$BT$6,0) -> 41 | AN35: =MATCH(AN42,'Existing capacity basic data'!$C$6:$BT$6,0) -> 42 | AO35: =MATCH(AO42,'Existing capacity basic data'!$C$6:$BT$6,0) -> 43 | AP35: =MATCH(AP42,'Existing capacity basic data'!$C$6:$BT$6,0) -> 44 | AQ35: =MATCH(AQ42,'Existing capacity basic data'!$C$6:$BT$6,0) -> 45 | AR35: =MATCH(AR42,'Existing capacity basic data'!$C$6:$BT$6,0) -> 46 | AS35: =MATCH(AS42,'Existing capacity basic data'!$C$6:$BT$6,0) -> 47 | AT35: =MATCH(AT42,'Existing capacity basic data'!$C$6:$BT$6,0) -> 48 | AU35: =MATCH(AU42,'Existing capacity basic data'!$C$6:$BT$6,0) -> 49 | AV35: =MATCH(AV42,'Existing capacity basic data'!$C$6:$BT$6,0) -> 50 | AW35: =MATCH(AW42,'Existing capacity basic data'!$C$6:$BT$6,0) -> 51 | AX35: =MATCH(AX42,'Existing capacity basic data'!$C$6:$BT$6,0) -> 52 | AY35: =MATCH(AY42,'Existing capacity basic data'!$C$6:$BT$6,0) -> 53 | AZ35: =MATCH(AZ42,'Existing capacity basic data'!$C$6:$BT$6,0) -> 54 | BA35: =MATCH(BA42,'Existing capacity basic data'!$C$6:$BT$6,0) -> 55 | BB35: =MATCH(BB42,'Existing capacity basic data'!$C$6:$BT$6,0) -> 56 | BC35: =MATCH(BC42,'Existing capacity basic data'!$C$6:$BT$6,0) -> 57 | BD35: =MATCH(BD42,'Existing capacity basic data'!$C$6:$BT$6,0) -> 58 | BE35: =MATCH(BE42,'Existing capacity basic data'!$C$6:$BT$6,0) -> 59 | BF35: =MATCH(BF42,'Existing capacity basic data'!$C$6:$BT$6,0) -> 60 | BG35: =MATCH(BG42,'Existing capacity basic data'!$C$6:$BT$6,0) -> 65 | BH35: =MATCH(BH42,'Existing capacity basic data'!$C$6:$BT$6,0) -> 70
K36: (was utilisation factor)
A37: Existing Power Plant Data | G37: ~FI_T | X37: Stock
A38: South African Existing system
A39: Parameter | B39: Technology Name | C39: Input Commodity Name | D39: Input Commodity | E39: Input Commodity 2 Name | F39: Input Commodity 2 | G39: Output Commodity | H39: Output Commodity 2 | I39: ='Existing capacity basic data'!H3 -> Efficiency | J39: CHP fuel1 input share | K39: CHP Heat to Elc output ratio | L39: ='Existing capacity basic data'!S3 -> Contribution to Peak | M39: ='Existing capacity basic data'!T3 -> Availability factor | N39: ='Existing capacity basic data'!U3 -> Maximum availability | O39: ='Existing capacity basic data'!V3 -> Minimum utilisation | P39: ='Existing capacity basic data'!W3 -> Variable Costs | Q39: ='Existing capacity basic data'!X3 -> Fixed Costs | R39: ='Existing capacity basic data'!AD3 -> Water use | S39: Life (of life extensions) | T39: SOX reductions | U39: ='Existing capacity basic data'!AC3 -> FGD Retrofit cost | V39: Environmental Levy | W39: ='Existing capacity basic data'!K3 -> Max unit capacity | X39: ='Existing capacity basic data'!AF3 -> Residual Capacity | Y39: =X39 -> Residual Capacity | BL39: Technology number
A40: Year (time series) - default 2006 | I40: 2006 | L40: 2006 | M40: 2006 | N40: 2006 | O40: 2006 | P40: 2006 | Q40: 2006 | R40: 2006 | S40: 2006 | T40: 2006 | U40: 2006 | V40: 2006 | X40: 2006 | Y40: =X40+1 -> 2007 | Z40: =Y40+1 -> 2008 | AA40: 2009 | AB40: 2010 | AC40: 2011 | AD40: 2012 | AE40: 2013 | AF40: 2014 | AG40: 2015 | AH40: 2016 | AI40: 2017 | AJ40: 2018 | AK40: 2019 | AL40: 2020 | AM40: 2021 | AN40: 2022 | AO40: 2023 | AP40: 2024 | AQ40: 2025 | AR40: 2026 | AS40: 2027 | AT40: 2028 | AU40: 2029 | AV40: 2030 | AW40: 2031 | AX40: 2032 | AY40: 2033 | AZ40: 2034 | BA40: 2035 | BB40: 2036 | BC40: 2037 | BD40: 2038 | BE40: 2039 | BF40: 2040 | BG40: =BF40+5 -> 2045 | BH40: =BG40+5 -> 2050 | BI40: =BH40+10 -> 2060 | BJ40: =BI40+10 -> 2070
A41: Units | I41: % | L41: % | M41: % | N41: % | O41: % | P41: R/GJ | Q41: R/kW | R41: l/GJ | S41: years | T41: kton/PJ | U41: R/kW | V41: kWh/GJ | W41: GW | X41: GW
A42: Lookup row | D42: =D39 -> Input Commodity | G42: =G39 -> Output Commodity | I42: =I39&I40 -> Efficiency2006 | L42: =L39&L40 -> Contribution to Peak2006 | M42: Availability factor2006 | N42: Maximum availability2006 | O42: =O39&O40 -> Minimum utilisation2006 | P42: Variable Costs2006 | Q42: Fixed Costs2006 | R42: Water use2006 | S42: =S39&S40 -> Life (of life extensions)2006 | T42: =T39&Index!E14 -> SOX reductionsN | U42: =Q39&Index!E14 -> Fixed CostsN | V42: =V39&V40 -> Environmental Levy2006 | X42: =$X$39&X40 -> Residual Capacity2006 | Y42: =$X$39&Y40 -> Residual Capacity2007 | Z42: =$X$39&Z40 -> Residual Capacity2008 | AA42: =$X$39&AA40 -> Residual Capacity2009 | AB42: ='Existing capacity basic data'!AF6 -> Residual Capacity2010 | AC42: ='Existing capacity basic data'!AG6 -> Residual Capacity2011 | AD42: ='Existing capacity basic data'!AH6 -> Residual Capacity2012 | AE42: ='Existing capacity basic data'!AI6 -> Residual Capacity2013 | AF42: ='Existing capacity basic data'!AJ6 -> Residual Capacity2014 | AG42: ='Existing capacity basic data'!AK6 -> Residual Capacity2015 | AH42: ='Existing capacity basic data'!AL6 -> Residual Capacity2016 | AI42: ='Existing capacity basic data'!AM6 -> Residual Capacity2017 | AJ42: ='Existing capacity basic data'!AN6 -> Residual Capacity2018 | AK42: ='Existing capacity basic data'!AO6 -> Residual Capacity2019 | AL42: ='Existing capacity basic data'!AP6 -> Residual Capacity2020 | AM42: ='Existing capacity basic data'!AQ6 -> Residual Capacity2021 | AN42: ='Existing capacity basic data'!AR6 -> Residual Capacity2022 | AO42: ='Existing capacity basic data'!AS6 -> Residual Capacity2023 | AP42: ='Existing capacity basic data'!AT6 -> Residual Capacity2024 | AQ42: ='Existing capacity basic data'!AU6 -> Residual Capacity2025 | AR42: ='Existing capacity basic data'!AV6 -> Residual Capacity2026 | AS42: ='Existing capacity basic data'!AW6 -> Residual Capacity2027 | AT42: ='Existing capacity basic data'!AX6 -> Residual Capacity2028 | AU42: ='Existing capacity basic data'!AY6 -> Residual Capacity2029 | AV42: ='Existing capacity basic data'!AZ6 -> Residual Capacity2030 | AW42: ='Existing capacity basic data'!BA6 -> Residual Capacity2031 | AX42: ='Existing capacity basic data'!BB6 -> Residual Capacity2032 | AY42: ='Existing capacity basic data'!BC6 -> Residual Capacity2033 | AZ42: ='Existing capacity basic data'!BD6 -> Residual Capacity2034 | BA42: ='Existing capacity basic data'!BE6 -> Residual Capacity2035 | BB42: ='Existing capacity basic data'!BF6 -> Residual Capacity2036 | BC42: ='Existing capacity basic data'!BG6 -> Residual Capacity2037 | BD42: ='Existing capacity basic data'!BH6 -> Residual Capacity2038 | BE42: ='Existing capacity basic data'!BI6 -> Residual Capacity2039 | BF42: ='Existing capacity basic data'!BJ6 -> Residual Capacity2040 | BG42: ='Existing capacity basic data'!BO6 -> Residual Capacity2045 | BH42: ='Existing capacity basic data'!BT6 -> Residual Capacity2050 | BI42: Residual Capacity2060 | BJ42: Residual Capacity2070
A43: Reserve Margin (%) | X43: 0.15 | Y43: =X43 -> 0.15 | Z43: =Y43 -> 0.15 | AA43: 0.15 | AB43: 0.15 | AC43: 0.15 | AD43: 0.15 | AE43: 0.15 | AF43: 0.15 | AG43: 0.15 | AH43: 0.15 | AI43: 0.15 | AJ43: 0.15 | AK43: 0.15 | AL43: 0.15 | AM43: 0.15 | AN43: 0.15 | AO43: 0.15 | AP43: 0.15 | AQ43: 0.15 | AR43: 0.15 | AS43: 0.15 | AT43: 0.15 | AU43: 0.15 | AV43: 0.15 | AW43: =AV43 -> 0.15 | AX43: 0.15 | AY43: 0.15 | AZ43: 0.15 | BA43: 0.15 | BB43: 0.15 | BC43: 0.15 | BD43: 0.15 | BE43: 0.15 | BF43: =BA43 -> 0.15 | BG43: 0.15 | BH43: 0.15 | BI43: 0.15 | BJ43: 0.15
B44: =COUNTA(B46:B55) -> 10
A45: \I: Additional input/output for CHP plants
A46: ='Existing capacity basic data'!B62 -> Coal PF Eskom Large Existing | B46: =$B$29&RIGHT(D46,3)&$C$29&"W-E" -> ETCLEPFW-E | C46: Coal low grade | D46: =$B$6&VLOOKUP(C46,NameConv!$B$4:$C$72,2,FALSE) -> PWRCLE | G46: ELCC | H46: =IFERROR(IF(VLOOKUP($A46,categories_existing,MATCH(H$42,categories_existing_parameters,0),FALSE)="","",VLOOKUP($A46,categories_existing,MATCH(H$42,categories_existing_parameters,0),FALSE)),"") ->  | I46: =OFFSET(Exist_basic_data_start,$BL46,I$35) -> 0.3452487314 | L46: =OFFSET(Exist_basic_data_start,$BL46,L$35) -> 1 | M46: 0.81 | N46: 0.9 | P46: =OFFSET(Exist_basic_data_start,$BL46,P$35)/3.6 -> 9.25 | Q46: =IF(Index!$E$9="Y",OFFSET(Exist_basic_data_start,$BL46,Q$35)+OFFSET(Exist_basic_data_start,$BL46,Q$35+4),OFFSET(Exist_basic_data_start,$BL46,Q$35)) -> 1491.272545 | R46: =OFFSET(Exist_basic_data_start,$BL46,R$35)/3.6 -> 553.2234043 | S46: 10 | T46: =0.6262/I46*-0.99 -> -1.795627163 | U46: =OFFSET(Exist_basic_data_start,$BL46,U$35) -> 0 | V46: =1/3.6*1000 -> 277.7777778 | W46: =OFFSET(Exist_basic_data_start,$BL46,W$35)/1000 -> 0.5545673759 | X46: =Y46 -> 21.15 | Y46: 21.15 | Z46: 21.15 | AA46: 21.15 | AB46: =OFFSET(Exist_basic_data_start,$BL46,AB$35)/1000 -> 21.15 | AC46: 21.15 | AD46: 21.15 | AE46: 21.15 | AF46: 21.15 | AG46: 21.15 | AH46: 21.15 | AI46: 21.15 | AJ46: 21.15 | AK46: 21.15 | AL46: =OFFSET(Exist_basic_data_start,$BL46,AL$35)/1000 -> 21.15 | AM46: 21.15 | AN46: 21.15 | AO46: 21.15 | AP46: 21.09 | AQ46: 20.35 | AR46: 19.5 | AS46: 18.65 | AT46: 17.32 | AU46: 15.41 | AV46: =OFFSET(Exist_basic_data_start,$BL46,AV$35)/1000 -> 13.09 | AW46: 11.93 | AX46: 10.77 | AY46: 9.61 | AZ46: 9.03 | BA46: 7.86 | BB46: 6.11 | BC46: 5.53 | BD46: 3.77 | BE46: 3.18 | BF46: 2.01 | BG46: 2.01 | BH46: 0 | BI46: 0 | BJ46: 0 | BL46: =MATCH(A46,'Existing capacity basic data'!$B$62:$B$78,0) -> 1
A47: ='Existing capacity basic data'!B63 -> Coal PF Eskom Large Dry Existing | B47: =$B$29&RIGHT(D47,3)&$C$29&"D-E" -> ETCLEPFD-E | C47: Coal low grade | D47: =$B$6&VLOOKUP(C47,NameConv!$B$4:$C$72,2,FALSE) -> PWRCLE | G47: ELCC | I47: 0.3357487063 | L47: 1 | M47: 0.81 | N47: 0.9 | P47: 9.25 | Q47: =IF(Index!$E$9="Y",OFFSET(Exist_basic_data_start,$BL47,Q$35)+OFFSET(Exist_basic_data_start,$BL47,Q$35+4),OFFSET(Exist_basic_data_start,$BL47,Q$35)) -> 1491.272545 | R47: 35.62921548 | S47: =S46 -> 10 | T47: =T46 -> -1.795627163 | U47: 0 | V47: =V46 -> 277.7777778 | W47: 0.6222683706 | X47: 9.39 | Y47: 9.39 | Z47: 9.39 | AA47: 9.39 | AB47: 9.39 | AC47: 9.39 | AD47: 9.39 | AE47: 9.39 | AF47: 9.39 | AG47: 9.39 | AH47: 9.39 | AI47: 9.39 | AJ47: 9.39 | AK47: 9.39 | AL47: 9.39 | AM47: 9.39 | AN47: 9.39 | AO47: 9.33 | AP47: 9.33 | AQ47: 9.33 | AR47: 9.33 | AS47: 9.27 | AT47: 9.27 | AU47: 9.27 | AV47: 9.27 | AW47: 9.27 | AX47: 9.27 | AY47: 9.27 | AZ47: 9.27 | BA47: 9.27 | BB47: 9.27 | BC47: 9.27 | BD47: 7.42 | BE47: 6.81 | BF47: 6.2 | BG47: 1.83 | BH47: 0 | BI47: 0 | BJ47: 0 | BL47: =MATCH(A47,'Existing capacity basic data'!$B$62:$B$78,0) -> 2
A48: ='Existing capacity basic data'!B64 -> Coal PF Eskom Small Existing | B48: =$B$29&RIGHT(D48,3)&$C$29&"S-E" -> ETCLEPFS-E | C48: Coal low grade | D48: =$B$6&VLOOKUP(C48,NameConv!$B$4:$C$72,2,FALSE) -> PWRCLE | G48: ELCC | I48: 0.2864610458 | L48: 1 | M48: 0.81 | N48: 0.9 | P48: 9.25 | Q48: =IF(Index!$E$9="Y",OFFSET(Exist_basic_data_start,$BL48,Q$35)+OFFSET(Exist_basic_data_start,$BL48,Q$35+4),OFFSET(Exist_basic_data_start,$BL48,Q$35)) -> 1491.272545 | R48: 689.0948958 | S48: =S47 -> 10 | T48: =T47 -> -1.795627163 | U48: 0 | V48: =V47 -> 277.7777778 | W48: 0.1845728643 | X48: 4.34 | Y48: 4.34 | Z48: 4.34 | AA48: 4.34 | AB48: 4.34 | AC48: 5 | AD48: 5.3 | AE48: 5.4 | AF48: 5.4 | AG48: 5.4 | AH48: 5.4 | AI48: 5.4 | AJ48: 5.4 | AK48: 5.4 | AL48: 5.02 | AM48: 4.45 | AN48: 3.5 | AO48: 2.93 | AP48: 2.54 | AQ48: 2.07 | AR48: 1.42 | AS48: 0.56 | AT48: 0 | AU48: 0 | AV48: 0 | AW48: 0 | AX48: 0 | AY48: 0 | AZ48: 0 | BA48: 0 | BB48: 0 | BC48: 0 | BD48: 0 | BE48: 0 | BF48: 0 | BG48: 0 | BH48: 0 | BI48: 0 | BJ48: 0 | BL48: =MATCH(A48,'Existing capacity basic data'!$B$62:$B$78,0) -> 3
A49: ='Existing capacity basic data'!B65 -> Coal PF Munic Existing | B49: =$B$29&RIGHT(D49,3)&$C$29&"M-E" -> ETCLEPFM-E | C49: Coal low grade | D49: =$B$6&VLOOKUP(C49,NameConv!$B$4:$C$72,2,FALSE) -> PWRCLE | G49: =IF(Index!$E$2="Y",NT_PWR!$C$8,"ELC") -> ELC | I49: 0.2454540352 | L49: 1 | M49: 0.81 | N49: 0.9 | P49: 9.25 | Q49: =IF(Index!$E$9="Y",OFFSET(Exist_basic_data_start,$BL49,Q$35)+OFFSET(Exist_basic_data_start,$BL49,Q$35+4),OFFSET(Exist_basic_data_start,$BL49,Q$35)) -> 1491.272545 | R49: 712.5925926 | S49: =S48 -> 10 | T49: =T48 -> -1.795627163 | U49: 0 | V49: 277.7777778 | W49: 0.04734042553 | X49: 0.47 | Y49: 0.47 | Z49: 0.47 | AA49: 0.47 | AB49: 0.47 | AC49: 0.47 | AD49: 0.47 | AE49: 0.47 | AF49: 0.4533335 | AG49: 0.43666675 | AH49: 0.42 | AI49: 0.33 | AJ49: 0.33 | AK49: 0.33 | AL49: 0.33 | AM49: 0.33 | AN49: 0.33 | AO49: 0.33 | AP49: 0.33 | AQ49: 0.15 | AR49: 0.15 | AS49: 0.15 | AT49: 0.15 | AU49: 0.15 | AV49: 0.15 | AW49: 0.15 | AX49: 0.1000005 | AY49: 0.05000025 | AZ49: 0 | BA49: 0 | BB49: 0 | BC49: 0 | BD49: 0 | BE49: 0 | BF49: 0 | BG49: 0 | BH49: 0 | BI49: 0 | BJ49: 0 | BL49: =MATCH(A49,'Existing capacity basic data'!$B$62:$B$78,0) -> 4
A50: ='Existing capacity basic data'!B66 -> Sasol SSF | B50: =$B$29&RIGHT(D50,3)&$C$29&"SS-E" -> ETCLEPFSS-E | C50: Coal low grade | D50: =$B$6&VLOOKUP(C50,NameConv!$B$4:$C$72,2,FALSE) -> PWRCLE | G50: =IF(Index!$E$2="Y",NT_PWR!$C$8,"UPSELC") -> UPSELC | I50: 0.2542903551 | L50: 1 | M50: 0.81 | N50: 0.9 | P50: 9.25 | Q50: =IF(Index!$E$9="Y",OFFSET(Exist_basic_data_start,$BL50,Q$35)+OFFSET(Exist_basic_data_start,$BL50,Q$35+4),OFFSET(Exist_basic_data_start,$BL50,Q$35)) -> 1491.272545 | R50: 712.5925926 | S50: 10 | T50: =T49 -> -1.795627163 | U50: 0 | V50: 277.7777778 | W50: 0.05 | X50: 0.5 | Y50: 0.5 | Z50: 0.5 | AA50: 0.5 | AB50: 0.5 | AC50: 0.5 | AD50: 0.5 | AE50: 0.5 | AF50: 0.5 | AG50: 0.5 | AH50: 0.5 | AI50: 0.5 | AJ50: 0.5 | AK50: 0.5 | AL50: 0.5 | AM50: 0.5 | AN50: 0.5 | AO50: 0.5 | AP50: 0.5 | AQ50: 0 | AR50: 0 | AS50: 0 | AT50: 0 | AU50: 0 | AV50: 0 | AW50: 0 | AX50: 0 | AY50: 0 | AZ50: 0 | BA50: 0 | BB50: 0 | BC50: 0 | BD50: 0 | BE50: 0 | BF50: 0 | BG50: 0 | BH50: 0 | BI50: 0 | BJ50: 0 | BL50: =MATCH(A50,'Existing capacity basic data'!$B$62:$B$78,0) -> 5
A51: ='Existing capacity basic data'!B67 -> Sasol Infrachem | B51: =$B$29&RIGHT(D51,3)&$C$29&"SI-E" -> ETCLEPFSI-E | C51: Coal low grade | D51: =$B$6&VLOOKUP(C51,NameConv!$B$4:$C$72,2,FALSE) -> PWRCLE | G51: =IF(Index!$E$2="Y",NT_PWR!$C$8,"ICPELC") -> ICPELC | I51: 0.2542903551 | L51: 1 | M51: 0.81 | N51: 0.9 | P51: 9.25 | Q51: =IF(Index!$E$9="Y",OFFSET(Exist_basic_data_start,$BL51,Q$35)+OFFSET(Exist_basic_data_start,$BL51,Q$35+4),OFFSET(Exist_basic_data_start,$BL51,Q$35)) -> 1491.272545 | R51: 712.5925926 | S51: 10 | T51: =T50 -> -1.795627163 | U51: 0 | V51: 277.7777778 | W51: 0.05 | X51: 0.15 | Y51: 0.15 | Z51: 0.15 | AA51: 0.15 | AB51: 0.15 | AC51: 0.15 | AD51: 0.15 | AE51: 0.15 | AF51: 0.15 | AG51: 0.15 | AH51: 0.15 | AI51: 0.15 | AJ51: 0.15 | AK51: 0.15 | AL51: 0.15 | AM51: 0.15 | AN51: 0.15 | AO51: 0.15 | AP51: 0.15 | AQ51: 0.15 | AR51: 0.15 | AS51: 0.15 | AT51: 0.15 | AU51: 0.15 | AV51: 0.15 | AW51: 0.15 | AX51: 0.15 | AY51: 0.15 | AZ51: 0.15 | BA51: 0.15 | BB51: 0.15 | BC51: 0.15 | BD51: 0.15 | BE51: 0.15 | BF51: 0.15 | BG51: 0 | BH51: 0 | BI51: 0 | BJ51: 0 | BL51: =MATCH(A51,'Existing capacity basic data'!$B$62:$B$78,0) -> 6
A52: ='Existing capacity basic data'!B68 -> OCGT liquid fuels Existing | B52: =$B$29&RIGHT(D52,3)&$G$29&"-E" -> ETODSGT-E | C52: Oil Diesel | D52: =$B$6&VLOOKUP(C52,NameConv!$B$4:$C$72,2,FALSE) -> PWRODS | G52: ELCC | I52: 0.3227102459 | L52: 1 | M52: 0.09 | N52: 0.9486707317 | O52: 0.05 | P52: 0 | Q52: =IF(Index!$E$9="Y",OFFSET(Exist_basic_data_start,$BL52,Q$35)+OFFSET(Exist_basic_data_start,$BL52,Q$35+4),OFFSET(Exist_basic_data_start,$BL52,Q$35)) -> 66.19512195 | R52: 0 | S52: 10 | U52: 0 | V52: 277.7777778 | W52: 0.1368292683 | X52: 2.46 | Y52: 2.46 | Z52: 2.46 | AA52: 2.46 | AB52: 2.46 | AC52: 2.46 | AD52: 2.46 | AE52: 2.46 | AF52: 2.46 | AG52: 2.46 | AH52: 2.46 | AI52: 2.46 | AJ52: 2.46 | AK52: 2.46 | AL52: 2.46 | AM52: 2.46 | AN52: 2.46 | AO52: 2.46 | AP52: 2.46 | AQ52: 2.4000006 | AR52: 2.1600003 | AS52: 2.1 | AT52: 2.1 | AU52: 2.1 | AV52: 2.1 | AW52: 2.1 | AX52: 2.1 | AY52: 2.1 | AZ52: 2.1 | BA52: 2.1 | BB52: 2.1 | BC52: 0 | BD52: 0 | BE52: 0 | BF52: 0 | BG52: 0 | BH52: 0 | BI52: 0 | BJ52: 0 | BL52: =MATCH(A52,'Existing capacity basic data'!$B$62:$B$78,0) -> 7
A53: ='Existing capacity basic data'!B69 -> Hydro Existing South Africa | B53: =$B$30&RIGHT(D53,3)&"-E" -> ERHYD-E | C53: Hydro | D53: =$B$6&VLOOKUP(C53,NameConv!$B$4:$C$72,2,FALSE) -> PWRHYD | G53: ELCC | I53: 1 | L53: 1 | M53: 0.8925470731 | N53: 0.9338597015 | P53: 0 | Q53: =IF(Index!$E$9="Y",OFFSET(Exist_basic_data_start,$BL53,Q$35)+OFFSET(Exist_basic_data_start,$BL53,Q$35+4),OFFSET(Exist_basic_data_start,$BL53,Q$35)) -> 1376.420026 | R53: 0 | S53: 20 | U53: 0 | V53: 0 | W53: 0.09865671642 | X53: 0.67 | Y53: 0.67 | Z53: 0.67 | AA53: 0.67 | AB53: 0.67 | AC53: 0.67 | AD53: 0.67 | AE53: 0.67 | AF53: 0.67 | AG53: 0.67 | AH53: 0.67 | AI53: 0.67 | AJ53: 0.67 | AK53: 0.67 | AL53: 0.67 | AM53: 0.67 | AN53: 0.67 | AO53: 0.67 | AP53: 0.67 | AQ53: 0.67 | AR53: 0.67 | AS53: 0.67 | AT53: 0.67 | AU53: 0.67 | AV53: 0.67 | AW53: 0.67 | AX53: 0.67 | AY53: 0.67 | AZ53: 0.67 | BA53: 0.67 | BB53: 0.67 | BC53: 0.67 | BD53: 0.67 | BE53: 0.67 | BF53: 0.67 | BG53: 0.67 | BH53: 0.67 | BI53: 0 | BJ53: 0 | BL53: =MATCH(A53,'Existing capacity basic data'!$B$62:$B$78,0) -> 8
A54: ='Existing capacity basic data'!B70 -> Hydro Existing Region | B54: =$B$30&RIGHT(D54,3)&"HYD-I" -> ERHYD-I | G54: ELCC | I54: 1 | L54: 1 | M54: 0.666 | N54: 0.9 | P54: 0 | Q54: =IF(Index!$E$9="Y",OFFSET(Exist_basic_data_start,$BL54,Q$35)+OFFSET(Exist_basic_data_start,$BL54,Q$35+4),OFFSET(Exist_basic_data_start,$BL54,Q$35)) -> 1367.524504 | R54: 0 | S54: =S53 -> 20 | U54: 0 | V54: 0 | W54: 0.3 | X54: 1.5 | Y54: 1.5 | Z54: 1.5 | AA54: 1.5 | AB54: 1.5 | AC54: 1.5 | AD54: 1.5 | AE54: 1.5 | AF54: 1.5 | AG54: 1.5 | AH54: 1.5 | AI54: 1.5 | AJ54: 1.5 | AK54: 1.5 | AL54: 1.5 | AM54: 1.5 | AN54: 1.5 | AO54: 1.5 | AP54: 1.5 | AQ54: 1.5 | AR54: 1.5 | AS54: 1.5 | AT54: 1.5 | AU54: 1.5 | AV54: 1.5 | AW54: 1.5 | AX54: 1.5 | AY54: 1.5 | AZ54: 1.5 | BA54: 1.5 | BB54: 1.5 | BC54: 1.5 | BD54: 1.5 | BE54: 1.5 | BF54: 1.5 | BG54: 1.5 | BH54: 1.5 | BI54: =BH54 -> 1.5 | BJ54: =BI54 -> 1.5 | BL54: =MATCH(A54,'Existing capacity basic data'!$B$62:$B$78,0) -> 9
A55: ='Existing capacity basic data'!B71 -> Nuclear Existing | B55: =$B$29&RIGHT(D55,3)&"-E" -> ETNUC-E | C55: Nuclear | D55: =$B$6&VLOOKUP(C55,NameConv!$B$4:$C$72,2,FALSE) -> PWRNUC | G55: ELCC | I55: 0.3200152185 | L55: 1 | M55: 0.81038133 | N55: 0.9129 | P55: 2.777777778 | Q55: =IF(Index!$E$9="Y",OFFSET(Exist_basic_data_start,$BL55,Q$35)+OFFSET(Exist_basic_data_start,$BL55,Q$35+4),OFFSET(Exist_basic_data_start,$BL55,Q$35)) -> 4058.163481 | R55: 0 | S55: =S54 -> 20 | U55: 0 | V55: =V46 -> 277.7777778 | W55: 0.93 | X55: 1.86 | Y55: 1.86 | Z55: 1.86 | AA55: 1.86 | AB55: 1.86 | AC55: 1.86 | AD55: 1.86 | AE55: 1.86 | AF55: 1.86 | AG55: 1.86 | AH55: 1.86 | AI55: 1.86 | AJ55: 1.86 | AK55: 1.86 | AL55: 1.86 | AM55: 1.86 | AN55: 1.86 | AO55: 1.86 | AP55: 1.86 | AQ55: 1.86 | AR55: 1.86 | AS55: 1.86 | AT55: 1.86 | AU55: 1.86 | AV55: 1.86 | AW55: 1.86 | AX55: 1.86 | AY55: 1.86 | AZ55: 1.86 | BA55: 1.86 | BB55: 1.86 | BC55: 1.86 | BD55: 1.86 | BE55: 1.86 | BF55: 1.86 | BG55: 0 | BH55: 0 | BI55: 0 | BJ55: 0 | BL55: =MATCH(A55,'Existing capacity basic data'!$B$62:$B$78,0) -> 10
A56: \I: Pumped storage
A57: Pumped Storage Existing pump | B57: EPP-E | C57: Electricity | D57: ELCC | G57: =D58 -> PWREPE | I57: =OFFSET(Exist_basic_data_start,$BL59,I$35) -> 0.73
A58: Pumped Storage Existing dam | B58: EPD-E | C58: Power Sector - PS Dummy Commodity - Existing | D58: =ITEMS_Comm!C13 -> PWREPE | G58: =D58 -> PWREPE | I58: 1
A59: Pumped Storage Existing turbine | B59: EPT-E | C59: Power Sector - PS Dummy Commodity - Existing | D59: =D58 -> PWREPE | G59: ELCC | I59: 1 | L59: =OFFSET(Exist_basic_data_start,$BL59,L$35) -> 1 | M59: =OFFSET(Exist_basic_data_start,$BL59,M$35) -> 0.245 | N59: =OFFSET(Exist_basic_data_start,$BL59,N$35) -> 0.9319746835 | O59: =OFFSET(Exist_basic_data_start,$BL59,O$35) -> 0.15 | P59: =OFFSET(Exist_basic_data_start,$BL59,P$35) -> 3.367088608 | Q59: =IF(Index!$E$9="Y",OFFSET(Exist_basic_data_start,$BL59,Q$35)+OFFSET(Exist_basic_data_start,$BL59,Q$35+4),OFFSET(Exist_basic_data_start,$BL59,Q$35)) -> 1223.081453 | R59: =OFFSET(Exist_basic_data_start,$BL59,R$35) -> 0 | S59: 20 | T59: 20 | U59: 0 | V59: 0 | W59: =OFFSET(Exist_basic_data_start,$BL59,W$35)/1000 -> 0.2156962025 | X59: =Y59 -> 1.58 | Y59: =Z59 -> 1.58 | Z59: =AA59 -> 1.58 | AA59: =AB59 -> 1.58 | AB59: =OFFSET(Exist_basic_data_start,$BL59,AB$35)/1000 -> 1.58 | AC59: 1.58 | AD59: 1.58 | AE59: 1.58 | AF59: 1.58 | AG59: 1.58 | AH59: 1.58 | AI59: 1.58 | AJ59: 1.58 | AK59: 1.58 | AL59: 1.58 | AM59: 1.58 | AN59: 1.58 | AO59: 1.58 | AP59: 1.58 | AQ59: 1.58 | AR59: 1.58 | AS59: 1.58 | AT59: 1.58 | AU59: 1.58 | AV59: 1.58 | AW59: 1.58 | AX59: 1.58 | AY59: 1.58 | AZ59: 1.58 | BA59: 1.58 | BB59: 1.58 | BC59: 1.58 | BD59: 1.58 | BE59: 1.58 | BF59: 1.58 | BG59: 1.58 | BH59: 1.58 | BI59: =BH59 -> 1.58 | BJ59: =BI59 -> 1.58 | BL59: =MATCH('Existing capacity basic data'!B73,'Existing capacity basic data'!$B$62:$B$78,0) -> 12
A60: \I: CHP plants
A61: Biomass/Coal CHPs Existing - Pulp and Paper | B61: EHBIW-E | C61: Biomass Wood | D61: =$B$6&VLOOKUP(C61,NameConv!$B$4:$C$72,2,FALSE) -> PWRBIW | E61: Coal existing | F61: PWRCLE | G61: =IF(Index!$E$2="Y",NT_PWR!$C$8,"IPPELC") -> IPPELC | H61: IPPS | I61: =IF(Index!$E$2="Y",0.45,0.75) -> 0.75 | J61: 0.67 | K61: 2 | L61: =OFFSET(Exist_basic_data_start,$BL61,L$35) -> 1 | M61: 0.624 | N61: 0.91 | P61: =OFFSET(Exist_basic_data_start,$BL61,P$35)/3.6 -> 0 | Q61: =IF(Index!$E$9="Y",OFFSET(Exist_basic_data_start,$BL61,Q$35)+OFFSET(Exist_basic_data_start,$BL61,Q$35+4),OFFSET(Exist_basic_data_start,$BL61,Q$35)) -> 1225.312322 | R61: =OFFSET(Exist_basic_data_start,$BL61,R$35)/3.6 -> 0 | S61: 10 | T61: 10 | U61: 0 | V61: 0 | W61: =OFFSET(Exist_basic_data_start,$BL61,W$35)/1000 -> 0.0194122807 | X61: =Y61 -> 0.228 | Y61: 0.228 | Z61: 0.228 | AA61: 0.228 | AB61: =OFFSET(Exist_basic_data_start,$BL61,AB$35)/1000 -> 0.228 | AC61: 0.228 | AD61: 0.228 | AE61: 0.228 | AF61: 0.228 | AG61: 0.228 | AH61: 0.228 | AI61: 0.228 | AJ61: 0.228 | AK61: 0.228 | AL61: =OFFSET(Exist_basic_data_start,$BL61,AL$35)/1000 -> 0.228 | AM61: 0.228 | AN61: 0.228 | AO61: 0.228 | AP61: 0.228 | AQ61: 0.228 | AR61: 0.228 | AS61: 0.228 | AT61: 0.228 | AU61: 0.228 | AV61: =OFFSET(Exist_basic_data_start,$BL61,AV$35)/1000 -> 0.228 | AW61: 0.228 | AX61: 0.228 | AY61: 0.228 | AZ61: 0.228 | BA61: 0.228 | BB61: 0.228 | BC61: 0.228 | BD61: 0.228 | BE61: 0.228 | BF61: 0.228 | BG61: 0.228 | BH61: 0.228 | BI61: 0 | BJ61: 0 | BL61: =MATCH(A61,'Existing capacity basic data'!$B$62:$B$78,0) -> 13
A62: Biomass Bagasse | B62: EHBIB-E | C62: Biomass bagasse | D62: =$B$6&VLOOKUP(C62,NameConv!$B$4:$C$72,2,FALSE) -> PWRBIB | G62: =IF(Index!$E$2="Y",NT_PWR!$C$8,"IFBELC") -> IFBELC | H62: IFBS | I62: =IF(Index!$E$2="Y",0.45,0.75) -> 0.75 | K62: 2 | L62: 1 | M62: 0.624 | N62: 0.91 | P62: =OFFSET(Exist_basic_data_start,$BL62,P$35)/3.6 -> 8.638888889 | Q62: =IF(Index!$E$9="Y",OFFSET(Exist_basic_data_start,$BL62,Q$35)+OFFSET(Exist_basic_data_start,$BL62,Q$35+4),OFFSET(Exist_basic_data_start,$BL62,Q$35)) -> 2197.312322 | R62: =OFFSET(Exist_basic_data_start,$BL62,R$35)/3.6 -> 58.33333333 | S62: 10 | T62: 10 | U62: 0 | V62: 0 | W62: =OFFSET(Exist_basic_data_start,$BL62,W$35)/1000 -> 0.02 | X62: 0.1 | Y62: 0.1 | Z62: 0.1 | AA62: 0.1 | AB62: 0.1 | AC62: 0.1 | AD62: 0.1 | AE62: 0.1 | AF62: 0.1 | AG62: 0.1 | AH62: 0.1 | AI62: 0.1 | AJ62: 0.1 | AK62: 0.1 | AL62: 0.1 | AM62: 0.1 | AN62: 0.1 | AO62: 0.1 | AP62: 0.1 | AQ62: 0.1 | AR62: 0.1 | AS62: 0.1 | AT62: 0.1 | AU62: 0.1 | AV62: 0.1 | AW62: 0.1 | AX62: 0.1 | AY62: 0.1 | AZ62: 0.1 | BA62: 0.1 | BB62: 0.1 | BC62: 0.1 | BD62: 0.1 | BE62: 0.1 | BF62: 0.1 | BG62: 0.1 | BH62: 0.1 | BI62: 0 | BJ62: 0 | BL62: =MATCH(A62,'Existing capacity basic data'!$B$62:$B$78,0) -> 14
A63: Gas CHPs Existing | B63: EHBIG-E | C63: Biogas | D63: =$B$6&VLOOKUP(C63,NameConv!$B$4:$C$72,2,FALSE) -> PWRBIG | G63: =IF(Index!$E$2="Y",NT_PWR!$C$8,"ELC") -> ELC | H63: IPPR | I63: =IF(Index!$E$2="Y",0.45,0.75) -> 0.75 | K63: 2 | L63: 1 | M63: 0.624 | N63: 0.91 | P63: =OFFSET(Exist_basic_data_start,$BL63,P$35)/3.6 -> 0 | Q63: =IF(Index!$E$9="Y",OFFSET(Exist_basic_data_start,$BL63,Q$35)+OFFSET(Exist_basic_data_start,$BL63,Q$35+4),OFFSET(Exist_basic_data_start,$BL63,Q$35)) -> 1225.312322 | R63: =OFFSET(Exist_basic_data_start,$BL63,R$35)/3.6 -> 0 | S63: =S46 -> 10 | T63: =T46 -> -1.795627163 | U63: =U46 -> 0 | V63: =V46 -> 277.7777778 | W63: =OFFSET(Exist_basic_data_start,$BL63,W$35)/1000 -> 0.0095 | X63: 0.099 | Y63: 0.099 | Z63: 0.099 | AA63: 0.099 | AB63: 0.099 | AC63: 0.099 | AD63: 0.099 | AE63: 0.099 | AF63: 0.099 | AG63: 0.099 | AH63: 0.099 | AI63: 0.099 | AJ63: 0.099 | AK63: 0.099 | AL63: 0.099 | AM63: 0.099 | AN63: 0.099 | AO63: 0.099 | AP63: 0.099 | AQ63: 0.099 | AR63: 0.099 | AS63: 0.099 | AT63: 0.099 | AU63: 0.099 | AV63: 0.099 | AW63: 0.099 | AX63: 0.099 | AY63: 0.099 | AZ63: 0.099 | BA63: 0.099 | BB63: 0.099 | BC63: 0.099 | BD63: 0.099 | BE63: 0.099 | BF63: 0.099 | BG63: 0.099 | BH63: 0.099 | BI63: 0 | BJ63: 0 | BL63: =MATCH(A63,'Existing capacity basic data'!$B$62:$B$78,0) -> 15

Sheet ITEMS_Teche
A1: =IF(OR(Index!$E$3="Y",Index!E14<>"N"),"ITEMS",) -> ITEMS | B1: REGION1 | H1: *
A2: * | H2: items count
A3: *
A4: *
A5: *
A6: *
A7: * | B7: Comp | C7: Name | D7: Description | E7: Unit(s) | F7: Set Memberships | G7: Comment
A8: * | B8: Sector Fuels Are in TCH_SUP
A9: * | B9: Existing Power Plants
B10: =IF(A10="*","","T") -> T | C10: =IF(A10="*","",PWR!B46) -> ETCLEPFW-E | D10: =IF(A10="*","",PWR!A46) -> Coal PF Eskom Large Existing | E10: =IF(A10="*","","PJ,GW") -> PJ,GW | F10: PRC,ELE,WEEKLY
B11: T | C11: =IF(A11="*","",PWR!B47) -> ETCLEPFD-E | D11: =IF(A11="*","",PWR!A47) -> Coal PF Eskom Large Dry Existing | E11: =IF(A11="*","","PJ,GW") -> PJ,GW | F11: PRC,ELE,WEEKLY
B12: T | C12: =IF(A12="*","",PWR!B48) -> ETCLEPFS-E | D12: =IF(A12="*","",PWR!A48) -> Coal PF Eskom Small Existing | E12: =IF(A12="*","","PJ,GW") -> PJ,GW | F12: PRC,ELE,WEEKLY
B13: T | C13: =IF(A13="*","",PWR!B49) -> ETCLEPFM-E | D13: =IF(A13="*","",PWR!A49) -> Coal PF Munic Existing | E13: PJ,GW | F13: PRC,ELE,WEEKLY
B14: T | C14: =IF(A14="*","",PWR!B50) -> ETCLEPFSS-E | D14: =IF(A14="*","",PWR!A50) -> Sasol SSF | E14: PJ,GW | F14: PRC,ELE,WEEKLY
B15: =IF(A15="*","","T") -> T | C15: =IF(A15="*","",PWR!B51) -> ETCLEPFSI-E | D15: =IF(A15="*","",PWR!A51) -> Sasol Infrachem | E15: =IF(A15="*","","PJ,GW") -> PJ,GW | F15: PRC,ELE,WEEKLY
B16: T | C16: =IF(A16="*","",PWR!B52) -> ETODSGT-E | D16: =IF(A16="*","",PWR!A52) -> OCGT liquid fuels Existing | E16: PJ,GW | F16: =IF(A16="*","","PRC,ELE,DAYNITE") -> PRC,ELE,DAYNITE
B17: T | C17: =IF(A17="*","",PWR!B53) -> ERHYD-E | D17: =IF(A17="*","",PWR!A53) -> Hydro Existing South Africa | E17: PJ,GW | F17: =IF(A17="*","","PRC,ELE,DAYNITE") -> PRC,ELE,DAYNITE
B18: T | C18: =IF(A18="*","",PWR!B54) -> ERHYD-I | D18: =IF(A18="*","",PWR!A54) -> Hydro Existing Region | E18: =IF(A18="*","","PJ,GW") -> PJ,GW | F18: =IF(A18="*","","PRC,ELE,DAYNITE") -> PRC,ELE,DAYNITE
B19: T | C19: =IF(A19="*","",PWR!B55) -> ETNUC-E | D19: =IF(A19="*","",PWR!A55) -> Nuclear Existing | E19: PJ,GW | F19: PRC,ELE,SEASON
A20: * | B20: Transmission Line
B21: =IF(A21="*","","T") -> T | C21: ETRANS | D21: Transmission | E21: =IF(A21="*","","PJ,GW") -> PJ,GW | F21: PRC,PRE,DAYNITE
A22: * | B22: Existing Pump Storage Plants
B23: =IF(A23="*","","T") -> T | C23: =IF(A23="*","",PWR!B57) -> EPP-E | D23: =IF(A23="*","",PWR!A57) -> Pumped Storage Existing pump | E23: =IF(A23="*","","PJ,GW") -> PJ,GW | F23: PRC,ELE,DAYNITE
B24: =IF(A24="*","","T") -> T | C24: =IF(A24="*","",PWR!B58) -> EPD-E | D24: =IF(A24="*","",PWR!A58) -> Pumped Storage Existing dam | E24: PJ,PJa | F24: PRC,ELE,DAYNITE,NST
B25: =IF(A25="*","","T") -> T | C25: =IF(A25="*","",PWR!B59) -> EPT-E | D25: =IF(A25="*","",PWR!A59) -> Pumped Storage Existing turbine | E25: =IF(A25="*","","PJ,GW") -> PJ,GW | F25: PRC,ELE,DAYNITE
A26: * | B26: Existing CHP Plants
A27: * | B27: =IF(A27="*","","T") ->  | C27: =PWR!B61 -> EHBIW-E | D27: =PWR!A61 -> Biomass/Coal CHPs Existing - Pulp and Paper | E27: =IF(A27="*","","PJ,GW") ->  | F27: PRC,CHP,DAYNITE
A28: * | B28: =IF(A28="*","","T") ->  | C28: =PWR!B62 -> EHBIB-E | D28: =PWR!A62 -> Biomass Bagasse | E28: =IF(A28="*","","PJ,GW") ->  | F28: PRC,CHP,DAYNITE
A29: * | B29: =IF(A29="*","","T") ->  | C29: =PWR!B63 -> EHBIG-E | D29: =PWR!A63 -> Gas CHPs Existing | E29: =IF(A29="*","","PJ,GW") ->  | F29: PRC,CHP,DAYNITE

Sheet TS ETech
A1: =IF(Index!$E$3="Y","TS DATA","") -> TS DATA | B1: REGION1 | AX1: * | AY1: * | AZ1: *
A2: * | AX2: Parameter # | AY2: row # | AZ2: Col #
A3: *
A4: * | AX4: gap needs to be in all ts
A5: *
A6: *
A7: * | B7: Parameter | C7: Arg1 | D7: Arg2 | E7: Arg3 | F7: Arg4 | G7: Arg5 | H7: Arg6 | I7: I/E Opt or Value | J7: 2006 | K7: =J7+1 -> 2007 | L7: =K7+1 -> 2008 | M7: 2009 | N7: 2010 | O7: 2011 | P7: 2012 | Q7: 2013 | R7: 2014 | S7: 2015 | T7: 2016 | U7: 2017 | V7: 2018 | W7: 2019 | X7: 2020 | Y7: 2021 | Z7: 2022 | AA7: 2023 | AB7: =AA7+1 -> 2024 | AC7: 2025 | AD7: 2026 | AE7: 2027 | AF7: 2028 | AG7: 2029 | AH7: 2030 | AI7: =AH7+1 -> 2031 | AJ7: 2032 | AK7: 2033 | AL7: 2034 | AM7: 2035 | AN7: 2036 | AO7: 2037 | AP7: 2038 | AQ7: 2039 | AR7: =AM7+5 -> 2040 | AS7: =AR7+5 -> 2045 | AT7: =AS7+5 -> 2050 | AU7: =AT7+10 -> 2060 | AV7: =AU7+10 -> 2070
A8: *
A9: * | B9: 2 | C9: 3 | D9: =C9+1 -> 4 | E9: =D9+1 -> 5 | F9: 6 | G9: 7 | H9: 8 | I9: 9 | J9: 10 | K9: 11 | L9: 12 | M9: 13 | N9: 14 | O9: 15 | P9: 16 | Q9: 17 | R9: 18 | S9: 19 | T9: 20 | U9: 21 | V9: 22 | W9: 23 | X9: 24 | Y9: 25 | Z9: 26 | AA9: 27 | AB9: 28 | AC9: 29 | AD9: 30 | AE9: 31 | AF9: 32 | AG9: 33 | AH9: 34 | AI9: =AH9+1 -> 35 | AJ9: =AI9+1 -> 36 | AK9: =AJ9+1 -> 37 | AL9: =AK9+1 -> 38 | AM9: =AH9+1 -> 35 | AN9: 36 | AO9: 37 | AP9: 38 | AQ9: 39 | AR9: 36 | AS9: 37 | AT9: 38 | AU9: 39 | AV9: =AU9+1 -> 40
A10: *1 | B10: ACT_EFF | C10: Process | D10: - | E10: #ACTGRP | F10: - | G10: #ANNUAL | H10: - | I10: #0 | J10: =PWR!I39 -> Efficiency | AZ10: =PWR!$H$34 -> 0
A11: *2 | B11: NCAP_PKCNT | C11: Process | D11: - | E11: - | F11: - | G11: #ANNUAL | H11: - | I11: #0 | J11: =PWR!L39 -> Contribution to Peak | AZ11: =PWR!$I$34 -> 0
A12: *3 | B12: NCAP_AF | C12: Process | D12: - | E12: - | F12: - | G12: #ANNUAL | H12: #UP | I12: #0 | J12: =PWR!N39 -> Maximum availability | AZ12: =PWR!$I$34 -> 0
A13: *4 | B13: NCAP_AFA | C13: Process | D13: - | E13: - | F13: - | G13: - | H13: #UP | I13: #0 | J13: =PWR!M39 -> Availability factor | AZ13: =PWR!#REF! -> 
A14: *5 | B14: NCAP_AFA | C14: Process | D14: - | E14: - | F14: - | G14: - | H14: #LO | I14: #0 | J14: ='Existing capacity basic data'!V6 -> Minimum utilisation | AZ14: =PWR!#REF! -> 
A15: *6 | B15: NCAP_FOM | C15: Process | D15: - | E15: - | F15: - | G15: - | H15: - | I15: #0 | J15: =PWR!Q39 -> Fixed Costs | AZ15: =PWR!$L$34 -> 0
A16: *7 | B16: ACT_COST | C16: Process | D16: - | E16: - | F16: - | G16: - | H16: - | I16: #0 | J16: =PWR!P39 -> Variable Costs | AZ16: =PWR!$M$34 -> 0
A17: *8 | B17: NCAP_BND | C17: Process | D17: - | E17: - | F17: - | G17: - | H17: #UP | I17: #5 | J17: 0 | M17: (fix properly) | AZ17: 100
A18: *9 | B18: PRC_ACTFLO | C18: Process | D18: - | E18: #WAT | F18: - | G18: - | H18: - | I18: #0 | J18: =PWR!R39 -> Water use | AZ18: =PWR!N33 -> 0
A19: *10 | B19: FLO_EMIS | C19: Process | D19: #PWRENV | E19: #ACTGRP | F19: - | G19: #ANNUAL | H19: - | I19: #0 | J19: =PWR!V39 -> Environmental Levy | AZ19: =PWR!N34 -> 0
A20: *11 | B20: NCAP_TLIFE | C20: Process | D20: - | E20: - | F20: - | G20: - | H20: - | I20: #0 | J20: =PWR!S39 -> Life (of life extensions) | M20: (fix properly) | AZ20: 100
A21: *12 | B21: PRC_RESID | C21: Process | D21: - | E21: - | F21: - | G21: - | H21: - | I21: #0 | J21: =PWR!X39 -> Residual Capacity | AZ21: =PWR!N34 -> 0
A22: *
A23: * | B23: Parameter | C23: Arg1 | D23: Arg2 | E23: Arg3 | F23: Arg4 | G23: Arg5 | H23: Arg6 | I23: I/E Opt or Value | J23: 2006 | K23: =J23+1 -> 2007 | L23: 2008 | M23: 2009 | N23: 2010 | O23: 2011 | P23: 2012 | Q23: 2013 | R23: 2014 | S23: 2015 | T23: 2016 | U23: 2017 | V23: 2018 | W23: 2019 | X23: 2020 | Y23: 2021 | Z23: 2022 | AA23: 2023 | AB23: 2024 | AC23: 2025 | AD23: 2026 | AE23: 2027 | AF23: 2028 | AG23: 2029 | AH23: 2030 | AI23: =AH23+1 -> 2031 | AJ23: =AI23+1 -> 2032 | AK23: =AJ23+1 -> 2033 | AL23: =AK23+1 -> 2034 | AM23: =AH23+5 -> 2035 | AN23: 2036 | AO23: 2037 | AP23: 2038 | AQ23: 2039 | AR23: 2040 | AS23: =AR23+5 -> 2045 | AT23: =AS23+5 -> 2050 | AU23: =AT23+10 -> 2060 | AV23: =AU23+10 -> 2070
A24: *
B25: =IF(A25="*","",VLOOKUP("*"&AX25,$A$9:$B$21,2,FALSE)) -> ACT_EFF | C25: =OFFSET(epp_start,AY25,0) -> ETCLEPFW-E | D25: =IF(VLOOKUP("*"&$AX25,par_TS_ETech,D$9,FALSE)="-","-",IF(LEFT(VLOOKUP("*"&$AX25,par_TS_ETech,D$9,FALSE),1)="#",RIGHT(VLOOKUP("*"&$AX25,par_TS_ETech,D$9,FALSE),LEN(VLOOKUP("*"&$AX25,par_TS_ETech,D$9,FALSE))-1),VLOOKUP($C25,etech_data,MATCH(VLOOKUP("*"&$AX25,par_TS_ETech,D$9,FALSE),etech_parameters,0),FALSE))) -> - | E25: ACTGRP | F25: - | G25: ANNUAL | H25: - | I25: 0 | J25: =IFERROR(VLOOKUP($C25,etech_data,MATCH(VLOOKUP("*"&$AX25,$A$10:$J$21,$J$9,FALSE)&J$23,etech_parameters,0),FALSE),"0") -> 0.3452487314 | K25: =IFERROR(VLOOKUP($C25,etech_data,MATCH(VLOOKUP($B25,$B$10:$J$21,$J$9-1,FALSE)&K$23,etech_parameters,0),FALSE),"") ->  | U25: =IFERROR(VLOOKUP($C25,etech_data,MATCH(VLOOKUP($B25,$B$10:$J$21,$J$9-1,FALSE)&U$23,etech_parameters,0),FALSE),"") ->  | AE25: =IFERROR(VLOOKUP($C25,etech_data,MATCH(VLOOKUP($B25,$B$10:$J$21,$J$9-1,FALSE)&AE$23,etech_parameters,0),FALSE),"") ->  | AO25: =IFERROR(VLOOKUP($C25,etech_data,MATCH(VLOOKUP($B25,$B$10:$J$21,$J$9-1,FALSE)&AO$23,etech_parameters,0),FALSE),"") ->  | AX25: 1 | AY25: 1
B26: ACT_EFF | C26: ETCLEPFD-E | D26: - | E26: ACTGRP | F26: - | G26: ANNUAL | H26: - | I26: 0 | J26: 0.3357487063 | AX26: =IF(AY25=PWR!$B$44,AX25+1,AX25) -> 1 | AY26: =IF(AX26=AX25,AY25+1,1) -> 2
B27: ACT_EFF | C27: ETCLEPFS-E | D27: - | E27: ACTGRP | F27: - | G27: ANNUAL | H27: - | I27: 0 | J27: 0.2864610458 | AX27: =IF(AY26=PWR!$B$44,AX26+1,AX26) -> 1 | AY27: =IF(AX27=AX26,AY26+1,1) -> 3
B28: ACT_EFF | C28: ETCLEPFM-E | D28: - | E28: ACTGRP | F28: - | G28: ANNUAL | H28: - | I28: 0 | J28: 0.2454540352 | AX28: =IF(AY27=PWR!$B$44,AX27+1,AX27) -> 1 | AY28: 4
B29: ACT_EFF | C29: ETCLEPFSS-E | D29: - | E29: ACTGRP | F29: - | G29: ANNUAL | H29: - | I29: 0 | J29: 0.2542903551 | AX29: =IF(AY28=PWR!$B$44,AX28+1,AX28) -> 1 | AY29: 5
B30: ACT_EFF | C30: ETCLEPFSI-E | D30: - | E30: ACTGRP | F30: - | G30: ANNUAL | H30: - | I30: 0 | J30: 0.2542903551 | AX30: =IF(AY29=PWR!$B$44,AX29+1,AX29) -> 1 | AY30: 6
B31: ACT_EFF | C31: ETODSGT-E | D31: - | E31: ACTGRP | F31: - | G31: ANNUAL | H31: - | I31: 0 | J31: 0.3227102459 | AX31: =IF(AY30=PWR!$B$44,AX30+1,AX30) -> 1 | AY31: 7
B32: ACT_EFF | C32: ERHYD-E | D32: - | E32: ACTGRP | F32: - | G32: ANNUAL | H32: - | I32: 0 | J32: 1 | AX32: =IF(AY31=PWR!$B$44,AX31+1,AX31) -> 1 | AY32: 8
B33: ACT_EFF | C33: ERHYD-I | D33: - | E33: ACTGRP | F33: - | G33: ANNUAL | H33: - | I33: 0 | J33: 1 | AX33: =IF(AY32=PWR!$B$44,AX32+1,AX32) -> 1 | AY33: 9
B34: ACT_EFF | C34: ETNUC-E | D34: - | E34: ACTGRP | F34: - | G34: ANNUAL | H34: - | I34: 0 | J34: 0.3200152185 | AX34: =IF(AY33=PWR!$B$44,AX33+1,AX33) -> 1 | AY34: 10
B35: NCAP_PKCNT | C35: ETCLEPFW-E | D35: =IF(VLOOKUP("*"&$AX35,par_TS_ETech,D$9,FALSE)="-","-",IF(LEFT(VLOOKUP("*"&$AX35,par_TS_ETech,D$9,FALSE),1)="#",RIGHT(VLOOKUP("*"&$AX35,par_TS_ETech,D$9,FALSE),LEN(VLOOKUP("*"&$AX35,par_TS_ETech,D$9,FALSE))-1),VLOOKUP($C35,etech_data,MATCH(VLOOKUP("*"&$AX35,par_TS_ETech,D$9,FALSE),etech_parameters,0),FALSE))) -> - | E35: - | F35: - | G35: ANNUAL | H35: - | I35: 0 | J35: 1 | K35: =IFERROR(VLOOKUP($C35,etech_data,MATCH(VLOOKUP($B35,$B$10:$J$21,$J$9-1,FALSE)&K$23,etech_parameters,0),FALSE),"") ->  | U35: =IFERROR(VLOOKUP($C35,etech_data,MATCH(VLOOKUP($B35,$B$10:$J$21,$J$9-1,FALSE)&U$23,etech_parameters,0),FALSE),"") ->  | AE35: =IFERROR(VLOOKUP($C35,etech_data,MATCH(VLOOKUP($B35,$B$10:$J$21,$J$9-1,FALSE)&AE$23,etech_parameters,0),FALSE),"") ->  | AO35: =IFERROR(VLOOKUP($C35,etech_data,MATCH(VLOOKUP($B35,$B$10:$J$21,$J$9-1,FALSE)&AO$23,etech_parameters,0),FALSE),"") ->  | AX35: =IF(AY34=PWR!$B$44,AX34+1,AX34) -> 2 | AY35: 1
B36: NCAP_PKCNT | C36: ETCLEPFD-E | D36: - | E36: - | F36: - | G36: ANNUAL | H36: - | I36: 0 | J36: 1 | AX36: =IF(AY35=PWR!$B$44,AX35+1,AX35) -> 2 | AY36: 2
B37: NCAP_PKCNT | C37: ETCLEPFS-E | D37: - | E37: - | F37: - | G37: ANNUAL | H37: - | I37: 0 | J37: 1 | AX37: =IF(AY36=PWR!$B$44,AX36+1,AX36) -> 2 | AY37: 3
B38: NCAP_PKCNT | C38: ETCLEPFM-E | D38: - | E38: - | F38: - | G38: ANNUAL | H38: - | I38: 0 | J38: 1 | AX38: =IF(AY37=PWR!$B$44,AX37+1,AX37) -> 2 | AY38: 4
B39: NCAP_PKCNT | C39: ETCLEPFSS-E | D39: - | E39: - | F39: - | G39: ANNUAL | H39: - | I39: 0 | J39: 1 | AX39: =IF(AY38=PWR!$B$44,AX38+1,AX38) -> 2 | AY39: 5
B40: NCAP_PKCNT | C40: ETCLEPFSI-E | D40: - | E40: - | F40: - | G40: ANNUAL | H40: - | I40: 0 | J40: 1 | AX40: =IF(AY39=PWR!$B$44,AX39+1,AX39) -> 2 | AY40: 6
B41: NCAP_PKCNT | C41: ETODSGT-E | D41: - | E41: - | F41: - | G41: ANNUAL | H41: - | I41: 0 | J41: 1 | AX41: =IF(AY40=PWR!$B$44,AX40+1,AX40) -> 2 | AY41: 7
B42: NCAP_PKCNT | C42: ERHYD-E | D42: - | E42: - | F42: - | G42: ANNUAL | H42: - | I42: 0 | J42: 1 | AX42: =IF(AY41=PWR!$B$44,AX41+1,AX41) -> 2 | AY42: 8
B43: NCAP_PKCNT | C43: ERHYD-I | D43: - | E43: - | F43: - | G43: ANNUAL | H43: - | I43: 0 | J43: 1 | AX43: =IF(AY42=PWR!$B$44,AX42+1,AX42) -> 2 | AY43: 9
B44: NCAP_PKCNT | C44: ETNUC-E | D44: - | E44: - | F44: - | G44: ANNUAL | H44: - | I44: 0 | J44: 1 | AX44: =IF(AY43=PWR!$B$44,AX43+1,AX43) -> 2 | AY44: 10
B45: NCAP_AF | C45: ETCLEPFW-E | D45: =IF(VLOOKUP("*"&$AX45,par_TS_ETech,D$9,FALSE)="-","-",IF(LEFT(VLOOKUP("*"&$AX45,par_TS_ETech,D$9,FALSE),1)="#",RIGHT(VLOOKUP("*"&$AX45,par_TS_ETech,D$9,FALSE),LEN(VLOOKUP("*"&$AX45,par_TS_ETech,D$9,FALSE))-1),VLOOKUP($C45,etech_data,MATCH(VLOOKUP("*"&$AX45,par_TS_ETech,D$9,FALSE),etech_parameters,0),FALSE))) -> - | E45: - | F45: - | G45: ANNUAL | H45: UP | I45: 0 | J45: 0.9 | K45: =IFERROR(VLOOKUP($C45,etech_data,MATCH(VLOOKUP($B45,$B$10:$J$21,$J$9-1,FALSE)&K$23,etech_parameters,0),FALSE),"") ->  | U45: =IFERROR(VLOOKUP($C45,etech_data,MATCH(VLOOKUP($B45,$B$10:$J$21,$J$9-1,FALSE)&U$23,etech_parameters,0),FALSE),"") ->  | AE45: =IFERROR(VLOOKUP($C45,etech_data,MATCH(VLOOKUP($B45,$B$10:$J$21,$J$9-1,FALSE)&AE$23,etech_parameters,0),FALSE),"") ->  | AO45: =IFERROR(VLOOKUP($C45,etech_data,MATCH(VLOOKUP($B45,$B$10:$J$21,$J$9-1,FALSE)&AO$23,etech_parameters,0),FALSE),"") ->  | AX45: =IF(AY44=PWR!$B$44,AX44+1,AX44) -> 3 | AY45: 1
B46: NCAP_AF | C46: ETCLEPFD-E | D46: - | E46: - | F46: - | G46: ANNUAL | H46: UP | I46: 0 | J46: 0.9 | AX46: =IF(AY45=PWR!$B$44,AX45+1,AX45) -> 3 | AY46: 2
B47: NCAP_AF | C47: ETCLEPFS-E | D47: - | E47: - | F47: - | G47: ANNUAL | H47: UP | I47: 0 | J47: 0.9 | AX47: =IF(AY46=PWR!$B$44,AX46+1,AX46) -> 3 | AY47: 3
B48: NCAP_AF | C48: ETCLEPFM-E | D48: - | E48: - | F48: - | G48: ANNUAL | H48: UP | I48: 0 | J48: 0.9 | AX48: =IF(AY47=PWR!$B$44,AX47+1,AX47) -> 3 | AY48: 4
B49: NCAP_AF | C49: ETCLEPFSS-E | D49: - | E49: - | F49: - | G49: ANNUAL | H49: UP | I49: 0 | J49: 0.9 | AX49: =IF(AY48=PWR!$B$44,AX48+1,AX48) -> 3 | AY49: 5
B50: NCAP_AF | C50: ETCLEPFSI-E | D50: - | E50: - | F50: - | G50: ANNUAL | H50: UP | I50: 0 | J50: 0.9 | AX50: =IF(AY49=PWR!$B$44,AX49+1,AX49) -> 3 | AY50: 6
B51: NCAP_AF | C51: ETODSGT-E | D51: - | E51: - | F51: - | G51: ANNUAL | H51: UP | I51: 0 | J51: 0.9486707317 | AX51: =IF(AY50=PWR!$B$44,AX50+1,AX50) -> 3 | AY51: 7
B52: NCAP_AF | C52: ERHYD-E | D52: - | E52: - | F52: - | G52: ANNUAL | H52: UP | I52: 0 | J52: 0.9338597015 | AX52: =IF(AY51=PWR!$B$44,AX51+1,AX51) -> 3 | AY52: 8
B53: NCAP_AF | C53: ERHYD-I | D53: - | E53: - | F53: - | G53: ANNUAL | H53: UP | I53: 0 | J53: 0.9 | AX53: =IF(AY52=PWR!$B$44,AX52+1,AX52) -> 3 | AY53: 9
B54: NCAP_AF | C54: ETNUC-E | D54: - | E54: - | F54: - | G54: ANNUAL | H54: UP | I54: 0 | J54: 0.9129 | AX54: =IF(AY53=PWR!$B$44,AX53+1,AX53) -> 3 | AY54: 10
B55: NCAP_AFA | C55: ETCLEPFW-E | D55: =IF(VLOOKUP("*"&$AX55,par_TS_ETech,D$9,FALSE)="-","-",IF(LEFT(VLOOKUP("*"&$AX55,par_TS_ETech,D$9,FALSE),1)="#",RIGHT(VLOOKUP("*"&$AX55,par_TS_ETech,D$9,FALSE),LEN(VLOOKUP("*"&$AX55,par_TS_ETech,D$9,FALSE))-1),VLOOKUP($C55,etech_data,MATCH(VLOOKUP("*"&$AX55,par_TS_ETech,D$9,FALSE),etech_parameters,0),FALSE))) -> - | E55: - | F55: - | G55: - | H55: UP | I55: 0 | J55: 0.81 | K55: =IFERROR(VLOOKUP($C55,etech_data,MATCH(VLOOKUP($B55,$B$10:$J$21,$J$9-1,FALSE)&K$23,etech_parameters,0),FALSE),"") ->  | U55: =IFERROR(VLOOKUP($C55,etech_data,MATCH(VLOOKUP($B55,$B$10:$J$21,$J$9-1,FALSE)&U$23,etech_parameters,0),FALSE),"") ->  | AE55: =IFERROR(VLOOKUP($C55,etech_data,MATCH(VLOOKUP($B55,$B$10:$J$21,$J$9-1,FALSE)&AE$23,etech_parameters,0),FALSE),"") ->  | AO55: =IFERROR(VLOOKUP($C55,etech_data,MATCH(VLOOKUP($B55,$B$10:$J$21,$J$9-1,FALSE)&AO$23,etech_parameters,0),FALSE),"") ->  | AX55: =IF(AY54=PWR!$B$44,AX54+1,AX54) -> 4 | AY55: 1
B56: NCAP_AFA | C56: ETCLEPFD-E | D56: - | E56: - | F56: - | G56: - | H56: UP | I56: 0 | J56: 0.81 | AX56: =IF(AY55=PWR!$B$44,AX55+1,AX55) -> 4 | AY56: 2
B57: =IF(A57="*","",VLOOKUP("*"&AX57,$A$9:$B$21,2,FALSE)) -> NCAP_AFA | C57: =OFFSET(epp_start,AY57,0) -> ETCLEPFS-E | D57: - | E57: - | F57: - | G57: - | H57: UP | I57: 0 | J57: =IFERROR(VLOOKUP($C57,etech_data,MATCH(VLOOKUP("*"&$AX57,$A$10:$J$21,$J$9,FALSE)&J$23,etech_parameters,0),FALSE),"0") -> 0.81 | AX57: =IF(AY56=PWR!$B$44,AX56+1,AX56) -> 4 | AY57: 3
B58: NCAP_AFA | C58: ETCLEPFM-E | D58: - | E58: - | F58: - | G58: - | H58: UP | I58: 0 | J58: 0.81 | AX58: =IF(AY57=PWR!$B$44,AX57+1,AX57) -> 4 | AY58: 4
B59: NCAP_AFA | C59: ETCLEPFSS-E | D59: - | E59: - | F59: - | G59: - | H59: UP | I59: 0 | J59: 0.81 | AX59: =IF(AY58=PWR!$B$44,AX58+1,AX58) -> 4 | AY59: 5
B60: NCAP_AFA | C60: ETCLEPFSI-E | D60: - | E60: - | F60: - | G60: - | H60: UP | I60: 0 | J60: 0.81 | AX60: =IF(AY59=PWR!$B$44,AX59+1,AX59) -> 4 | AY60: 6
B61: NCAP_AFA | C61: ETODSGT-E | D61: - | E61: - | F61: - | G61: - | H61: UP | I61: 0 | J61: 0.09 | AX61: =IF(AY60=PWR!$B$44,AX60+1,AX60) -> 4 | AY61: 7
B62: NCAP_AFA | C62: ERHYD-E | D62: - | E62: - | F62: - | G62: - | H62: UP | I62: 0 | J62: 0.8925470731 | AX62: =IF(AY61=PWR!$B$44,AX61+1,AX61) -> 4 | AY62: 8
B63: NCAP_AFA | C63: ERHYD-I | D63: - | E63: - | F63: - | G63: - | H63: UP | I63: 0 | J63: 0.666 | AX63: =IF(AY62=PWR!$B$44,AX62+1,AX62) -> 4 | AY63: 9
B64: NCAP_AFA | C64: ETNUC-E | D64: - | E64: - | F64: - | G64: - | H64: UP | I64: 0 | J64: 0.81038133 | AX64: =IF(AY63=PWR!$B$44,AX63+1,AX63) -> 4 | AY64: 10
B65: NCAP_AFA | C65: ETCLEPFW-E | D65: =IF(VLOOKUP("*"&$AX65,par_TS_ETech,D$9,FALSE)="-","-",IF(LEFT(VLOOKUP("*"&$AX65,par_TS_ETech,D$9,FALSE),1)="#",RIGHT(VLOOKUP("*"&$AX65,par_TS_ETech,D$9,FALSE),LEN(VLOOKUP("*"&$AX65,par_TS_ETech,D$9,FALSE))-1),VLOOKUP($C65,etech_data,MATCH(VLOOKUP("*"&$AX65,par_TS_ETech,D$9,FALSE),etech_parameters,0),FALSE))) -> - | E65: - | F65: - | G65: - | H65: LO | I65: 0 | K65: =IFERROR(VLOOKUP($C65,etech_data,MATCH(VLOOKUP($B65,$B$10:$J$21,$J$9-1,FALSE)&K$23,etech_parameters,0),FALSE),"") ->  | U65: =IFERROR(VLOOKUP($C65,etech_data,MATCH(VLOOKUP($B65,$B$10:$J$21,$J$9-1,FALSE)&U$23,etech_parameters,0),FALSE),"") ->  | AE65: =IFERROR(VLOOKUP($C65,etech_data,MATCH(VLOOKUP($B65,$B$10:$J$21,$J$9-1,FALSE)&AE$23,etech_parameters,0),FALSE),"") ->  | AO65: =IFERROR(VLOOKUP($C65,etech_data,MATCH(VLOOKUP($B65,$B$10:$J$21,$J$9-1,FALSE)&AO$23,etech_parameters,0),FALSE),"") ->  | AX65: =IF(AY64=PWR!$B$44,AX64+1,AX64) -> 5 | AY65: 1
B66: NCAP_AFA | C66: ETCLEPFD-E | D66: - | E66: - | F66: - | G66: - | H66: LO | I66: 0 | AX66: =IF(AY65=PWR!$B$44,AX65+1,AX65) -> 5 | AY66: 2
B67: NCAP_AFA | C67: ETCLEPFS-E | D67: - | E67: - | F67: - | G67: - | H67: LO | I67: 0 | AX67: =IF(AY66=PWR!$B$44,AX66+1,AX66) -> 5 | AY67: 3
B68: NCAP_AFA | C68: ETCLEPFM-E | D68: - | E68: - | F68: - | G68: - | H68: LO | I68: 0 | AX68: =IF(AY67=PWR!$B$44,AX67+1,AX67) -> 5 | AY68: 4
B69: NCAP_AFA | C69: ETCLEPFSS-E | D69: - | E69: - | F69: - | G69: - | H69: LO | I69: 0 | AX69: =IF(AY68=PWR!$B$44,AX68+1,AX68) -> 5 | AY69: 5
B70: NCAP_AFA | C70: ETCLEPFSI-E | D70: - | E70: - | F70: - | G70: - | H70: LO | I70: 0 | AX70: =IF(AY69=PWR!$B$44,AX69+1,AX69) -> 5 | AY70: 6
B71: NCAP_AFA | C71: ETODSGT-E | D71: - | E71: - | F71: - | G71: - | H71: LO | I71: 0 | J71: 0.05 | AX71: =IF(AY70=PWR!$B$44,AX70+1,AX70) -> 5 | AY71: 7
B72: NCAP_AFA | C72: ERHYD-E | D72: - | E72: - | F72: - | G72: - | H72: LO | I72: 0 | AX72: =IF(AY71=PWR!$B$44,AX71+1,AX71) -> 5 | AY72: 8
B73: NCAP_AFA | C73: ERHYD-I | D73: - | E73: - | F73: - | G73: - | H73: LO | I73: 0 | AX73: =IF(AY72=PWR!$B$44,AX72+1,AX72) -> 5 | AY73: 9
B74: NCAP_AFA | C74: ETNUC-E | D74: - | E74: - | F74: - | G74: - | H74: LO | I74: 0 | AX74: =IF(AY73=PWR!$B$44,AX73+1,AX73) -> 5 | AY74: 10
B75: NCAP_FOM | C75: ETCLEPFW-E | D75: =IF(VLOOKUP("*"&$AX75,par_TS_ETech,D$9,FALSE)="-","-",IF(LEFT(VLOOKUP("*"&$AX75,par_TS_ETech,D$9,FALSE),1)="#",RIGHT(VLOOKUP("*"&$AX75,par_TS_ETech,D$9,FALSE),LEN(VLOOKUP("*"&$AX75,par_TS_ETech,D$9,FALSE))-1),VLOOKUP($C75,etech_data,MATCH(VLOOKUP("*"&$AX75,par_TS_ETech,D$9,FALSE),etech_parameters,0),FALSE))) -> - | E75: - | F75: - | G75: - | H75: - | I75: 0 | J75: 1491.272545 | K75: =IFERROR(VLOOKUP($C75,etech_data,MATCH(VLOOKUP($B75,$B$10:$J$21,$J$9-1,FALSE)&K$23,etech_parameters,0),FALSE),"") ->  | U75: =IFERROR(VLOOKUP($C75,etech_data,MATCH(VLOOKUP($B75,$B$10:$J$21,$J$9-1,FALSE)&U$23,etech_parameters,0),FALSE),"") ->  | AE75: =IFERROR(VLOOKUP($C75,etech_data,MATCH(VLOOKUP($B75,$B$10:$J$21,$J$9-1,FALSE)&AE$23,etech_parameters,0),FALSE),"") ->  | AO75: =IFERROR(VLOOKUP($C75,etech_data,MATCH(VLOOKUP($B75,$B$10:$J$21,$J$9-1,FALSE)&AO$23,etech_parameters,0),FALSE),"") ->  | AX75: =IF(AY74=PWR!$B$44,AX74+1,AX74) -> 6 | AY75: 1
B76: NCAP_FOM | C76: ETCLEPFD-E | D76: - | E76: - | F76: - | G76: - | H76: - | I76: 0 | J76: 1491.272545 | AX76: =IF(AY75=PWR!$B$44,AX75+1,AX75) -> 6 | AY76: 2
B77: NCAP_FOM | C77: ETCLEPFS-E | D77: - | E77: - | F77: - | G77: - | H77: - | I77: 0 | J77: 1491.272545 | AX77: =IF(AY76=PWR!$B$44,AX76+1,AX76) -> 6 | AY77: 3
B78: NCAP_FOM | C78: ETCLEPFM-E | D78: - | E78: - | F78: - | G78: - | H78: - | I78: 0 | J78: 1491.272545 | AX78: =IF(AY77=PWR!$B$44,AX77+1,AX77) -> 6 | AY78: 4
B79: NCAP_FOM | C79: ETCLEPFSS-E | D79: - | E79: - | F79: - | G79: - | H79: - | I79: 0 | J79: 1491.272545 | AX79: =IF(AY78=PWR!$B$44,AX78+1,AX78) -> 6 | AY79: 5
B80: NCAP_FOM | C80: ETCLEPFSI-E | D80: - | E80: - | F80: - | G80: - | H80: - | I80: 0 | J80: 1491.272545 | AX80: =IF(AY79=PWR!$B$44,AX79+1,AX79) -> 6 | AY80: 6
B81: NCAP_FOM | C81: ETODSGT-E | D81: - | E81: - | F81: - | G81: - | H81: - | I81: 0 | J81: 66.19512195 | AX81: =IF(AY80=PWR!$B$44,AX80+1,AX80) -> 6 | AY81: 7
B82: NCAP_FOM | C82: ERHYD-E | D82: - | E82: - | F82: - | G82: - | H82: - | I82: 0 | J82: 1376.420026 | AX82: =IF(AY81=PWR!$B$44,AX81+1,AX81) -> 6 | AY82: 8
B83: NCAP_FOM | C83: ERHYD-I | D83: - | E83: - | F83: - | G83: - | H83: - | I83: 0 | J83: 1367.524504 | AX83: =IF(AY82=PWR!$B$44,AX82+1,AX82) -> 6 | AY83: 9
B84: NCAP_FOM | C84: ETNUC-E | D84: - | E84: - | F84: - | G84: - | H84: - | I84: 0 | J84: 4058.163481 | AX84: =IF(AY83=PWR!$B$44,AX83+1,AX83) -> 6 | AY84: 10
B85: ACT_COST | C85: ETCLEPFW-E | D85: =IF(VLOOKUP("*"&$AX85,par_TS_ETech,D$9,FALSE)="-","-",IF(LEFT(VLOOKUP("*"&$AX85,par_TS_ETech,D$9,FALSE),1)="#",RIGHT(VLOOKUP("*"&$AX85,par_TS_ETech,D$9,FALSE),LEN(VLOOKUP("*"&$AX85,par_TS_ETech,D$9,FALSE))-1),VLOOKUP($C85,etech_data,MATCH(VLOOKUP("*"&$AX85,par_TS_ETech,D$9,FALSE),etech_parameters,0),FALSE))) -> - | E85: - | F85: - | G85: - | H85: - | I85: 0 | J85: 9.25 | K85: =IFERROR(VLOOKUP($C85,etech_data,MATCH(VLOOKUP($B85,$B$10:$J$21,$J$9-1,FALSE)&K$23,etech_parameters,0),FALSE),"") ->  | U85: =IFERROR(VLOOKUP($C85,etech_data,MATCH(VLOOKUP($B85,$B$10:$J$21,$J$9-1,FALSE)&U$23,etech_parameters,0),FALSE),"") ->  | AE85: =IFERROR(VLOOKUP($C85,etech_data,MATCH(VLOOKUP($B85,$B$10:$J$21,$J$9-1,FALSE)&AE$23,etech_parameters,0),FALSE),"") ->  | AO85: =IFERROR(VLOOKUP($C85,etech_data,MATCH(VLOOKUP($B85,$B$10:$J$21,$J$9-1,FALSE)&AO$23,etech_parameters,0),FALSE),"") ->  | AX85: =IF(AY84=PWR!$B$44,AX84+1,AX84) -> 7 | AY85: 1
B86: ACT_COST | C86: ETCLEPFD-E | D86: - | E86: - | F86: - | G86: - | H86: - | I86: 0 | J86: 9.25 | AX86: =IF(AY85=PWR!$B$44,AX85+1,AX85) -> 7 | AY86: 2
B87: ACT_COST | C87: ETCLEPFS-E | D87: - | E87: - | F87: - | G87: - | H87: - | I87: 0 | J87: 9.25 | AX87: =IF(AY86=PWR!$B$44,AX86+1,AX86) -> 7 | AY87: 3
B88: ACT_COST | C88: ETCLEPFM-E | D88: - | E88: - | F88: - | G88: - | H88: - | I88: 0 | J88: 9.25 | AX88: =IF(AY87=PWR!$B$44,AX87+1,AX87) -> 7 | AY88: 4
B89: =IF(A89="*","",VLOOKUP("*"&AX89,$A$9:$B$21,2,FALSE)) -> ACT_COST | C89: =OFFSET(epp_start,AY89,0) -> ETCLEPFSS-E | D89: - | E89: - | F89: - | G89: - | H89: - | I89: 0 | J89: =IFERROR(VLOOKUP($C89,etech_data,MATCH(VLOOKUP("*"&$AX89,$A$10:$J$21,$J$9,FALSE)&J$23,etech_parameters,0),FALSE),"0") -> 9.25 | AX89: =IF(AY88=PWR!$B$44,AX88+1,AX88) -> 7 | AY89: =IF(AX89=AX88,AY88+1,1) -> 5
B90: ACT_COST | C90: ETCLEPFSI-E | D90: - | E90: - | F90: - | G90: - | H90: - | I90: 0 | J90: 9.25 | AX90: =IF(AY89=PWR!$B$44,AX89+1,AX89) -> 7 | AY90: 6
B91: ACT_COST | C91: ETODSGT-E | D91: - | E91: - | F91: - | G91: - | H91: - | I91: 0 | J91: 0 | AX91: =IF(AY90=PWR!$B$44,AX90+1,AX90) -> 7 | AY91: 7
B92: ACT_COST | C92: ERHYD-E | D92: - | E92: - | F92: - | G92: - | H92: - | I92: 0 | J92: 0 | AX92: =IF(AY91=PWR!$B$44,AX91+1,AX91) -> 7 | AY92: 8
B93: ACT_COST | C93: ERHYD-I | D93: - | E93: - | F93: - | G93: - | H93: - | I93: 0 | J93: 0 | AX93: =IF(AY92=PWR!$B$44,AX92+1,AX92) -> 7 | AY93: 9
B94: ACT_COST | C94: ETNUC-E | D94: - | E94: - | F94: - | G94: - | H94: - | I94: 0 | J94: 2.777777778 | AX94: =IF(AY93=PWR!$B$44,AX93+1,AX93) -> 7 | AY94: 10
B95: NCAP_BND | C95: ETCLEPFW-E | D95: =IF(VLOOKUP("*"&$AX95,par_TS_ETech,D$9,FALSE)="-","-",IF(LEFT(VLOOKUP("*"&$AX95,par_TS_ETech,D$9,FALSE),1)="#",RIGHT(VLOOKUP("*"&$AX95,par_TS_ETech,D$9,FALSE),LEN(VLOOKUP("*"&$AX95,par_TS_ETech,D$9,FALSE))-1),VLOOKUP($C95,etech_data,MATCH(VLOOKUP("*"&$AX95,par_TS_ETech,D$9,FALSE),etech_parameters,0),FALSE))) -> - | E95: - | F95: - | G95: - | H95: UP | I95: 5 | J95: 0 | K95: =IFERROR(VLOOKUP($C95,etech_data,MATCH(VLOOKUP($B95,$B$10:$J$21,$J$9-1,FALSE)&K$23,etech_parameters,0),FALSE),"") ->  | U95: =IFERROR(VLOOKUP($C95,etech_data,MATCH(VLOOKUP($B95,$B$10:$J$21,$J$9-1,FALSE)&U$23,etech_parameters,0),FALSE),"") ->  | AE95: =IFERROR(VLOOKUP($C95,etech_data,MATCH(VLOOKUP($B95,$B$10:$J$21,$J$9-1,FALSE)&AE$23,etech_parameters,0),FALSE),"") ->  | AO95: =IFERROR(VLOOKUP($C95,etech_data,MATCH(VLOOKUP($B95,$B$10:$J$21,$J$9-1,FALSE)&AO$23,etech_parameters,0),FALSE),"") ->  | AX95: =IF(AY94=PWR!$B$44,AX94+1,AX94) -> 8 | AY95: 1
B96: NCAP_BND | C96: ETCLEPFD-E | D96: - | E96: - | F96: - | G96: - | H96: UP | I96: 5 | J96: 0 | AX96: =IF(AY95=PWR!$B$44,AX95+1,AX95) -> 8 | AY96: 2
B97: NCAP_BND | C97: =OFFSET(epp_start,AY97,0) -> ETCLEPFS-E | D97: - | E97: - | F97: - | G97: - | H97: UP | I97: 5 | J97: 0 | AX97: =IF(AY96=PWR!$B$44,AX96+1,AX96) -> 8 | AY97: =IF(AX97=AX96,AY96+1,1) -> 3
B98: NCAP_BND | C98: ETCLEPFM-E | D98: - | E98: - | F98: - | G98: - | H98: UP | I98: 5 | J98: 0 | AX98: =IF(AY97=PWR!$B$44,AX97+1,AX97) -> 8 | AY98: 4
B99: NCAP_BND | C99: ETCLEPFSS-E | D99: - | E99: - | F99: - | G99: - | H99: UP | I99: 5 | J99: 0 | AX99: =IF(AY98=PWR!$B$44,AX98+1,AX98) -> 8 | AY99: 5
B100: NCAP_BND | C100: ETCLEPFSI-E | D100: - | E100: - | F100: - | G100: - | H100: UP | I100: 5 | J100: 0 | AX100: =IF(AY99=PWR!$B$44,AX99+1,AX99) -> 8 | AY100: 6
B101: NCAP_BND | C101: ETODSGT-E | D101: - | E101: - | F101: - | G101: - | H101: UP | I101: 5 | J101: 0 | AX101: =IF(AY100=PWR!$B$44,AX100+1,AX100) -> 8 | AY101: 7
B102: NCAP_BND | C102: ERHYD-E | D102: - | E102: - | F102: - | G102: - | H102: UP | I102: 5 | J102: 0 | AX102: =IF(AY101=PWR!$B$44,AX101+1,AX101) -> 8 | AY102: 8
B103: NCAP_BND | C103: ERHYD-I | D103: - | E103: - | F103: - | G103: - | H103: UP | I103: 5 | J103: 0 | AX103: =IF(AY102=PWR!$B$44,AX102+1,AX102) -> 8 | AY103: 9
B104: NCAP_BND | C104: ETNUC-E | D104: - | E104: - | F104: - | G104: - | H104: UP | I104: 5 | J104: 0 | AX104: =IF(AY103=PWR!$B$44,AX103+1,AX103) -> 8 | AY104: 10
B105: PRC_ACTFLO | C105: =OFFSET(epp_start,AY105,0) -> ETCLEPFW-E | D105: - | E105: WAT | F105: - | G105: - | H105: - | I105: 0 | J105: 553.2234043 | AX105: =IF(AY104=PWR!$B$44,AX104+1,AX104) -> 9 | AY105: =IF(AX105=AX104,AY104+1,1) -> 1
B106: PRC_ACTFLO | C106: ETCLEPFD-E | D106: - | E106: WAT | F106: - | G106: - | H106: - | I106: 0 | J106: 35.62921548 | AX106: =IF(AY105=PWR!$B$44,AX105+1,AX105) -> 9 | AY106: 2
B107: PRC_ACTFLO | C107: ETCLEPFS-E | D107: - | E107: WAT | F107: - | G107: - | H107: - | I107: 0 | J107: 689.0948958 | AX107: =IF(AY106=PWR!$B$44,AX106+1,AX106) -> 9 | AY107: 3
B108: PRC_ACTFLO | C108: ETCLEPFM-E | D108: - | E108: WAT | F108: - | G108: - | H108: - | I108: 0 | J108: 712.5925926 | AX108: =IF(AY107=PWR!$B$44,AX107+1,AX107) -> 9 | AY108: 4
B109: PRC_ACTFLO | C109: ETCLEPFSS-E | D109: - | E109: WAT | F109: - | G109: - | H109: - | I109: 0 | J109: 712.5925926 | AX109: =IF(AY108=PWR!$B$44,AX108+1,AX108) -> 9 | AY109: 5
B110: PRC_ACTFLO | C110: ETCLEPFSI-E | D110: - | E110: WAT | F110: - | G110: - | H110: - | I110: 0 | J110: 712.5925926 | K110: =IFERROR(VLOOKUP($C110,etech_data,MATCH(VLOOKUP($B110,$B$10:$J$21,$J$9-1,FALSE)&K$23,etech_parameters,0),FALSE),"") ->  | AN110: =IFERROR(VLOOKUP($C110,etech_data,MATCH(VLOOKUP($B110,$B$10:$J$21,$J$9-1,FALSE)&AN$23,etech_parameters,0),FALSE),"") ->  | AX110: =IF(AY109=PWR!$B$44,AX109+1,AX109) -> 9 | AY110: 6
B111: PRC_ACTFLO | C111: ETODSGT-E | D111: =IF(VLOOKUP("*"&$AX111,par_TS_ETech,D$9,FALSE)="-","-",IF(LEFT(VLOOKUP("*"&$AX111,par_TS_ETech,D$9,FALSE),1)="#",RIGHT(VLOOKUP("*"&$AX111,par_TS_ETech,D$9,FALSE),LEN(VLOOKUP("*"&$AX111,par_TS_ETech,D$9,FALSE))-1),VLOOKUP($C111,etech_data,MATCH(VLOOKUP("*"&$AX111,par_TS_ETech,D$9,FALSE),etech_parameters,0),FALSE))) -> - | E111: WAT | F111: - | G111: - | H111: - | I111: 0 | J111: 0 | K111: =IFERROR(VLOOKUP($C111,etech_data,MATCH(VLOOKUP($B111,$B$10:$J$21,$J$9-1,FALSE)&K$23,etech_parameters,0),FALSE),"") ->  | U111: =IFERROR(VLOOKUP($C111,etech_data,MATCH(VLOOKUP($B111,$B$10:$J$21,$J$9-1,FALSE)&U$23,etech_parameters,0),FALSE),"") ->  | AE111: =IFERROR(VLOOKUP($C111,etech_data,MATCH(VLOOKUP($B111,$B$10:$J$21,$J$9-1,FALSE)&AE$23,etech_parameters,0),FALSE),"") ->  | AX111: =IF(AY110=PWR!$B$44,AX110+1,AX110) -> 9 | AY111: 7
B112: PRC_ACTFLO | C112: ERHYD-E | D112: - | E112: WAT | F112: - | G112: - | H112: - | I112: 0 | J112: 0 | AX112: =IF(AY111=PWR!$B$44,AX111+1,AX111) -> 9 | AY112: 8
B113: PRC_ACTFLO | C113: ERHYD-I | D113: - | E113: WAT | F113: - | G113: - | H113: - | I113: 0 | J113: 0 | AX113: =IF(AY112=PWR!$B$44,AX112+1,AX112) -> 9 | AY113: 9
B114: PRC_ACTFLO | C114: ETNUC-E | D114: - | E114: WAT | F114: - | G114: - | H114: - | I114: 0 | J114: 0 | AX114: =IF(AY113=PWR!$B$44,AX113+1,AX113) -> 9 | AY114: 10
B115: FLO_EMIS | C115: =OFFSET(epp_start,AY115,0) -> ETCLEPFW-E | D115: PWRENV | E115: ACTGRP | F115: - | G115: ANNUAL | H115: - | I115: 0 | J115: 277.7777778 | AX115: =IF(AY114=PWR!$B$44,AX114+1,AX114) -> 10 | AY115: =IF(AX115=AX114,AY114+1,1) -> 1
B116: FLO_EMIS | C116: ETCLEPFD-E | D116: PWRENV | E116: ACTGRP | F116: - | G116: ANNUAL | H116: - | I116: 0 | J116: 277.7777778 | AX116: =IF(AY115=PWR!$B$44,AX115+1,AX115) -> 10 | AY116: 2
B117: FLO_EMIS | C117: ETCLEPFS-E | D117: PWRENV | E117: ACTGRP | F117: - | G117: ANNUAL | H117: - | I117: 0 | J117: 277.7777778 | AX117: =IF(AY116=PWR!$B$44,AX116+1,AX116) -> 10 | AY117: 3
B118: FLO_EMIS | C118: ETCLEPFM-E | D118: PWRENV | E118: ACTGRP | F118: - | G118: ANNUAL | H118: - | I118: 0 | J118: 277.7777778 | AX118: =IF(AY117=PWR!$B$44,AX117+1,AX117) -> 10 | AY118: 4
B119: FLO_EMIS | C119: ETCLEPFSS-E | D119: PWRENV | E119: ACTGRP | F119: - | G119: ANNUAL | H119: - | I119: 0 | J119: 277.7777778 | AX119: =IF(AY118=PWR!$B$44,AX118+1,AX118) -> 10 | AY119: 5
B120: FLO_EMIS | C120: ETCLEPFSI-E | D120: PWRENV | E120: ACTGRP | F120: - | G120: ANNUAL | H120: - | I120: 0 | J120: 277.7777778 | AN120: =IFERROR(VLOOKUP($C120,etech_data,MATCH(VLOOKUP($B120,$B$10:$J$21,$J$9-1,FALSE)&AN$23,etech_parameters,0),FALSE),"") ->  | AX120: =IF(AY119=PWR!$B$44,AX119+1,AX119) -> 10 | AY120: 6
B121: =IF(A121="*","",VLOOKUP("*"&AX121,$A$9:$B$21,2,FALSE)) -> FLO_EMIS | C121: ETODSGT-E | D121: PWRENV | E121: ACTGRP | F121: - | G121: ANNUAL | H121: - | I121: 0 | J121: =IFERROR(VLOOKUP($C121,etech_data,MATCH(VLOOKUP("*"&$AX121,$A$10:$J$21,$J$9,FALSE)&J$23,etech_parameters,0),FALSE),"0") -> 277.7777778 | K121: =IFERROR(VLOOKUP($C121,etech_data,MATCH(VLOOKUP($B121,$B$10:$J$21,$J$9-1,FALSE)&K$23,etech_parameters,0),FALSE),"") ->  | U121: =IFERROR(VLOOKUP($C121,etech_data,MATCH(VLOOKUP($B121,$B$10:$J$21,$J$9-1,FALSE)&U$23,etech_parameters,0),FALSE),"") ->  | AE121: =IFERROR(VLOOKUP($C121,etech_data,MATCH(VLOOKUP($B121,$B$10:$J$21,$J$9-1,FALSE)&AE$23,etech_parameters,0),FALSE),"") ->  | AX121: =IF(AY120=PWR!$B$44,AX120+1,AX120) -> 10 | AY121: 7
B122: FLO_EMIS | C122: ERHYD-E | D122: PWRENV | E122: ACTGRP | F122: - | G122: ANNUAL | H122: - | I122: 0 | J122: 0 | AX122: =IF(AY121=PWR!$B$44,AX121+1,AX121) -> 10 | AY122: 8
B123: FLO_EMIS | C123: ERHYD-I | D123: PWRENV | E123: ACTGRP | F123: - | G123: ANNUAL | H123: - | I123: 0 | J123: 0 | AX123: =IF(AY122=PWR!$B$44,AX122+1,AX122) -> 10 | AY123: 9
B124: FLO_EMIS | C124: ETNUC-E | D124: PWRENV | E124: ACTGRP | F124: - | G124: ANNUAL | H124: - | I124: 0 | J124: 277.7777778 | AX124: =IF(AY123=PWR!$B$44,AX123+1,AX123) -> 10 | AY124: 10
B125: NCAP_TLIFE | C125: =OFFSET(epp_start,AY125,0) -> ETCLEPFW-E | D125: - | E125: - | F125: - | G125: - | H125: - | I125: 0 | J125: 10 | AX125: =IF(AY124=PWR!$B$44,AX124+1,AX124) -> 11 | AY125: =IF(AX125=AX124,AY124+1,1) -> 1
B126: NCAP_TLIFE | C126: ETCLEPFD-E | D126: - | E126: - | F126: - | G126: - | H126: - | I126: 0 | J126: 10 | AX126: =IF(AY125=PWR!$B$44,AX125+1,AX125) -> 11 | AY126: 2
B127: NCAP_TLIFE | C127: ETCLEPFS-E | D127: =IF(VLOOKUP("*"&$AX127,par_TS_ETech,D$9,FALSE)="-","-",IF(LEFT(VLOOKUP("*"&$AX127,par_TS_ETech,D$9,FALSE),1)="#",RIGHT(VLOOKUP("*"&$AX127,par_TS_ETech,D$9,FALSE),LEN(VLOOKUP("*"&$AX127,par_TS_ETech,D$9,FALSE))-1),VLOOKUP($C127,etech_data,MATCH(VLOOKUP("*"&$AX127,par_TS_ETech,D$9,FALSE),etech_parameters,0),FALSE))) -> - | E127: - | F127: - | G127: - | H127: - | I127: 0 | J127: 10 | AX127: =IF(AY126=PWR!$B$44,AX126+1,AX126) -> 11 | AY127: 3
B128: NCAP_TLIFE | C128: ETCLEPFM-E | D128: - | E128: - | F128: - | G128: - | H128: - | I128: 0 | J128: 10 | AX128: =IF(AY127=PWR!$B$44,AX127+1,AX127) -> 11 | AY128: 4
B129: NCAP_TLIFE | C129: ETCLEPFSS-E | D129: - | E129: - | F129: - | G129: - | H129: - | I129: 0 | J129: 10 | AX129: =IF(AY128=PWR!$B$44,AX128+1,AX128) -> 11 | AY129: 5
B130: NCAP_TLIFE | C130: ETCLEPFSI-E | D130: - | E130: - | F130: - | G130: - | H130: - | I130: 0 | J130: 10 | AN130: =IFERROR(VLOOKUP($C130,etech_data,MATCH(VLOOKUP($B130,$B$10:$J$21,$J$9-1,FALSE)&AN$23,etech_parameters,0),FALSE),"") ->  | AX130: =IF(AY129=PWR!$B$44,AX129+1,AX129) -> 11 | AY130: 6
B131: NCAP_TLIFE | C131: ETODSGT-E | D131: - | E131: - | F131: - | G131: - | H131: - | I131: 0 | J131: 10 | K131: =IFERROR(VLOOKUP($C131,etech_data,MATCH(VLOOKUP($B131,$B$10:$J$21,$J$9-1,FALSE)&K$23,etech_parameters,0),FALSE),"") ->  | U131: =IFERROR(VLOOKUP($C131,etech_data,MATCH(VLOOKUP($B131,$B$10:$J$21,$J$9-1,FALSE)&U$23,etech_parameters,0),FALSE),"") ->  | AE131: =IFERROR(VLOOKUP($C131,etech_data,MATCH(VLOOKUP($B131,$B$10:$J$21,$J$9-1,FALSE)&AE$23,etech_parameters,0),FALSE),"") ->  | AX131: =IF(AY130=PWR!$B$44,AX130+1,AX130) -> 11 | AY131: 7
B132: NCAP_TLIFE | C132: ERHYD-E | D132: - | E132: - | F132: - | G132: - | H132: - | I132: 0 | J132: 20 | AX132: =IF(AY131=PWR!$B$44,AX131+1,AX131) -> 11 | AY132: 8
B133: NCAP_TLIFE | C133: ERHYD-I | D133: - | E133: - | F133: - | G133: - | H133: - | I133: 0 | J133: 20 | AX133: =IF(AY132=PWR!$B$44,AX132+1,AX132) -> 11 | AY133: 9
B134: NCAP_TLIFE | C134: ETNUC-E | D134: - | E134: - | F134: - | G134: - | H134: - | I134: 0 | J134: 20 | AX134: =IF(AY133=PWR!$B$44,AX133+1,AX133) -> 11 | AY134: 10
B135: =IF(A135="*","",VLOOKUP("*"&AX135,$A$9:$B$21,2,FALSE)) -> PRC_RESID | C135: =OFFSET(epp_start,AY135,0) -> ETCLEPFW-E | D135: - | E135: - | F135: - | G135: - | H135: - | I135: 0 | J135: 21.15 | K135: 21.15 | L135: 21.15 | M135: 21.15 | N135: 21.15 | O135: 21.15 | P135: 21.15 | Q135: 21.15 | R135: 21.15 | S135: 21.15 | T135: 21.15 | U135: 21.15 | V135: 21.15 | W135: 21.15 | X135: 21.15 | Y135: 21.15 | Z135: 21.15 | AA135: 21.15 | AB135: 21.09 | AC135: 20.35 | AD135: 19.5 | AE135: 18.65 | AF135: 17.32 | AG135: 15.41 | AH135: 13.09 | AI135: 11.93 | AJ135: 10.77 | AK135: 9.61 | AL135: 9.03 | AM135: 7.86 | AN135: 6.11 | AO135: 5.53 | AP135: 3.77 | AQ135: 3.18 | AR135: 2.01 | AS135: 2.01 | AT135: 0 | AU135: 0 | AV135: 0 | AX135: =IF(AY134=PWR!$B$44,AX134+1,AX134) -> 12 | AY135: =IF(AX135=AX134,AY134+1,1) -> 1
B136: PRC_RESID | C136: ETCLEPFD-E | D136: - | E136: - | F136: - | G136: - | H136: - | I136: 0 | J136: 9.39 | K136: 9.39 | L136: 9.39 | M136: 9.39 | N136: 9.39 | O136: 9.39 | P136: 9.39 | Q136: 9.39 | R136: 9.39 | S136: 9.39 | T136: 9.39 | U136: 9.39 | V136: 9.39 | W136: 9.39 | X136: 9.39 | Y136: 9.39 | Z136: 9.39 | AA136: 9.33 | AB136: 9.33 | AC136: 9.33 | AD136: 9.33 | AE136: 9.27 | AF136: 9.27 | AG136: 9.27 | AH136: 9.27 | AI136: 9.27 | AJ136: 9.27 | AK136: 9.27 | AL136: 9.27 | AM136: 9.27 | AN136: 9.27 | AO136: 9.27 | AP136: 7.42 | AQ136: 6.81 | AR136: 6.2 | AS136: 1.83 | AT136: 0 | AU136: 0 | AV136: 0 | AX136: =IF(AY135=PWR!$B$44,AX135+1,AX135) -> 12 | AY136: 2
B137: PRC_RESID | C137: ETCLEPFS-E | D137: - | E137: - | F137: - | G137: - | H137: - | I137: 0 | J137: 4.34 | K137: 4.34 | L137: 4.34 | M137: 4.34 | N137: 4.34 | O137: 5 | P137: 5.3 | Q137: 5.4 | R137: 5.4 | S137: 5.4 | T137: 5.4 | U137: 5.4 | V137: 5.4 | W137: 5.4 | X137: 5.02 | Y137: 4.45 | Z137: 3.5 | AA137: 2.93 | AB137: 2.54 | AC137: 2.07 | AD137: 1.42 | AE137: 0.56 | AF137: 0 | AG137: 0 | AH137: 0 | AI137: 0 | AJ137: 0 | AK137: 0 | AL137: 0 | AM137: 0 | AN137: 0 | AO137: 0 | AP137: 0 | AQ137: 0 | AR137: 0 | AS137: 0 | AT137: 0 | AU137: 0 | AV137: 0 | AX137: =IF(AY136=PWR!$B$44,AX136+1,AX136) -> 12 | AY137: 3
B138: PRC_RESID | C138: ETCLEPFM-E | D138: - | E138: - | F138: - | G138: - | H138: - | I138: 0 | J138: 0.47 | K138: 0.47 | L138: 0.47 | M138: 0.47 | N138: 0.47 | O138: 0.47 | P138: 0.47 | Q138: 0.47 | R138: 0.4533335 | S138: 0.43666675 | T138: 0.42 | U138: 0.33 | V138: 0.33 | W138: 0.33 | X138: 0.33 | Y138: 0.33 | Z138: 0.33 | AA138: 0.33 | AB138: 0.33 | AC138: 0.15 | AD138: 0.15 | AE138: 0.15 | AF138: 0.15 | AG138: 0.15 | AH138: 0.15 | AI138: 0.15 | AJ138: 0.1000005 | AK138: 0.05000025 | AL138: 0 | AM138: 0 | AN138: 0 | AO138: 0 | AP138: 0 | AQ138: 0 | AR138: 0 | AS138: 0 | AT138: 0 | AU138: 0 | AV138: 0 | AX138: =IF(AY137=PWR!$B$44,AX137+1,AX137) -> 12 | AY138: 4
B139: PRC_RESID | C139: ETCLEPFSS-E | D139: - | E139: - | F139: - | G139: - | H139: - | I139: 0 | J139: 0.5 | K139: 0.5 | L139: 0.5 | M139: 0.5 | N139: 0.5 | O139: 0.5 | P139: 0.5 | Q139: 0.5 | R139: 0.5 | S139: 0.5 | T139: 0.5 | U139: 0.5 | V139: 0.5 | W139: 0.5 | X139: 0.5 | Y139: 0.5 | Z139: 0.5 | AA139: 0.5 | AB139: 0.5 | AC139: 0 | AD139: 0 | AE139: 0 | AF139: 0 | AG139: 0 | AH139: 0 | AI139: 0 | AJ139: 0 | AK139: 0 | AL139: 0 | AM139: 0 | AN139: 0 | AO139: 0 | AP139: 0 | AQ139: 0 | AR139: 0 | AS139: 0 | AT139: 0 | AU139: 0 | AV139: 0 | AX139: =IF(AY138=PWR!$B$44,AX138+1,AX138) -> 12 | AY139: 5
B140: PRC_RESID | C140: ETCLEPFSI-E | D140: - | E140: - | F140: - | G140: - | H140: - | I140: 0 | J140: 0.15 | K140: 0.15 | L140: 0.15 | M140: 0.15 | N140: 0.15 | O140: 0.15 | P140: 0.15 | Q140: 0.15 | R140: 0.15 | S140: 0.15 | T140: 0.15 | U140: 0.15 | V140: 0.15 | W140: 0.15 | X140: 0.15 | Y140: 0.15 | Z140: 0.15 | AA140: 0.15 | AB140: 0.15 | AC140: 0.15 | AD140: 0.15 | AE140: 0.15 | AF140: 0.15 | AG140: 0.15 | AH140: 0.15 | AI140: 0.15 | AJ140: 0.15 | AK140: 0.15 | AL140: 0.15 | AM140: 0.15 | AN140: 0.15 | AO140: 0.15 | AP140: 0.15 | AQ140: 0.15 | AR140: 0.15 | AS140: 0 | AT140: 0 | AU140: 0 | AV140: 0 | AX140: =IF(AY139=PWR!$B$44,AX139+1,AX139) -> 12 | AY140: 6
B141: PRC_RESID | C141: ETODSGT-E | D141: - | E141: - | F141: - | G141: - | H141: - | I141: 0 | J141: 2.46 | K141: 2.46 | L141: 2.46 | M141: 2.46 | N141: 2.46 | O141: 2.46 | P141: 2.46 | Q141: 2.46 | R141: 2.46 | S141: 2.46 | T141: 2.46 | U141: 2.46 | V141: 2.46 | W141: 2.46 | X141: 2.46 | Y141: 2.46 | Z141: 2.46 | AA141: 2.46 | AB141: 2.46 | AC141: 2.4000006 | AD141: 2.1600003 | AE141: 2.1 | AF141: 2.1 | AG141: 2.1 | AH141: 2.1 | AI141: 2.1 | AJ141: 2.1 | AK141: 2.1 | AL141: 2.1 | AM141: 2.1 | AN141: 2.1 | AO141: 0 | AP141: 0 | AQ141: 0 | AR141: 0 | AS141: 0 | AT141: 0 | AU141: 0 | AV141: 0 | AX141: =IF(AY140=PWR!$B$44,AX140+1,AX140) -> 12 | AY141: 7
B142: PRC_RESID | C142: ERHYD-E | D142: - | E142: - | F142: - | G142: - | H142: - | I142: 0 | J142: 0.67 | K142: 0.67 | L142: 0.67 | M142: 0.67 | N142: 0.67 | O142: 0.67 | P142: 0.67 | Q142: 0.67 | R142: 0.67 | S142: 0.67 | T142: 0.67 | U142: 0.67 | V142: 0.67 | W142: 0.67 | X142: 0.67 | Y142: 0.67 | Z142: 0.67 | AA142: 0.67 | AB142: 0.67 | AC142: 0.67 | AD142: 0.67 | AE142: 0.67 | AF142: 0.67 | AG142: 0.67 | AH142: 0.67 | AI142: 0.67 | AJ142: 0.67 | AK142: 0.67 | AL142: 0.67 | AM142: 0.67 | AN142: 0.67 | AO142: 0.67 | AP142: 0.67 | AQ142: 0.67 | AR142: 0.67 | AS142: 0.67 | AT142: 0.67 | AU142: 0 | AV142: 0 | AX142: =IF(AY141=PWR!$B$44,AX141+1,AX141) -> 12 | AY142: 8
B143: PRC_RESID | C143: ERHYD-I | D143: =IF(VLOOKUP("*"&$AX143,par_TS_ETech,D$9,FALSE)="-","-",IF(LEFT(VLOOKUP("*"&$AX143,par_TS_ETech,D$9,FALSE),1)="#",RIGHT(VLOOKUP("*"&$AX143,par_TS_ETech,D$9,FALSE),LEN(VLOOKUP("*"&$AX143,par_TS_ETech,D$9,FALSE))-1),VLOOKUP($C143,etech_data,MATCH(VLOOKUP("*"&$AX143,par_TS_ETech,D$9,FALSE),etech_parameters,0),FALSE))) -> - | E143: - | F143: - | G143: - | H143: - | I143: 0 | J143: 1.5 | K143: 1.5 | L143: 1.5 | M143: 1.5 | N143: 1.5 | O143: 1.5 | P143: 1.5 | Q143: 1.5 | R143: 1.5 | S143: 1.5 | T143: 1.5 | U143: 1.5 | V143: 1.5 | W143: 1.5 | X143: 1.5 | Y143: 1.5 | Z143: 1.5 | AA143: 1.5 | AB143: 1.5 | AC143: 1.5 | AD143: 1.5 | AE143: 1.5 | AF143: 1.5 | AG143: 1.5 | AH143: 1.5 | AI143: 1.5 | AJ143: 1.5 | AK143: 1.5 | AL143: 1.5 | AM143: 1.5 | AN143: 1.5 | AO143: 1.5 | AP143: 1.5 | AQ143: 1.5 | AR143: 1.5 | AS143: 1.5 | AT143: 1.5 | AU143: 1.5 | AV143: 1.5 | AX143: =IF(AY142=PWR!$B$44,AX142+1,AX142) -> 12 | AY143: 9
B144: PRC_RESID | C144: ETNUC-E | D144: - | E144: - | F144: - | G144: - | H144: - | I144: 0 | J144: 1.86 | K144: 1.86 | L144: 1.86 | M144: 1.86 | N144: 1.86 | O144: 1.86 | P144: 1.86 | Q144: 1.86 | R144: 1.86 | S144: 1.86 | T144: 1.86 | U144: 1.86 | V144: 1.86 | W144: 1.86 | X144: 1.86 | Y144: 1.86 | Z144: 1.86 | AA144: 1.86 | AB144: 1.86 | AC144: 1.86 | AD144: 1.86 | AE144: 1.86 | AF144: 1.86 | AG144: 1.86 | AH144: 1.86 | AI144: 1.86 | AJ144: 1.86 | AK144: 1.86 | AL144: 1.86 | AM144: 1.86 | AN144: 1.86 | AO144: 1.86 | AP144: 1.86 | AQ144: 1.86 | AR144: 1.86 | AS144: 0 | AT144: 0 | AU144: 0 | AV144: 0 | AX144: =IF(AY143=PWR!$B$44,AX143+1,AX143) -> 12 | AY144: 10

Sheet TS LifeExt
A1: =IF(Index!$E$13="Y","TS DATA","") -> TS DATA | B1: REGION1 | AX1: * | AY1: * | AZ1: *
A2: * | AX2: Parameter # | AY2: row # | AZ2: Col #
A3: *
A4: * | AX4: gap needs to be in all ts
A5: *
A6: *
A7: *
A8: *
A9: * | B9: Parameter | C9: Arg1 | D9: Arg2 | E9: Arg3 | F9: Arg4 | G9: Arg5 | H9: Arg6 | I9: I/E Opt or Value | J9: 2006 | K9: =J9+1 -> 2007 | L9: 2008 | M9: 2009 | N9: 2010 | O9: 2011 | P9: 2012 | Q9: 2013 | R9: 2014 | S9: 2015 | T9: 2016 | U9: 2017 | V9: 2018 | W9: 2019 | X9: 2020 | Y9: 2021 | Z9: 2022 | AA9: 2023 | AB9: 2024 | AC9: 2025 | AD9: 2026 | AE9: 2027 | AF9: 2028 | AG9: 2029 | AH9: 2030 | AI9: =AH9+1 -> 2031 | AJ9: =AI9+1 -> 2032 | AK9: =AJ9+1 -> 2033 | AL9: =AK9+1 -> 2034 | AM9: =AH9+5 -> 2035 | AN9: 2036 | AO9: 2037 | AP9: 2038 | AQ9: 2039 | AR9: 2040 | AS9: =AR9+5 -> 2045 | AT9: =AS9+5 -> 2050 | AU9: =AT9+10 -> 2060 | AV9: =AU9+10 -> 2070
A10: *
B11: NCAP_BND | C11: =OFFSET(epp_start,AY11,0) -> ETCLEPFW-E | D11: - | E11: - | F11: - | G11: - | H11: UP | I11: 0 | J11: 0 | K11: =MAX(0,PWR!X46-PWR!Y46) -> 0 | L11: =MAX(0,PWR!Y46-PWR!Z46) -> 0 | M11: =MAX(0,PWR!Z46-PWR!AA46) -> 0 | N11: =MAX(0,PWR!AA46-PWR!AB46) -> 0 | O11: =MAX(0,PWR!AB46-PWR!AC46) -> 0 | P11: =MAX(0,PWR!AC46-PWR!AD46) -> 0 | Q11: =MAX(0,PWR!AD46-PWR!AE46) -> 0 | R11: =MAX(0,PWR!AE46-PWR!AF46) -> 0 | S11: =MAX(0,PWR!AF46-PWR!AG46) -> 0 | T11: =MAX(0,PWR!AG46-PWR!AH46) -> 0 | U11: =MAX(0,PWR!AH46-PWR!AI46) -> 0 | V11: =MAX(0,PWR!AI46-PWR!AJ46) -> 0 | W11: =MAX(0,PWR!AJ46-PWR!AK46) -> 0 | X11: =MAX(0,PWR!AK46-PWR!AL46) -> 0 | Y11: =MAX(0,PWR!AL46-PWR!AM46) -> 0 | Z11: =MAX(0,PWR!AM46-PWR!AN46) -> 0 | AA11: =MAX(0,PWR!AN46-PWR!AO46) -> 0 | AB11: =MAX(0,PWR!AO46-PWR!AP46) -> 0.06 | AC11: =MAX(0,PWR!AP46-PWR!AQ46) -> 0.74 | AD11: =MAX(0,PWR!AQ46-PWR!AR46) -> 0.85 | AE11: =MAX(0,PWR!AR46-PWR!AS46) -> 0.85 | AF11: =MAX(0,PWR!AS46-PWR!AT46) -> 1.33 | AG11: =MAX(0,PWR!AT46-PWR!AU46) -> 1.91 | AH11: =MAX(0,PWR!AU46-PWR!AV46) -> 2.32 | AI11: =MAX(0,PWR!AV46-PWR!AW46) -> 1.16 | AJ11: =MAX(0,PWR!AW46-PWR!AX46) -> 1.16 | AK11: =MAX(0,PWR!AX46-PWR!AY46) -> 1.16 | AL11: =MAX(0,PWR!AY46-PWR!AZ46) -> 0.58 | AM11: =MAX(0,PWR!AZ46-PWR!BA46) -> 1.17 | AN11: =MAX(0,PWR!BA46-PWR!BB46) -> 1.75 | AO11: =MAX(0,PWR!BB46-PWR!BC46) -> 0.58 | AP11: =MAX(0,PWR!BC46-PWR!BD46) -> 1.76 | AQ11: =MAX(0,PWR!BD46-PWR!BE46) -> 0.59 | AR11: =MAX(0,PWR!BE46-PWR!BF46) -> 1.17 | AS11: =MAX(0,PWR!BF46-PWR!BG46) -> 0 | AT11: =MAX(0,PWR!BG46-PWR!BH46) -> 2.01 | AU11: =MAX(0,PWR!BH46-PWR!BI46) -> 0 | AV11: =MAX(0,PWR!BI46-PWR!BJ46) -> 0 | AX11: 1 | AY11: 1
B12: =B11 -> NCAP_BND | C12: =OFFSET(epp_start,AY12,0) -> ETCLEPFD-E | D12: - | E12: - | F12: - | G12: - | H12: UP | I12: 0 | J12: 0 | K12: =MAX(0,PWR!X47-PWR!Y47) -> 0 | L12: =MAX(0,PWR!Y47-PWR!Z47) -> 0 | M12: =MAX(0,PWR!Z47-PWR!AA47) -> 0 | N12: =MAX(0,PWR!AA47-PWR!AB47) -> 0 | O12: =MAX(0,PWR!AB47-PWR!AC47) -> 0 | P12: =MAX(0,PWR!AC47-PWR!AD47) -> 0 | Q12: =MAX(0,PWR!AD47-PWR!AE47) -> 0 | R12: =MAX(0,PWR!AE47-PWR!AF47) -> 0 | S12: =MAX(0,PWR!AF47-PWR!AG47) -> 0 | T12: =MAX(0,PWR!AG47-PWR!AH47) -> 0 | U12: =MAX(0,PWR!AH47-PWR!AI47) -> 0 | V12: =MAX(0,PWR!AI47-PWR!AJ47) -> 0 | W12: =MAX(0,PWR!AJ47-PWR!AK47) -> 0 | X12: =MAX(0,PWR!AK47-PWR!AL47) -> 0 | Y12: =MAX(0,PWR!AL47-PWR!AM47) -> 0 | Z12: =MAX(0,PWR!AM47-PWR!AN47) -> 0 | AA12: =MAX(0,PWR!AN47-PWR!AO47) -> 0.06 | AB12: =MAX(0,PWR!AO47-PWR!AP47) -> 0 | AC12: =MAX(0,PWR!AP47-PWR!AQ47) -> 0 | AD12: =MAX(0,PWR!AQ47-PWR!AR47) -> 0 | AE12: =MAX(0,PWR!AR47-PWR!AS47) -> 0.06 | AF12: =MAX(0,PWR!AS47-PWR!AT47) -> 0 | AG12: =MAX(0,PWR!AT47-PWR!AU47) -> 0 | AH12: =MAX(0,PWR!AU47-PWR!AV47) -> 0 | AI12: =MAX(0,PWR!AV47-PWR!AW47) -> 0 | AJ12: =MAX(0,PWR!AW47-PWR!AX47) -> 0 | AK12: =MAX(0,PWR!AX47-PWR!AY47) -> 0 | AL12: =MAX(0,PWR!AY47-PWR!AZ47) -> 0 | AM12: =MAX(0,PWR!AZ47-PWR!BA47) -> 0 | AN12: =MAX(0,PWR!BA47-PWR!BB47) -> 0 | AO12: =MAX(0,PWR!BB47-PWR!BC47) -> 0 | AP12: =MAX(0,PWR!BC47-PWR!BD47) -> 1.85 | AQ12: =MAX(0,PWR!BD47-PWR!BE47) -> 0.61 | AR12: =MAX(0,PWR!BE47-PWR!BF47) -> 0.61 | AS12: =MAX(0,PWR!BF47-PWR!BG47) -> 4.37 | AT12: =MAX(0,PWR!BG47-PWR!BH47) -> 1.83 | AU12: =MAX(0,PWR!BH47-PWR!BI47) -> 0 | AV12: =MAX(0,PWR!BI47-PWR!BJ47) -> 0 | AX12: =IF(AY11=PWR!$B$44,AX11+1,AX11) -> 1 | AY12: =IF(AX12=AX11,AY11+1,1) -> 2
B13: =B12 -> NCAP_BND | C13: =OFFSET(epp_start,AY13,0) -> ETCLEPFS-E | D13: - | E13: - | F13: - | G13: - | H13: UP | I13: 0 | J13: 0 | K13: =MAX(0,PWR!X48-PWR!Y48) -> 0 | L13: =MAX(0,PWR!Y48-PWR!Z48) -> 0 | M13: =MAX(0,PWR!Z48-PWR!AA48) -> 0 | N13: =MAX(0,PWR!AA48-PWR!AB48) -> 0 | O13: =MAX(0,PWR!AB48-PWR!AC48) -> 0 | P13: =MAX(0,PWR!AC48-PWR!AD48) -> 0 | Q13: =MAX(0,PWR!AD48-PWR!AE48) -> 0 | R13: =MAX(0,PWR!AE48-PWR!AF48) -> 0 | S13: =MAX(0,PWR!AF48-PWR!AG48) -> 0 | T13: =MAX(0,PWR!AG48-PWR!AH48) -> 0 | U13: =MAX(0,PWR!AH48-PWR!AI48) -> 0 | V13: =MAX(0,PWR!AI48-PWR!AJ48) -> 0 | W13: =MAX(0,PWR!AJ48-PWR!AK48) -> 0 | X13: =MAX(0,PWR!AK48-PWR!AL48) -> 0.38 | Y13: =MAX(0,PWR!AL48-PWR!AM48) -> 0.57 | Z13: =MAX(0,PWR!AM48-PWR!AN48) -> 0.95 | AA13: =MAX(0,PWR!AN48-PWR!AO48) -> 0.57 | AB13: =MAX(0,PWR!AO48-PWR!AP48) -> 0.39 | AC13: =MAX(0,PWR!AP48-PWR!AQ48) -> 0.47 | AD13: =MAX(0,PWR!AQ48-PWR!AR48) -> 0.65 | AE13: =MAX(0,PWR!AR48-PWR!AS48) -> 0.86 | AF13: =MAX(0,PWR!AS48-PWR!AT48) -> 0.56 | AG13: =MAX(0,PWR!AT48-PWR!AU48) -> 0 | AH13: =MAX(0,PWR!AU48-PWR!AV48) -> 0 | AI13: =MAX(0,PWR!AV48-PWR!AW48) -> 0 | AJ13: =MAX(0,PWR!AW48-PWR!AX48) -> 0 | AK13: =MAX(0,PWR!AX48-PWR!AY48) -> 0 | AL13: =MAX(0,PWR!AY48-PWR!AZ48) -> 0 | AM13: =MAX(0,PWR!AZ48-PWR!BA48) -> 0 | AN13: =MAX(0,PWR!BA48-PWR!BB48) -> 0 | AO13: =MAX(0,PWR!BB48-PWR!BC48) -> 0 | AP13: =MAX(0,PWR!BC48-PWR!BD48) -> 0 | AQ13: =MAX(0,PWR!BD48-PWR!BE48) -> 0 | AR13: =MAX(0,PWR!BE48-PWR!BF48) -> 0 | AS13: =MAX(0,PWR!BF48-PWR!BG48) -> 0 | AT13: =MAX(0,PWR!BG48-PWR!BH48) -> 0 | AU13: =MAX(0,PWR!BH48-PWR!BI48) -> 0 | AV13: =MAX(0,PWR!BI48-PWR!BJ48) -> 0 | AX13: =IF(AY12=PWR!$B$44,AX12+1,AX12) -> 1 | AY13: =IF(AX13=AX12,AY12+1,1) -> 3

Sheet TID ETech
A1: =IF(Index!$E$3="Y","TID DATA","") -> TID DATA | B1: REGION1 | K1: * | L1: * | M1: * | N1: * | O1: * | P1: *
A2: * | K2: Parameter # | L2: row # | M2: Col #
A3: *
A4: *
A5: *
A6: *
A7: * | B7: Parameter | C7: Arg1 | D7: Arg2 | E7: Arg3 | F7: Arg4 | G7: Arg5 | H7: Arg6 | I7: Value
A8: * | B8: 2 | C8: 3 | D8: 4 | E8: 5 | F8: 6 | G8: 7 | H8: 8 | I8: 9
A9: *1 | B9: PRC_ACTUNT | C9: Process | D9: - | E9: =PWR!G42 -> Output Commodity | F9: - | G9: - | H9: - | I9: #1 | K9: ="#"&I9 -> ##1 | M9: =PWR!$F$34 -> 0
A10: *2 | B10: PRC_CAPACT | C10: Process | D10: - | E10: - | F10: - | G10: - | H10: - | I10: #31.536
A11: *3 | B11: TOP-OUT | C11: Process | D11: =PWR!G42 -> Output Commodity | E11: - | F11: - | G11: - | H11: - | I11: #1 | M11: =PWR!$F$34 -> 0
A12: *4 | B12: TOP-IN | C12: Process | D12: #WAT | E12: - | F12: - | G12: - | H12: - | I12: #1 | M12: 42 | N12: water use
A13: *5 | B13: TOP-OUT | C13: Process | D13: #PWRENV | E13: - | F13: - | G13: - | H13: - | I13: #1 | M13: 42 | N13: Env Levy
A14: *6 | B14: TOP-IN | C14: Process | D14: =PWR!D42 -> Input Commodity | E14: - | F14: - | G14: - | H14: - | I14: #1 | M14: =PWR!$D$34 -> 0
A15: *
A16: =IF(D16=0,"*","") ->  | B16: =IF(A16="*","",VLOOKUP("*"&K16,$A$9:$B$16,2,FALSE)) -> PRC_ACTUNT | C16: =OFFSET(epp_start,L16,0) -> ETCLEPFW-E | D16: =IF(VLOOKUP("*"&$K16,par_TID_ETech,D$8,FALSE)="-","-",IF(LEFT(VLOOKUP("*"&$K16,par_TID_ETech,D$8,FALSE),1)="#",RIGHT(VLOOKUP("*"&$K16,par_TID_ETech,D$8,FALSE),LEN(VLOOKUP("*"&$K16,par_TID_ETech,D$8,FALSE))-1),VLOOKUP($C16,etech_data,MATCH(VLOOKUP("*"&$K16,par_TID_ETech,D$8,FALSE),etech_parameters,0),FALSE))) -> - | E16: ELCC | F16: - | G16: - | H16: - | I16: 1 | K16: 1 | L16: 1
A17: =IF(D17=0,"*","") ->  | B17: PRC_ACTUNT | C17: =OFFSET(epp_start,L17,0) -> ETCLEPFD-E | D17: - | E17: ELCC | F17: - | G17: - | H17: - | I17: 1 | K17: =IF(L16=PWR!$B$44,K16+1,K16) -> 1 | L17: =IF(K17=K16,L16+1,1) -> 2
B18: PRC_ACTUNT | C18: =OFFSET(epp_start,L18,0) -> ETCLEPFS-E | D18: - | E18: ELCC | F18: - | G18: - | H18: - | I18: 1 | K18: =IF(L17=PWR!$B$44,K17+1,K17) -> 1 | L18: =IF(K18=K17,L17+1,1) -> 3
B19: PRC_ACTUNT | C19: ETCLEPFM-E | D19: - | E19: ELC | F19: - | G19: - | H19: - | I19: 1 | K19: =IF(L18=PWR!$B$44,K18+1,K18) -> 1 | L19: 4
B20: PRC_ACTUNT | C20: ETCLEPFSS-E | D20: - | E20: UPSELC | F20: - | G20: - | H20: - | I20: 1 | K20: =IF(L19=PWR!$B$44,K19+1,K19) -> 1 | L20: 5
B21: PRC_ACTUNT | C21: ETCLEPFSI-E | D21: - | E21: ICPELC | F21: - | G21: - | H21: - | I21: 1 | K21: =IF(L20=PWR!$B$44,K20+1,K20) -> 1 | L21: 6
B22: PRC_ACTUNT | C22: ETODSGT-E | D22: - | E22: ELCC | F22: - | G22: - | H22: - | I22: 1 | K22: =IF(L21=PWR!$B$44,K21+1,K21) -> 1 | L22: 7
B23: PRC_ACTUNT | C23: ERHYD-E | D23: - | E23: ELCC | F23: - | G23: - | H23: - | I23: 1 | K23: =IF(L22=PWR!$B$44,K22+1,K22) -> 1 | L23: 8
B24: PRC_ACTUNT | C24: ERHYD-I | D24: - | E24: ELCC | F24: - | G24: - | H24: - | I24: 1 | K24: =IF(L23=PWR!$B$44,K23+1,K23) -> 1 | L24: 9
B25: PRC_ACTUNT | C25: ETNUC-E | D25: - | E25: ELCC | F25: - | G25: - | H25: - | I25: 1 | K25: =IF(L24=PWR!$B$44,K24+1,K24) -> 1 | L25: 10
B26: PRC_CAPACT | C26: ETCLEPFW-E | D26: - | E26: - | F26: - | G26: - | H26: - | I26: 31.536 | K26: =IF(L25=PWR!$B$44,K25+1,K25) -> 2 | L26: 1
B27: PRC_CAPACT | C27: ETCLEPFD-E | D27: - | E27: - | F27: - | G27: - | H27: - | I27: 31.536 | K27: =IF(L26=PWR!$B$44,K26+1,K26) -> 2 | L27: 2
B28: PRC_CAPACT | C28: ETCLEPFS-E | D28: - | E28: - | F28: - | G28: - | H28: - | I28: 31.536 | K28: =IF(L27=PWR!$B$44,K27+1,K27) -> 2 | L28: 3
B29: PRC_CAPACT | C29: ETCLEPFM-E | D29: - | E29: - | F29: - | G29: - | H29: - | I29: 31.536 | K29: =IF(L28=PWR!$B$44,K28+1,K28) -> 2 | L29: 4
B30: PRC_CAPACT | C30: ETCLEPFSS-E | D30: - | E30: - | F30: - | G30: - | H30: - | I30: 31.536 | K30: =IF(L29=PWR!$B$44,K29+1,K29) -> 2 | L30: 5
B31: PRC_CAPACT | C31: ETCLEPFSI-E | D31: - | E31: - | F31: - | G31: - | H31: - | I31: 31.536 | K31: =IF(L30=PWR!$B$44,K30+1,K30) -> 2 | L31: 6
B32: PRC_CAPACT | C32: ETODSGT-E | D32: =IF(VLOOKUP("*"&$K32,par_TID_ETech,D$8,FALSE)="-","-",IF(LEFT(VLOOKUP("*"&$K32,par_TID_ETech,D$8,FALSE),1)="#",RIGHT(VLOOKUP("*"&$K32,par_TID_ETech,D$8,FALSE),LEN(VLOOKUP("*"&$K32,par_TID_ETech,D$8,FALSE))-1),VLOOKUP($C32,etech_data,MATCH(VLOOKUP("*"&$K32,par_TID_ETech,D$8,FALSE),etech_parameters,0),FALSE))) -> - | E32: - | F32: - | G32: - | H32: - | I32: 31.536 | K32: =IF(L31=PWR!$B$44,K31+1,K31) -> 2 | L32: 7
B33: PRC_CAPACT | C33: ERHYD-E | D33: - | E33: - | F33: - | G33: - | H33: - | I33: 31.536 | K33: =IF(L32=PWR!$B$44,K32+1,K32) -> 2 | L33: 8
B34: PRC_CAPACT | C34: ERHYD-I | D34: - | E34: - | F34: - | G34: - | H34: - | I34: 31.536 | K34: =IF(L33=PWR!$B$44,K33+1,K33) -> 2 | L34: 9
B35: PRC_CAPACT | C35: ETNUC-E | D35: - | E35: - | F35: - | G35: - | H35: - | I35: 31.536 | K35: =IF(L34=PWR!$B$44,K34+1,K34) -> 2 | L35: 10
B36: TOP-OUT | C36: ETCLEPFW-E | D36: ELCC | E36: - | F36: - | G36: - | H36: - | I36: 1 | K36: =IF(L35=PWR!$B$44,K35+1,K35) -> 3 | L36: 1
B37: TOP-OUT | C37: ETCLEPFD-E | D37: ELCC | E37: - | F37: - | G37: - | H37: - | I37: 1 | K37: =IF(L36=PWR!$B$44,K36+1,K36) -> 3 | L37: 2
B38: TOP-OUT | C38: ETCLEPFS-E | D38: ELCC | E38: - | F38: - | G38: - | H38: - | I38: 1 | K38: =IF(L37=PWR!$B$44,K37+1,K37) -> 3 | L38: 3
B39: TOP-OUT | C39: ETCLEPFM-E | D39: ELC | E39: - | F39: - | G39: - | H39: - | I39: 1 | K39: =IF(L38=PWR!$B$44,K38+1,K38) -> 3 | L39: 4
B40: TOP-OUT | C40: ETCLEPFSS-E | D40: UPSELC | E40: - | F40: - | G40: - | H40: - | I40: 1 | K40: =IF(L39=PWR!$B$44,K39+1,K39) -> 3 | L40: 5
B41: TOP-OUT | C41: ETCLEPFSI-E | D41: ICPELC | E41: - | F41: - | G41: - | H41: - | I41: 1 | K41: =IF(L40=PWR!$B$44,K40+1,K40) -> 3 | L41: 6
B42: TOP-OUT | C42: ETODSGT-E | D42: ELCC | E42: - | F42: - | G42: - | H42: - | I42: 1 | K42: =IF(L41=PWR!$B$44,K41+1,K41) -> 3 | L42: 7
B43: TOP-OUT | C43: ERHYD-E | D43: ELCC | E43: - | F43: - | G43: - | H43: - | I43: 1 | K43: =IF(L42=PWR!$B$44,K42+1,K42) -> 3 | L43: 8
B44: TOP-OUT | C44: ERHYD-I | D44: ELCC | E44: - | F44: - | G44: - | H44: - | I44: 1 | K44: =IF(L43=PWR!$B$44,K43+1,K43) -> 3 | L44: 9
B45: TOP-OUT | C45: ETNUC-E | D45: ELCC | E45: - | F45: - | G45: - | H45: - | I45: 1 | K45: =IF(L44=PWR!$B$44,K44+1,K44) -> 3 | L45: 10
B46: TOP-IN | C46: ETCLEPFW-E | D46: WAT | E46: - | F46: - | G46: - | H46: - | I46: 1 | K46: =IF(L45=PWR!$B$44,K45+1,K45) -> 4 | L46: 1
B47: TOP-IN | C47: ETCLEPFD-E | D47: WAT | E47: - | F47: - | G47: - | H47: - | I47: 1 | K47: =IF(L46=PWR!$B$44,K46+1,K46) -> 4 | L47: 2
B48: =IF(A48="*","",VLOOKUP("*"&K48,$A$9:$B$16,2,FALSE)) -> TOP-IN | C48: ETCLEPFS-E | D48: WAT | E48: - | F48: - | G48: - | H48: - | I48: 1 | K48: =IF(L47=PWR!$B$44,K47+1,K47) -> 4 | L48: 3
B49: TOP-IN | C49: ETCLEPFM-E | D49: WAT | E49: - | F49: - | G49: - | H49: - | I49: 1 | K49: =IF(L48=PWR!$B$44,K48+1,K48) -> 4 | L49: 4
B50: TOP-IN | C50: ETCLEPFSS-E | D50: WAT | E50: - | F50: - | G50: - | H50: - | I50: 1 | K50: =IF(L49=PWR!$B$44,K49+1,K49) -> 4 | L50: 5
B51: TOP-IN | C51: ETCLEPFSI-E | D51: WAT | E51: - | F51: - | G51: - | H51: - | I51: 1 | K51: =IF(L50=PWR!$B$44,K50+1,K50) -> 4 | L51: 6
B52: TOP-IN | C52: ETODSGT-E | D52: WAT | E52: - | F52: - | G52: - | H52: - | I52: 1 | K52: =IF(L51=PWR!$B$44,K51+1,K51) -> 4 | L52: 7
B53: TOP-IN | C53: ERHYD-E | D53: WAT | E53: - | F53: - | G53: - | H53: - | I53: 1 | K53: =IF(L52=PWR!$B$44,K52+1,K52) -> 4 | L53: 8
B54: TOP-IN | C54: ERHYD-I | D54: WAT | E54: - | F54: - | G54: - | H54: - | I54: 1 | K54: =IF(L53=PWR!$B$44,K53+1,K53) -> 4 | L54: 9
B55: TOP-IN | C55: ETNUC-E | D55: WAT | E55: - | F55: - | G55: - | H55: - | I55: 1 | K55: =IF(L54=PWR!$B$44,K54+1,K54) -> 4 | L55: 10
B56: TOP-OUT | C56: ETCLEPFW-E | D56: PWRENV | E56: - | F56: - | G56: - | H56: - | I56: 1 | K56: =IF(L55=PWR!$B$44,K55+1,K55) -> 5 | L56: 1
B57: TOP-OUT | C57: ETCLEPFD-E | D57: PWRENV | E57: - | F57: - | G57: - | H57: - | I57: 1 | K57: =IF(L56=PWR!$B$44,K56+1,K56) -> 5 | L57: 2
B58: TOP-OUT | C58: ETCLEPFS-E | D58: PWRENV | E58: - | F58: - | G58: - | H58: - | I58: 1 | K58: =IF(L57=PWR!$B$44,K57+1,K57) -> 5 | L58: 3
B59: TOP-OUT | C59: ETCLEPFM-E | D59: PWRENV | E59: - | F59: - | G59: - | H59: - | I59: 1 | K59: =IF(L58=PWR!$B$44,K58+1,K58) -> 5 | L59: 4
B60: TOP-OUT | C60: ETCLEPFSS-E | D60: PWRENV | E60: - | F60: - | G60: - | H60: - | I60: 1 | K60: =IF(L59=PWR!$B$44,K59+1,K59) -> 5 | L60: 5
B61: TOP-OUT | C61: ETCLEPFSI-E | D61: PWRENV | E61: - | F61: - | G61: - | H61: - | I61: 1 | K61: =IF(L60=PWR!$B$44,K60+1,K60) -> 5 | L61: 6
B62: TOP-OUT | C62: ETODSGT-E | D62: PWRENV | E62: - | F62: - | G62: - | H62: - | I62: 1 | K62: =IF(L61=PWR!$B$44,K61+1,K61) -> 5 | L62: 7
B63: TOP-OUT | C63: ERHYD-E | D63: PWRENV | E63: - | F63: - | G63: - | H63: - | I63: 1 | K63: =IF(L62=PWR!$B$44,K62+1,K62) -> 5 | L63: 8
B64: TOP-OUT | C64: ERHYD-I | D64: PWRENV | E64: - | F64: - | G64: - | H64: - | I64: 1 | K64: =IF(L63=PWR!$B$44,K63+1,K63) -> 5 | L64: 9
B65: TOP-OUT | C65: ETNUC-E | D65: PWRENV | E65: - | F65: - | G65: - | H65: - | I65: 1 | K65: =IF(L64=PWR!$B$44,K64+1,K64) -> 5 | L65: 10
B66: =IF(A66="*","",VLOOKUP("*"&K66,$A$9:$B$16,2,FALSE)) -> TOP-IN | C66: =OFFSET(epp_start,L66,0) -> ETCLEPFW-E | D66: PWRCLE | E66: - | F66: - | G66: - | H66: - | I66: 1 | K66: =IF(L65=PWR!$B$44,K65+1,K65) -> 6 | L66: =IF(K66=K65,L65+1,1) -> 1
B67: TOP-IN | C67: ETCLEPFD-E | D67: =IF(VLOOKUP("*"&$K67,par_TID_ETech,D$8,FALSE)="-","-",IF(LEFT(VLOOKUP("*"&$K67,par_TID_ETech,D$8,FALSE),1)="#",RIGHT(VLOOKUP("*"&$K67,par_TID_ETech,D$8,FALSE),LEN(VLOOKUP("*"&$K67,par_TID_ETech,D$8,FALSE))-1),VLOOKUP($C67,etech_data,MATCH(VLOOKUP("*"&$K67,par_TID_ETech,D$8,FALSE),etech_parameters,0),FALSE))) -> PWRCLE | E67: - | F67: - | G67: - | H67: - | I67: 1 | K67: =IF(L66=PWR!$B$44,K66+1,K66) -> 6 | L67: 2
B68: TOP-IN | C68: ETCLEPFS-E | D68: PWRCLE | E68: - | F68: - | G68: - | H68: - | I68: 1 | K68: =IF(L67=PWR!$B$44,K67+1,K67) -> 6 | L68: 3
B69: TOP-IN | C69: ETCLEPFM-E | D69: PWRCLE | E69: - | F69: - | G69: - | H69: - | I69: 1 | K69: =IF(L68=PWR!$B$44,K68+1,K68) -> 6 | L69: 4
B70: TOP-IN | C70: ETCLEPFSS-E | D70: PWRCLE | E70: - | F70: - | G70: - | H70: - | I70: 1 | K70: =IF(L69=PWR!$B$44,K69+1,K69) -> 6 | L70: 5
B71: TOP-IN | C71: ETCLEPFSI-E | D71: PWRCLE | E71: - | F71: - | G71: - | H71: - | I71: 1 | K71: =IF(L70=PWR!$B$44,K70+1,K70) -> 6 | L71: 6
B72: TOP-IN | C72: ETODSGT-E | D72: PWRODS | E72: - | F72: - | G72: - | H72: - | I72: 1 | K72: =IF(L71=PWR!$B$44,K71+1,K71) -> 6 | L72: 7
B73: TOP-IN | C73: ERHYD-E | D73: PWRHYD | E73: - | F73: - | G73: - | H73: - | I73: 1 | K73: =IF(L72=PWR!$B$44,K72+1,K72) -> 6 | L73: 8
A74: * | C74: ERHYD-I | D74: 0 | E74: - | F74: - | G74: - | H74: - | I74: 1 | K74: =IF(L73=PWR!$B$44,K73+1,K73) -> 6 | L74: 9
B75: TOP-IN | C75: ETNUC-E | D75: PWRNUC | E75: - | F75: - | G75: - | H75: - | I75: 1 | K75: =IF(L74=PWR!$B$44,K74+1,K74) -> 6 | L75: 10

Sheet ITEMS_Comm
A1: =IF(Index!$E$3="Y","ITEMS","") -> ITEMS | B1: REGION1 | H1: * Entry #
A2: *
A3: *
A4: *
A5: *
A6: *
A7: * | B7: Comp | C7: Name | D7: Description | E7: Unit(s) | F7: Set Memberships | G7: Comment
A8: * | B8: Fuel Commodities are in TCH_SUP
A9: * | B9: Emission Commodities are in TCH_SUP | J9: first one group - commodity or tech, next emissions or energy
A10: * | B10: Other Commodities
A11: * | B11: E | C11: WAT | D11: Water | E11: PJ | F11: COM,ENV,ANNUAL,GHG
B12: E | C12: PWRENV | D12: Power Sector - Environmental Levy | E12: PJ | F12: COM,ENV,ANNUAL,GHG
B13: E | C13: PWREPE | D13: Power Sector Power Sector - PS Dummy Commodity - Existing | E13: PJ | F13: COM,NRG,DAYNITE,ELC
B14: E | C14: PWREPN | D14: Power Sector Power Sector - PS Dummy Commodity - New | E14: PJ | F14: COM,NRG,DAYNITE,ELC

Sheet fgd costs
A1: http://www.x-rates.com/average/?from=ZAR&to=USD&amount=1.00&year=2012
A2: Jan | B2: 0.124783 | C2: – | D2: 31 | E2: days
A3: Feb | B3: 0.130807 | C3: – | D3: 29 | E3: days | I3: Cost and Schedule for a Power Plant (606 MW) with Wet FGD Retrofit Technology (NREL,2012)
A4: Mar | B4: 0.13153 | C4: – | D4: 31 | E4: days
A5: Apr | B5: 0.127683 | C5: – | D5: 30 | E5: days
A6: May | B6: 0.122503 | C6: – | D6: 31 | E6: days
A7: Jun | B7: 0.119183 | C7: – | D7: 30 | E7: days
A8: Jul | B8: 0.121272 | C8: – | D8: 31 | E8: days
A9: Aug | B9: 0.121108 | C9: – | D9: 31 | E9: days
A10: Sep | B10: 0.120963 | C10: – | D10: 30 | E10: days
A11: Oct | B11: 0.11538 | C11: – | D11: 31 | E11: days
A12: Nov | B12: 0.113561 | C12: – | D12: 30 | E12: days
A13: Dec | B13: 0.115977 | C13: – | D13: 31 | E13: days
B14: =AVERAGE(B2:B13) -> 0.1220625
F20: Retrofit difficulty factor | G20: 1.1
A21: fgd | D21: ZAR (2012) | F21: ZAR (2010) | H21: USD (2012) | J21: 360
A22: 21572 | B22: 17519 | C22: invest | D22: =A22-B22 -> 4053 | E22: ZAR/kW | F22: =D22/(1+Index!$E$24)*G20 -> 4023.736462 | G22: /kW | H22: =D22*$B$14*$G$20 -> 544.1912438 | J22: =J21/B14 -> 2949.308756
A23: 552 | B23: 367 | C23: fix | D23: =A23-B23 -> 185 | E23: ZAR/kW | F23: =D23/(1+Index!$E$24) -> 166.967509 | G23: /kW | H23: =D23*$B$14 -> 22.5815625
A24: 51.2 | B24: 38.2 | C24: var | D24: =A24-B24 -> 13 | E24: ZAR/MWh | F24: =D24/(1+Index!$E$24)/3.6 -> 3.259125552 | G24: /GJ | H24: =D24*$B$14 -> 1.5868125
A25: 4,500 | B25: 4500 | C25: cap
F26: =F22*600 -> 2414241.877 | G26: R/kW*MW | H26: kRands
A27: FDG | B27: water withdrawal | C27: FDG efficiency penalty | F27: =F26/1000 -> 2414.241877 | H27: mRands
B28: l/kWh | E28: l/GJ
A29: WET | B29: 0.2 | C29: -0.004 | E29: =B29/3.6*1000 -> 55.55555556
A30: Semi-DRY

Sheet TS FGD
A1: =IF(Index!$E$14="N","","TS DATA") ->  | B1: REGION1 | AX1: * | AY1: * | AZ1: *
A2: * | AX2: Parameter # | AY2: row # | AZ2: Col #
A3: *
A4: * | AX4: gap needs to be in all ts
A5: *
A6: *
A7: * | B7: Parameter | C7: Arg1 | D7: Arg2 | E7: Arg3 | F7: Arg4 | G7: Arg5 | H7: Arg6 | I7: I/E Opt or Value | J7: 2006 | K7: =J7+1 -> 2007 | L7: =K7+1 -> 2008 | M7: 2009 | N7: 2010 | O7: 2011 | P7: 2012 | Q7: 2013 | R7: 2014 | S7: 2015 | T7: 2016 | U7: 2017 | V7: 2018 | W7: 2019 | X7: 2020 | Y7: 2021 | Z7: 2022 | AA7: 2023 | AB7: =AA7+1 -> 2024 | AC7: 2025 | AD7: 2026 | AE7: 2027 | AF7: 2028 | AG7: 2029 | AH7: 2030 | AI7: 2031 | AJ7: 2032 | AK7: 2033 | AL7: 2034 | AM7: 2035 | AN7: 2036 | AO7: 2037 | AP7: 2038 | AQ7: 2039 | AR7: =AM7+5 -> 2040 | AS7: =AR7+5 -> 2045 | AT7: =AS7+5 -> 2050 | AU7: =AT7+10 -> 2060 | AV7: =AU7+10 -> 2070
A8: *
A9: * | B9: 2 | C9: 3 | D9: =C9+1 -> 4 | E9: 5 | F9: 6 | G9: 7 | H9: 8 | I9: 9 | J9: 10 | K9: 11 | L9: 12 | M9: 13 | N9: 14 | O9: 15 | P9: 16 | Q9: 17 | R9: 18 | S9: 19 | T9: 20 | U9: 21 | V9: 22 | W9: 23 | X9: 24 | Y9: 25 | Z9: 26 | AA9: 27 | AB9: 28 | AC9: 29 | AD9: 30 | AE9: 31 | AF9: 32 | AG9: 33 | AH9: 34 | AI9: =AH9+1 -> 35 | AJ9: =AI9+1 -> 36 | AK9: =AJ9+1 -> 37 | AL9: =AK9+1 -> 38 | AM9: =AH9+1 -> 35 | AN9: 36 | AO9: 37 | AP9: 38 | AQ9: 39 | AR9: 36 | AS9: 37 | AT9: 38 | AU9: 39 | AV9: =AU9+1 -> 40
A10: *1 | B10: ACT_EFF | C10: Process | D10: - | E10: #ACTGRP | F10: - | G10: #ANNUAL | H10: - | I10: #0 | J10: =PWR!I39 -> Efficiency | AZ10: =PWR!$H$34 -> 0
A11: *2 | B11: ACT_COST | C11: Process | D11: - | E11: - | F11: - | G11: - | H11: - | I11: #0 | J11: =PWR!P39 -> Variable Costs | AZ11: =PWR!$M$34 -> 0
A12: *3 | B12: PRC_ACTFLO | C12: Process | D12: - | E12: #WAT | F12: - | G12: - | H12: - | I12: #0 | J12: =PWR!R39 -> Water use | AZ12: =PWR!N31 -> 0
A13: *4 | B13: NCAP_FOM | C13: Process | D13: - | E13: - | F13: - | G13: - | H13: - | I13: #0 | J13: =PWR!Q39 -> Fixed Costs | AZ13: =PWR!N32 -> 0
A14: *5 | B14: FLO_EMIS | C14: Process | D14: #PWRSOXS | E14: #ACTGRP | F14: - | G14: #ANNUAL | H14: - | I14: #0 | J14: =PWR!T39 -> SOX reductions | AZ14: =PWR!N33 -> 0
A15: *
A16: * | B16: Parameter | C16: Arg1 | D16: Arg2 | E16: Arg3 | F16: Arg4 | G16: Arg5 | H16: Arg6 | I16: I/E Opt or Value | J16: 2006 | K16: =J16+1 -> 2007 | L16: 2008 | M16: 2009 | N16: 2010 | O16: 2011 | P16: 2012 | Q16: 2013 | R16: 2014 | S16: 2015 | T16: 2016 | U16: 2017 | V16: 2018 | W16: 2019 | X16: 2020 | Y16: 2021 | Z16: 2022 | AA16: 2023 | AB16: 2024 | AC16: 2025 | AD16: 2026 | AE16: 2027 | AF16: 2028 | AG16: 2029 | AH16: 2030 | AI16: =AH16+1 -> 2031 | AJ16: =AI16+1 -> 2032 | AK16: =AJ16+1 -> 2033 | AL16: =AK16+1 -> 2034 | AM16: =AH16+5 -> 2035 | AN16: 2036 | AO16: 2037 | AP16: 2038 | AQ16: 2039 | AR16: 2040 | AS16: =AR16+5 -> 2045 | AT16: =AS16+5 -> 2050 | AU16: =AT16+10 -> 2060 | AV16: =AU16+10 -> 2070
A17: *
B18: =IF(A18="*","",VLOOKUP("*"&AX18,$A$9:$B$14,2,FALSE)) -> ACT_EFF | C18: =OFFSET(epp_start,AY18,0) -> ETCLEPFW-E | D18: =IF(VLOOKUP("*"&$AX18,par_TS_ETech,D$9,FALSE)="-","-",IF(LEFT(VLOOKUP("*"&$AX18,par_TS_ETech,D$9,FALSE),1)="#",RIGHT(VLOOKUP("*"&$AX18,par_TS_ETech,D$9,FALSE),LEN(VLOOKUP("*"&$AX18,par_TS_ETech,D$9,FALSE))-1),VLOOKUP($C18,etech_data,MATCH(VLOOKUP("*"&$AX18,par_TS_ETech,D$9,FALSE),etech_parameters,0),FALSE))) -> - | E18: ACTGRP | F18: - | G18: ANNUAL | H18: - | I18: 0 | J18: =IFERROR(VLOOKUP($C18,etech_data,MATCH(VLOOKUP("*"&$AX18,$A$10:$J$14,$J$9,FALSE)&J$16,etech_parameters,0),FALSE),"0") -> 0.3452487314 | K18: =IF(K$16=Index!$E$14,$J18+'fgd costs'!$C$29,IF(K$16=Index!$E$14-5,$J18,"")) ->  | L18: =IF(L$16=Index!$E$14,$J18+'fgd costs'!$C$29,IF(L$16=Index!$E$14-5,$J18,"")) ->  | M18: =IF(M$16=Index!$E$14,$J18+'fgd costs'!$C$29,IF(M$16=Index!$E$14-5,$J18,"")) ->  | N18: =IF(N$16=Index!$E$14,$J18+'fgd costs'!$C$29,IF(N$16=Index!$E$14-5,$J18,"")) ->  | O18: =IF(O$16=Index!$E$14,$J18+'fgd costs'!$C$29,IF(O$16=Index!$E$14-5,$J18,"")) ->  | P18: =IF(P$16=Index!$E$14,$J18+'fgd costs'!$C$29,IF(P$16=Index!$E$14-5,$J18,"")) ->  | Q18: =IF(Q$16=Index!$E$14,$J18+'fgd costs'!$C$29,IF(Q$16=Index!$E$14-5,$J18,"")) ->  | R18: =IF(R$16=Index!$E$14,$J18+'fgd costs'!$C$29,IF(R$16=Index!$E$14-5,$J18,"")) ->  | S18: =IF(S$16=Index!$E$14,$J18+'fgd costs'!$C$29,IF(S$16=Index!$E$14-5,$J18,"")) ->  | T18: =IF(T$16=Index!$E$14,$J18+'fgd costs'!$C$29,IF(T$16=Index!$E$14-5,$J18,"")) ->  | U18: =IF(U$16=Index!$E$14,$J18+'fgd costs'!$C$29,IF(U$16=Index!$E$14-5,$J18,"")) ->  | V18: =IF(V$16=Index!$E$14,$J18+'fgd costs'!$C$29,IF(V$16=Index!$E$14-5,$J18,"")) ->  | W18: =IF(W$16=Index!$E$14,$J18+'fgd costs'!$C$29,IF(W$16=Index!$E$14-5,$J18,"")) ->  | X18: =IF(X$16=Index!$E$14,$J18+'fgd costs'!$C$29,IF(X$16=Index!$E$14-5,$J18,"")) ->  | Y18: =IF(Y$16=Index!$E$14,$J18+'fgd costs'!$C$29,IF(Y$16=Index!$E$14-5,$J18,"")) ->  | Z18: =IF(Z$16=Index!$E$14,$J18+'fgd costs'!$C$29,IF(Z$16=Index!$E$14-5,$J18,"")) ->  | AA18: =IF(AA$16=Index!$E$14,$J18+'fgd costs'!$C$29,IF(AA$16=Index!$E$14-5,$J18,"")) ->  | AB18: =IF(AB$16=Index!$E$14,$J18+'fgd costs'!$C$29,IF(AB$16=Index!$E$14-5,$J18,"")) ->  | AC18: =IF(AC$16=Index!$E$14,$J18+'fgd costs'!$C$29,IF(AC$16=Index!$E$14-5,$J18,"")) ->  | AD18: =IF(AD$16=Index!$E$14,$J18+'fgd costs'!$C$29,IF(AD$16=Index!$E$14-5,$J18,"")) ->  | AE18: =IF(AE$16=Index!$E$14,$J18+'fgd costs'!$C$29,IF(AE$16=Index!$E$14-5,$J18,"")) ->  | AF18: =IF(AF$16=Index!$E$14,$J18+'fgd costs'!$C$29,IF(AF$16=Index!$E$14-5,$J18,"")) ->  | AG18: =IF(AG$16=Index!$E$14,$J18+'fgd costs'!$C$29,IF(AG$16=Index!$E$14-5,$J18,"")) ->  | AH18: =IF(AH$16=Index!$E$14,$J18+'fgd costs'!$C$29,IF(AH$16=Index!$E$14-5,$J18,"")) ->  | AI18: =IF(AI$16=Index!$E$14,$J18+'fgd costs'!$C$29,IF(AI$16=Index!$E$14-5,$J18,"")) ->  | AJ18: =IF(AJ$16=Index!$E$14,$J18+'fgd costs'!$C$29,IF(AJ$16=Index!$E$14-5,$J18,"")) ->  | AK18: =IF(AK$16=Index!$E$14,$J18+'fgd costs'!$C$29,IF(AK$16=Index!$E$14-5,$J18,"")) ->  | AL18: =IF(AL$16=Index!$E$14,$J18+'fgd costs'!$C$29,IF(AL$16=Index!$E$14-5,$J18,"")) ->  | AM18: =IF(AM$16=Index!$E$14,$J18+'fgd costs'!$C$29,IF(AM$16=Index!$E$14-5,$J18,"")) ->  | AN18: =IF(AN$16=Index!$E$14,$J18+'fgd costs'!$C$29,IF(AN$16=Index!$E$14-5,$J18,"")) ->  | AO18: =IF(AO$16=Index!$E$14,$J18+'fgd costs'!$C$29,IF(AO$16=Index!$E$14-5,$J18,"")) ->  | AP18: =IF(AP$16=Index!$E$14,$J18+'fgd costs'!$C$29,IF(AP$16=Index!$E$14-5,$J18,"")) ->  | AQ18: =IF(AQ$16=Index!$E$14,$J18+'fgd costs'!$C$29,IF(AQ$16=Index!$E$14-5,$J18,"")) ->  | AR18: =IF(AR$16=Index!$E$14,$J18+'fgd costs'!$C$29,IF(AR$16=Index!$E$14-5,$J18,"")) ->  | AS18: =IFERROR(VLOOKUP($C18,etech_data,MATCH(VLOOKUP($B18,$B$10:$J$14,$J$9-1,FALSE)&AS$16,etech_parameters,0),FALSE),"") ->  | AX18: 1 | AY18: 1
B19: ACT_EFF | C19: ETCLEPFD-E | D19: - | E19: ACTGRP | F19: - | G19: ANNUAL | H19: - | I19: 0 | J19: 0.3357487063 | K19: =IF(K$16=Index!$E$14,$J19+'fgd costs'!$C$29,IF(K$16=Index!$E$14-5,$J19,"")) ->  | L19: =IF(L$16=Index!$E$14,$J19+'fgd costs'!$C$29,IF(L$16=Index!$E$14-5,$J19,"")) ->  | M19: =IF(M$16=Index!$E$14,$J19+'fgd costs'!$C$29,IF(M$16=Index!$E$14-5,$J19,"")) ->  | N19: =IF(N$16=Index!$E$14,$J19+'fgd costs'!$C$29,IF(N$16=Index!$E$14-5,$J19,"")) ->  | O19: =IF(O$16=Index!$E$14,$J19+'fgd costs'!$C$29,IF(O$16=Index!$E$14-5,$J19,"")) ->  | P19: =IF(P$16=Index!$E$14,$J19+'fgd costs'!$C$29,IF(P$16=Index!$E$14-5,$J19,"")) ->  | Q19: =IF(Q$16=Index!$E$14,$J19+'fgd costs'!$C$29,IF(Q$16=Index!$E$14-5,$J19,"")) ->  | R19: =IF(R$16=Index!$E$14,$J19+'fgd costs'!$C$29,IF(R$16=Index!$E$14-5,$J19,"")) ->  | S19: =IF(S$16=Index!$E$14,$J19+'fgd costs'!$C$29,IF(S$16=Index!$E$14-5,$J19,"")) ->  | T19: =IF(T$16=Index!$E$14,$J19+'fgd costs'!$C$29,IF(T$16=Index!$E$14-5,$J19,"")) ->  | U19: =IF(U$16=Index!$E$14,$J19+'fgd costs'!$C$29,IF(U$16=Index!$E$14-5,$J19,"")) ->  | V19: =IF(V$16=Index!$E$14,$J19+'fgd costs'!$C$29,IF(V$16=Index!$E$14-5,$J19,"")) ->  | W19: =IF(W$16=Index!$E$14,$J19+'fgd costs'!$C$29,IF(W$16=Index!$E$14-5,$J19,"")) ->  | X19: =IF(X$16=Index!$E$14,$J19+'fgd costs'!$C$29,IF(X$16=Index!$E$14-5,$J19,"")) ->  | Y19: =IF(Y$16=Index!$E$14,$J19+'fgd costs'!$C$29,IF(Y$16=Index!$E$14-5,$J19,"")) ->  | Z19: =IF(Z$16=Index!$E$14,$J19+'fgd costs'!$C$29,IF(Z$16=Index!$E$14-5,$J19,"")) ->  | AA19: =IF(AA$16=Index!$E$14,$J19+'fgd costs'!$C$29,IF(AA$16=Index!$E$14-5,$J19,"")) ->  | AB19: =IF(AB$16=Index!$E$14,$J19+'fgd costs'!$C$29,IF(AB$16=Index!$E$14-5,$J19,"")) ->  | AC19: =IF(AC$16=Index!$E$14,$J19+'fgd costs'!$C$29,IF(AC$16=Index!$E$14-5,$J19,"")) ->  | AD19: =IF(AD$16=Index!$E$14,$J19+'fgd costs'!$C$29,IF(AD$16=Index!$E$14-5,$J19,"")) ->  | AE19: =IF(AE$16=Index!$E$14,$J19+'fgd costs'!$C$29,IF(AE$16=Index!$E$14-5,$J19,"")) ->  | AF19: =IF(AF$16=Index!$E$14,$J19+'fgd costs'!$C$29,IF(AF$16=Index!$E$14-5,$J19,"")) ->  | AG19: =IF(AG$16=Index!$E$14,$J19+'fgd costs'!$C$29,IF(AG$16=Index!$E$14-5,$J19,"")) ->  | AH19: =IF(AH$16=Index!$E$14,$J19+'fgd costs'!$C$29,IF(AH$16=Index!$E$14-5,$J19,"")) ->  | AI19: =IF(AI$16=Index!$E$14,$J19+'fgd costs'!$C$29,IF(AI$16=Index!$E$14-5,$J19,"")) ->  | AJ19: =IF(AJ$16=Index!$E$14,$J19+'fgd costs'!$C$29,IF(AJ$16=Index!$E$14-5,$J19,"")) ->  | AK19: =IF(AK$16=Index!$E$14,$J19+'fgd costs'!$C$29,IF(AK$16=Index!$E$14-5,$J19,"")) ->  | AL19: =IF(AL$16=Index!$E$14,$J19+'fgd costs'!$C$29,IF(AL$16=Index!$E$14-5,$J19,"")) ->  | AM19: =IF(AM$16=Index!$E$14,$J19+'fgd costs'!$C$29,IF(AM$16=Index!$E$14-5,$J19,"")) ->  | AN19: =IF(AN$16=Index!$E$14,$J19+'fgd costs'!$C$29,IF(AN$16=Index!$E$14-5,$J19,"")) ->  | AO19: =IF(AO$16=Index!$E$14,$J19+'fgd costs'!$C$29,IF(AO$16=Index!$E$14-5,$J19,"")) ->  | AP19: =IF(AP$16=Index!$E$14,$J19+'fgd costs'!$C$29,IF(AP$16=Index!$E$14-5,$J19,"")) ->  | AQ19: =IF(AQ$16=Index!$E$14,$J19+'fgd costs'!$C$29,IF(AQ$16=Index!$E$14-5,$J19,"")) ->  | AR19: =IF(AR$16=Index!$E$14,$J19+'fgd costs'!$C$29,IF(AR$16=Index!$E$14-5,$J19,"")) ->  | AX19: =IF(AY18=PWR!$B$44,AX18+1,AX18) -> 1 | AY19: =IF(AX19=AX18,AY18+1,1) -> 2
B20: ACT_EFF | C20: ETCLEPFS-E | D20: - | E20: ACTGRP | F20: - | G20: ANNUAL | H20: - | I20: 0 | J20: 0.2864610458 | K20: =IF(K$16=Index!$E$14,$J20+'fgd costs'!$C$29,IF(K$16=Index!$E$14-5,$J20,"")) ->  | L20: =IF(L$16=Index!$E$14,$J20+'fgd costs'!$C$29,IF(L$16=Index!$E$14-5,$J20,"")) ->  | M20: =IF(M$16=Index!$E$14,$J20+'fgd costs'!$C$29,IF(M$16=Index!$E$14-5,$J20,"")) ->  | N20: =IF(N$16=Index!$E$14,$J20+'fgd costs'!$C$29,IF(N$16=Index!$E$14-5,$J20,"")) ->  | O20: =IF(O$16=Index!$E$14,$J20+'fgd costs'!$C$29,IF(O$16=Index!$E$14-5,$J20,"")) ->  | P20: =IF(P$16=Index!$E$14,$J20+'fgd costs'!$C$29,IF(P$16=Index!$E$14-5,$J20,"")) ->  | Q20: =IF(Q$16=Index!$E$14,$J20+'fgd costs'!$C$29,IF(Q$16=Index!$E$14-5,$J20,"")) ->  | R20: =IF(R$16=Index!$E$14,$J20+'fgd costs'!$C$29,IF(R$16=Index!$E$14-5,$J20,"")) ->  | S20: =IF(S$16=Index!$E$14,$J20+'fgd costs'!$C$29,IF(S$16=Index!$E$14-5,$J20,"")) ->  | T20: =IF(T$16=Index!$E$14,$J20+'fgd costs'!$C$29,IF(T$16=Index!$E$14-5,$J20,"")) ->  | U20: =IF(U$16=Index!$E$14,$J20+'fgd costs'!$C$29,IF(U$16=Index!$E$14-5,$J20,"")) ->  | V20: =IF(V$16=Index!$E$14,$J20+'fgd costs'!$C$29,IF(V$16=Index!$E$14-5,$J20,"")) ->  | W20: =IF(W$16=Index!$E$14,$J20+'fgd costs'!$C$29,IF(W$16=Index!$E$14-5,$J20,"")) ->  | X20: =IF(X$16=Index!$E$14,$J20+'fgd costs'!$C$29,IF(X$16=Index!$E$14-5,$J20,"")) ->  | Y20: =IF(Y$16=Index!$E$14,$J20+'fgd costs'!$C$29,IF(Y$16=Index!$E$14-5,$J20,"")) ->  | Z20: =IF(Z$16=Index!$E$14,$J20+'fgd costs'!$C$29,IF(Z$16=Index!$E$14-5,$J20,"")) ->  | AA20: =IF(AA$16=Index!$E$14,$J20+'fgd costs'!$C$29,IF(AA$16=Index!$E$14-5,$J20,"")) ->  | AB20: =IF(AB$16=Index!$E$14,$J20+'fgd costs'!$C$29,IF(AB$16=Index!$E$14-5,$J20,"")) ->  | AC20: =IF(AC$16=Index!$E$14,$J20+'fgd costs'!$C$29,IF(AC$16=Index!$E$14-5,$J20,"")) ->  | AD20: =IF(AD$16=Index!$E$14,$J20+'fgd costs'!$C$29,IF(AD$16=Index!$E$14-5,$J20,"")) ->  | AE20: =IF(AE$16=Index!$E$14,$J20+'fgd costs'!$C$29,IF(AE$16=Index!$E$14-5,$J20,"")) ->  | AF20: =IF(AF$16=Index!$E$14,$J20+'fgd costs'!$C$29,IF(AF$16=Index!$E$14-5,$J20,"")) ->  | AG20: =IF(AG$16=Index!$E$14,$J20+'fgd costs'!$C$29,IF(AG$16=Index!$E$14-5,$J20,"")) ->  | AH20: =IF(AH$16=Index!$E$14,$J20+'fgd costs'!$C$29,IF(AH$16=Index!$E$14-5,$J20,"")) ->  | AI20: =IF(AI$16=Index!$E$14,$J20+'fgd costs'!$C$29,IF(AI$16=Index!$E$14-5,$J20,"")) ->  | AJ20: =IF(AJ$16=Index!$E$14,$J20+'fgd costs'!$C$29,IF(AJ$16=Index!$E$14-5,$J20,"")) ->  | AK20: =IF(AK$16=Index!$E$14,$J20+'fgd costs'!$C$29,IF(AK$16=Index!$E$14-5,$J20,"")) ->  | AL20: =IF(AL$16=Index!$E$14,$J20+'fgd costs'!$C$29,IF(AL$16=Index!$E$14-5,$J20,"")) ->  | AM20: =IF(AM$16=Index!$E$14,$J20+'fgd costs'!$C$29,IF(AM$16=Index!$E$14-5,$J20,"")) ->  | AN20: =IF(AN$16=Index!$E$14,$J20+'fgd costs'!$C$29,IF(AN$16=Index!$E$14-5,$J20,"")) ->  | AO20: =IF(AO$16=Index!$E$14,$J20+'fgd costs'!$C$29,IF(AO$16=Index!$E$14-5,$J20,"")) ->  | AP20: =IF(AP$16=Index!$E$14,$J20+'fgd costs'!$C$29,IF(AP$16=Index!$E$14-5,$J20,"")) ->  | AQ20: =IF(AQ$16=Index!$E$14,$J20+'fgd costs'!$C$29,IF(AQ$16=Index!$E$14-5,$J20,"")) ->  | AR20: =IF(AR$16=Index!$E$14,$J20+'fgd costs'!$C$29,IF(AR$16=Index!$E$14-5,$J20,"")) ->  | AX20: =IF(AY19=PWR!$B$44,AX19+1,AX19) -> 1 | AY20: =IF(AX20=AX19,AY19+1,1) -> 3
B21: ACT_EFF | C21: ETCLEPFM-E | D21: - | E21: ACTGRP | F21: - | G21: ANNUAL | H21: - | I21: 0 | J21: 0.2454540352 | K21: =IF(K$16=Index!$E$14,$J21+'fgd costs'!$C$29,IF(K$16=Index!$E$14-5,$J21,"")) ->  | L21: =IF(L$16=Index!$E$14,$J21+'fgd costs'!$C$29,IF(L$16=Index!$E$14-5,$J21,"")) ->  | M21: =IF(M$16=Index!$E$14,$J21+'fgd costs'!$C$29,IF(M$16=Index!$E$14-5,$J21,"")) ->  | N21: =IF(N$16=Index!$E$14,$J21+'fgd costs'!$C$29,IF(N$16=Index!$E$14-5,$J21,"")) ->  | O21: =IF(O$16=Index!$E$14,$J21+'fgd costs'!$C$29,IF(O$16=Index!$E$14-5,$J21,"")) ->  | P21: =IF(P$16=Index!$E$14,$J21+'fgd costs'!$C$29,IF(P$16=Index!$E$14-5,$J21,"")) ->  | Q21: =IF(Q$16=Index!$E$14,$J21+'fgd costs'!$C$29,IF(Q$16=Index!$E$14-5,$J21,"")) ->  | R21: =IF(R$16=Index!$E$14,$J21+'fgd costs'!$C$29,IF(R$16=Index!$E$14-5,$J21,"")) ->  | S21: =IF(S$16=Index!$E$14,$J21+'fgd costs'!$C$29,IF(S$16=Index!$E$14-5,$J21,"")) ->  | T21: =IF(T$16=Index!$E$14,$J21+'fgd costs'!$C$29,IF(T$16=Index!$E$14-5,$J21,"")) ->  | U21: =IF(U$16=Index!$E$14,$J21+'fgd costs'!$C$29,IF(U$16=Index!$E$14-5,$J21,"")) ->  | V21: =IF(V$16=Index!$E$14,$J21+'fgd costs'!$C$29,IF(V$16=Index!$E$14-5,$J21,"")) ->  | W21: =IF(W$16=Index!$E$14,$J21+'fgd costs'!$C$29,IF(W$16=Index!$E$14-5,$J21,"")) ->  | X21: =IF(X$16=Index!$E$14,$J21+'fgd costs'!$C$29,IF(X$16=Index!$E$14-5,$J21,"")) ->  | Y21: =IF(Y$16=Index!$E$14,$J21+'fgd costs'!$C$29,IF(Y$16=Index!$E$14-5,$J21,"")) ->  | Z21: =IF(Z$16=Index!$E$14,$J21+'fgd costs'!$C$29,IF(Z$16=Index!$E$14-5,$J21,"")) ->  | AA21: =IF(AA$16=Index!$E$14,$J21+'fgd costs'!$C$29,IF(AA$16=Index!$E$14-5,$J21,"")) ->  | AB21: =IF(AB$16=Index!$E$14,$J21+'fgd costs'!$C$29,IF(AB$16=Index!$E$14-5,$J21,"")) ->  | AC21: =IF(AC$16=Index!$E$14,$J21+'fgd costs'!$C$29,IF(AC$16=Index!$E$14-5,$J21,"")) ->  | AD21: =IF(AD$16=Index!$E$14,$J21+'fgd costs'!$C$29,IF(AD$16=Index!$E$14-5,$J21,"")) ->  | AE21: =IF(AE$16=Index!$E$14,$J21+'fgd costs'!$C$29,IF(AE$16=Index!$E$14-5,$J21,"")) ->  | AF21: =IF(AF$16=Index!$E$14,$J21+'fgd costs'!$C$29,IF(AF$16=Index!$E$14-5,$J21,"")) ->  | AG21: =IF(AG$16=Index!$E$14,$J21+'fgd costs'!$C$29,IF(AG$16=Index!$E$14-5,$J21,"")) ->  | AH21: =IF(AH$16=Index!$E$14,$J21+'fgd costs'!$C$29,IF(AH$16=Index!$E$14-5,$J21,"")) ->  | AI21: =IF(AI$16=Index!$E$14,$J21+'fgd costs'!$C$29,IF(AI$16=Index!$E$14-5,$J21,"")) ->  | AJ21: =IF(AJ$16=Index!$E$14,$J21+'fgd costs'!$C$29,IF(AJ$16=Index!$E$14-5,$J21,"")) ->  | AK21: =IF(AK$16=Index!$E$14,$J21+'fgd costs'!$C$29,IF(AK$16=Index!$E$14-5,$J21,"")) ->  | AL21: =IF(AL$16=Index!$E$14,$J21+'fgd costs'!$C$29,IF(AL$16=Index!$E$14-5,$J21,"")) ->  | AM21: =IF(AM$16=Index!$E$14,$J21+'fgd costs'!$C$29,IF(AM$16=Index!$E$14-5,$J21,"")) ->  | AN21: =IF(AN$16=Index!$E$14,$J21+'fgd costs'!$C$29,IF(AN$16=Index!$E$14-5,$J21,"")) ->  | AO21: =IF(AO$16=Index!$E$14,$J21+'fgd costs'!$C$29,IF(AO$16=Index!$E$14-5,$J21,"")) ->  | AP21: =IF(AP$16=Index!$E$14,$J21+'fgd costs'!$C$29,IF(AP$16=Index!$E$14-5,$J21,"")) ->  | AQ21: =IF(AQ$16=Index!$E$14,$J21+'fgd costs'!$C$29,IF(AQ$16=Index!$E$14-5,$J21,"")) ->  | AR21: =IF(AR$16=Index!$E$14,$J21+'fgd costs'!$C$29,IF(AR$16=Index!$E$14-5,$J21,"")) ->  | AX21: =IF(AY20=PWR!$B$44,AX20+1,AX20) -> 1 | AY21: 4
B22: ACT_EFF | C22: ETCLEPFSS-E | D22: - | E22: ACTGRP | F22: - | G22: ANNUAL | H22: - | I22: 0 | J22: 0.2542903551 | K22: =IF(K$16=Index!$E$14,$J22+'fgd costs'!$C$29,IF(K$16=Index!$E$14-5,$J22,"")) ->  | L22: =IF(L$16=Index!$E$14,$J22+'fgd costs'!$C$29,IF(L$16=Index!$E$14-5,$J22,"")) ->  | M22: =IF(M$16=Index!$E$14,$J22+'fgd costs'!$C$29,IF(M$16=Index!$E$14-5,$J22,"")) ->  | N22: =IF(N$16=Index!$E$14,$J22+'fgd costs'!$C$29,IF(N$16=Index!$E$14-5,$J22,"")) ->  | O22: =IF(O$16=Index!$E$14,$J22+'fgd costs'!$C$29,IF(O$16=Index!$E$14-5,$J22,"")) ->  | P22: =IF(P$16=Index!$E$14,$J22+'fgd costs'!$C$29,IF(P$16=Index!$E$14-5,$J22,"")) ->  | Q22: =IF(Q$16=Index!$E$14,$J22+'fgd costs'!$C$29,IF(Q$16=Index!$E$14-5,$J22,"")) ->  | R22: =IF(R$16=Index!$E$14,$J22+'fgd costs'!$C$29,IF(R$16=Index!$E$14-5,$J22,"")) ->  | S22: =IF(S$16=Index!$E$14,$J22+'fgd costs'!$C$29,IF(S$16=Index!$E$14-5,$J22,"")) ->  | T22: =IF(T$16=Index!$E$14,$J22+'fgd costs'!$C$29,IF(T$16=Index!$E$14-5,$J22,"")) ->  | U22: =IF(U$16=Index!$E$14,$J22+'fgd costs'!$C$29,IF(U$16=Index!$E$14-5,$J22,"")) ->  | V22: =IF(V$16=Index!$E$14,$J22+'fgd costs'!$C$29,IF(V$16=Index!$E$14-5,$J22,"")) ->  | W22: =IF(W$16=Index!$E$14,$J22+'fgd costs'!$C$29,IF(W$16=Index!$E$14-5,$J22,"")) ->  | X22: =IF(X$16=Index!$E$14,$J22+'fgd costs'!$C$29,IF(X$16=Index!$E$14-5,$J22,"")) ->  | Y22: =IF(Y$16=Index!$E$14,$J22+'fgd costs'!$C$29,IF(Y$16=Index!$E$14-5,$J22,"")) ->  | Z22: =IF(Z$16=Index!$E$14,$J22+'fgd costs'!$C$29,IF(Z$16=Index!$E$14-5,$J22,"")) ->  | AA22: =IF(AA$16=Index!$E$14,$J22+'fgd costs'!$C$29,IF(AA$16=Index!$E$14-5,$J22,"")) ->  | AB22: =IF(AB$16=Index!$E$14,$J22+'fgd costs'!$C$29,IF(AB$16=Index!$E$14-5,$J22,"")) ->  | AC22: =IF(AC$16=Index!$E$14,$J22+'fgd costs'!$C$29,IF(AC$16=Index!$E$14-5,$J22,"")) ->  | AD22: =IF(AD$16=Index!$E$14,$J22+'fgd costs'!$C$29,IF(AD$16=Index!$E$14-5,$J22,"")) ->  | AE22: =IF(AE$16=Index!$E$14,$J22+'fgd costs'!$C$29,IF(AE$16=Index!$E$14-5,$J22,"")) ->  | AF22: =IF(AF$16=Index!$E$14,$J22+'fgd costs'!$C$29,IF(AF$16=Index!$E$14-5,$J22,"")) ->  | AG22: =IF(AG$16=Index!$E$14,$J22+'fgd costs'!$C$29,IF(AG$16=Index!$E$14-5,$J22,"")) ->  | AH22: =IF(AH$16=Index!$E$14,$J22+'fgd costs'!$C$29,IF(AH$16=Index!$E$14-5,$J22,"")) ->  | AI22: =IF(AI$16=Index!$E$14,$J22+'fgd costs'!$C$29,IF(AI$16=Index!$E$14-5,$J22,"")) ->  | AJ22: =IF(AJ$16=Index!$E$14,$J22+'fgd costs'!$C$29,IF(AJ$16=Index!$E$14-5,$J22,"")) ->  | AK22: =IF(AK$16=Index!$E$14,$J22+'fgd costs'!$C$29,IF(AK$16=Index!$E$14-5,$J22,"")) ->  | AL22: =IF(AL$16=Index!$E$14,$J22+'fgd costs'!$C$29,IF(AL$16=Index!$E$14-5,$J22,"")) ->  | AM22: =IF(AM$16=Index!$E$14,$J22+'fgd costs'!$C$29,IF(AM$16=Index!$E$14-5,$J22,"")) ->  | AN22: =IF(AN$16=Index!$E$14,$J22+'fgd costs'!$C$29,IF(AN$16=Index!$E$14-5,$J22,"")) ->  | AO22: =IF(AO$16=Index!$E$14,$J22+'fgd costs'!$C$29,IF(AO$16=Index!$E$14-5,$J22,"")) ->  | AP22: =IF(AP$16=Index!$E$14,$J22+'fgd costs'!$C$29,IF(AP$16=Index!$E$14-5,$J22,"")) ->  | AQ22: =IF(AQ$16=Index!$E$14,$J22+'fgd costs'!$C$29,IF(AQ$16=Index!$E$14-5,$J22,"")) ->  | AR22: =IF(AR$16=Index!$E$14,$J22+'fgd costs'!$C$29,IF(AR$16=Index!$E$14-5,$J22,"")) ->  | AX22: =IF(AY21=PWR!$B$44,AX21+1,AX21) -> 1 | AY22: 5
B23: ACT_EFF | C23: ETCLEPFSI-E | D23: - | E23: ACTGRP | F23: - | G23: ANNUAL | H23: - | I23: 0 | J23: 0.2542903551 | K23: =IF(K$16=Index!$E$14,$J23+'fgd costs'!$C$29,IF(K$16=Index!$E$14-5,$J23,"")) ->  | L23: =IF(L$16=Index!$E$14,$J23+'fgd costs'!$C$29,IF(L$16=Index!$E$14-5,$J23,"")) ->  | M23: =IF(M$16=Index!$E$14,$J23+'fgd costs'!$C$29,IF(M$16=Index!$E$14-5,$J23,"")) ->  | N23: =IF(N$16=Index!$E$14,$J23+'fgd costs'!$C$29,IF(N$16=Index!$E$14-5,$J23,"")) ->  | O23: =IF(O$16=Index!$E$14,$J23+'fgd costs'!$C$29,IF(O$16=Index!$E$14-5,$J23,"")) ->  | P23: =IF(P$16=Index!$E$14,$J23+'fgd costs'!$C$29,IF(P$16=Index!$E$14-5,$J23,"")) ->  | Q23: =IF(Q$16=Index!$E$14,$J23+'fgd costs'!$C$29,IF(Q$16=Index!$E$14-5,$J23,"")) ->  | R23: =IF(R$16=Index!$E$14,$J23+'fgd costs'!$C$29,IF(R$16=Index!$E$14-5,$J23,"")) ->  | S23: =IF(S$16=Index!$E$14,$J23+'fgd costs'!$C$29,IF(S$16=Index!$E$14-5,$J23,"")) ->  | T23: =IF(T$16=Index!$E$14,$J23+'fgd costs'!$C$29,IF(T$16=Index!$E$14-5,$J23,"")) ->  | U23: =IF(U$16=Index!$E$14,$J23+'fgd costs'!$C$29,IF(U$16=Index!$E$14-5,$J23,"")) ->  | V23: =IF(V$16=Index!$E$14,$J23+'fgd costs'!$C$29,IF(V$16=Index!$E$14-5,$J23,"")) ->  | W23: =IF(W$16=Index!$E$14,$J23+'fgd costs'!$C$29,IF(W$16=Index!$E$14-5,$J23,"")) ->  | X23: =IF(X$16=Index!$E$14,$J23+'fgd costs'!$C$29,IF(X$16=Index!$E$14-5,$J23,"")) ->  | Y23: =IF(Y$16=Index!$E$14,$J23+'fgd costs'!$C$29,IF(Y$16=Index!$E$14-5,$J23,"")) ->  | Z23: =IF(Z$16=Index!$E$14,$J23+'fgd costs'!$C$29,IF(Z$16=Index!$E$14-5,$J23,"")) ->  | AA23: =IF(AA$16=Index!$E$14,$J23+'fgd costs'!$C$29,IF(AA$16=Index!$E$14-5,$J23,"")) ->  | AB23: =IF(AB$16=Index!$E$14,$J23+'fgd costs'!$C$29,IF(AB$16=Index!$E$14-5,$J23,"")) ->  | AC23: =IF(AC$16=Index!$E$14,$J23+'fgd costs'!$C$29,IF(AC$16=Index!$E$14-5,$J23,"")) ->  | AD23: =IF(AD$16=Index!$E$14,$J23+'fgd costs'!$C$29,IF(AD$16=Index!$E$14-5,$J23,"")) ->  | AE23: =IF(AE$16=Index!$E$14,$J23+'fgd costs'!$C$29,IF(AE$16=Index!$E$14-5,$J23,"")) ->  | AF23: =IF(AF$16=Index!$E$14,$J23+'fgd costs'!$C$29,IF(AF$16=Index!$E$14-5,$J23,"")) ->  | AG23: =IF(AG$16=Index!$E$14,$J23+'fgd costs'!$C$29,IF(AG$16=Index!$E$14-5,$J23,"")) ->  | AH23: =IF(AH$16=Index!$E$14,$J23+'fgd costs'!$C$29,IF(AH$16=Index!$E$14-5,$J23,"")) ->  | AI23: =IF(AI$16=Index!$E$14,$J23+'fgd costs'!$C$29,IF(AI$16=Index!$E$14-5,$J23,"")) ->  | AJ23: =IF(AJ$16=Index!$E$14,$J23+'fgd costs'!$C$29,IF(AJ$16=Index!$E$14-5,$J23,"")) ->  | AK23: =IF(AK$16=Index!$E$14,$J23+'fgd costs'!$C$29,IF(AK$16=Index!$E$14-5,$J23,"")) ->  | AL23: =IF(AL$16=Index!$E$14,$J23+'fgd costs'!$C$29,IF(AL$16=Index!$E$14-5,$J23,"")) ->  | AM23: =IF(AM$16=Index!$E$14,$J23+'fgd costs'!$C$29,IF(AM$16=Index!$E$14-5,$J23,"")) ->  | AN23: =IF(AN$16=Index!$E$14,$J23+'fgd costs'!$C$29,IF(AN$16=Index!$E$14-5,$J23,"")) ->  | AO23: =IF(AO$16=Index!$E$14,$J23+'fgd costs'!$C$29,IF(AO$16=Index!$E$14-5,$J23,"")) ->  | AP23: =IF(AP$16=Index!$E$14,$J23+'fgd costs'!$C$29,IF(AP$16=Index!$E$14-5,$J23,"")) ->  | AQ23: =IF(AQ$16=Index!$E$14,$J23+'fgd costs'!$C$29,IF(AQ$16=Index!$E$14-5,$J23,"")) ->  | AR23: =IF(AR$16=Index!$E$14,$J23+'fgd costs'!$C$29,IF(AR$16=Index!$E$14-5,$J23,"")) ->  | AX23: =IF(AY22=PWR!$B$44,AX22+1,AX22) -> 1 | AY23: 6
A24: * | C24: ETODSGT-E | D24: - | E24: ACTGRP | F24: - | G24: ANNUAL | H24: - | I24: 0 | J24: 0.3227102459 | K24: =IFERROR(VLOOKUP($C24,etech_data,MATCH(VLOOKUP($B24,$B$10:$J$14,$J$9-1,FALSE)&K$16,etech_parameters,0),FALSE),"") ->  | U24: =IFERROR(VLOOKUP($C24,etech_data,MATCH(VLOOKUP($B24,$B$10:$J$14,$J$9-1,FALSE)&U$16,etech_parameters,0),FALSE),"") ->  | AE24: =IFERROR(VLOOKUP($C24,etech_data,MATCH(VLOOKUP($B24,$B$10:$J$14,$J$9-1,FALSE)&AE$16,etech_parameters,0),FALSE),"") ->  | AX24: =IF(AY23=PWR!$B$44,AX23+1,AX23) -> 1 | AY24: 7
A25: * | C25: ERHYD-E | D25: - | E25: ACTGRP | F25: - | G25: ANNUAL | H25: - | I25: 0 | J25: 1 | AX25: =IF(AY24=PWR!$B$44,AX24+1,AX24) -> 1 | AY25: 8
A26: * | C26: ERHYD-I | D26: - | E26: ACTGRP | F26: - | G26: ANNUAL | H26: - | I26: 0 | J26: 1 | AX26: =IF(AY25=PWR!$B$44,AX25+1,AX25) -> 1 | AY26: 9
A27: * | C27: ETNUC-E | D27: - | E27: ACTGRP | F27: - | G27: ANNUAL | H27: - | I27: 0 | J27: 0.3200152185 | AX27: =IF(AY26=PWR!$B$44,AX26+1,AX26) -> 1 | AY27: 10
B28: ACT_COST | C28: ETCLEPFW-E | D28: =IF(VLOOKUP("*"&$AX28,par_TS_ETech,D$9,FALSE)="-","-",IF(LEFT(VLOOKUP("*"&$AX28,par_TS_ETech,D$9,FALSE),1)="#",RIGHT(VLOOKUP("*"&$AX28,par_TS_ETech,D$9,FALSE),LEN(VLOOKUP("*"&$AX28,par_TS_ETech,D$9,FALSE))-1),VLOOKUP($C28,etech_data,MATCH(VLOOKUP("*"&$AX28,par_TS_ETech,D$9,FALSE),etech_parameters,0),FALSE))) -> - | E28: - | F28: - | G28: - | H28: - | I28: 0 | J28: 9.25 | K28: =IF(K$16=Index!$E$14,$J28+'fgd costs'!$F$24,IF(K$16=Index!$E$14-5,$J28,"")) ->  | L28: =IF(L$16=Index!$E$14,$J28+'fgd costs'!$F$24,IF(L$16=Index!$E$14-5,$J28,"")) ->  | M28: =IF(M$16=Index!$E$14,$J28+'fgd costs'!$F$24,IF(M$16=Index!$E$14-5,$J28,"")) ->  | N28: =IF(N$16=Index!$E$14,$J28+'fgd costs'!$F$24,IF(N$16=Index!$E$14-5,$J28,"")) ->  | O28: =IF(O$16=Index!$E$14,$J28+'fgd costs'!$F$24,IF(O$16=Index!$E$14-5,$J28,"")) ->  | P28: =IF(P$16=Index!$E$14,$J28+'fgd costs'!$F$24,IF(P$16=Index!$E$14-5,$J28,"")) ->  | Q28: =IF(Q$16=Index!$E$14,$J28+'fgd costs'!$F$24,IF(Q$16=Index!$E$14-5,$J28,"")) ->  | R28: =IF(R$16=Index!$E$14,$J28+'fgd costs'!$F$24,IF(R$16=Index!$E$14-5,$J28,"")) ->  | S28: =IF(S$16=Index!$E$14,$J28+'fgd costs'!$F$24,IF(S$16=Index!$E$14-5,$J28,"")) ->  | T28: =IF(T$16=Index!$E$14,$J28+'fgd costs'!$F$24,IF(T$16=Index!$E$14-5,$J28,"")) ->  | U28: =IF(U$16=Index!$E$14,$J28+'fgd costs'!$F$24,IF(U$16=Index!$E$14-5,$J28,"")) ->  | V28: =IF(V$16=Index!$E$14,$J28+'fgd costs'!$F$24,IF(V$16=Index!$E$14-5,$J28,"")) ->  | W28: =IF(W$16=Index!$E$14,$J28+'fgd costs'!$F$24,IF(W$16=Index!$E$14-5,$J28,"")) ->  | X28: =IF(X$16=Index!$E$14,$J28+'fgd costs'!$F$24,IF(X$16=Index!$E$14-5,$J28,"")) ->  | Y28: =IF(Y$16=Index!$E$14,$J28+'fgd costs'!$F$24,IF(Y$16=Index!$E$14-5,$J28,"")) ->  | Z28: =IF(Z$16=Index!$E$14,$J28+'fgd costs'!$F$24,IF(Z$16=Index!$E$14-5,$J28,"")) ->  | AA28: =IF(AA$16=Index!$E$14,$J28+'fgd costs'!$F$24,IF(AA$16=Index!$E$14-5,$J28,"")) ->  | AB28: =IF(AB$16=Index!$E$14,$J28+'fgd costs'!$F$24,IF(AB$16=Index!$E$14-5,$J28,"")) ->  | AC28: =IF(AC$16=Index!$E$14,$J28+'fgd costs'!$F$24,IF(AC$16=Index!$E$14-5,$J28,"")) ->  | AD28: =IF(AD$16=Index!$E$14,$J28+'fgd costs'!$F$24,IF(AD$16=Index!$E$14-5,$J28,"")) ->  | AE28: =IF(AE$16=Index!$E$14,$J28+'fgd costs'!$F$24,IF(AE$16=Index!$E$14-5,$J28,"")) ->  | AF28: =IF(AF$16=Index!$E$14,$J28+'fgd costs'!$F$24,IF(AF$16=Index!$E$14-5,$J28,"")) ->  | AG28: =IF(AG$16=Index!$E$14,$J28+'fgd costs'!$F$24,IF(AG$16=Index!$E$14-5,$J28,"")) ->  | AH28: =IF(AH$16=Index!$E$14,$J28+'fgd costs'!$F$24,IF(AH$16=Index!$E$14-5,$J28,"")) ->  | AI28: =IF(AI$16=Index!$E$14,$J28+'fgd costs'!$F$24,IF(AI$16=Index!$E$14-5,$J28,"")) ->  | AJ28: =IF(AJ$16=Index!$E$14,$J28+'fgd costs'!$F$24,IF(AJ$16=Index!$E$14-5,$J28,"")) ->  | AK28: =IF(AK$16=Index!$E$14,$J28+'fgd costs'!$F$24,IF(AK$16=Index!$E$14-5,$J28,"")) ->  | AL28: =IF(AL$16=Index!$E$14,$J28+'fgd costs'!$F$24,IF(AL$16=Index!$E$14-5,$J28,"")) ->  | AM28: =IF(AM$16=Index!$E$14,$J28+'fgd costs'!$F$24,IF(AM$16=Index!$E$14-5,$J28,"")) ->  | AN28: =IF(AN$16=Index!$E$14,$J28+'fgd costs'!$F$24,IF(AN$16=Index!$E$14-5,$J28,"")) ->  | AO28: =IF(AO$16=Index!$E$14,$J28+'fgd costs'!$F$24,IF(AO$16=Index!$E$14-5,$J28,"")) ->  | AP28: =IF(AP$16=Index!$E$14,$J28+'fgd costs'!$F$24,IF(AP$16=Index!$E$14-5,$J28,"")) ->  | AQ28: =IF(AQ$16=Index!$E$14,$J28+'fgd costs'!$F$24,IF(AQ$16=Index!$E$14-5,$J28,"")) ->  | AR28: =IF(AR$16=Index!$E$14,$J28+'fgd costs'!$F$24,IF(AR$16=Index!$E$14-5,$J28,"")) ->  | AX28: =IF(AY27=PWR!$B$44,AX27+1,AX27) -> 2 | AY28: =IF(AX28=AX27,AY27+1,1) -> 1
B29: ACT_COST | C29: ETCLEPFD-E | D29: - | E29: - | F29: - | G29: - | H29: - | I29: 0 | J29: 9.25 | K29: =IF(K$16=Index!$E$14,$J29+'fgd costs'!$F$24,IF(K$16=Index!$E$14-5,$J29,"")) ->  | L29: =IF(L$16=Index!$E$14,$J29+'fgd costs'!$F$24,IF(L$16=Index!$E$14-5,$J29,"")) ->  | M29: =IF(M$16=Index!$E$14,$J29+'fgd costs'!$F$24,IF(M$16=Index!$E$14-5,$J29,"")) ->  | N29: =IF(N$16=Index!$E$14,$J29+'fgd costs'!$F$24,IF(N$16=Index!$E$14-5,$J29,"")) ->  | O29: =IF(O$16=Index!$E$14,$J29+'fgd costs'!$F$24,IF(O$16=Index!$E$14-5,$J29,"")) ->  | P29: =IF(P$16=Index!$E$14,$J29+'fgd costs'!$F$24,IF(P$16=Index!$E$14-5,$J29,"")) ->  | Q29: =IF(Q$16=Index!$E$14,$J29+'fgd costs'!$F$24,IF(Q$16=Index!$E$14-5,$J29,"")) ->  | R29: =IF(R$16=Index!$E$14,$J29+'fgd costs'!$F$24,IF(R$16=Index!$E$14-5,$J29,"")) ->  | S29: =IF(S$16=Index!$E$14,$J29+'fgd costs'!$F$24,IF(S$16=Index!$E$14-5,$J29,"")) ->  | T29: =IF(T$16=Index!$E$14,$J29+'fgd costs'!$F$24,IF(T$16=Index!$E$14-5,$J29,"")) ->  | U29: =IF(U$16=Index!$E$14,$J29+'fgd costs'!$F$24,IF(U$16=Index!$E$14-5,$J29,"")) ->  | V29: =IF(V$16=Index!$E$14,$J29+'fgd costs'!$F$24,IF(V$16=Index!$E$14-5,$J29,"")) ->  | W29: =IF(W$16=Index!$E$14,$J29+'fgd costs'!$F$24,IF(W$16=Index!$E$14-5,$J29,"")) ->  | X29: =IF(X$16=Index!$E$14,$J29+'fgd costs'!$F$24,IF(X$16=Index!$E$14-5,$J29,"")) ->  | Y29: =IF(Y$16=Index!$E$14,$J29+'fgd costs'!$F$24,IF(Y$16=Index!$E$14-5,$J29,"")) ->  | Z29: =IF(Z$16=Index!$E$14,$J29+'fgd costs'!$F$24,IF(Z$16=Index!$E$14-5,$J29,"")) ->  | AA29: =IF(AA$16=Index!$E$14,$J29+'fgd costs'!$F$24,IF(AA$16=Index!$E$14-5,$J29,"")) ->  | AB29: =IF(AB$16=Index!$E$14,$J29+'fgd costs'!$F$24,IF(AB$16=Index!$E$14-5,$J29,"")) ->  | AC29: =IF(AC$16=Index!$E$14,$J29+'fgd costs'!$F$24,IF(AC$16=Index!$E$14-5,$J29,"")) ->  | AD29: =IF(AD$16=Index!$E$14,$J29+'fgd costs'!$F$24,IF(AD$16=Index!$E$14-5,$J29,"")) ->  | AE29: =IF(AE$16=Index!$E$14,$J29+'fgd costs'!$F$24,IF(AE$16=Index!$E$14-5,$J29,"")) ->  | AF29: =IF(AF$16=Index!$E$14,$J29+'fgd costs'!$F$24,IF(AF$16=Index!$E$14-5,$J29,"")) ->  | AG29: =IF(AG$16=Index!$E$14,$J29+'fgd costs'!$F$24,IF(AG$16=Index!$E$14-5,$J29,"")) ->  | AH29: =IF(AH$16=Index!$E$14,$J29+'fgd costs'!$F$24,IF(AH$16=Index!$E$14-5,$J29,"")) ->  | AI29: =IF(AI$16=Index!$E$14,$J29+'fgd costs'!$F$24,IF(AI$16=Index!$E$14-5,$J29,"")) ->  | AJ29: =IF(AJ$16=Index!$E$14,$J29+'fgd costs'!$F$24,IF(AJ$16=Index!$E$14-5,$J29,"")) ->  | AK29: =IF(AK$16=Index!$E$14,$J29+'fgd costs'!$F$24,IF(AK$16=Index!$E$14-5,$J29,"")) ->  | AL29: =IF(AL$16=Index!$E$14,$J29+'fgd costs'!$F$24,IF(AL$16=Index!$E$14-5,$J29,"")) ->  | AM29: =IF(AM$16=Index!$E$14,$J29+'fgd costs'!$F$24,IF(AM$16=Index!$E$14-5,$J29,"")) ->  | AN29: =IF(AN$16=Index!$E$14,$J29+'fgd costs'!$F$24,IF(AN$16=Index!$E$14-5,$J29,"")) ->  | AO29: =IF(AO$16=Index!$E$14,$J29+'fgd costs'!$F$24,IF(AO$16=Index!$E$14-5,$J29,"")) ->  | AP29: =IF(AP$16=Index!$E$14,$J29+'fgd costs'!$F$24,IF(AP$16=Index!$E$14-5,$J29,"")) ->  | AQ29: =IF(AQ$16=Index!$E$14,$J29+'fgd costs'!$F$24,IF(AQ$16=Index!$E$14-5,$J29,"")) ->  | AR29: =IF(AR$16=Index!$E$14,$J29+'fgd costs'!$F$24,IF(AR$16=Index!$E$14-5,$J29,"")) ->  | AX29: =IF(AY28=PWR!$B$44,AX28+1,AX28) -> 2 | AY29: 2
B30: ACT_COST | C30: ETCLEPFS-E | D30: - | E30: - | F30: - | G30: - | H30: - | I30: 0 | J30: 9.25 | K30: =IF(K$16=Index!$E$14,$J30+'fgd costs'!$F$24,IF(K$16=Index!$E$14-5,$J30,"")) ->  | L30: =IF(L$16=Index!$E$14,$J30+'fgd costs'!$F$24,IF(L$16=Index!$E$14-5,$J30,"")) ->  | M30: =IF(M$16=Index!$E$14,$J30+'fgd costs'!$F$24,IF(M$16=Index!$E$14-5,$J30,"")) ->  | N30: =IF(N$16=Index!$E$14,$J30+'fgd costs'!$F$24,IF(N$16=Index!$E$14-5,$J30,"")) ->  | O30: =IF(O$16=Index!$E$14,$J30+'fgd costs'!$F$24,IF(O$16=Index!$E$14-5,$J30,"")) ->  | P30: =IF(P$16=Index!$E$14,$J30+'fgd costs'!$F$24,IF(P$16=Index!$E$14-5,$J30,"")) ->  | Q30: =IF(Q$16=Index!$E$14,$J30+'fgd costs'!$F$24,IF(Q$16=Index!$E$14-5,$J30,"")) ->  | R30: =IF(R$16=Index!$E$14,$J30+'fgd costs'!$F$24,IF(R$16=Index!$E$14-5,$J30,"")) ->  | S30: =IF(S$16=Index!$E$14,$J30+'fgd costs'!$F$24,IF(S$16=Index!$E$14-5,$J30,"")) ->  | T30: =IF(T$16=Index!$E$14,$J30+'fgd costs'!$F$24,IF(T$16=Index!$E$14-5,$J30,"")) ->  | U30: =IF(U$16=Index!$E$14,$J30+'fgd costs'!$F$24,IF(U$16=Index!$E$14-5,$J30,"")) ->  | V30: =IF(V$16=Index!$E$14,$J30+'fgd costs'!$F$24,IF(V$16=Index!$E$14-5,$J30,"")) ->  | W30: =IF(W$16=Index!$E$14,$J30+'fgd costs'!$F$24,IF(W$16=Index!$E$14-5,$J30,"")) ->  | X30: =IF(X$16=Index!$E$14,$J30+'fgd costs'!$F$24,IF(X$16=Index!$E$14-5,$J30,"")) ->  | Y30: =IF(Y$16=Index!$E$14,$J30+'fgd costs'!$F$24,IF(Y$16=Index!$E$14-5,$J30,"")) ->  | Z30: =IF(Z$16=Index!$E$14,$J30+'fgd costs'!$F$24,IF(Z$16=Index!$E$14-5,$J30,"")) ->  | AA30: =IF(AA$16=Index!$E$14,$J30+'fgd costs'!$F$24,IF(AA$16=Index!$E$14-5,$J30,"")) ->  | AB30: =IF(AB$16=Index!$E$14,$J30+'fgd costs'!$F$24,IF(AB$16=Index!$E$14-5,$J30,"")) ->  | AC30: =IF(AC$16=Index!$E$14,$J30+'fgd costs'!$F$24,IF(AC$16=Index!$E$14-5,$J30,"")) ->  | AD30: =IF(AD$16=Index!$E$14,$J30+'fgd costs'!$F$24,IF(AD$16=Index!$E$14-5,$J30,"")) ->  | AE30: =IF(AE$16=Index!$E$14,$J30+'fgd costs'!$F$24,IF(AE$16=Index!$E$14-5,$J30,"")) ->  | AF30: =IF(AF$16=Index!$E$14,$J30+'fgd costs'!$F$24,IF(AF$16=Index!$E$14-5,$J30,"")) ->  | AG30: =IF(AG$16=Index!$E$14,$J30+'fgd costs'!$F$24,IF(AG$16=Index!$E$14-5,$J30,"")) ->  | AH30: =IF(AH$16=Index!$E$14,$J30+'fgd costs'!$F$24,IF(AH$16=Index!$E$14-5,$J30,"")) ->  | AI30: =IF(AI$16=Index!$E$14,$J30+'fgd costs'!$F$24,IF(AI$16=Index!$E$14-5,$J30,"")) ->  | AJ30: =IF(AJ$16=Index!$E$14,$J30+'fgd costs'!$F$24,IF(AJ$16=Index!$E$14-5,$J30,"")) ->  | AK30: =IF(AK$16=Index!$E$14,$J30+'fgd costs'!$F$24,IF(AK$16=Index!$E$14-5,$J30,"")) ->  | AL30: =IF(AL$16=Index!$E$14,$J30+'fgd costs'!$F$24,IF(AL$16=Index!$E$14-5,$J30,"")) ->  | AM30: =IF(AM$16=Index!$E$14,$J30+'fgd costs'!$F$24,IF(AM$16=Index!$E$14-5,$J30,"")) ->  | AN30: =IF(AN$16=Index!$E$14,$J30+'fgd costs'!$F$24,IF(AN$16=Index!$E$14-5,$J30,"")) ->  | AO30: =IF(AO$16=Index!$E$14,$J30+'fgd costs'!$F$24,IF(AO$16=Index!$E$14-5,$J30,"")) ->  | AP30: =IF(AP$16=Index!$E$14,$J30+'fgd costs'!$F$24,IF(AP$16=Index!$E$14-5,$J30,"")) ->  | AQ30: =IF(AQ$16=Index!$E$14,$J30+'fgd costs'!$F$24,IF(AQ$16=Index!$E$14-5,$J30,"")) ->  | AR30: =IF(AR$16=Index!$E$14,$J30+'fgd costs'!$F$24,IF(AR$16=Index!$E$14-5,$J30,"")) ->  | AX30: =IF(AY29=PWR!$B$44,AX29+1,AX29) -> 2 | AY30: 3
B31: ACT_COST | C31: ETCLEPFM-E | D31: - | E31: - | F31: - | G31: - | H31: - | I31: 0 | J31: 9.25 | K31: =IF(K$16=Index!$E$14,$J31+'fgd costs'!$F$24,IF(K$16=Index!$E$14-5,$J31,"")) ->  | L31: =IF(L$16=Index!$E$14,$J31+'fgd costs'!$F$24,IF(L$16=Index!$E$14-5,$J31,"")) ->  | M31: =IF(M$16=Index!$E$14,$J31+'fgd costs'!$F$24,IF(M$16=Index!$E$14-5,$J31,"")) ->  | N31: =IF(N$16=Index!$E$14,$J31+'fgd costs'!$F$24,IF(N$16=Index!$E$14-5,$J31,"")) ->  | O31: =IF(O$16=Index!$E$14,$J31+'fgd costs'!$F$24,IF(O$16=Index!$E$14-5,$J31,"")) ->  | P31: =IF(P$16=Index!$E$14,$J31+'fgd costs'!$F$24,IF(P$16=Index!$E$14-5,$J31,"")) ->  | Q31: =IF(Q$16=Index!$E$14,$J31+'fgd costs'!$F$24,IF(Q$16=Index!$E$14-5,$J31,"")) ->  | R31: =IF(R$16=Index!$E$14,$J31+'fgd costs'!$F$24,IF(R$16=Index!$E$14-5,$J31,"")) ->  | S31: =IF(S$16=Index!$E$14,$J31+'fgd costs'!$F$24,IF(S$16=Index!$E$14-5,$J31,"")) ->  | T31: =IF(T$16=Index!$E$14,$J31+'fgd costs'!$F$24,IF(T$16=Index!$E$14-5,$J31,"")) ->  | U31: =IF(U$16=Index!$E$14,$J31+'fgd costs'!$F$24,IF(U$16=Index!$E$14-5,$J31,"")) ->  | V31: =IF(V$16=Index!$E$14,$J31+'fgd costs'!$F$24,IF(V$16=Index!$E$14-5,$J31,"")) ->  | W31: =IF(W$16=Index!$E$14,$J31+'fgd costs'!$F$24,IF(W$16=Index!$E$14-5,$J31,"")) ->  | X31: =IF(X$16=Index!$E$14,$J31+'fgd costs'!$F$24,IF(X$16=Index!$E$14-5,$J31,"")) ->  | Y31: =IF(Y$16=Index!$E$14,$J31+'fgd costs'!$F$24,IF(Y$16=Index!$E$14-5,$J31,"")) ->  | Z31: =IF(Z$16=Index!$E$14,$J31+'fgd costs'!$F$24,IF(Z$16=Index!$E$14-5,$J31,"")) ->  | AA31: =IF(AA$16=Index!$E$14,$J31+'fgd costs'!$F$24,IF(AA$16=Index!$E$14-5,$J31,"")) ->  | AB31: =IF(AB$16=Index!$E$14,$J31+'fgd costs'!$F$24,IF(AB$16=Index!$E$14-5,$J31,"")) ->  | AC31: =IF(AC$16=Index!$E$14,$J31+'fgd costs'!$F$24,IF(AC$16=Index!$E$14-5,$J31,"")) ->  | AD31: =IF(AD$16=Index!$E$14,$J31+'fgd costs'!$F$24,IF(AD$16=Index!$E$14-5,$J31,"")) ->  | AE31: =IF(AE$16=Index!$E$14,$J31+'fgd costs'!$F$24,IF(AE$16=Index!$E$14-5,$J31,"")) ->  | AF31: =IF(AF$16=Index!$E$14,$J31+'fgd costs'!$F$24,IF(AF$16=Index!$E$14-5,$J31,"")) ->  | AG31: =IF(AG$16=Index!$E$14,$J31+'fgd costs'!$F$24,IF(AG$16=Index!$E$14-5,$J31,"")) ->  | AH31: =IF(AH$16=Index!$E$14,$J31+'fgd costs'!$F$24,IF(AH$16=Index!$E$14-5,$J31,"")) ->  | AI31: =IF(AI$16=Index!$E$14,$J31+'fgd costs'!$F$24,IF(AI$16=Index!$E$14-5,$J31,"")) ->  | AJ31: =IF(AJ$16=Index!$E$14,$J31+'fgd costs'!$F$24,IF(AJ$16=Index!$E$14-5,$J31,"")) ->  | AK31: =IF(AK$16=Index!$E$14,$J31+'fgd costs'!$F$24,IF(AK$16=Index!$E$14-5,$J31,"")) ->  | AL31: =IF(AL$16=Index!$E$14,$J31+'fgd costs'!$F$24,IF(AL$16=Index!$E$14-5,$J31,"")) ->  | AM31: =IF(AM$16=Index!$E$14,$J31+'fgd costs'!$F$24,IF(AM$16=Index!$E$14-5,$J31,"")) ->  | AN31: =IF(AN$16=Index!$E$14,$J31+'fgd costs'!$F$24,IF(AN$16=Index!$E$14-5,$J31,"")) ->  | AO31: =IF(AO$16=Index!$E$14,$J31+'fgd costs'!$F$24,IF(AO$16=Index!$E$14-5,$J31,"")) ->  | AP31: =IF(AP$16=Index!$E$14,$J31+'fgd costs'!$F$24,IF(AP$16=Index!$E$14-5,$J31,"")) ->  | AQ31: =IF(AQ$16=Index!$E$14,$J31+'fgd costs'!$F$24,IF(AQ$16=Index!$E$14-5,$J31,"")) ->  | AR31: =IF(AR$16=Index!$E$14,$J31+'fgd costs'!$F$24,IF(AR$16=Index!$E$14-5,$J31,"")) ->  | AX31: =IF(AY30=PWR!$B$44,AX30+1,AX30) -> 2 | AY31: 4
B32: ACT_COST | C32: ETCLEPFSS-E | D32: - | E32: - | F32: - | G32: - | H32: - | I32: 0 | J32: 9.25 | K32: =IF(K$16=Index!$E$14,$J32+'fgd costs'!$F$24,IF(K$16=Index!$E$14-5,$J32,"")) ->  | L32: =IF(L$16=Index!$E$14,$J32+'fgd costs'!$F$24,IF(L$16=Index!$E$14-5,$J32,"")) ->  | M32: =IF(M$16=Index!$E$14,$J32+'fgd costs'!$F$24,IF(M$16=Index!$E$14-5,$J32,"")) ->  | N32: =IF(N$16=Index!$E$14,$J32+'fgd costs'!$F$24,IF(N$16=Index!$E$14-5,$J32,"")) ->  | O32: =IF(O$16=Index!$E$14,$J32+'fgd costs'!$F$24,IF(O$16=Index!$E$14-5,$J32,"")) ->  | P32: =IF(P$16=Index!$E$14,$J32+'fgd costs'!$F$24,IF(P$16=Index!$E$14-5,$J32,"")) ->  | Q32: =IF(Q$16=Index!$E$14,$J32+'fgd costs'!$F$24,IF(Q$16=Index!$E$14-5,$J32,"")) ->  | R32: =IF(R$16=Index!$E$14,$J32+'fgd costs'!$F$24,IF(R$16=Index!$E$14-5,$J32,"")) ->  | S32: =IF(S$16=Index!$E$14,$J32+'fgd costs'!$F$24,IF(S$16=Index!$E$14-5,$J32,"")) ->  | T32: =IF(T$16=Index!$E$14,$J32+'fgd costs'!$F$24,IF(T$16=Index!$E$14-5,$J32,"")) ->  | U32: =IF(U$16=Index!$E$14,$J32+'fgd costs'!$F$24,IF(U$16=Index!$E$14-5,$J32,"")) ->  | V32: =IF(V$16=Index!$E$14,$J32+'fgd costs'!$F$24,IF(V$16=Index!$E$14-5,$J32,"")) ->  | W32: =IF(W$16=Index!$E$14,$J32+'fgd costs'!$F$24,IF(W$16=Index!$E$14-5,$J32,"")) ->  | X32: =IF(X$16=Index!$E$14,$J32+'fgd costs'!$F$24,IF(X$16=Index!$E$14-5,$J32,"")) ->  | Y32: =IF(Y$16=Index!$E$14,$J32+'fgd costs'!$F$24,IF(Y$16=Index!$E$14-5,$J32,"")) ->  | Z32: =IF(Z$16=Index!$E$14,$J32+'fgd costs'!$F$24,IF(Z$16=Index!$E$14-5,$J32,"")) ->  | AA32: =IF(AA$16=Index!$E$14,$J32+'fgd costs'!$F$24,IF(AA$16=Index!$E$14-5,$J32,"")) ->  | AB32: =IF(AB$16=Index!$E$14,$J32+'fgd costs'!$F$24,IF(AB$16=Index!$E$14-5,$J32,"")) ->  | AC32: =IF(AC$16=Index!$E$14,$J32+'fgd costs'!$F$24,IF(AC$16=Index!$E$14-5,$J32,"")) ->  | AD32: =IF(AD$16=Index!$E$14,$J32+'fgd costs'!$F$24,IF(AD$16=Index!$E$14-5,$J32,"")) ->  | AE32: =IF(AE$16=Index!$E$14,$J32+'fgd costs'!$F$24,IF(AE$16=Index!$E$14-5,$J32,"")) ->  | AF32: =IF(AF$16=Index!$E$14,$J32+'fgd costs'!$F$24,IF(AF$16=Index!$E$14-5,$J32,"")) ->  | AG32: =IF(AG$16=Index!$E$14,$J32+'fgd costs'!$F$24,IF(AG$16=Index!$E$14-5,$J32,"")) ->  | AH32: =IF(AH$16=Index!$E$14,$J32+'fgd costs'!$F$24,IF(AH$16=Index!$E$14-5,$J32,"")) ->  | AI32: =IF(AI$16=Index!$E$14,$J32+'fgd costs'!$F$24,IF(AI$16=Index!$E$14-5,$J32,"")) ->  | AJ32: =IF(AJ$16=Index!$E$14,$J32+'fgd costs'!$F$24,IF(AJ$16=Index!$E$14-5,$J32,"")) ->  | AK32: =IF(AK$16=Index!$E$14,$J32+'fgd costs'!$F$24,IF(AK$16=Index!$E$14-5,$J32,"")) ->  | AL32: =IF(AL$16=Index!$E$14,$J32+'fgd costs'!$F$24,IF(AL$16=Index!$E$14-5,$J32,"")) ->  | AM32: =IF(AM$16=Index!$E$14,$J32+'fgd costs'!$F$24,IF(AM$16=Index!$E$14-5,$J32,"")) ->  | AN32: =IF(AN$16=Index!$E$14,$J32+'fgd costs'!$F$24,IF(AN$16=Index!$E$14-5,$J32,"")) ->  | AO32: =IF(AO$16=Index!$E$14,$J32+'fgd costs'!$F$24,IF(AO$16=Index!$E$14-5,$J32,"")) ->  | AP32: =IF(AP$16=Index!$E$14,$J32+'fgd costs'!$F$24,IF(AP$16=Index!$E$14-5,$J32,"")) ->  | AQ32: =IF(AQ$16=Index!$E$14,$J32+'fgd costs'!$F$24,IF(AQ$16=Index!$E$14-5,$J32,"")) ->  | AR32: =IF(AR$16=Index!$E$14,$J32+'fgd costs'!$F$24,IF(AR$16=Index!$E$14-5,$J32,"")) ->  | AX32: =IF(AY31=PWR!$B$44,AX31+1,AX31) -> 2 | AY32: 5
B33: ACT_COST | C33: ETCLEPFSI-E | D33: - | E33: - | F33: - | G33: - | H33: - | I33: 0 | J33: 9.25 | K33: =IF(K$16=Index!$E$14,$J33+'fgd costs'!$F$24,IF(K$16=Index!$E$14-5,$J33,"")) ->  | L33: =IF(L$16=Index!$E$14,$J33+'fgd costs'!$F$24,IF(L$16=Index!$E$14-5,$J33,"")) ->  | M33: =IF(M$16=Index!$E$14,$J33+'fgd costs'!$F$24,IF(M$16=Index!$E$14-5,$J33,"")) ->  | N33: =IF(N$16=Index!$E$14,$J33+'fgd costs'!$F$24,IF(N$16=Index!$E$14-5,$J33,"")) ->  | O33: =IF(O$16=Index!$E$14,$J33+'fgd costs'!$F$24,IF(O$16=Index!$E$14-5,$J33,"")) ->  | P33: =IF(P$16=Index!$E$14,$J33+'fgd costs'!$F$24,IF(P$16=Index!$E$14-5,$J33,"")) ->  | Q33: =IF(Q$16=Index!$E$14,$J33+'fgd costs'!$F$24,IF(Q$16=Index!$E$14-5,$J33,"")) ->  | R33: =IF(R$16=Index!$E$14,$J33+'fgd costs'!$F$24,IF(R$16=Index!$E$14-5,$J33,"")) ->  | S33: =IF(S$16=Index!$E$14,$J33+'fgd costs'!$F$24,IF(S$16=Index!$E$14-5,$J33,"")) ->  | T33: =IF(T$16=Index!$E$14,$J33+'fgd costs'!$F$24,IF(T$16=Index!$E$14-5,$J33,"")) ->  | U33: =IF(U$16=Index!$E$14,$J33+'fgd costs'!$F$24,IF(U$16=Index!$E$14-5,$J33,"")) ->  | V33: =IF(V$16=Index!$E$14,$J33+'fgd costs'!$F$24,IF(V$16=Index!$E$14-5,$J33,"")) ->  | W33: =IF(W$16=Index!$E$14,$J33+'fgd costs'!$F$24,IF(W$16=Index!$E$14-5,$J33,"")) ->  | X33: =IF(X$16=Index!$E$14,$J33+'fgd costs'!$F$24,IF(X$16=Index!$E$14-5,$J33,"")) ->  | Y33: =IF(Y$16=Index!$E$14,$J33+'fgd costs'!$F$24,IF(Y$16=Index!$E$14-5,$J33,"")) ->  | Z33: =IF(Z$16=Index!$E$14,$J33+'fgd costs'!$F$24,IF(Z$16=Index!$E$14-5,$J33,"")) ->  | AA33: =IF(AA$16=Index!$E$14,$J33+'fgd costs'!$F$24,IF(AA$16=Index!$E$14-5,$J33,"")) ->  | AB33: =IF(AB$16=Index!$E$14,$J33+'fgd costs'!$F$24,IF(AB$16=Index!$E$14-5,$J33,"")) ->  | AC33: =IF(AC$16=Index!$E$14,$J33+'fgd costs'!$F$24,IF(AC$16=Index!$E$14-5,$J33,"")) ->  | AD33: =IF(AD$16=Index!$E$14,$J33+'fgd costs'!$F$24,IF(AD$16=Index!$E$14-5,$J33,"")) ->  | AE33: =IF(AE$16=Index!$E$14,$J33+'fgd costs'!$F$24,IF(AE$16=Index!$E$14-5,$J33,"")) ->  | AF33: =IF(AF$16=Index!$E$14,$J33+'fgd costs'!$F$24,IF(AF$16=Index!$E$14-5,$J33,"")) ->  | AG33: =IF(AG$16=Index!$E$14,$J33+'fgd costs'!$F$24,IF(AG$16=Index!$E$14-5,$J33,"")) ->  | AH33: =IF(AH$16=Index!$E$14,$J33+'fgd costs'!$F$24,IF(AH$16=Index!$E$14-5,$J33,"")) ->  | AI33: =IF(AI$16=Index!$E$14,$J33+'fgd costs'!$F$24,IF(AI$16=Index!$E$14-5,$J33,"")) ->  | AJ33: =IF(AJ$16=Index!$E$14,$J33+'fgd costs'!$F$24,IF(AJ$16=Index!$E$14-5,$J33,"")) ->  | AK33: =IF(AK$16=Index!$E$14,$J33+'fgd costs'!$F$24,IF(AK$16=Index!$E$14-5,$J33,"")) ->  | AL33: =IF(AL$16=Index!$E$14,$J33+'fgd costs'!$F$24,IF(AL$16=Index!$E$14-5,$J33,"")) ->  | AM33: =IF(AM$16=Index!$E$14,$J33+'fgd costs'!$F$24,IF(AM$16=Index!$E$14-5,$J33,"")) ->  | AN33: =IF(AN$16=Index!$E$14,$J33+'fgd costs'!$F$24,IF(AN$16=Index!$E$14-5,$J33,"")) ->  | AO33: =IF(AO$16=Index!$E$14,$J33+'fgd costs'!$F$24,IF(AO$16=Index!$E$14-5,$J33,"")) ->  | AP33: =IF(AP$16=Index!$E$14,$J33+'fgd costs'!$F$24,IF(AP$16=Index!$E$14-5,$J33,"")) ->  | AQ33: =IF(AQ$16=Index!$E$14,$J33+'fgd costs'!$F$24,IF(AQ$16=Index!$E$14-5,$J33,"")) ->  | AR33: =IF(AR$16=Index!$E$14,$J33+'fgd costs'!$F$24,IF(AR$16=Index!$E$14-5,$J33,"")) ->  | AX33: =IF(AY32=PWR!$B$44,AX32+1,AX32) -> 2 | AY33: 6
A34: * | C34: ETODSGT-E | D34: - | E34: - | F34: - | G34: - | H34: - | I34: 0 | J34: 0 | K34: =IFERROR(VLOOKUP($C34,etech_data,MATCH(VLOOKUP($B34,$B$10:$J$14,$J$9-1,FALSE)&K$16,etech_parameters,0),FALSE),"") ->  | U34: =IFERROR(VLOOKUP($C34,etech_data,MATCH(VLOOKUP($B34,$B$10:$J$14,$J$9-1,FALSE)&U$16,etech_parameters,0),FALSE),"") ->  | AE34: =IFERROR(VLOOKUP($C34,etech_data,MATCH(VLOOKUP($B34,$B$10:$J$14,$J$9-1,FALSE)&AE$16,etech_parameters,0),FALSE),"") ->  | AX34: =IF(AY33=PWR!$B$44,AX33+1,AX33) -> 2 | AY34: 7
A35: * | C35: ERHYD-E | D35: - | E35: - | F35: - | G35: - | H35: - | I35: 0 | J35: 0 | AX35: =IF(AY34=PWR!$B$44,AX34+1,AX34) -> 2 | AY35: 8
A36: * | C36: ERHYD-I | D36: - | E36: - | F36: - | G36: - | H36: - | I36: 0 | J36: 0 | AX36: =IF(AY35=PWR!$B$44,AX35+1,AX35) -> 2 | AY36: 9
A37: * | C37: ETNUC-E | D37: - | E37: - | F37: - | G37: - | H37: - | I37: 0 | J37: 2.777777778 | AX37: =IF(AY36=PWR!$B$44,AX36+1,AX36) -> 2 | AY37: 10
B38: PRC_ACTFLO | C38: ETCLEPFW-E | D38: =IF(VLOOKUP("*"&$AX38,par_TS_ETech,D$9,FALSE)="-","-",IF(LEFT(VLOOKUP("*"&$AX38,par_TS_ETech,D$9,FALSE),1)="#",RIGHT(VLOOKUP("*"&$AX38,par_TS_ETech,D$9,FALSE),LEN(VLOOKUP("*"&$AX38,par_TS_ETech,D$9,FALSE))-1),VLOOKUP($C38,etech_data,MATCH(VLOOKUP("*"&$AX38,par_TS_ETech,D$9,FALSE),etech_parameters,0),FALSE))) -> - | E38: WAT | F38: - | G38: - | H38: - | I38: 0 | J38: 553.2234043 | K38: =IF(K$16=Index!$E$14,$J38+'fgd costs'!$E$29,IF(K$16=Index!$E$14-5,$J38,"")) ->  | L38: =IF(L$16=Index!$E$14,$J38+'fgd costs'!$E$29,IF(L$16=Index!$E$14-5,$J38,"")) ->  | M38: =IF(M$16=Index!$E$14,$J38+'fgd costs'!$E$29,IF(M$16=Index!$E$14-5,$J38,"")) ->  | N38: =IF(N$16=Index!$E$14,$J38+'fgd costs'!$E$29,IF(N$16=Index!$E$14-5,$J38,"")) ->  | O38: =IF(O$16=Index!$E$14,$J38+'fgd costs'!$E$29,IF(O$16=Index!$E$14-5,$J38,"")) ->  | P38: =IF(P$16=Index!$E$14,$J38+'fgd costs'!$E$29,IF(P$16=Index!$E$14-5,$J38,"")) ->  | Q38: =IF(Q$16=Index!$E$14,$J38+'fgd costs'!$E$29,IF(Q$16=Index!$E$14-5,$J38,"")) ->  | R38: =IF(R$16=Index!$E$14,$J38+'fgd costs'!$E$29,IF(R$16=Index!$E$14-5,$J38,"")) ->  | S38: =IF(S$16=Index!$E$14,$J38+'fgd costs'!$E$29,IF(S$16=Index!$E$14-5,$J38,"")) ->  | T38: =IF(T$16=Index!$E$14,$J38+'fgd costs'!$E$29,IF(T$16=Index!$E$14-5,$J38,"")) ->  | U38: =IF(U$16=Index!$E$14,$J38+'fgd costs'!$E$29,IF(U$16=Index!$E$14-5,$J38,"")) ->  | V38: =IF(V$16=Index!$E$14,$J38+'fgd costs'!$E$29,IF(V$16=Index!$E$14-5,$J38,"")) ->  | W38: =IF(W$16=Index!$E$14,$J38+'fgd costs'!$E$29,IF(W$16=Index!$E$14-5,$J38,"")) ->  | X38: =IF(X$16=Index!$E$14,$J38+'fgd costs'!$E$29,IF(X$16=Index!$E$14-5,$J38,"")) ->  | Y38: =IF(Y$16=Index!$E$14,$J38+'fgd costs'!$E$29,IF(Y$16=Index!$E$14-5,$J38,"")) ->  | Z38: =IF(Z$16=Index!$E$14,$J38+'fgd costs'!$E$29,IF(Z$16=Index!$E$14-5,$J38,"")) ->  | AA38: =IF(AA$16=Index!$E$14,$J38+'fgd costs'!$E$29,IF(AA$16=Index!$E$14-5,$J38,"")) ->  | AB38: =IF(AB$16=Index!$E$14,$J38+'fgd costs'!$E$29,IF(AB$16=Index!$E$14-5,$J38,"")) ->  | AC38: =IF(AC$16=Index!$E$14,$J38+'fgd costs'!$E$29,IF(AC$16=Index!$E$14-5,$J38,"")) ->  | AD38: =IF(AD$16=Index!$E$14,$J38+'fgd costs'!$E$29,IF(AD$16=Index!$E$14-5,$J38,"")) ->  | AE38: =IF(AE$16=Index!$E$14,$J38+'fgd costs'!$E$29,IF(AE$16=Index!$E$14-5,$J38,"")) ->  | AF38: =IF(AF$16=Index!$E$14,$J38+'fgd costs'!$E$29,IF(AF$16=Index!$E$14-5,$J38,"")) ->  | AG38: =IF(AG$16=Index!$E$14,$J38+'fgd costs'!$E$29,IF(AG$16=Index!$E$14-5,$J38,"")) ->  | AH38: =IF(AH$16=Index!$E$14,$J38+'fgd costs'!$E$29,IF(AH$16=Index!$E$14-5,$J38,"")) ->  | AI38: =IF(AI$16=Index!$E$14,$J38+'fgd costs'!$E$29,IF(AI$16=Index!$E$14-5,$J38,"")) ->  | AJ38: =IF(AJ$16=Index!$E$14,$J38+'fgd costs'!$E$29,IF(AJ$16=Index!$E$14-5,$J38,"")) ->  | AK38: =IF(AK$16=Index!$E$14,$J38+'fgd costs'!$E$29,IF(AK$16=Index!$E$14-5,$J38,"")) ->  | AL38: =IF(AL$16=Index!$E$14,$J38+'fgd costs'!$E$29,IF(AL$16=Index!$E$14-5,$J38,"")) ->  | AM38: =IF(AM$16=Index!$E$14,$J38+'fgd costs'!$E$29,IF(AM$16=Index!$E$14-5,$J38,"")) ->  | AN38: =IF(AN$16=Index!$E$14,$J38+'fgd costs'!$E$29,IF(AN$16=Index!$E$14-5,$J38,"")) ->  | AO38: =IF(AO$16=Index!$E$14,$J38+'fgd costs'!$E$29,IF(AO$16=Index!$E$14-5,$J38,"")) ->  | AP38: =IF(AP$16=Index!$E$14,$J38+'fgd costs'!$E$29,IF(AP$16=Index!$E$14-5,$J38,"")) ->  | AQ38: =IF(AQ$16=Index!$E$14,$J38+'fgd costs'!$E$29,IF(AQ$16=Index!$E$14-5,$J38,"")) ->  | AR38: =IF(AR$16=Index!$E$14,$J38+'fgd costs'!$E$29,IF(AR$16=Index!$E$14-5,$J38,"")) ->  | AS38: =IFERROR(VLOOKUP($C38,etech_data,MATCH(VLOOKUP($B38,$B$10:$J$14,$J$9-1,FALSE)&AS$16,etech_parameters,0),FALSE),"") ->  | AX38: =IF(AY37=PWR!$B$44,AX37+1,AX37) -> 3 | AY38: 1
B39: PRC_ACTFLO | C39: ETCLEPFD-E | D39: - | E39: WAT | F39: - | G39: - | H39: - | I39: 0 | J39: 35.62921548 | K39: =IF(K$16=Index!$E$14,$J39+'fgd costs'!$E$29,IF(K$16=Index!$E$14-5,$J39,"")) ->  | L39: =IF(L$16=Index!$E$14,$J39+'fgd costs'!$E$29,IF(L$16=Index!$E$14-5,$J39,"")) ->  | M39: =IF(M$16=Index!$E$14,$J39+'fgd costs'!$E$29,IF(M$16=Index!$E$14-5,$J39,"")) ->  | N39: =IF(N$16=Index!$E$14,$J39+'fgd costs'!$E$29,IF(N$16=Index!$E$14-5,$J39,"")) ->  | O39: =IF(O$16=Index!$E$14,$J39+'fgd costs'!$E$29,IF(O$16=Index!$E$14-5,$J39,"")) ->  | P39: =IF(P$16=Index!$E$14,$J39+'fgd costs'!$E$29,IF(P$16=Index!$E$14-5,$J39,"")) ->  | Q39: =IF(Q$16=Index!$E$14,$J39+'fgd costs'!$E$29,IF(Q$16=Index!$E$14-5,$J39,"")) ->  | R39: =IF(R$16=Index!$E$14,$J39+'fgd costs'!$E$29,IF(R$16=Index!$E$14-5,$J39,"")) ->  | S39: =IF(S$16=Index!$E$14,$J39+'fgd costs'!$E$29,IF(S$16=Index!$E$14-5,$J39,"")) ->  | T39: =IF(T$16=Index!$E$14,$J39+'fgd costs'!$E$29,IF(T$16=Index!$E$14-5,$J39,"")) ->  | U39: =IF(U$16=Index!$E$14,$J39+'fgd costs'!$E$29,IF(U$16=Index!$E$14-5,$J39,"")) ->  | V39: =IF(V$16=Index!$E$14,$J39+'fgd costs'!$E$29,IF(V$16=Index!$E$14-5,$J39,"")) ->  | W39: =IF(W$16=Index!$E$14,$J39+'fgd costs'!$E$29,IF(W$16=Index!$E$14-5,$J39,"")) ->  | X39: =IF(X$16=Index!$E$14,$J39+'fgd costs'!$E$29,IF(X$16=Index!$E$14-5,$J39,"")) ->  | Y39: =IF(Y$16=Index!$E$14,$J39+'fgd costs'!$E$29,IF(Y$16=Index!$E$14-5,$J39,"")) ->  | Z39: =IF(Z$16=Index!$E$14,$J39+'fgd costs'!$E$29,IF(Z$16=Index!$E$14-5,$J39,"")) ->  | AA39: =IF(AA$16=Index!$E$14,$J39+'fgd costs'!$E$29,IF(AA$16=Index!$E$14-5,$J39,"")) ->  | AB39: =IF(AB$16=Index!$E$14,$J39+'fgd costs'!$E$29,IF(AB$16=Index!$E$14-5,$J39,"")) ->  | AC39: =IF(AC$16=Index!$E$14,$J39+'fgd costs'!$E$29,IF(AC$16=Index!$E$14-5,$J39,"")) ->  | AD39: =IF(AD$16=Index!$E$14,$J39+'fgd costs'!$E$29,IF(AD$16=Index!$E$14-5,$J39,"")) ->  | AE39: =IF(AE$16=Index!$E$14,$J39+'fgd costs'!$E$29,IF(AE$16=Index!$E$14-5,$J39,"")) ->  | AF39: =IF(AF$16=Index!$E$14,$J39+'fgd costs'!$E$29,IF(AF$16=Index!$E$14-5,$J39,"")) ->  | AG39: =IF(AG$16=Index!$E$14,$J39+'fgd costs'!$E$29,IF(AG$16=Index!$E$14-5,$J39,"")) ->  | AH39: =IF(AH$16=Index!$E$14,$J39+'fgd costs'!$E$29,IF(AH$16=Index!$E$14-5,$J39,"")) ->  | AI39: =IF(AI$16=Index!$E$14,$J39+'fgd costs'!$E$29,IF(AI$16=Index!$E$14-5,$J39,"")) ->  | AJ39: =IF(AJ$16=Index!$E$14,$J39+'fgd costs'!$E$29,IF(AJ$16=Index!$E$14-5,$J39,"")) ->  | AK39: =IF(AK$16=Index!$E$14,$J39+'fgd costs'!$E$29,IF(AK$16=Index!$E$14-5,$J39,"")) ->  | AL39: =IF(AL$16=Index!$E$14,$J39+'fgd costs'!$E$29,IF(AL$16=Index!$E$14-5,$J39,"")) ->  | AM39: =IF(AM$16=Index!$E$14,$J39+'fgd costs'!$E$29,IF(AM$16=Index!$E$14-5,$J39,"")) ->  | AN39: =IF(AN$16=Index!$E$14,$J39+'fgd costs'!$E$29,IF(AN$16=Index!$E$14-5,$J39,"")) ->  | AO39: =IF(AO$16=Index!$E$14,$J39+'fgd costs'!$E$29,IF(AO$16=Index!$E$14-5,$J39,"")) ->  | AP39: =IF(AP$16=Index!$E$14,$J39+'fgd costs'!$E$29,IF(AP$16=Index!$E$14-5,$J39,"")) ->  | AQ39: =IF(AQ$16=Index!$E$14,$J39+'fgd costs'!$E$29,IF(AQ$16=Index!$E$14-5,$J39,"")) ->  | AR39: =IFERROR(VLOOKUP($C39,etech_data,MATCH(VLOOKUP($B39,$B$10:$J$14,$J$9-1,FALSE)&AR$16,etech_parameters,0),FALSE),"") ->  | AX39: =IF(AY38=PWR!$B$44,AX38+1,AX38) -> 3 | AY39: 2
B40: PRC_ACTFLO | C40: ETCLEPFS-E | D40: - | E40: WAT | F40: - | G40: - | H40: - | I40: 0 | J40: 689.0948958 | K40: =IF(K$16=Index!$E$14,$J40+'fgd costs'!$E$29,IF(K$16=Index!$E$14-5,$J40,"")) ->  | L40: =IF(L$16=Index!$E$14,$J40+'fgd costs'!$E$29,IF(L$16=Index!$E$14-5,$J40,"")) ->  | M40: =IF(M$16=Index!$E$14,$J40+'fgd costs'!$E$29,IF(M$16=Index!$E$14-5,$J40,"")) ->  | N40: =IF(N$16=Index!$E$14,$J40+'fgd costs'!$E$29,IF(N$16=Index!$E$14-5,$J40,"")) ->  | O40: =IF(O$16=Index!$E$14,$J40+'fgd costs'!$E$29,IF(O$16=Index!$E$14-5,$J40,"")) ->  | P40: =IF(P$16=Index!$E$14,$J40+'fgd costs'!$E$29,IF(P$16=Index!$E$14-5,$J40,"")) ->  | Q40: =IF(Q$16=Index!$E$14,$J40+'fgd costs'!$E$29,IF(Q$16=Index!$E$14-5,$J40,"")) ->  | R40: =IF(R$16=Index!$E$14,$J40+'fgd costs'!$E$29,IF(R$16=Index!$E$14-5,$J40,"")) ->  | S40: =IF(S$16=Index!$E$14,$J40+'fgd costs'!$E$29,IF(S$16=Index!$E$14-5,$J40,"")) ->  | T40: =IF(T$16=Index!$E$14,$J40+'fgd costs'!$E$29,IF(T$16=Index!$E$14-5,$J40,"")) ->  | U40: =IF(U$16=Index!$E$14,$J40+'fgd costs'!$E$29,IF(U$16=Index!$E$14-5,$J40,"")) ->  | V40: =IF(V$16=Index!$E$14,$J40+'fgd costs'!$E$29,IF(V$16=Index!$E$14-5,$J40,"")) ->  | W40: =IF(W$16=Index!$E$14,$J40+'fgd costs'!$E$29,IF(W$16=Index!$E$14-5,$J40,"")) ->  | X40: =IF(X$16=Index!$E$14,$J40+'fgd costs'!$E$29,IF(X$16=Index!$E$14-5,$J40,"")) ->  | Y40: =IF(Y$16=Index!$E$14,$J40+'fgd costs'!$E$29,IF(Y$16=Index!$E$14-5,$J40,"")) ->  | Z40: =IF(Z$16=Index!$E$14,$J40+'fgd costs'!$E$29,IF(Z$16=Index!$E$14-5,$J40,"")) ->  | AA40: =IF(AA$16=Index!$E$14,$J40+'fgd costs'!$E$29,IF(AA$16=Index!$E$14-5,$J40,"")) ->  | AB40: =IF(AB$16=Index!$E$14,$J40+'fgd costs'!$E$29,IF(AB$16=Index!$E$14-5,$J40,"")) ->  | AC40: =IF(AC$16=Index!$E$14,$J40+'fgd costs'!$E$29,IF(AC$16=Index!$E$14-5,$J40,"")) ->  | AD40: =IF(AD$16=Index!$E$14,$J40+'fgd costs'!$E$29,IF(AD$16=Index!$E$14-5,$J40,"")) ->  | AE40: =IF(AE$16=Index!$E$14,$J40+'fgd costs'!$E$29,IF(AE$16=Index!$E$14-5,$J40,"")) ->  | AF40: =IF(AF$16=Index!$E$14,$J40+'fgd costs'!$E$29,IF(AF$16=Index!$E$14-5,$J40,"")) ->  | AG40: =IF(AG$16=Index!$E$14,$J40+'fgd costs'!$E$29,IF(AG$16=Index!$E$14-5,$J40,"")) ->  | AH40: =IF(AH$16=Index!$E$14,$J40+'fgd costs'!$E$29,IF(AH$16=Index!$E$14-5,$J40,"")) ->  | AI40: =IF(AI$16=Index!$E$14,$J40+'fgd costs'!$E$29,IF(AI$16=Index!$E$14-5,$J40,"")) ->  | AJ40: =IF(AJ$16=Index!$E$14,$J40+'fgd costs'!$E$29,IF(AJ$16=Index!$E$14-5,$J40,"")) ->  | AK40: =IF(AK$16=Index!$E$14,$J40+'fgd costs'!$E$29,IF(AK$16=Index!$E$14-5,$J40,"")) ->  | AL40: =IF(AL$16=Index!$E$14,$J40+'fgd costs'!$E$29,IF(AL$16=Index!$E$14-5,$J40,"")) ->  | AM40: =IF(AM$16=Index!$E$14,$J40+'fgd costs'!$E$29,IF(AM$16=Index!$E$14-5,$J40,"")) ->  | AN40: =IF(AN$16=Index!$E$14,$J40+'fgd costs'!$E$29,IF(AN$16=Index!$E$14-5,$J40,"")) ->  | AO40: =IF(AO$16=Index!$E$14,$J40+'fgd costs'!$E$29,IF(AO$16=Index!$E$14-5,$J40,"")) ->  | AP40: =IF(AP$16=Index!$E$14,$J40+'fgd costs'!$E$29,IF(AP$16=Index!$E$14-5,$J40,"")) ->  | AQ40: =IF(AQ$16=Index!$E$14,$J40+'fgd costs'!$E$29,IF(AQ$16=Index!$E$14-5,$J40,"")) ->  | AX40: =IF(AY39=PWR!$B$44,AX39+1,AX39) -> 3 | AY40: 3
B41: PRC_ACTFLO | C41: ETCLEPFM-E | D41: - | E41: WAT | F41: - | G41: - | H41: - | I41: 0 | J41: 712.5925926 | K41: =IF(K$16=Index!$E$14,$J41+'fgd costs'!$E$29,IF(K$16=Index!$E$14-5,$J41,"")) ->  | L41: =IF(L$16=Index!$E$14,$J41+'fgd costs'!$E$29,IF(L$16=Index!$E$14-5,$J41,"")) ->  | M41: =IF(M$16=Index!$E$14,$J41+'fgd costs'!$E$29,IF(M$16=Index!$E$14-5,$J41,"")) ->  | N41: =IF(N$16=Index!$E$14,$J41+'fgd costs'!$E$29,IF(N$16=Index!$E$14-5,$J41,"")) ->  | O41: =IF(O$16=Index!$E$14,$J41+'fgd costs'!$E$29,IF(O$16=Index!$E$14-5,$J41,"")) ->  | P41: =IF(P$16=Index!$E$14,$J41+'fgd costs'!$E$29,IF(P$16=Index!$E$14-5,$J41,"")) ->  | Q41: =IF(Q$16=Index!$E$14,$J41+'fgd costs'!$E$29,IF(Q$16=Index!$E$14-5,$J41,"")) ->  | R41: =IF(R$16=Index!$E$14,$J41+'fgd costs'!$E$29,IF(R$16=Index!$E$14-5,$J41,"")) ->  | S41: =IF(S$16=Index!$E$14,$J41+'fgd costs'!$E$29,IF(S$16=Index!$E$14-5,$J41,"")) ->  | T41: =IF(T$16=Index!$E$14,$J41+'fgd costs'!$E$29,IF(T$16=Index!$E$14-5,$J41,"")) ->  | U41: =IF(U$16=Index!$E$14,$J41+'fgd costs'!$E$29,IF(U$16=Index!$E$14-5,$J41,"")) ->  | V41: =IF(V$16=Index!$E$14,$J41+'fgd costs'!$E$29,IF(V$16=Index!$E$14-5,$J41,"")) ->  | W41: =IF(W$16=Index!$E$14,$J41+'fgd costs'!$E$29,IF(W$16=Index!$E$14-5,$J41,"")) ->  | X41: =IF(X$16=Index!$E$14,$J41+'fgd costs'!$E$29,IF(X$16=Index!$E$14-5,$J41,"")) ->  | Y41: =IF(Y$16=Index!$E$14,$J41+'fgd costs'!$E$29,IF(Y$16=Index!$E$14-5,$J41,"")) ->  | Z41: =IF(Z$16=Index!$E$14,$J41+'fgd costs'!$E$29,IF(Z$16=Index!$E$14-5,$J41,"")) ->  | AA41: =IF(AA$16=Index!$E$14,$J41+'fgd costs'!$E$29,IF(AA$16=Index!$E$14-5,$J41,"")) ->  | AB41: =IF(AB$16=Index!$E$14,$J41+'fgd costs'!$E$29,IF(AB$16=Index!$E$14-5,$J41,"")) ->  | AC41: =IF(AC$16=Index!$E$14,$J41+'fgd costs'!$E$29,IF(AC$16=Index!$E$14-5,$J41,"")) ->  | AD41: =IF(AD$16=Index!$E$14,$J41+'fgd costs'!$E$29,IF(AD$16=Index!$E$14-5,$J41,"")) ->  | AE41: =IF(AE$16=Index!$E$14,$J41+'fgd costs'!$E$29,IF(AE$16=Index!$E$14-5,$J41,"")) ->  | AF41: =IF(AF$16=Index!$E$14,$J41+'fgd costs'!$E$29,IF(AF$16=Index!$E$14-5,$J41,"")) ->  | AG41: =IF(AG$16=Index!$E$14,$J41+'fgd costs'!$E$29,IF(AG$16=Index!$E$14-5,$J41,"")) ->  | AH41: =IF(AH$16=Index!$E$14,$J41+'fgd costs'!$E$29,IF(AH$16=Index!$E$14-5,$J41,"")) ->  | AI41: =IF(AI$16=Index!$E$14,$J41+'fgd costs'!$E$29,IF(AI$16=Index!$E$14-5,$J41,"")) ->  | AJ41: =IF(AJ$16=Index!$E$14,$J41+'fgd costs'!$E$29,IF(AJ$16=Index!$E$14-5,$J41,"")) ->  | AK41: =IF(AK$16=Index!$E$14,$J41+'fgd costs'!$E$29,IF(AK$16=Index!$E$14-5,$J41,"")) ->  | AL41: =IF(AL$16=Index!$E$14,$J41+'fgd costs'!$E$29,IF(AL$16=Index!$E$14-5,$J41,"")) ->  | AM41: =IF(AM$16=Index!$E$14,$J41+'fgd costs'!$E$29,IF(AM$16=Index!$E$14-5,$J41,"")) ->  | AN41: =IF(AN$16=Index!$E$14,$J41+'fgd costs'!$E$29,IF(AN$16=Index!$E$14-5,$J41,"")) ->  | AO41: =IF(AO$16=Index!$E$14,$J41+'fgd costs'!$E$29,IF(AO$16=Index!$E$14-5,$J41,"")) ->  | AP41: =IF(AP$16=Index!$E$14,$J41+'fgd costs'!$E$29,IF(AP$16=Index!$E$14-5,$J41,"")) ->  | AQ41: =IF(AQ$16=Index!$E$14,$J41+'fgd costs'!$E$29,IF(AQ$16=Index!$E$14-5,$J41,"")) ->  | AX41: =IF(AY40=PWR!$B$44,AX40+1,AX40) -> 3 | AY41: 4
B42: PRC_ACTFLO | C42: ETCLEPFSS-E | D42: - | E42: WAT | F42: - | G42: - | H42: - | I42: 0 | J42: 712.5925926 | K42: =IF(K$16=Index!$E$14,$J42+'fgd costs'!$E$29,IF(K$16=Index!$E$14-5,$J42,"")) ->  | L42: =IF(L$16=Index!$E$14,$J42+'fgd costs'!$E$29,IF(L$16=Index!$E$14-5,$J42,"")) ->  | M42: =IF(M$16=Index!$E$14,$J42+'fgd costs'!$E$29,IF(M$16=Index!$E$14-5,$J42,"")) ->  | N42: =IF(N$16=Index!$E$14,$J42+'fgd costs'!$E$29,IF(N$16=Index!$E$14-5,$J42,"")) ->  | O42: =IF(O$16=Index!$E$14,$J42+'fgd costs'!$E$29,IF(O$16=Index!$E$14-5,$J42,"")) ->  | P42: =IF(P$16=Index!$E$14,$J42+'fgd costs'!$E$29,IF(P$16=Index!$E$14-5,$J42,"")) ->  | Q42: =IF(Q$16=Index!$E$14,$J42+'fgd costs'!$E$29,IF(Q$16=Index!$E$14-5,$J42,"")) ->  | R42: =IF(R$16=Index!$E$14,$J42+'fgd costs'!$E$29,IF(R$16=Index!$E$14-5,$J42,"")) ->  | S42: =IF(S$16=Index!$E$14,$J42+'fgd costs'!$E$29,IF(S$16=Index!$E$14-5,$J42,"")) ->  | T42: =IF(T$16=Index!$E$14,$J42+'fgd costs'!$E$29,IF(T$16=Index!$E$14-5,$J42,"")) ->  | U42: =IF(U$16=Index!$E$14,$J42+'fgd costs'!$E$29,IF(U$16=Index!$E$14-5,$J42,"")) ->  | V42: =IF(V$16=Index!$E$14,$J42+'fgd costs'!$E$29,IF(V$16=Index!$E$14-5,$J42,"")) ->  | W42: =IF(W$16=Index!$E$14,$J42+'fgd costs'!$E$29,IF(W$16=Index!$E$14-5,$J42,"")) ->  | X42: =IF(X$16=Index!$E$14,$J42+'fgd costs'!$E$29,IF(X$16=Index!$E$14-5,$J42,"")) ->  | Y42: =IF(Y$16=Index!$E$14,$J42+'fgd costs'!$E$29,IF(Y$16=Index!$E$14-5,$J42,"")) ->  | Z42: =IF(Z$16=Index!$E$14,$J42+'fgd costs'!$E$29,IF(Z$16=Index!$E$14-5,$J42,"")) ->  | AA42: =IF(AA$16=Index!$E$14,$J42+'fgd costs'!$E$29,IF(AA$16=Index!$E$14-5,$J42,"")) ->  | AB42: =IF(AB$16=Index!$E$14,$J42+'fgd costs'!$E$29,IF(AB$16=Index!$E$14-5,$J42,"")) ->  | AC42: =IF(AC$16=Index!$E$14,$J42+'fgd costs'!$E$29,IF(AC$16=Index!$E$14-5,$J42,"")) ->  | AD42: =IF(AD$16=Index!$E$14,$J42+'fgd costs'!$E$29,IF(AD$16=Index!$E$14-5,$J42,"")) ->  | AE42: =IF(AE$16=Index!$E$14,$J42+'fgd costs'!$E$29,IF(AE$16=Index!$E$14-5,$J42,"")) ->  | AF42: =IF(AF$16=Index!$E$14,$J42+'fgd costs'!$E$29,IF(AF$16=Index!$E$14-5,$J42,"")) ->  | AG42: =IF(AG$16=Index!$E$14,$J42+'fgd costs'!$E$29,IF(AG$16=Index!$E$14-5,$J42,"")) ->  | AH42: =IF(AH$16=Index!$E$14,$J42+'fgd costs'!$E$29,IF(AH$16=Index!$E$14-5,$J42,"")) ->  | AI42: =IF(AI$16=Index!$E$14,$J42+'fgd costs'!$E$29,IF(AI$16=Index!$E$14-5,$J42,"")) ->  | AJ42: =IF(AJ$16=Index!$E$14,$J42+'fgd costs'!$E$29,IF(AJ$16=Index!$E$14-5,$J42,"")) ->  | AK42: =IF(AK$16=Index!$E$14,$J42+'fgd costs'!$E$29,IF(AK$16=Index!$E$14-5,$J42,"")) ->  | AL42: =IF(AL$16=Index!$E$14,$J42+'fgd costs'!$E$29,IF(AL$16=Index!$E$14-5,$J42,"")) ->  | AM42: =IF(AM$16=Index!$E$14,$J42+'fgd costs'!$E$29,IF(AM$16=Index!$E$14-5,$J42,"")) ->  | AN42: =IF(AN$16=Index!$E$14,$J42+'fgd costs'!$E$29,IF(AN$16=Index!$E$14-5,$J42,"")) ->  | AO42: =IF(AO$16=Index!$E$14,$J42+'fgd costs'!$E$29,IF(AO$16=Index!$E$14-5,$J42,"")) ->  | AP42: =IF(AP$16=Index!$E$14,$J42+'fgd costs'!$E$29,IF(AP$16=Index!$E$14-5,$J42,"")) ->  | AQ42: =IF(AQ$16=Index!$E$14,$J42+'fgd costs'!$E$29,IF(AQ$16=Index!$E$14-5,$J42,"")) ->  | AX42: =IF(AY41=PWR!$B$44,AX41+1,AX41) -> 3 | AY42: 5
B43: PRC_ACTFLO | C43: ETCLEPFSI-E | D43: - | E43: WAT | F43: - | G43: - | H43: - | I43: 0 | J43: 712.5925926 | K43: =IF(K$16=Index!$E$14,$J43+'fgd costs'!$E$29,IF(K$16=Index!$E$14-5,$J43,"")) ->  | L43: =IF(L$16=Index!$E$14,$J43+'fgd costs'!$E$29,IF(L$16=Index!$E$14-5,$J43,"")) ->  | M43: =IF(M$16=Index!$E$14,$J43+'fgd costs'!$E$29,IF(M$16=Index!$E$14-5,$J43,"")) ->  | N43: =IF(N$16=Index!$E$14,$J43+'fgd costs'!$E$29,IF(N$16=Index!$E$14-5,$J43,"")) ->  | O43: =IF(O$16=Index!$E$14,$J43+'fgd costs'!$E$29,IF(O$16=Index!$E$14-5,$J43,"")) ->  | P43: =IF(P$16=Index!$E$14,$J43+'fgd costs'!$E$29,IF(P$16=Index!$E$14-5,$J43,"")) ->  | Q43: =IF(Q$16=Index!$E$14,$J43+'fgd costs'!$E$29,IF(Q$16=Index!$E$14-5,$J43,"")) ->  | R43: =IF(R$16=Index!$E$14,$J43+'fgd costs'!$E$29,IF(R$16=Index!$E$14-5,$J43,"")) ->  | S43: =IF(S$16=Index!$E$14,$J43+'fgd costs'!$E$29,IF(S$16=Index!$E$14-5,$J43,"")) ->  | T43: =IF(T$16=Index!$E$14,$J43+'fgd costs'!$E$29,IF(T$16=Index!$E$14-5,$J43,"")) ->  | U43: =IF(U$16=Index!$E$14,$J43+'fgd costs'!$E$29,IF(U$16=Index!$E$14-5,$J43,"")) ->  | V43: =IF(V$16=Index!$E$14,$J43+'fgd costs'!$E$29,IF(V$16=Index!$E$14-5,$J43,"")) ->  | W43: =IF(W$16=Index!$E$14,$J43+'fgd costs'!$E$29,IF(W$16=Index!$E$14-5,$J43,"")) ->  | X43: =IF(X$16=Index!$E$14,$J43+'fgd costs'!$E$29,IF(X$16=Index!$E$14-5,$J43,"")) ->  | Y43: =IF(Y$16=Index!$E$14,$J43+'fgd costs'!$E$29,IF(Y$16=Index!$E$14-5,$J43,"")) ->  | Z43: =IF(Z$16=Index!$E$14,$J43+'fgd costs'!$E$29,IF(Z$16=Index!$E$14-5,$J43,"")) ->  | AA43: =IF(AA$16=Index!$E$14,$J43+'fgd costs'!$E$29,IF(AA$16=Index!$E$14-5,$J43,"")) ->  | AB43: =IF(AB$16=Index!$E$14,$J43+'fgd costs'!$E$29,IF(AB$16=Index!$E$14-5,$J43,"")) ->  | AC43: =IF(AC$16=Index!$E$14,$J43+'fgd costs'!$E$29,IF(AC$16=Index!$E$14-5,$J43,"")) ->  | AD43: =IF(AD$16=Index!$E$14,$J43+'fgd costs'!$E$29,IF(AD$16=Index!$E$14-5,$J43,"")) ->  | AE43: =IF(AE$16=Index!$E$14,$J43+'fgd costs'!$E$29,IF(AE$16=Index!$E$14-5,$J43,"")) ->  | AF43: =IF(AF$16=Index!$E$14,$J43+'fgd costs'!$E$29,IF(AF$16=Index!$E$14-5,$J43,"")) ->  | AG43: =IF(AG$16=Index!$E$14,$J43+'fgd costs'!$E$29,IF(AG$16=Index!$E$14-5,$J43,"")) ->  | AH43: =IF(AH$16=Index!$E$14,$J43+'fgd costs'!$E$29,IF(AH$16=Index!$E$14-5,$J43,"")) ->  | AI43: =IF(AI$16=Index!$E$14,$J43+'fgd costs'!$E$29,IF(AI$16=Index!$E$14-5,$J43,"")) ->  | AJ43: =IF(AJ$16=Index!$E$14,$J43+'fgd costs'!$E$29,IF(AJ$16=Index!$E$14-5,$J43,"")) ->  | AK43: =IF(AK$16=Index!$E$14,$J43+'fgd costs'!$E$29,IF(AK$16=Index!$E$14-5,$J43,"")) ->  | AL43: =IF(AL$16=Index!$E$14,$J43+'fgd costs'!$E$29,IF(AL$16=Index!$E$14-5,$J43,"")) ->  | AM43: =IF(AM$16=Index!$E$14,$J43+'fgd costs'!$E$29,IF(AM$16=Index!$E$14-5,$J43,"")) ->  | AN43: =IF(AN$16=Index!$E$14,$J43+'fgd costs'!$E$29,IF(AN$16=Index!$E$14-5,$J43,"")) ->  | AO43: =IF(AO$16=Index!$E$14,$J43+'fgd costs'!$E$29,IF(AO$16=Index!$E$14-5,$J43,"")) ->  | AP43: =IF(AP$16=Index!$E$14,$J43+'fgd costs'!$E$29,IF(AP$16=Index!$E$14-5,$J43,"")) ->  | AQ43: =IF(AQ$16=Index!$E$14,$J43+'fgd costs'!$E$29,IF(AQ$16=Index!$E$14-5,$J43,"")) ->  | AX43: =IF(AY42=PWR!$B$44,AX42+1,AX42) -> 3 | AY43: 6
A44: * | C44: ETODSGT-E | D44: - | E44: WAT | F44: - | G44: - | H44: - | I44: 0 | J44: 0 | K44: =IFERROR(VLOOKUP($C44,etech_data,MATCH(VLOOKUP($B44,$B$10:$J$14,$J$9-1,FALSE)&K$16,etech_parameters,0),FALSE),"") ->  | U44: =IFERROR(VLOOKUP($C44,etech_data,MATCH(VLOOKUP($B44,$B$10:$J$14,$J$9-1,FALSE)&U$16,etech_parameters,0),FALSE),"") ->  | AE44: =IFERROR(VLOOKUP($C44,etech_data,MATCH(VLOOKUP($B44,$B$10:$J$14,$J$9-1,FALSE)&AE$16,etech_parameters,0),FALSE),"") ->  | AX44: =IF(AY43=PWR!$B$44,AX43+1,AX43) -> 3 | AY44: 7
A45: * | C45: ERHYD-E | D45: - | E45: WAT | F45: - | G45: - | H45: - | I45: 0 | J45: 0 | AX45: =IF(AY44=PWR!$B$44,AX44+1,AX44) -> 3 | AY45: 8
A46: * | C46: ERHYD-I | D46: - | E46: WAT | F46: - | G46: - | H46: - | I46: 0 | J46: 0 | AX46: =IF(AY45=PWR!$B$44,AX45+1,AX45) -> 3 | AY46: 9
A47: * | C47: ETNUC-E | D47: - | E47: WAT | F47: - | G47: - | H47: - | I47: 0 | J47: 0 | AX47: =IF(AY46=PWR!$B$44,AX46+1,AX46) -> 3 | AY47: 10
B48: NCAP_FOM | C48: =OFFSET(epp_start,AY48,0) -> ETCLEPFW-E | D48: - | E48: - | F48: - | G48: - | H48: - | I48: 0 | J48: 1491.272545 | K48: =IFERROR(VLOOKUP($C48,etech_data,MATCH(VLOOKUP($B48,$B$10:$J$14,$J$9-1,FALSE)&K$16,etech_parameters,0),FALSE),"") ->  | S48: =J48 -> 1491.272545 | T48: =IFERROR(VLOOKUP($C48,etech_data,MATCH(VLOOKUP($B48,$B$10:$J$14,$J$9-1,FALSE)&T$16,etech_parameters,0),FALSE),"") ->  | X48: =IFERROR(VLOOKUP($C48,etech_data,MATCH(VLOOKUP($B48,$B$10:$J$14,$J$9-1,FALSE)&X$16,etech_parameters,0),FALSE),"")+S48 ->  | Y48: =IFERROR(VLOOKUP($C48,etech_data,MATCH(VLOOKUP($B48,$B$10:$J$14,$J$9-1,FALSE)&Y$16,etech_parameters,0),FALSE),"") ->  | AI48: =IFERROR(VLOOKUP($C48,etech_data,MATCH(VLOOKUP($B48,$B$10:$J$14,$J$9-1,FALSE)&AI$16,etech_parameters,0),FALSE),"") ->  | AX48: =IF(AY47=PWR!$B$44,AX47+1,AX47) -> 4 | AY48: =IF(AX48=AX47,AY47+1,1) -> 1
B49: NCAP_FOM | C49: ETCLEPFD-E | D49: - | E49: - | F49: - | G49: - | H49: - | I49: 0 | J49: 1491.272545 | S49: 1491.272545 | AX49: =IF(AY48=PWR!$B$44,AX48+1,AX48) -> 4 | AY49: 2
B50: =IF(A50="*","",VLOOKUP("*"&AX50,$A$9:$B$14,2,FALSE)) -> NCAP_FOM | C50: ETCLEPFS-E | D50: - | E50: - | F50: - | G50: - | H50: - | I50: 0 | J50: =IFERROR(VLOOKUP($C50,etech_data,MATCH(VLOOKUP("*"&$AX50,$A$10:$J$14,$J$9,FALSE)&J$16,etech_parameters,0),FALSE),"0") -> 1491.272545 | S50: 1491.272545 | AX50: =IF(AY49=PWR!$B$44,AX49+1,AX49) -> 4 | AY50: 3
B51: NCAP_FOM | C51: ETCLEPFM-E | D51: - | E51: - | F51: - | G51: - | H51: - | I51: 0 | J51: 1491.272545 | S51: 1491.272545 | AX51: =IF(AY50=PWR!$B$44,AX50+1,AX50) -> 4 | AY51: 4
B52: NCAP_FOM | C52: ETCLEPFSS-E | D52: - | E52: - | F52: - | G52: - | H52: - | I52: 0 | J52: 1491.272545 | S52: 1491.272545 | AX52: =IF(AY51=PWR!$B$44,AX51+1,AX51) -> 4 | AY52: 5
B53: NCAP_FOM | C53: ETCLEPFSI-E | D53: - | E53: - | F53: - | G53: - | H53: - | I53: 0 | J53: 1491.272545 | S53: 1491.272545 | AX53: =IF(AY52=PWR!$B$44,AX52+1,AX52) -> 4 | AY53: 6
A54: * | C54: ETODSGT-E | D54: =IF(VLOOKUP("*"&$AX54,par_TS_ETech,D$9,FALSE)="-","-",IF(LEFT(VLOOKUP("*"&$AX54,par_TS_ETech,D$9,FALSE),1)="#",RIGHT(VLOOKUP("*"&$AX54,par_TS_ETech,D$9,FALSE),LEN(VLOOKUP("*"&$AX54,par_TS_ETech,D$9,FALSE))-1),VLOOKUP($C54,etech_data,MATCH(VLOOKUP("*"&$AX54,par_TS_ETech,D$9,FALSE),etech_parameters,0),FALSE))) -> - | E54: - | F54: - | G54: - | H54: - | I54: 0 | J54: 66.19512195 | S54: =IFERROR(VLOOKUP($C54,etech_data,MATCH(VLOOKUP($B54,$B$10:$J$14,$J$9-1,FALSE)&S$16,etech_parameters,0),FALSE),"") ->  | W54: =IFERROR(VLOOKUP($C54,etech_data,MATCH(VLOOKUP($B54,$B$10:$J$14,$J$9-1,FALSE)&W$16,etech_parameters,0),FALSE),"") ->  | AX54: =IF(AY53=PWR!$B$44,AX53+1,AX53) -> 4 | AY54: 7
A55: * | C55: ERHYD-E | D55: - | E55: - | F55: - | G55: - | H55: - | I55: 0 | J55: 1376.420026 | S55: =IFERROR(VLOOKUP($C55,etech_data,MATCH(VLOOKUP($B55,$B$10:$J$14,$J$9-1,FALSE)&S$16,etech_parameters,0),FALSE),"") ->  | AX55: =IF(AY54=PWR!$B$44,AX54+1,AX54) -> 4 | AY55: 8
A56: * | C56: ERHYD-I | D56: - | E56: - | F56: - | G56: - | H56: - | I56: 0 | J56: 1367.524504 | S56: =IFERROR(VLOOKUP($C56,etech_data,MATCH(VLOOKUP($B56,$B$10:$J$14,$J$9-1,FALSE)&S$16,etech_parameters,0),FALSE),"") ->  | AX56: =IF(AY55=PWR!$B$44,AX55+1,AX55) -> 4 | AY56: 9
A57: * | C57: ETNUC-E | D57: - | E57: - | F57: - | G57: - | H57: - | I57: 0 | J57: 4058.163481 | S57: =IFERROR(VLOOKUP($C57,etech_data,MATCH(VLOOKUP($B57,$B$10:$J$14,$J$9-1,FALSE)&S$16,etech_parameters,0),FALSE),"") ->  | AX57: =IF(AY56=PWR!$B$44,AX56+1,AX56) -> 4 | AY57: 10
B58: FLO_EMIS | C58: =OFFSET(epp_start,AY58,0) -> ETCLEPFW-E | D58: PWRSOXS | E58: ACTGRP | F58: - | G58: ANNUAL | H58: - | I58: 0 | J58: 0 | K58: =IFERROR(VLOOKUP($C58,etech_data,MATCH(VLOOKUP($B58,$B$10:$J$14,$J$9-1,FALSE)&K$16,etech_parameters,0),FALSE),"") ->  | S58: =J58 -> 0 | Y58: =IFERROR(VLOOKUP($C58,etech_data,MATCH(VLOOKUP($B58,$B$10:$J$14,$J$9-1,FALSE)&Y$16,etech_parameters,0),FALSE),"") ->  | AI58: =IFERROR(VLOOKUP($C58,etech_data,MATCH(VLOOKUP($B58,$B$10:$J$14,$J$9-1,FALSE)&AI$16,etech_parameters,0),FALSE),"") ->  | AS58: =IFERROR(VLOOKUP($C58,etech_data,MATCH(VLOOKUP($B58,$B$10:$J$14,$J$9-1,FALSE)&AS$16,etech_parameters,0),FALSE),"") ->  | AX58: =IF(AY57=PWR!$B$44,AX57+1,AX57) -> 5 | AY58: =IF(AX58=AX57,AY57+1,1) -> 1
B59: FLO_EMIS | C59: ETCLEPFD-E | D59: PWRSOXS | E59: ACTGRP | F59: - | G59: ANNUAL | H59: - | I59: 0 | J59: 0 | S59: 0 | AX59: =IF(AY58=PWR!$B$44,AX58+1,AX58) -> 5 | AY59: 2
B60: FLO_EMIS | C60: ETCLEPFS-E | D60: PWRSOXS | E60: ACTGRP | F60: - | G60: ANNUAL | H60: - | I60: 0 | J60: 0 | S60: 0 | AX60: =IF(AY59=PWR!$B$44,AX59+1,AX59) -> 5 | AY60: 3
B61: FLO_EMIS | C61: ETCLEPFM-E | D61: PWRSOXS | E61: ACTGRP | F61: - | G61: ANNUAL | H61: - | I61: 0 | J61: 0 | S61: 0 | AX61: =IF(AY60=PWR!$B$44,AX60+1,AX60) -> 5 | AY61: 4
B62: FLO_EMIS | C62: ETCLEPFSS-E | D62: PWRSOXS | E62: ACTGRP | F62: - | G62: ANNUAL | H62: - | I62: 0 | J62: 0 | S62: 0 | AX62: =IF(AY61=PWR!$B$44,AX61+1,AX61) -> 5 | AY62: 5
B63: FLO_EMIS | C63: ETCLEPFSI-E | D63: PWRSOXS | E63: ACTGRP | F63: - | G63: ANNUAL | H63: - | I63: 0 | J63: 0 | S63: 0 | AX63: =IF(AY62=PWR!$B$44,AX62+1,AX62) -> 5 | AY63: 6
A64: * | C64: ETODSGT-E | D64: PWRSOXS | E64: ACTGRP | F64: - | G64: ANNUAL | H64: - | I64: 0 | J64: 0 | S64: =IFERROR(VLOOKUP($C64,etech_data,MATCH(VLOOKUP($B64,$B$10:$J$14,$J$9-1,FALSE)&S$16,etech_parameters,0),FALSE),"") ->  | AX64: =IF(AY63=PWR!$B$44,AX63+1,AX63) -> 5 | AY64: 7
A65: * | C65: ERHYD-E | D65: PWRSOXS | E65: ACTGRP | F65: - | G65: ANNUAL | H65: - | I65: 0 | J65: 0 | S65: =IFERROR(VLOOKUP($C65,etech_data,MATCH(VLOOKUP($B65,$B$10:$J$14,$J$9-1,FALSE)&S$16,etech_parameters,0),FALSE),"") ->  | AX65: =IF(AY64=PWR!$B$44,AX64+1,AX64) -> 5 | AY65: 8
A66: * | C66: ERHYD-I | D66: PWRSOXS | E66: ACTGRP | F66: - | G66: ANNUAL | H66: - | I66: 0 | J66: 0 | S66: =IFERROR(VLOOKUP($C66,etech_data,MATCH(VLOOKUP($B66,$B$10:$J$14,$J$9-1,FALSE)&S$16,etech_parameters,0),FALSE),"") ->  | AX66: =IF(AY65=PWR!$B$44,AX65+1,AX65) -> 5 | AY66: 9
A67: * | C67: ETNUC-E | D67: PWRSOXS | E67: ACTGRP | F67: - | G67: ANNUAL | H67: - | I67: 0 | J67: 0 | S67: =IFERROR(VLOOKUP($C67,etech_data,MATCH(VLOOKUP($B67,$B$10:$J$14,$J$9-1,FALSE)&S$16,etech_parameters,0),FALSE),"") ->  | AX67: =IF(AY66=PWR!$B$44,AX66+1,AX66) -> 5 | AY67: 10

Sheet TID FGD
A1: =IF(Index!$E$14="N","","TID DATA") ->  | B1: REGION1
A2: *
A3: *
A4: *
A5: *
A6: *
A7: * | B7: Parameter | C7: Arg1 | D7: Arg2 | E7: Arg3 | F7: Arg4 | G7: Arg5 | H7: Arg6 | I7: Value
A8: * | B8: 2 | C8: 3 | D8: 4 | E8: 5 | F8: 6 | G8: 7 | H8: 8 | I8: 9
B9: TOP-OUT | C9: ETCLEPFW-E | D9: PWRSOXS | E9: - | F9: - | G9: - | H9: - | I9: 1
B10: TOP-OUT | C10: ETCLEPFD-E | D10: PWRSOXS | E10: - | F10: - | G10: - | H10: - | I10: 1
B11: TOP-OUT | C11: ETCLEPFS-E | D11: PWRSOXS | E11: - | F11: - | G11: - | H11: - | I11: 1
B12: TOP-OUT | C12: ETCLEPFM-E | D12: PWRSOXS | E12: - | F12: - | G12: - | H12: - | I12: 1
B13: TOP-OUT | C13: ETCLEPFSS-E | D13: PWRSOXS | E13: - | F13: - | G13: - | H13: - | I13: 1
B14: TOP-OUT | C14: ETCLEPFSI-E | D14: PWRSOXS | E14: - | F14: - | G14: - | H14: - | I14: 1

Sheet New Capacity basic data
B1: New capacity data | AV1: Lead Time Threshold | AY1: 0.89
B2: Notes | C2: SNAPP categories for dispatch and indicators, derived from the fuel type and the sub-category | F2: Overall efficiency including heat output from CHP plants | J2: Percentage of plant capacity available to contribute to peak demand | K2: Availability, which = (1-FOR)*(1-POR) | L2: = 1-FOR | M2: = 1-FOR | P2: Overnight investment cost - without interest during construction | U2: First year in which the technology can generate electricity
B3: Parameter | C3: ='Existing capacity basic data'!E3 -> Broad Category | D3: Heat rate or efficiency | E3: Heat rate | F3: Efficiency | G3: ='Existing capacity basic data'!K3 -> Max unit capacity | H3: Forced outage rate | I3: Planned outage rate | J3: Contribution to Peak | K3: Availability factor | L3: Maximum availability | M3: ='Existing capacity basic data'!V3 -> Minimum utilisation | N3: Life of Plant | O3: Water use | P3: Overnight Capital Cost | S3: Fixed costs | T3: Variable costs | U3: Start year | V3: Investment schedule | AF3: Lead Time | AH3: Technology learning indices - 2010=1 | AS3: Cumulative Investment schedule | BC3: ODC costs | BD3: $ cost check | BI3: IDC checks | BL3: IRP 2010 Costs | BM3: IRP update costs | BN3: IRP update costs | BO3: Real Growth | BT3: Learning factor correction for RE scenarios | BY3: Overnight Cost (2010 R/kW) in the year the data is observed | CC3: Overnight Cost (2010 R/kW) in 2010
B4: Year (time series) - default 2006 | V4: -9 | W4: -8 | X4: -7 | Y4: -6 | Z4: -5 | AA4: -4 | AB4: -3 | AC4: -2 | AD4: -1 | AE4: 0 | AH4: 2010 | AI4: 2012 | AJ4: 2014 | AK4: 2016 | AL4: 2018 | AM4: 2020 | AN4: 2025 | AO4: 2030 | AP4: 2040 | AQ4: 2050 | AS4: =V4 -> -9 | AT4: =W4 -> -8 | AU4: -7 | AV4: -6 | AW4: -5 | AX4: -4 | AY4: -3 | AZ4: -2 | BA4: -1 | BB4: 0 | BI4: Actual | BJ4: Model | BL4: 0 | BM4: 1 | BR4: IRP 2010 | BS4: Window 1 | BT4: Window 2 | BU4: Window 3 | BV4: IRP update | BW4: =BR4 -> IRP 2010 | BX4: Window 1 | BY4: Window 2 | BZ4: Window 3 | CA4: IRP update | CB4: IRP 2010 | CC4: Window 1 | CD4: Window 2 | CE4: Window 3 | CF4: IRP update | CG4: UNEP
B5: Units | E5: kJ/kWh | F5: % | H5: % | I5: % | J5: % | K5: % | N5: Years | O5: l/MWh | P5: (R/kW) | S5: R/KW | T5: R/MWh | V5: % | W5: % | X5: % | Y5: % | Z5: % | AA5: % | AB5: % | AC5: % | AD5: % | AE5: % | BL5: 2010 R/kW | BM5: 2010 R/kW | BN5: 2012 R/kW
B6: Lookup row | C6: =IF(C3<>"",C3&C4,IF(AND(B3<>"",C3=""),B3&C4,LEFT(B6,LEN(B6)-LEN(B4))&C4)) -> Broad Category | D6: =IF(D3<>"",D3&D4,IF(AND(C3<>"",D3=""),C3&D4,LEFT(C6,LEN(C6)-LEN(C4))&D4)) -> Heat rate or efficiency | E6: =IF(E3<>"",E3&E4,IF(AND(D3<>"",E3=""),D3&E4,LEFT(D6,LEN(D6)-LEN(D4))&E4)) -> Heat rate | F6: =IF(F3<>"",F3&F4,IF(AND(E3<>"",F3=""),E3&F4,LEFT(E6,LEN(E6)-LEN(E4))&F4)) -> Efficiency | G6: =IF(G3<>"",G3&G4,IF(AND(F3<>"",G3=""),F3&G4,LEFT(F6,LEN(F6)-LEN(F4))&G4)) -> Max unit capacity | H6: =IF(H3<>"",H3&H4,IF(AND(F3<>"",H3=""),F3&H4,LEFT(F6,LEN(F6)-LEN(F4))&H4)) -> Forced outage rate | I6: =IF(I3<>"",I3&I4,IF(AND(H3<>"",I3=""),H3&I4,LEFT(H6,LEN(H6)-LEN(H4))&I4)) -> Planned outage rate | J6: Contribution to Peak | K6: Availability factor | L6: Maximum availability | M6: Minimum utilisation | N6: =IF(N3<>"",N3&N4,IF(AND(L3<>"",N3=""),L3&N4,LEFT(L6,LEN(L6)-LEN(L4))&N4)) -> Life of Plant | O6: Water use | P6: Overnight Capital Cost | S6: Fixed costs | T6: Variable costs | U6: Start year | V6: =IF(V3<>"",V3&V4,IF(AND(#REF!<>"",V3=""),#REF!&V4,LEFT(#REF!,LEN(#REF!)-LEN(#REF!))&V4)) -> Investment schedule-9 | W6: Investment schedule-8 | X6: Investment schedule-7 | Y6: Investment schedule-6 | Z6: Investment schedule-5 | AA6: Investment schedule-4 | AB6: Investment schedule-3 | AC6: Investment schedule-2 | AD6: Investment schedule-1 | AE6: Investment schedule0 | AF6: =AF3 -> Lead Time | AG6: Learning Category | AH6: Technology learning indices - 2010=12010 | AI6: Technology learning indices - 2010=12012 | AJ6: Technology learning indices - 2010=12014 | AK6: Technology learning indices - 2010=12016 | AL6: Technology learning indices - 2010=12018 | AM6: Technology learning indices - 2010=12020 | AN6: Technology learning indices - 2010=12025 | AO6: Technology learning indices - 2010=12030 | AP6: Technology learning indices - 2010=12040 | AQ6: Technology learning indices - 2010=12050 | BM6: Conversion 2012-2010 | BN6: =Index!E24 -> 0.108
B7: Technology description | AH7: Scenario to load | AK7: =Index!E5 -> Conservative | AN7: =VLOOKUP(AK7,$B$112:$C$116,2,FALSE) -> 1
B8: Simple technologies | J8: Use IRP CF? | K8: 1 | P8: =Index!E4 -> UNEP | Q8: =SUMIF(B72:B78,P8,C72:C78) -> 5 | BM8: =BN8/(1+BN6) -> 15.79422383 | BN8: 17.5 | CA8: Add ODC?
V9: =(1+discount_rate)^(-V4+1) -> 2.158924997 | W9: 1.999004627 | X9: 1.85093021 | Y9: 1.713824269 | Z9: 1.586874323 | AA9: 1.469328077 | AB9: 1.36048896 | AC9: 1.259712 | AD9: 1.1664 | AE9: 1.08 | BM9: =BN9/(1+BN6) -> 83.03249097 | BN9: 92 | CA9: 1
A10: 1 | B10: Combined Cycle Gas Turbine | C10: gas | E10: 7486 | F10: =1000/(E10/3.6) -> 0.4808976757 | G10: 25 | H10: 0.046 | I10: 0.069 | J10: 1 | K10: 0.888 | L10: =1-H10 -> 0.954 | M10: 0.1 | N10: 30 | O10: 12.8 | P10: =OFFSET(CB10,0,$Q$8) -> 6359.747292 | S10: 148 | T10: 0 | U10: 2010 | V10: 0 | W10: 0 | X10: 0 | Y10: 0 | Z10: 0 | AA10: 0.05 | AB10: 0.05 | AC10: 0.09 | AD10: 0.405 | AE10: 0.405 | AF10: =SUMPRODUCT(--(AS10:BB10>1-$AY$1)) -> 3 | AG10: none | AH10: =SUMIF('New Capacity basic data'!$B$152:$B$166,$AG10,'New Capacity basic data'!C$152:C$166) -> 1 | AI10: =SUMIF('New Capacity basic data'!$B$152:$B$166,$AG10,'New Capacity basic data'!D$152:D$166) -> 1 | AJ10: =SUMIF('New Capacity basic data'!$B$152:$B$166,$AG10,'New Capacity basic data'!E$152:E$166) -> 1 | AK10: =SUMIF('New Capacity basic data'!$B$152:$B$166,$AG10,'New Capacity basic data'!F$152:F$166) -> 1 | AL10: =SUMIF('New Capacity basic data'!$B$152:$B$166,$AG10,'New Capacity basic data'!G$152:G$166) -> 1 | AM10: =SUMIF('New Capacity basic data'!$B$152:$B$166,$AG10,'New Capacity basic data'!H$152:H$166) -> 1 | AN10: =SUMIF('New Capacity basic data'!$B$152:$B$166,$AG10,'New Capacity basic data'!I$152:I$166) -> 1 | AO10: =SUMIF('New Capacity basic data'!$B$152:$B$166,$AG10,'New Capacity basic data'!J$152:J$166) -> 1 | AP10: =SUMIF('New Capacity basic data'!$B$152:$B$166,$AG10,'New Capacity basic data'!K$152:K$166) -> 1 | AQ10: =SUMIF('New Capacity basic data'!$B$152:$B$166,$AG10,'New Capacity basic data'!L$152:L$166) -> 1 | AS10: =V10 -> 0 | AT10: =AS10+W10 -> 0 | AU10: =AT10+X10 -> 0 | AV10: 0 | AW10: 0 | AX10: 0.05 | AY10: 0.1 | AZ10: 0.19 | BA10: 0.595 | BB10: 1 | BC10: 0.1 | BD10: =P10/Index!$E$23 -> 775.5789381 | BI10: =SUMPRODUCT($V$9:$AE$9,V10:AE10)-1 -> 0.1646569318 | BJ10: =-FV(discount_rate,AF10,1/AF10)*(1+discount_rate)-1 -> 0.168704 | BL10: 5780 | BM10: =BN10/(1+$BN$6) -> 5781.588448 | BN10: 6406 | BO10: =BM10/BL10-1 -> 0.0002748179331 | BR10: 1 | BS10: 1 | BT10: 1 | BU10: 1 | BV10: 1 | BW10: =BL10 -> 5780 | BX10: =BW10*(1+$BC10) -> 6358 | BY10: =BX10 -> 6358 | BZ10: =CA10*(1+$BC10) -> 6995.722022 | CA10: =BM10*(1+$CA$9*$BC10) -> 6359.747292 | CB10: =BW10/BR10 -> 5780 | CC10: 6358 | CD10: 6358 | CE10: 6995.722022 | CF10: 6359.747292 | CG10: =CF10 -> 6359.747292
A11: =A10+1 -> 2 | B11: Open-Cycle Gas Turbine diesel | C11: liquid fuels | F11: 0.3018614791 | G11: 115 | H11: 0.046 | I11: 0.069 | J11: 1 | K11: 0.888 | L11: 0.954 | M11: 0.05 | N11: 30 | O11: 19.8 | P11: 4325.541516 | S11: 70 | T11: 0 | U11: 2010 | V11: 0 | W11: 0 | X11: 0 | Y11: 0 | Z11: 0 | AA11: 0 | AB11: 0 | AC11: 0.05 | AD11: 0.2 | AE11: 0.75 | AF11: 2 | AG11: none | AH11: =SUMIF('New Capacity basic data'!$B$152:$B$166,$AG11,'New Capacity basic data'!C$152:C$166) -> 1 | AI11: =SUMIF('New Capacity basic data'!$B$152:$B$166,$AG11,'New Capacity basic data'!D$152:D$166) -> 1 | AJ11: =SUMIF('New Capacity basic data'!$B$152:$B$166,$AG11,'New Capacity basic data'!E$152:E$166) -> 1 | AK11: =SUMIF('New Capacity basic data'!$B$152:$B$166,$AG11,'New Capacity basic data'!F$152:F$166) -> 1 | AL11: =SUMIF('New Capacity basic data'!$B$152:$B$166,$AG11,'New Capacity basic data'!G$152:G$166) -> 1 | AM11: =SUMIF('New Capacity basic data'!$B$152:$B$166,$AG11,'New Capacity basic data'!H$152:H$166) -> 1 | AN11: =SUMIF('New Capacity basic data'!$B$152:$B$166,$AG11,'New Capacity basic data'!I$152:I$166) -> 1 | AO11: =SUMIF('New Capacity basic data'!$B$152:$B$166,$AG11,'New Capacity basic data'!J$152:J$166) -> 1 | AP11: =SUMIF('New Capacity basic data'!$B$152:$B$166,$AG11,'New Capacity basic data'!K$152:K$166) -> 1 | AQ11: =SUMIF('New Capacity basic data'!$B$152:$B$166,$AG11,'New Capacity basic data'!L$152:L$166) -> 1 | AS11: =V11 -> 0 | AT11: =AS11+W11 -> 0 | AU11: 0 | AV11: 0 | AW11: 0 | AX11: 0 | AY11: 0 | AZ11: 0.05 | BA11: 0.25 | BB11: 1 | BC11: 0.1 | BD11: =P11/Index!$E$23 -> 527.505063 | BI11: =SUMPRODUCT($V$9:$AE$9,V11:AE11)-1 -> 0.1062656 | BJ11: 0.1232 | BL11: 3955 | BM11: =BN11/(1+$BN$6) -> 3932.310469 | BN11: 4357 | BO11: =BM11/BL11-1 -> -0.005736923056 | BR11: 1 | BS11: 1 | BT11: 1 | BU11: 1 | BV11: 1 | BW11: 3955 | BX11: 4350.5 | BY11: 4350.5 | BZ11: 4758.095668 | CA11: =BM11*(1+$CA$9*$BC11) -> 4325.541516 | CB11: 3955 | CC11: 4350.5 | CD11: 4350.5 | CE11: 4758.095668 | CF11: 4325.541516 | CG11: =CF11 -> 4325.541516
A12: 3 | B12: Open-Cycle Gas Turbine | C12: gas | F12: 0.3018614791 | G12: 115 | H12: 0.046 | I12: 0.069 | J12: 1 | K12: 0.888 | L12: 0.954 | M12: 0.05 | N12: 30 | O12: 19.8 | P12: 4325.541516 | S12: 70 | T12: 0 | U12: 2010 | V12: 0 | W12: 0 | X12: 0 | Y12: 0 | Z12: 0 | AA12: 0 | AB12: 0 | AC12: 0.05 | AD12: 0.2 | AE12: 0.75 | AF12: 2 | AG12: none | AH12: =SUMIF('New Capacity basic data'!$B$152:$B$166,$AG12,'New Capacity basic data'!C$152:C$166) -> 1 | AI12: =SUMIF('New Capacity basic data'!$B$152:$B$166,$AG12,'New Capacity basic data'!D$152:D$166) -> 1 | AJ12: =SUMIF('New Capacity basic data'!$B$152:$B$166,$AG12,'New Capacity basic data'!E$152:E$166) -> 1 | AK12: =SUMIF('New Capacity basic data'!$B$152:$B$166,$AG12,'New Capacity basic data'!F$152:F$166) -> 1 | AL12: =SUMIF('New Capacity basic data'!$B$152:$B$166,$AG12,'New Capacity basic data'!G$152:G$166) -> 1 | AM12: =SUMIF('New Capacity basic data'!$B$152:$B$166,$AG12,'New Capacity basic data'!H$152:H$166) -> 1 | AN12: =SUMIF('New Capacity basic data'!$B$152:$B$166,$AG12,'New Capacity basic data'!I$152:I$166) -> 1 | AO12: =SUMIF('New Capacity basic data'!$B$152:$B$166,$AG12,'New Capacity basic data'!J$152:J$166) -> 1 | AP12: =SUMIF('New Capacity basic data'!$B$152:$B$166,$AG12,'New Capacity basic data'!K$152:K$166) -> 1 | AQ12: =SUMIF('New Capacity basic data'!$B$152:$B$166,$AG12,'New Capacity basic data'!L$152:L$166) -> 1 | AS12: 0 | AT12: 0 | AU12: 0 | AV12: 0 | AW12: 0 | AX12: 0 | AY12: 0 | AZ12: 0.05 | BA12: 0.25 | BB12: 1 | BC12: 0.1 | BD12: =P12/Index!$E$23 -> 527.505063 | BI12: 0.1062656 | BJ12: 0.1232 | BL12: 3955 | BM12: 3932.310469 | BN12: 4357 | BO12: -0.005736923056 | BR12: 1 | BS12: 1 | BT12: 1 | BU12: 1 | BV12: 1 | BW12: 3955 | BX12: 4350.5 | BY12: 4350.5 | BZ12: 4758.095668 | CA12: 4325.541516 | CB12: 3955 | CC12: 4350.5 | CD12: 4350.5 | CE12: 4758.095668 | CF12: 4325.541516 | CG12: 4325.541516
A13: 4 | B13: Supercritical Coal | C13: coal | F13: 0.368512642 | G13: 750 | H13: 0.037 | I13: 0.048 | J13: 1 | K13: 0.85 | L13: 0.963 | M13: ="" ->  | N13: 30 | O13: 229.1 | P13: 23363.1769 | S13: 455 | T13: 44.4 | U13: 2014 | V13: 0 | W13: 0 | X13: 0 | Y13: 0 | Z13: 0.05 | AA13: 0.05 | AB13: 0.018 | AC13: 0.351 | AD13: 0.477 | AE13: 0.054 | AF13: 4 | AG13: none | AH13: =SUMIF('New Capacity basic data'!$B$152:$B$166,$AG13,'New Capacity basic data'!C$152:C$166) -> 1 | AI13: =SUMIF('New Capacity basic data'!$B$152:$B$166,$AG13,'New Capacity basic data'!D$152:D$166) -> 1 | AJ13: =SUMIF('New Capacity basic data'!$B$152:$B$166,$AG13,'New Capacity basic data'!E$152:E$166) -> 1 | AK13: =SUMIF('New Capacity basic data'!$B$152:$B$166,$AG13,'New Capacity basic data'!F$152:F$166) -> 1 | AL13: =SUMIF('New Capacity basic data'!$B$152:$B$166,$AG13,'New Capacity basic data'!G$152:G$166) -> 1 | AM13: =SUMIF('New Capacity basic data'!$B$152:$B$166,$AG13,'New Capacity basic data'!H$152:H$166) -> 1 | AN13: =SUMIF('New Capacity basic data'!$B$152:$B$166,$AG13,'New Capacity basic data'!I$152:I$166) -> 1 | AO13: =SUMIF('New Capacity basic data'!$B$152:$B$166,$AG13,'New Capacity basic data'!J$152:J$166) -> 1 | AP13: =SUMIF('New Capacity basic data'!$B$152:$B$166,$AG13,'New Capacity basic data'!K$152:K$166) -> 1 | AQ13: =SUMIF('New Capacity basic data'!$B$152:$B$166,$AG13,'New Capacity basic data'!L$152:L$166) -> 1 | AS13: 0 | AT13: 0 | AU13: 0 | AV13: 0 | AW13: 0.05 | AX13: 0.1 | AY13: 0.118 | AZ13: 0.469 | BA13: 0.946 | BB13: 1 | BC13: 0.2 | BD13: =P13/Index!$E$23 -> 2849.167914 | BI13: 0.2341506333 | BJ13: 0.21665024 | BL13: 17785 | BM13: 19469.31408 | BN13: 21572 | BO13: 0.09470419339 | BR13: 1 | BS13: 1 | BT13: 1 | BU13: 1 | BV13: 1 | BW13: 17785 | BX13: 21342 | BY13: 21342 | BZ13: 28035.81227 | CA13: 23363.1769 | CB13: 17785 | CC13: 21342 | CD13: 21342 | CE13: 28035.81227 | CF13: 23363.1769 | CG13: 23363.1769
A14: 5 | B14: Fluidised Bed Combustion Coal | C14: coal | F14: 0.3571074298 | G14: 250 | H14: 0.041 | I14: 0.057 | J14: 1 | K14: 0.85 | L14: 0.959 | M14: ="" ->  | N14: 30 | O14: 33.3 | P14: 23220.21661 | S14: 365 | T14: 99.1 | U14: 2015 | V14: 0 | W14: 0 | X14: 0 | Y14: 0 | Z14: 0.05 | AA14: 0.05 | AB14: 0.018 | AC14: 0.351 | AD14: 0.477 | AE14: 0.054 | AF14: 4 | AG14: none | AH14: =SUMIF('New Capacity basic data'!$B$152:$B$166,$AG14,'New Capacity basic data'!C$152:C$166) -> 1 | AI14: =SUMIF('New Capacity basic data'!$B$152:$B$166,$AG14,'New Capacity basic data'!D$152:D$166) -> 1 | AJ14: =SUMIF('New Capacity basic data'!$B$152:$B$166,$AG14,'New Capacity basic data'!E$152:E$166) -> 1 | AK14: =SUMIF('New Capacity basic data'!$B$152:$B$166,$AG14,'New Capacity basic data'!F$152:F$166) -> 1 | AL14: =SUMIF('New Capacity basic data'!$B$152:$B$166,$AG14,'New Capacity basic data'!G$152:G$166) -> 1 | AM14: =SUMIF('New Capacity basic data'!$B$152:$B$166,$AG14,'New Capacity basic data'!H$152:H$166) -> 1 | AN14: =SUMIF('New Capacity basic data'!$B$152:$B$166,$AG14,'New Capacity basic data'!I$152:I$166) -> 1 | AO14: =SUMIF('New Capacity basic data'!$B$152:$B$166,$AG14,'New Capacity basic data'!J$152:J$166) -> 1 | AP14: =SUMIF('New Capacity basic data'!$B$152:$B$166,$AG14,'New Capacity basic data'!K$152:K$166) -> 1 | AQ14: =SUMIF('New Capacity basic data'!$B$152:$B$166,$AG14,'New Capacity basic data'!L$152:L$166) -> 1 | AS14: 0 | AT14: 0 | AU14: 0 | AV14: 0 | AW14: 0.05 | AX14: 0.1 | AY14: 0.118 | AZ14: 0.469 | BA14: 0.946 | BB14: 1 | BC14: 0.2 | BD14: =P14/Index!$E$23 -> 2831.733732 | BI14: 0.2341506333 | BJ14: 0.21665024 | BL14: 14965 | BM14: 19350.18051 | BN14: 21440 | BO14: 0.2930291016 | BR14: 1 | BS14: 1 | BT14: 1 | BU14: 1 | BV14: 1 | BW14: 14965 | BX14: 17958 | BY14: 17958 | BZ14: 27864.25993 | CA14: 23220.21661 | CB14: 14965 | CC14: 17958 | CD14: 17958 | CE14: 27864.25993 | CF14: 23220.21661 | CG14: 23220.21661
A15: 6 | B15: Integrated Gasification Combined Cycle Coal | C15: coal | F15: 0.368928059 | G15: 640 | H15: 0.101 | I15: 0.047 | J15: 1 | K15: 0.857 | L15: 0.899 | M15: ="" ->  | N15: 30 | O15: 256.8 | P15: 32502.44245 | S15: 830 | T15: 14.4 | U15: 2015 | V15: 0 | W15: 0 | X15: 0 | Y15: 0.05 | Z15: 0.05 | AA15: 0.045 | AB15: 0.099 | AC15: 0.189 | AD15: 0.252 | AE15: 0.315 | AF15: 5 | AG15: IGCC | AH15: =SUMIF('New Capacity basic data'!$B$152:$B$166,$AG15,'New Capacity basic data'!C$152:C$166) -> 1 | AI15: =SUMIF('New Capacity basic data'!$B$152:$B$166,$AG15,'New Capacity basic data'!D$152:D$166) -> 0.9757222844 | AJ15: =SUMIF('New Capacity basic data'!$B$152:$B$166,$AG15,'New Capacity basic data'!E$152:E$166) -> 0.9537095415 | AK15: =SUMIF('New Capacity basic data'!$B$152:$B$166,$AG15,'New Capacity basic data'!F$152:F$166) -> 0.9410682786 | AL15: =SUMIF('New Capacity basic data'!$B$152:$B$166,$AG15,'New Capacity basic data'!G$152:G$166) -> 0.9321860368 | AM15: =SUMIF('New Capacity basic data'!$B$152:$B$166,$AG15,'New Capacity basic data'!H$152:H$166) -> 0.9213276001 | AN15: =SUMIF('New Capacity basic data'!$B$152:$B$166,$AG15,'New Capacity basic data'!I$152:I$166) -> 0.8967185285 | AO15: =SUMIF('New Capacity basic data'!$B$152:$B$166,$AG15,'New Capacity basic data'!J$152:J$166) -> 0.8885874698 | AP15: =SUMIF('New Capacity basic data'!$B$152:$B$166,$AG15,'New Capacity basic data'!K$152:K$166) -> 0.8805337931 | AQ15: =SUMIF('New Capacity basic data'!$B$152:$B$166,$AG15,'New Capacity basic data'!L$152:L$166) -> 0.8765352773 | AS15: 0 | AT15: 0 | AU15: 0 | AV15: 0.05 | AW15: 0.1 | AX15: 0.145 | AY15: 0.244 | AZ15: 0.433 | BA15: 0.685 | BB15: 1 | BC15: 0.2 | BD15: =P15/Index!$E$23 -> 3963.712494 | BI15: 0.2380614681 | BJ15: 0.2671858074 | BL15: 24670 | BM15: 26427.79783 | BN15: 29282 | BO15: 0.07125244564 | BR15: 1 | BS15: =SUM(AH15:AI15)/2 -> 0.9878611422 | BT15: =AI15 -> 0.9757222844 | BU15: =SUM(AI15:AJ15)/2 -> 0.9647159129 | BV15: =AI15 -> 0.9757222844 | BW15: 24670 | BX15: 29604 | BY15: 29604 | BZ15: 38056.02888 | CA15: 31713.3574 | CB15: 24670 | CC15: =BX15/BS15 -> 29967.77455 | CD15: 30340.60047 | CE15: 39447.91246 | CF15: 32502.44245 | CG15: 32502.44245
A16: 7 | B16: Nuclear | C16: nuclear | F16: 0.3345724907 | G16: 1600 | H16: 0.02 | J16: 1 | K16: 0.9 | L16: 0.98 | M16: ="" ->  | N16: 60 | O16: 0 | P16: 53411.5859 | S16: =532/(1+BN6) -> 480.1444043 | T16: =29.5/(1+BN6) -> 26.62454874 | U16: 2025 | V16: 0.05 | W16: 0.05 | X16: 0.05 | Y16: 0.05 | Z16: 0.08 | AA16: 0.04 | AB16: 0.064 | AC16: 0.2 | AD16: 0.2 | AE16: 0.216 | AF16: 7 | AG16: Nuclear | AH16: =SUMIF('New Capacity basic data'!$B$152:$B$166,$AG16,'New Capacity basic data'!C$152:C$166) -> 1 | AI16: =SUMIF('New Capacity basic data'!$B$152:$B$166,$AG16,'New Capacity basic data'!D$152:D$166) -> 1 | AJ16: =SUMIF('New Capacity basic data'!$B$152:$B$166,$AG16,'New Capacity basic data'!E$152:E$166) -> 1 | AK16: =SUMIF('New Capacity basic data'!$B$152:$B$166,$AG16,'New Capacity basic data'!F$152:F$166) -> 1.000994581 | AL16: =SUMIF('New Capacity basic data'!$B$152:$B$166,$AG16,'New Capacity basic data'!G$152:G$166) -> 1.002983742 | AM16: =SUMIF('New Capacity basic data'!$B$152:$B$166,$AG16,'New Capacity basic data'!H$152:H$166) -> 1.004972904 | AN16: =SUMIF('New Capacity basic data'!$B$152:$B$166,$AG16,'New Capacity basic data'!I$152:I$166) -> 1.01264591 | AO16: =SUMIF('New Capacity basic data'!$B$152:$B$166,$AG16,'New Capacity basic data'!J$152:J$166) -> 1.020318917 | AP16: =SUMIF('New Capacity basic data'!$B$152:$B$166,$AG16,'New Capacity basic data'!K$152:K$166) -> 1.028983846 | AQ16: =SUMIF('New Capacity basic data'!$B$152:$B$166,$AG16,'New Capacity basic data'!L$152:L$166) -> 1.037648776 | AS16: 0.05 | AT16: 0.1 | AU16: 0.15 | AV16: 0.2 | AW16: 0.28 | AX16: 0.32 | AY16: 0.384 | AZ16: 0.584 | BA16: 0.784 | BB16: 1 | BC16: 0.1 | BD16: =P16/Index!$E$23 -> 6513.608036 | BI16: 0.3774309675 | BJ16: 0.3766610898 | BL16: =26575*1.4 -> 37205 | BM16: 39720.21661 | BN16: 44010 | BO16: 0.06760426304 | BP16: =5800*8 -> 46400 | BQ16: =46841/BN16 -> 1.064326289 | BR16: 1 | BS16: 1 | BT16: 1 | BU16: 1 | BV16: 1 | BW16: =BL16 -> 37205 | BX16: =BW16 -> 37205 | BY16: 37205 | BZ16: =CA16 -> 43692.23827 | CA16: 43692.23827 | CB16: 37205 | CC16: 37205 | CD16: 37205 | CE16: 43692.23827 | CF16: =CA16/BV16 -> 43692.23827 | CG16: =OFFSET($C$236,$D$202,0)*$CA$9*(1+BC13) -> 53411.5859
A17: 8 | B17: Nuclear Mid | C17: nuclear | F17: 0.3345724907 | G17: 1600 | H17: 0.02 | J17: 1 | K17: 0.9 | L17: 0.98 | M17: ="" ->  | N17: 60 | O17: 0 | P17: 60687.26091 | S17: =S16 -> 480.1444043 | T17: =T16 -> 26.62454874 | U17: =U16 -> 2025 | V17: 0.05 | W17: 0.05 | X17: 0.05 | Y17: 0.05 | Z17: 0.08 | AA17: 0.04 | AB17: 0.064 | AC17: 0.2 | AD17: 0.2 | AE17: 0.216 | AF17: =AF16 -> 7 | AG17: Nuclear | AH17: =SUMIF('New Capacity basic data'!$B$152:$B$166,$AG17,'New Capacity basic data'!C$152:C$166) -> 1 | AI17: =SUMIF('New Capacity basic data'!$B$152:$B$166,$AG17,'New Capacity basic data'!D$152:D$166) -> 1 | AJ17: =SUMIF('New Capacity basic data'!$B$152:$B$166,$AG17,'New Capacity basic data'!E$152:E$166) -> 1 | AK17: =SUMIF('New Capacity basic data'!$B$152:$B$166,$AG17,'New Capacity basic data'!F$152:F$166) -> 1.000994581 | AL17: =SUMIF('New Capacity basic data'!$B$152:$B$166,$AG17,'New Capacity basic data'!G$152:G$166) -> 1.002983742 | AM17: =SUMIF('New Capacity basic data'!$B$152:$B$166,$AG17,'New Capacity basic data'!H$152:H$166) -> 1.004972904 | AN17: =SUMIF('New Capacity basic data'!$B$152:$B$166,$AG17,'New Capacity basic data'!I$152:I$166) -> 1.01264591 | AO17: =SUMIF('New Capacity basic data'!$B$152:$B$166,$AG17,'New Capacity basic data'!J$152:J$166) -> 1.020318917 | AP17: =SUMIF('New Capacity basic data'!$B$152:$B$166,$AG17,'New Capacity basic data'!K$152:K$166) -> 1.028983846 | AQ17: =SUMIF('New Capacity basic data'!$B$152:$B$166,$AG17,'New Capacity basic data'!L$152:L$166) -> 1.037648776 | AS17: 0.05 | AT17: 0.1 | AU17: 0.15 | AV17: 0.2 | AW17: 0.28 | AX17: 0.32 | AY17: 0.384 | AZ17: 0.584 | BA17: 0.784 | BB17: 1 | BC17: 0.1 | BD17: =P17/Index!$E$23 -> 7400.885477 | BI17: 0.3774309675 | BJ17: 0.3766610898 | BL17: =BL16/BM16*BM17 -> 42273.02943 | BM17: 45130.86643 | BN17: =(BN16+BN18)/2 -> 50005 | BO17: 0.06760426304 | BR17: 1 | BS17: 1 | BT17: 1 | BU17: 1 | BV17: 1 | BW17: 42273.02943 | BX17: =BW17 -> 42273.02943 | BY17: 42273.02943 | BZ17: =CA17 -> 49643.95307 | CA17: 49643.95307 | CB17: 42273.02943 | CC17: 42273.02943 | CD17: 42273.02943 | CE17: 49643.95307 | CF17: 49643.95307 | CG17: =CG16*CF17/CF16 -> 60687.26091
A18: 9 | B18: Nuclear High Cost | C18: nuclear | F18: 0.3345724907 | G18: 1600 | H18: 0.02 | I18: - | J18: 1 | K18: 0.9 | L18: 0.98 | M18: ="" ->  | N18: 60 | O18: 0 | P18: 67962.93593 | S18: =S16 -> 480.1444043 | T18: =T16 -> 26.62454874 | U18: =U17 -> 2025 | V18: 0.05 | W18: 0.05 | X18: 0.05 | Y18: 0.05 | Z18: 0.08 | AA18: 0.04 | AB18: 0.064 | AC18: 0.2 | AD18: 0.2 | AE18: 0.216 | AF18: =AF17 -> 7 | AG18: Nuclear | AH18: =SUMIF('New Capacity basic data'!$B$152:$B$166,$AG18,'New Capacity basic data'!C$152:C$166) -> 1 | AI18: =SUMIF('New Capacity basic data'!$B$152:$B$166,$AG18,'New Capacity basic data'!D$152:D$166) -> 1 | AJ18: =SUMIF('New Capacity basic data'!$B$152:$B$166,$AG18,'New Capacity basic data'!E$152:E$166) -> 1 | AK18: =SUMIF('New Capacity basic data'!$B$152:$B$166,$AG18,'New Capacity basic data'!F$152:F$166) -> 1.000994581 | AL18: =SUMIF('New Capacity basic data'!$B$152:$B$166,$AG18,'New Capacity basic data'!G$152:G$166) -> 1.002983742 | AM18: =SUMIF('New Capacity basic data'!$B$152:$B$166,$AG18,'New Capacity basic data'!H$152:H$166) -> 1.004972904 | AN18: =SUMIF('New Capacity basic data'!$B$152:$B$166,$AG18,'New Capacity basic data'!I$152:I$166) -> 1.01264591 | AO18: =SUMIF('New Capacity basic data'!$B$152:$B$166,$AG18,'New Capacity basic data'!J$152:J$166) -> 1.020318917 | AP18: =SUMIF('New Capacity basic data'!$B$152:$B$166,$AG18,'New Capacity basic data'!K$152:K$166) -> 1.028983846 | AQ18: =SUMIF('New Capacity basic data'!$B$152:$B$166,$AG18,'New Capacity basic data'!L$152:L$166) -> 1.037648776 | AS18: 0.05 | AT18: 0.1 | AU18: 0.15 | AV18: 0.2 | AW18: 0.28 | AX18: 0.32 | AY18: 0.384 | AZ18: 0.584 | BA18: 0.784 | BB18: 1 | BC18: 0.1 | BD18: =P18/Index!$E$23 -> 8288.162918 | BI18: 0.3774309675 | BJ18: 0.3766610898 | BL18: =BL17/BM17*BM18 -> 47341.05885 | BM18: 50541.51625 | BN18: 56000 | BO18: 0.06760426304 | BR18: 1 | BS18: 1 | BT18: 1 | BU18: 1 | BV18: 1 | BW18: =BX18 -> 55595.66787 | BX18: =BY18 -> 55595.66787 | BY18: =BZ18 -> 55595.66787 | BZ18: =CA18 -> 55595.66787 | CA18: 55595.66787 | CB18: 55595.66787 | CC18: 55595.66787 | CD18: 55595.66787 | CE18: 55595.66787 | CF18: 55595.66787 | CG18: =CG16*CF18/CF16 -> 67962.93593
A19: 10 | B19: Wind high resource | C19: renewable | F19: 1 | G19: 2 | H19: =1-(K19/(1-I19)) -> 0.6276595745 | I19: 0.06 | J19: =K19/2 -> 0.175 | K19: 0.35 | L19: 0.3723404255 | M19: ="" ->  | N19: 20 | O19: 0 | P19: 14852.8444 | S19: 266 | T19: 0 | U19: 2012 | V19: 0 | W19: 0 | X19: 0 | Y19: 0 | Z19: 0 | AA19: 0 | AB19: 0 | AC19: 0.05 | AD19: 0.2 | AE19: 0.75 | AF19: 2 | AG19: Wind | AH19: =SUMIF('New Capacity basic data'!$B$152:$B$166,$AG19,'New Capacity basic data'!C$152:C$166) -> 1 | AI19: =SUMIF('New Capacity basic data'!$B$152:$B$166,$AG19,'New Capacity basic data'!D$152:D$166) -> 0.9354101765 | AJ19: =SUMIF('New Capacity basic data'!$B$152:$B$166,$AG19,'New Capacity basic data'!E$152:E$166) -> 0.9206753295 | AK19: =SUMIF('New Capacity basic data'!$B$152:$B$166,$AG19,'New Capacity basic data'!F$152:F$166) -> 0.9080753403 | AL19: =SUMIF('New Capacity basic data'!$B$152:$B$166,$AG19,'New Capacity basic data'!G$152:G$166) -> 0.8974877706 | AM19: =SUMIF('New Capacity basic data'!$B$152:$B$166,$AG19,'New Capacity basic data'!H$152:H$166) -> 0.8922112664 | AN19: =SUMIF('New Capacity basic data'!$B$152:$B$166,$AG19,'New Capacity basic data'!I$152:I$166) -> 0.8811570789 | AO19: =SUMIF('New Capacity basic data'!$B$152:$B$166,$AG19,'New Capacity basic data'!J$152:J$166) -> 0.874187778 | AP19: =SUMIF('New Capacity basic data'!$B$152:$B$166,$AG19,'New Capacity basic data'!K$152:K$166) -> 0.8672763335 | AQ19: =SUMIF('New Capacity basic data'!$B$152:$B$166,$AG19,'New Capacity basic data'!L$152:L$166) -> 0.8638418097 | AS19: 0 | AT19: 0 | AU19: 0 | AV19: 0 | AW19: 0 | AX19: 0 | AY19: 0 | AZ19: 0.05 | BA19: 0.25 | BB19: 1 | BC19: 0 | BD19: =P19/Index!$E$23 -> 1811.322488 | BI19: 0.1062656 | BJ19: 0.1232 | BL19: 14445 | BM19: 13893.50181 | BN19: 15394 | BO19: -0.03817917584 | BR19: 1 | BS19: 0.9677050883 | BT19: 0.9354101765 | BU19: 0.928042753 | BV19: 0.9354101765 | BW19: 14445 | BX19: =F87 -> 16543.63597 | BY19: =G87 -> 15540.722 | BZ19: =H87 -> 12921.01993 | CA19: 13893.50181 | CB19: =BW19/BR19 -> 14445 | CC19: =BX19/BS19 -> 17095.74143 | CD19: =BY19/BT19 -> 16613.80471 | CE19: =BZ19/BU19 -> 13922.87142 | CF19: =CA19/BV19 -> 14852.8444 | CG19: 14852.8444
A20: 11 | B20: Wind medium resource | C20: renewable | F20: 1 | G20: 2 | H20: =1-(K20/(1-I20)) -> 0.6808510638 | I20: 0.06 | J20: =K20/2 -> 0.15 | K20: 0.3 | L20: 0.3191489362 | M20: ="" ->  | N20: 20 | O20: 0 | P20: 14852.8444 | S20: 266 | T20: 0 | U20: 2015 | V20: 0 | W20: 0 | X20: 0 | Y20: 0 | Z20: 0 | AA20: 0 | AB20: 0 | AC20: 0.05 | AD20: 0.2 | AE20: 0.75 | AF20: 2 | AG20: Wind | AH20: =SUMIF('New Capacity basic data'!$B$152:$B$166,$AG20,'New Capacity basic data'!C$152:C$166) -> 1 | AI20: =SUMIF('New Capacity basic data'!$B$152:$B$166,$AG20,'New Capacity basic data'!D$152:D$166) -> 0.9354101765 | AJ20: =SUMIF('New Capacity basic data'!$B$152:$B$166,$AG20,'New Capacity basic data'!E$152:E$166) -> 0.9206753295 | AK20: =SUMIF('New Capacity basic data'!$B$152:$B$166,$AG20,'New Capacity basic data'!F$152:F$166) -> 0.9080753403 | AL20: =SUMIF('New Capacity basic data'!$B$152:$B$166,$AG20,'New Capacity basic data'!G$152:G$166) -> 0.8974877706 | AM20: =SUMIF('New Capacity basic data'!$B$152:$B$166,$AG20,'New Capacity basic data'!H$152:H$166) -> 0.8922112664 | AN20: =SUMIF('New Capacity basic data'!$B$152:$B$166,$AG20,'New Capacity basic data'!I$152:I$166) -> 0.8811570789 | AO20: =SUMIF('New Capacity basic data'!$B$152:$B$166,$AG20,'New Capacity basic data'!J$152:J$166) -> 0.874187778 | AP20: =SUMIF('New Capacity basic data'!$B$152:$B$166,$AG20,'New Capacity basic data'!K$152:K$166) -> 0.8672763335 | AQ20: =SUMIF('New Capacity basic data'!$B$152:$B$166,$AG20,'New Capacity basic data'!L$152:L$166) -> 0.8638418097 | AS20: 0 | AT20: 0 | AU20: 0 | AV20: 0 | AW20: 0 | AX20: 0 | AY20: 0 | AZ20: 0.05 | BA20: 0.25 | BB20: 1 | BC20: 0 | BD20: =P20/Index!$E$23 -> 1811.322488 | BI20: 0.1062656 | BJ20: 0.1232 | BL20: 14445 | BM20: 13893.50181 | BN20: =BN19 -> 15394 | BO20: -0.03817917584 | BR20: 1 | BS20: 0.9677050883 | BT20: 0.9354101765 | BU20: 0.928042753 | BV20: 0.9354101765 | BW20: 14445 | BX20: =BX19 -> 16543.63597 | BY20: =BY19 -> 15540.722 | BZ20: =BZ19 -> 12921.01993 | CA20: 13893.50181 | CB20: 14445 | CC20: 17095.74143 | CD20: 16613.80471 | CE20: 13922.87142 | CF20: 14852.8444 | CG20: 14852.8444
A21: 12 | B21: Solar PV Fixed | C21: renewable | F21: 1 | G21: 10 | H21: 0.04 | I21: 0.05 | J21: 0 | K21: =IF($K$8,19.4%,20%) -> 0.194 | L21: 0.96 | M21: ="" ->  | N21: 25 | O21: 0 | P21: 35589.14448 | S21: 208 | T21: 0 | U21: 2012 | V21: 0 | W21: 0 | X21: 0 | Y21: 0 | Z21: 0 | AA21: 0 | AB21: 0 | AC21: 0 | AD21: 0 | AE21: 1 | AF21: 1 | AG21: Solar PV (utility) | AH21: =SUMIF('New Capacity basic data'!$B$152:$B$166,$AG21,'New Capacity basic data'!C$152:C$166) -> 1 | AI21: =SUMIF('New Capacity basic data'!$B$152:$B$166,$AG21,'New Capacity basic data'!D$152:D$166) -> 0.7484057836 | AJ21: =SUMIF('New Capacity basic data'!$B$152:$B$166,$AG21,'New Capacity basic data'!E$152:E$166) -> 0.4968115673 | AK21: =SUMIF('New Capacity basic data'!$B$152:$B$166,$AG21,'New Capacity basic data'!F$152:F$166) -> 0.3645908695 | AL21: =SUMIF('New Capacity basic data'!$B$152:$B$166,$AG21,'New Capacity basic data'!G$152:G$166) -> 0.3517436903 | AM21: =SUMIF('New Capacity basic data'!$B$152:$B$166,$AG21,'New Capacity basic data'!H$152:H$166) -> 0.3388965111 | AN21: =SUMIF('New Capacity basic data'!$B$152:$B$166,$AG21,'New Capacity basic data'!I$152:I$166) -> 0.3132133631 | AO21: =SUMIF('New Capacity basic data'!$B$152:$B$166,$AG21,'New Capacity basic data'!J$152:J$166) -> 0.2875302152 | AP21: =SUMIF('New Capacity basic data'!$B$152:$B$166,$AG21,'New Capacity basic data'!K$152:K$166) -> 0.2577935136 | AQ21: =SUMIF('New Capacity basic data'!$B$152:$B$166,$AG21,'New Capacity basic data'!L$152:L$166) -> 0.2280568121 | AS21: 0 | AT21: 0 | AU21: 0 | AV21: 0 | AW21: 0 | AX21: 0 | AY21: 0 | AZ21: 0 | BA21: 0 | BB21: 1 | BC21: 0 | BD21: =P21/Index!$E$23 -> 4340.139571 | BI21: 0.08 | BJ21: 0.08 | BL21: 20971 | BM21: 17373.64621 | BN21: 19250 | BO21: -0.1715394493 | BR21: 1 | BS21: 0.8742028918 | BT21: 0.7484057836 | BU21: 0.6226086755 | BV21: 0.7484057836 | BW21: 20971 | BX21: =I87 -> 29757.06262 | BY21: =J87 -> 24125.97529 | BZ21: =K87 -> 12468.1518 | CA21: 17373.64621 | CB21: 20971 | CC21: 34039.08051 | CD21: 32236.48964 | CE21: 20025.66346 | CF21: 23214.20624 | CG21: =OFFSET($C$243,$D$202,0)*$CA$9*(1+BC21) -> 35589.14448
A22: 13 | B22: Solar PV tracking | C22: renewable | F22: 1 | G22: 10 | H22: 0.04 | I22: 0.05 | J22: 0 | K22: 0.268 | L22: 0.96 | M22: ="" ->  | N22: 25 | O22: 0 | P22: 39148.05893 | S22: =S21*1.1 -> 228.8 | T22: 0 | U22: 2012 | V22: 0 | W22: 0 | X22: 0 | Y22: 0 | Z22: 0 | AA22: 0 | AB22: 0 | AC22: 0 | AD22: 0 | AE22: 1 | AF22: 1 | AG22: Solar PV (utility) | AH22: =SUMIF('New Capacity basic data'!$B$152:$B$166,$AG22,'New Capacity basic data'!C$152:C$166) -> 1 | AI22: =SUMIF('New Capacity basic data'!$B$152:$B$166,$AG22,'New Capacity basic data'!D$152:D$166) -> 0.7484057836 | AJ22: =SUMIF('New Capacity basic data'!$B$152:$B$166,$AG22,'New Capacity basic data'!E$152:E$166) -> 0.4968115673 | AK22: =SUMIF('New Capacity basic data'!$B$152:$B$166,$AG22,'New Capacity basic data'!F$152:F$166) -> 0.3645908695 | AL22: =SUMIF('New Capacity basic data'!$B$152:$B$166,$AG22,'New Capacity basic data'!G$152:G$166) -> 0.3517436903 | AM22: =SUMIF('New Capacity basic data'!$B$152:$B$166,$AG22,'New Capacity basic data'!H$152:H$166) -> 0.3388965111 | AN22: =SUMIF('New Capacity basic data'!$B$152:$B$166,$AG22,'New Capacity basic data'!I$152:I$166) -> 0.3132133631 | AO22: =SUMIF('New Capacity basic data'!$B$152:$B$166,$AG22,'New Capacity basic data'!J$152:J$166) -> 0.2875302152 | AP22: =SUMIF('New Capacity basic data'!$B$152:$B$166,$AG22,'New Capacity basic data'!K$152:K$166) -> 0.2577935136 | AQ22: =SUMIF('New Capacity basic data'!$B$152:$B$166,$AG22,'New Capacity basic data'!L$152:L$166) -> 0.2280568121 | AS22: 0 | AT22: 0 | AU22: 0 | AV22: 0 | AW22: 0 | AX22: 0 | AY22: 0 | AZ22: 0 | BA22: 0 | BB22: 1 | BC22: 0 | BD22: =P22/Index!$E$23 -> 4774.153528 | BI22: 0.08 | BJ22: 0.08 | BL22: 37225 | BM22: 19111.01083 | BN22: =BN21*(1.1) -> 21175 | BO22: -0.4866081711 | BR22: 1 | BS22: 0.8742028918 | BT22: 0.7484057836 | BU22: 0.6226086755 | BV22: 0.7484057836 | BW22: 37225 | BX22: =BX$21/$BW21*$BW22 -> 52820.87911 | BY22: =BY$21/$BW21*$BW22 -> 42825.30305 | BZ22: =BZ$21/$CA21*$CA22 -> 13714.96698 | CA22: 19111.01083 | CB22: 37225 | CC22: 60421.76205 | CD22: 57222.03648 | CE22: 22028.22981 | CF22: 25535.62686 | CG22: =CG21*CF22/CF21 -> 39148.05893
A23: 14 | B23: Solar PV rooftop commercial | C23: renewable | F23: 1 | G23: 0.1 | H23: 0.04 | I23: 0.05 | J23: 0 | K23: 0.176 | L23: 0.96 | M23: ="" ->  | N23: 25 | O23: 0 | P23: 41712.26741 | S23: 208 | T23: 0 | U23: 2012 | V23: 0 | W23: 0 | X23: 0 | Y23: 0 | Z23: 0 | AA23: 0 | AB23: 0 | AC23: 0 | AD23: 0 | AE23: 1 | AF23: 1 | AG23: Solar PV (roof top - urban) | AH23: =SUMIF('New Capacity basic data'!$B$152:$B$166,$AG23,'New Capacity basic data'!C$152:C$166) -> 1 | AI23: =SUMIF('New Capacity basic data'!$B$152:$B$166,$AG23,'New Capacity basic data'!D$152:D$166) -> 0.7480066713 | AJ23: =SUMIF('New Capacity basic data'!$B$152:$B$166,$AG23,'New Capacity basic data'!E$152:E$166) -> 0.4960133425 | AK23: =SUMIF('New Capacity basic data'!$B$152:$B$166,$AG23,'New Capacity basic data'!F$152:F$166) -> 0.3632263731 | AL23: =SUMIF('New Capacity basic data'!$B$152:$B$166,$AG23,'New Capacity basic data'!G$152:G$166) -> 0.3496457629 | AM23: =SUMIF('New Capacity basic data'!$B$152:$B$166,$AG23,'New Capacity basic data'!H$152:H$166) -> 0.3360651528 | AN23: =SUMIF('New Capacity basic data'!$B$152:$B$166,$AG23,'New Capacity basic data'!I$152:I$166) -> 0.3114822415 | AO23: =SUMIF('New Capacity basic data'!$B$152:$B$166,$AG23,'New Capacity basic data'!J$152:J$166) -> 0.2868993302 | AP23: =SUMIF('New Capacity basic data'!$B$152:$B$166,$AG23,'New Capacity basic data'!K$152:K$166) -> 0.2584751996 | AQ23: =SUMIF('New Capacity basic data'!$B$152:$B$166,$AG23,'New Capacity basic data'!L$152:L$166) -> 0.230051069 | AS23: 0 | AT23: 0 | AU23: 0 | AV23: 0 | AW23: 0 | AX23: 0 | AY23: 0 | AZ23: 0 | BA23: 0 | BB23: 1 | BC23: 0 | BD23: =P23/Index!$E$23 -> 5086.861879 | BI23: 0.08 | BJ23: 0.08 | BL23: 20805 | BM23: 22585.74007 | BN23: =BN21*AV226 -> 25025 | BO23: 0.08559192849 | BR23: 1 | BS23: 0.8740033356 | BT23: 0.7480066713 | BU23: 0.6220100069 | BV23: 0.7480066713 | BW23: =$AV$226*BW21 -> 27262.3 | BX23: =$AV$226*BX21 -> 38684.1814 | BY23: =$AV$226*BY21 -> 31363.76788 | BZ23: =$AV$226*BZ21 -> 16208.59735 | CA23: 22585.74007 | CB23: 27262.3 | CC23: 44260.9082 | CD23: 41929.797 | CE23: 26058.41894 | CF23: 30194.57037 | CG23: =OFFSET($C$250,$D$202,0)*$CA$9*(1+BC23) -> 41712.26741
A24: 15 | B24: Solar PV rooftop residential | C24: renewable | F24: 1 | G24: 0.1 | H24: 0.04 | I24: 0.05 | J24: 0 | K24: 0.176 | L24: 0.96 | M24: ="" ->  | N24: 25 | O24: 0 | P24: 50536.01628 | S24: 208 | T24: 0 | U24: 2012 | V24: 0 | W24: 0 | X24: 0 | Y24: 0 | Z24: 0 | AA24: 0 | AB24: 0 | AC24: 0 | AD24: 0 | AE24: 1 | AF24: 1 | AG24: Solar PV (roof top - urban) | AH24: =SUMIF('New Capacity basic data'!$B$152:$B$166,$AG24,'New Capacity basic data'!C$152:C$166) -> 1 | AI24: =SUMIF('New Capacity basic data'!$B$152:$B$166,$AG24,'New Capacity basic data'!D$152:D$166) -> 0.7480066713 | AJ24: =SUMIF('New Capacity basic data'!$B$152:$B$166,$AG24,'New Capacity basic data'!E$152:E$166) -> 0.4960133425 | AK24: =SUMIF('New Capacity basic data'!$B$152:$B$166,$AG24,'New Capacity basic data'!F$152:F$166) -> 0.3632263731 | AL24: =SUMIF('New Capacity basic data'!$B$152:$B$166,$AG24,'New Capacity basic data'!G$152:G$166) -> 0.3496457629 | AM24: =SUMIF('New Capacity basic data'!$B$152:$B$166,$AG24,'New Capacity basic data'!H$152:H$166) -> 0.3360651528 | AN24: =SUMIF('New Capacity basic data'!$B$152:$B$166,$AG24,'New Capacity basic data'!I$152:I$166) -> 0.3114822415 | AO24: =SUMIF('New Capacity basic data'!$B$152:$B$166,$AG24,'New Capacity basic data'!J$152:J$166) -> 0.2868993302 | AP24: =SUMIF('New Capacity basic data'!$B$152:$B$166,$AG24,'New Capacity basic data'!K$152:K$166) -> 0.2584751996 | AQ24: =SUMIF('New Capacity basic data'!$B$152:$B$166,$AG24,'New Capacity basic data'!L$152:L$166) -> 0.230051069 | AS24: 0 | AT24: 0 | AU24: 0 | AV24: 0 | AW24: 0 | AX24: 0 | AY24: 0 | AZ24: 0 | BA24: 0 | BB24: 1 | BC24: 0 | BD24: =P24/Index!$E$23 -> 6162.928815 | BI24: 0.08 | BJ24: 0.08 | BL24: 20805 | BM24: 27363.49278 | BN24: =BN21*AV227 -> 30318.75 | BO24: 0.3152363749 | BR24: 1 | BS24: 0.8740033356 | BT24: 0.7480066713 | BU24: 0.6220100069 | BV24: 0.7480066713 | BW24: =$AV$227*BW21 -> 33029.325 | BX24: =$AV$227*BX21 -> 46867.37362 | BY24: =$AV$227*BY21 -> 37998.41109 | BZ24: =$AV$227*BZ21 -> 19637.33909 | CA24: =$AV$227*CA21 -> 27363.49278 | CB24: 33029.325 | CC24: 53623.79262 | CD24: 50799.56175 | CE24: 31570.77679 | CF24: 36581.88333 | CG24: =CG23*CF24/CF23 -> 50536.01628
A25: 16 | B25: Solar Parabolic Trough 0 storage | C25: renewable | F25: 1 | G25: 50 | H25: 0.04 | I25: 0.05 | J25: 0 | K25: =SUMIF($B$217:$B$226,B25,$F$217:$F$226) -> 0.25 | L25: 0.96 | M25: ="" ->  | N25: 30 | O25: 245 | P25: 30612.84201 | S25: 424 | T25: 0 | U25: 2014 | V25: 0 | W25: 0 | X25: 0 | Y25: 0 | Z25: 0 | AA25: 0.05 | AB25: 0.05 | AC25: 0.1 | AD25: 0.2 | AE25: 0.6 | AF25: 3 | AG25: Solar thermal no storage | AH25: =SUMIF('New Capacity basic data'!$B$152:$B$166,$AG25,'New Capacity basic data'!C$152:C$166) -> 1 | AI25: =SUMIF('New Capacity basic data'!$B$152:$B$166,$AG25,'New Capacity basic data'!D$152:D$166) -> 0.9225928768 | AJ25: =SUMIF('New Capacity basic data'!$B$152:$B$166,$AG25,'New Capacity basic data'!E$152:E$166) -> 0.8451857536 | AK25: =SUMIF('New Capacity basic data'!$B$152:$B$166,$AG25,'New Capacity basic data'!F$152:F$166) -> 0.7844654224 | AL25: =SUMIF('New Capacity basic data'!$B$152:$B$166,$AG25,'New Capacity basic data'!G$152:G$166) -> 0.7404318832 | AM25: =SUMIF('New Capacity basic data'!$B$152:$B$166,$AG25,'New Capacity basic data'!H$152:H$166) -> 0.696398344 | AN25: =SUMIF('New Capacity basic data'!$B$152:$B$166,$AG25,'New Capacity basic data'!I$152:I$166) -> 0.6591136907 | AO25: =SUMIF('New Capacity basic data'!$B$152:$B$166,$AG25,'New Capacity basic data'!J$152:J$166) -> 0.6218290374 | AP25: =SUMIF('New Capacity basic data'!$B$152:$B$166,$AG25,'New Capacity basic data'!K$152:K$166) -> 0.5737601256 | AQ25: =SUMIF('New Capacity basic data'!$B$152:$B$166,$AG25,'New Capacity basic data'!L$152:L$166) -> 0.5256912137 | AS25: 0 | AT25: 0 | AU25: 0 | AV25: 0 | AW25: 0 | AX25: 0.05 | AY25: 0.1 | AZ25: 0.2 | BA25: 0.4 | BB25: 1 | BC25: 0 | BD25: =P25/Index!$E$23 -> 3733.273416 | BI25: 0.1487420518 | BJ25: 0.168704 | BL25: 27450 | BM25: 26768.89519 | BN25: =BL25/BL26*BN26 -> 29659.93587 | BO25: -0.02481256134 | BR25: 1 | BS25: 0.9612964384 | BT25: 0.9225928768 | BU25: 0.8838893152 | BV25: 0.9225928768 | BW25: 27450 | BX25: =$BW25/$BW$31*BX$31 -> 45484.27353 | BY25: =$BW25/$BW$31*BY$31 -> 52427.34791 | BZ25: =$CA25/$CA$31*BZ$31 -> 26617.17644 | CA25: 26768.89519 | CB25: 27450 | CC25: 47315.55398 | CD25: 56826.09223 | CE25: 30113.69861 | CF25: 29014.85137 | CG25: =CF25/$CF$27*$CG$27 -> 30612.84201
A26: 17 | B26: Solar Parabolic Trough 03 hrs storage | C26: renewable | F26: 1 | G26: 50 | H26: 0.04 | I26: 0.05 | J26: 0 | K26: =IF($K$8,30.9%,SUMIF($B$217:$B$226,B26,$F$217:$F$226)) -> 0.309 | L26: 0.96 | M26: ="" ->  | N26: 30 | O26: 245 | P26: 41737.18078 | S26: 513 | T26: 0 | U26: =U25 -> 2014 | V26: 0 | W26: 0 | X26: 0 | Y26: 0 | Z26: 0 | AA26: 0.05 | AB26: 0.05 | AC26: 0.1 | AD26: 0.2 | AE26: 0.6 | AF26: 3 | AG26: Solar thermal with Storage | AH26: =SUMIF('New Capacity basic data'!$B$152:$B$166,$AG26,'New Capacity basic data'!C$152:C$166) -> 1 | AI26: =SUMIF('New Capacity basic data'!$B$152:$B$166,$AG26,'New Capacity basic data'!D$152:D$166) -> 0.9225928768 | AJ26: =SUMIF('New Capacity basic data'!$B$152:$B$166,$AG26,'New Capacity basic data'!E$152:E$166) -> 0.8451857536 | AK26: =SUMIF('New Capacity basic data'!$B$152:$B$166,$AG26,'New Capacity basic data'!F$152:F$166) -> 0.7844654224 | AL26: =SUMIF('New Capacity basic data'!$B$152:$B$166,$AG26,'New Capacity basic data'!G$152:G$166) -> 0.7404318832 | AM26: =SUMIF('New Capacity basic data'!$B$152:$B$166,$AG26,'New Capacity basic data'!H$152:H$166) -> 0.696398344 | AN26: =SUMIF('New Capacity basic data'!$B$152:$B$166,$AG26,'New Capacity basic data'!I$152:I$166) -> 0.6591136907 | AO26: =SUMIF('New Capacity basic data'!$B$152:$B$166,$AG26,'New Capacity basic data'!J$152:J$166) -> 0.6218290374 | AP26: =SUMIF('New Capacity basic data'!$B$152:$B$166,$AG26,'New Capacity basic data'!K$152:K$166) -> 0.5737601256 | AQ26: =SUMIF('New Capacity basic data'!$B$152:$B$166,$AG26,'New Capacity basic data'!L$152:L$166) -> 0.5256912137 | AS26: 0 | AT26: 0 | AU26: 0 | AV26: 0 | AW26: 0 | AX26: 0.05 | AY26: 0.1 | AZ26: 0.2 | BA26: 0.4 | BB26: 1 | BC26: 0 | BD26: =P26/Index!$E$23 -> 5089.900095 | BI26: 0.1487420518 | BJ26: 0.168704 | BL26: 37425 | BM26: 36496.38989 | BN26: 40438 | BO26: -0.02481256134 | BR26: 1 | BS26: 0.9612964384 | BT26: 0.9225928768 | BU26: 0.8838893152 | BV26: 0.9225928768 | BW26: 37425 | BX26: =$BW26/$BW$31*BX$31 -> 62012.71172 | BY26: 71478.81587 | BZ26: =$CA26/$CA$31*BZ$31 -> 36289.53837 | CA26: 36496.38989 | CB26: 37425 | CC26: 64509.45748 | CD26: 77476.011 | CE26: 41056.65466 | CF26: 39558.49954 | CG26: =CF26/$CF$27*$CG$27 -> 41737.18078
A27: 18 | B27: Solar Parabolic Trough 06 hrs storage | C27: renewable | F27: 1 | G27: 50 | H27: 0.04 | I27: 0.05 | J27: 1 | K27: =IF($K$8,36.9%,SUMIF($B$217:$B$226,B27,$F$217:$F$226)) -> 0.369 | L27: 0.96 | M27: ="" ->  | N27: 30 | O27: 245 | P27: 52731.40526 | S27: 562 | T27: 0 | U27: 2014 | V27: 0 | W27: 0 | X27: 0 | Y27: 0 | Z27: 0 | AA27: 0.05 | AB27: 0.05 | AC27: 0.1 | AD27: 0.2 | AE27: 0.6 | AF27: 3 | AG27: Solar thermal with Storage | AH27: =SUMIF('New Capacity basic data'!$B$152:$B$166,$AG27,'New Capacity basic data'!C$152:C$166) -> 1 | AI27: =SUMIF('New Capacity basic data'!$B$152:$B$166,$AG27,'New Capacity basic data'!D$152:D$166) -> 0.9225928768 | AJ27: =SUMIF('New Capacity basic data'!$B$152:$B$166,$AG27,'New Capacity basic data'!E$152:E$166) -> 0.8451857536 | AK27: =SUMIF('New Capacity basic data'!$B$152:$B$166,$AG27,'New Capacity basic data'!F$152:F$166) -> 0.7844654224 | AL27: =SUMIF('New Capacity basic data'!$B$152:$B$166,$AG27,'New Capacity basic data'!G$152:G$166) -> 0.7404318832 | AM27: =SUMIF('New Capacity basic data'!$B$152:$B$166,$AG27,'New Capacity basic data'!H$152:H$166) -> 0.696398344 | AN27: =SUMIF('New Capacity basic data'!$B$152:$B$166,$AG27,'New Capacity basic data'!I$152:I$166) -> 0.6591136907 | AO27: =SUMIF('New Capacity basic data'!$B$152:$B$166,$AG27,'New Capacity basic data'!J$152:J$166) -> 0.6218290374 | AP27: =SUMIF('New Capacity basic data'!$B$152:$B$166,$AG27,'New Capacity basic data'!K$152:K$166) -> 0.5737601256 | AQ27: =SUMIF('New Capacity basic data'!$B$152:$B$166,$AG27,'New Capacity basic data'!L$152:L$166) -> 0.5256912137 | AS27: 0 | AT27: 0 | AU27: 0 | AV27: 0 | AW27: 0 | AX27: 0.05 | AY27: 0.1 | AZ27: 0.2 | BA27: 0.4 | BB27: 1 | BC27: 0 | BD27: =P27/Index!$E$23 -> 6430.659178 | BI27: 0.1487420518 | BJ27: 0.168704 | BL27: 43385 | BM27: 46110.1083 | BN27: 51090 | BO27: 0.06281222319 | BR27: 1 | BS27: 0.9612964384 | BT27: 0.9225928768 | BU27: 0.8838893152 | BV27: 0.9225928768 | BW27: 43385 | BX27: 71888.34998 | BY27: 82861.9486 | BZ27: 45848.76887 | CA27: 46110.1083 | CB27: 43385 | CC27: 74782.70709 | CD27: 89814.20807 | CE27: 51871.61795 | CF27: 49978.8254 | CG27: =OFFSET($C$257,$D$202,0)*$CA$9*(1+BC27) -> 52731.40526
A28: 19 | B28: Solar Parabolic Trough 09 hrs storage | C28: renewable | F28: 1 | G28: 50 | H28: 0.04 | I28: 0.05 | J28: 1 | K28: =IF($K$8,42.8%,SUMIF($B$217:$B$226,B28,$F$217:$F$226)) -> 0.428 | L28: 0.96 | M28: ="" ->  | N28: 30 | O28: 245 | P28: 63141.44546 | S28: 635 | T28: 0 | U28: 2014 | V28: 0 | W28: 0 | X28: 0 | Y28: 0 | Z28: 0 | AA28: 0.05 | AB28: 0.05 | AC28: 0.1 | AD28: 0.2 | AE28: 0.6 | AF28: 3 | AG28: Solar thermal with Storage | AH28: =SUMIF('New Capacity basic data'!$B$152:$B$166,$AG28,'New Capacity basic data'!C$152:C$166) -> 1 | AI28: =SUMIF('New Capacity basic data'!$B$152:$B$166,$AG28,'New Capacity basic data'!D$152:D$166) -> 0.9225928768 | AJ28: =SUMIF('New Capacity basic data'!$B$152:$B$166,$AG28,'New Capacity basic data'!E$152:E$166) -> 0.8451857536 | AK28: =SUMIF('New Capacity basic data'!$B$152:$B$166,$AG28,'New Capacity basic data'!F$152:F$166) -> 0.7844654224 | AL28: =SUMIF('New Capacity basic data'!$B$152:$B$166,$AG28,'New Capacity basic data'!G$152:G$166) -> 0.7404318832 | AM28: =SUMIF('New Capacity basic data'!$B$152:$B$166,$AG28,'New Capacity basic data'!H$152:H$166) -> 0.696398344 | AN28: =SUMIF('New Capacity basic data'!$B$152:$B$166,$AG28,'New Capacity basic data'!I$152:I$166) -> 0.6591136907 | AO28: =SUMIF('New Capacity basic data'!$B$152:$B$166,$AG28,'New Capacity basic data'!J$152:J$166) -> 0.6218290374 | AP28: =SUMIF('New Capacity basic data'!$B$152:$B$166,$AG28,'New Capacity basic data'!K$152:K$166) -> 0.5737601256 | AQ28: =SUMIF('New Capacity basic data'!$B$152:$B$166,$AG28,'New Capacity basic data'!L$152:L$166) -> 0.5256912137 | AS28: 0 | AT28: 0 | AU28: 0 | AV28: 0 | AW28: 0 | AX28: 0.05 | AY28: 0.1 | AZ28: 0.2 | BA28: 0.4 | BB28: 1 | BC28: 0 | BD28: =P28/Index!$E$23 -> 7700.176275 | BI28: 0.1487420518 | BJ28: 0.168704 | BL28: 50910 | BM28: 55212.99639 | BN28: 61176 | BO28: 0.08452163406 | BR28: 1 | BS28: 0.9612964384 | BT28: 0.9225928768 | BU28: 0.8838893152 | BV28: 0.9225928768 | BW28: 50910 | BX28: 84357.17178 | BY28: 97234.10864 | BZ28: 54900.06428 | CA28: 55212.99639 | CB28: 50910 | CC28: 87753.54657 | CD28: 105392.217 | CE28: 62111.92209 | CF28: 59845.46139 | CG28: =CF28/$CF$27*$CG$27 -> 63141.44546
A29: 20 | B29: Solar Central Receiver 03 hrs storage | C29: renewable | F29: 1 | G29: 50 | H29: 0.04 | I29: 0.05 | J29: 1 | K29: =IF($K$8,31.8%,SUMIF($B$217:$B$226,B29,$F$217:$F$226)) -> 0.318 | L29: 0.96 | M29: ="" ->  | N29: 30 | O29: 245 | P29: 38784.26337 | S29: 489 | T29: 0 | U29: 2014 | V29: 0 | W29: 0 | X29: 0 | Y29: 0 | Z29: 0 | AA29: 0.05 | AB29: 0.05 | AC29: 0.1 | AD29: 0.2 | AE29: 0.6 | AF29: 3 | AG29: Solar thermal with Storage | AH29: =SUMIF('New Capacity basic data'!$B$152:$B$166,$AG29,'New Capacity basic data'!C$152:C$166) -> 1 | AI29: =SUMIF('New Capacity basic data'!$B$152:$B$166,$AG29,'New Capacity basic data'!D$152:D$166) -> 0.9225928768 | AJ29: =SUMIF('New Capacity basic data'!$B$152:$B$166,$AG29,'New Capacity basic data'!E$152:E$166) -> 0.8451857536 | AK29: =SUMIF('New Capacity basic data'!$B$152:$B$166,$AG29,'New Capacity basic data'!F$152:F$166) -> 0.7844654224 | AL29: =SUMIF('New Capacity basic data'!$B$152:$B$166,$AG29,'New Capacity basic data'!G$152:G$166) -> 0.7404318832 | AM29: =SUMIF('New Capacity basic data'!$B$152:$B$166,$AG29,'New Capacity basic data'!H$152:H$166) -> 0.696398344 | AN29: =SUMIF('New Capacity basic data'!$B$152:$B$166,$AG29,'New Capacity basic data'!I$152:I$166) -> 0.6591136907 | AO29: =SUMIF('New Capacity basic data'!$B$152:$B$166,$AG29,'New Capacity basic data'!J$152:J$166) -> 0.6218290374 | AP29: =SUMIF('New Capacity basic data'!$B$152:$B$166,$AG29,'New Capacity basic data'!K$152:K$166) -> 0.5737601256 | AQ29: =SUMIF('New Capacity basic data'!$B$152:$B$166,$AG29,'New Capacity basic data'!L$152:L$166) -> 0.5256912137 | AS29: 0 | AT29: 0 | AU29: 0 | AV29: 0 | AW29: 0 | AX29: 0.05 | AY29: 0.1 | AZ29: 0.2 | BA29: 0.4 | BB29: 1 | BC29: 0 | BD29: =P29/Index!$E$23 -> 4729.788216 | BI29: 0.1487420518 | BJ29: 0.168704 | BL29: 26910 | BM29: 33914.25993 | BN29: 37577 | BO29: 0.2602846499 | BR29: 1 | BS29: 0.9612964384 | BT29: 0.9225928768 | BU29: 0.8838893152 | BV29: 0.9225928768 | BW29: 26910 | BX29: 44589.50093 | BY29: 51395.99025 | BZ29: 33722.04321 | CA29: 33914.25993 | CB29: 26910 | CC29: 46384.7562 | CD29: 55708.2019 | CE29: 38151.88467 | CF29: 36759.72445 | CG29: 38784.26337
A30: 21 | B30: Solar Central Receiver 06 hrs storage | C30: renewable | F30: 1 | G30: 50 | H30: 0.04 | I30: 0.05 | J30: 1 | K30: =IF($K$8,40%,SUMIF($B$217:$B$226,B30,$F$217:$F$226)) -> 0.4 | L30: 0.96 | M30: ="" ->  | N30: 30 | O30: 245 | P30: 46307.44233 | S30: 546 | T30: 0 | U30: 2014 | V30: 0 | W30: 0 | X30: 0 | Y30: 0 | Z30: 0 | AA30: 0.05 | AB30: 0.05 | AC30: 0.1 | AD30: 0.2 | AE30: 0.6 | AF30: 3 | AG30: Solar thermal with Storage | AH30: =SUMIF('New Capacity basic data'!$B$152:$B$166,$AG30,'New Capacity basic data'!C$152:C$166) -> 1 | AI30: =SUMIF('New Capacity basic data'!$B$152:$B$166,$AG30,'New Capacity basic data'!D$152:D$166) -> 0.9225928768 | AJ30: =SUMIF('New Capacity basic data'!$B$152:$B$166,$AG30,'New Capacity basic data'!E$152:E$166) -> 0.8451857536 | AK30: =SUMIF('New Capacity basic data'!$B$152:$B$166,$AG30,'New Capacity basic data'!F$152:F$166) -> 0.7844654224 | AL30: =SUMIF('New Capacity basic data'!$B$152:$B$166,$AG30,'New Capacity basic data'!G$152:G$166) -> 0.7404318832 | AM30: =SUMIF('New Capacity basic data'!$B$152:$B$166,$AG30,'New Capacity basic data'!H$152:H$166) -> 0.696398344 | AN30: =SUMIF('New Capacity basic data'!$B$152:$B$166,$AG30,'New Capacity basic data'!I$152:I$166) -> 0.6591136907 | AO30: =SUMIF('New Capacity basic data'!$B$152:$B$166,$AG30,'New Capacity basic data'!J$152:J$166) -> 0.6218290374 | AP30: =SUMIF('New Capacity basic data'!$B$152:$B$166,$AG30,'New Capacity basic data'!K$152:K$166) -> 0.5737601256 | AQ30: =SUMIF('New Capacity basic data'!$B$152:$B$166,$AG30,'New Capacity basic data'!L$152:L$166) -> 0.5256912137 | AS30: 0 | AT30: 0 | AU30: 0 | AV30: 0 | AW30: 0 | AX30: 0.05 | AY30: 0.1 | AZ30: 0.2 | BA30: 0.4 | BB30: 1 | BC30: 0 | BD30: =P30/Index!$E$23 -> 5647.249064 | BI30: 0.1487420518 | BJ30: 0.168704 | BL30: 32190 | BM30: 40492.77978 | BN30: 44866 | BO30: 0.2579304064 | BP30: =(1+BI30)*BN30 -> 51539.4609 | BQ30: =(1+BJ30)*BN30 -> 52435.07366 | BR30: 1 | BS30: 0.9612964384 | BT30: 0.9225928768 | BU30: 0.8838893152 | BV30: 0.9225928768 | BW30: 32190 | BX30: 53338.38852 | BY30: 61480.37629 | BZ30: 40263.27782 | CA30: 40492.77978 | CB30: 32190 | CC30: 55485.89008 | CD30: 66638.68521 | CE30: 45552.39794 | CF30: 43890.19339 | CG30: 46307.44233
A31: 22 | B31: Solar Central Receiver 09 hrs storage | C31: renewable | F31: 1 | G31: 50 | H31: 0.04 | I31: 0.05 | J31: 1 | K31: =IF($K$8,46.8%,SUMIF($B$217:$B$226,B31,$F$217:$F$226)) -> 0.468 | L31: 0.96 | M31: ="" ->  | N31: 30 | O31: 245 | P31: 53261.91891 | S31: 603 | T31: 0 | U31: 2014 | V31: 0 | W31: 0 | X31: 0 | Y31: 0 | Z31: 0 | AA31: 0.05 | AB31: 0.05 | AC31: 0.1 | AD31: 0.2 | AE31: 0.6 | AF31: 3 | AG31: Solar thermal with Storage | AH31: =SUMIF('New Capacity basic data'!$B$152:$B$166,$AG31,'New Capacity basic data'!C$152:C$166) -> 1 | AI31: =SUMIF('New Capacity basic data'!$B$152:$B$166,$AG31,'New Capacity basic data'!D$152:D$166) -> 0.9225928768 | AJ31: =SUMIF('New Capacity basic data'!$B$152:$B$166,$AG31,'New Capacity basic data'!E$152:E$166) -> 0.8451857536 | AK31: =SUMIF('New Capacity basic data'!$B$152:$B$166,$AG31,'New Capacity basic data'!F$152:F$166) -> 0.7844654224 | AL31: =SUMIF('New Capacity basic data'!$B$152:$B$166,$AG31,'New Capacity basic data'!G$152:G$166) -> 0.7404318832 | AM31: =SUMIF('New Capacity basic data'!$B$152:$B$166,$AG31,'New Capacity basic data'!H$152:H$166) -> 0.696398344 | AN31: =SUMIF('New Capacity basic data'!$B$152:$B$166,$AG31,'New Capacity basic data'!I$152:I$166) -> 0.6591136907 | AO31: =SUMIF('New Capacity basic data'!$B$152:$B$166,$AG31,'New Capacity basic data'!J$152:J$166) -> 0.6218290374 | AP31: =SUMIF('New Capacity basic data'!$B$152:$B$166,$AG31,'New Capacity basic data'!K$152:K$166) -> 0.5737601256 | AQ31: =SUMIF('New Capacity basic data'!$B$152:$B$166,$AG31,'New Capacity basic data'!L$152:L$166) -> 0.5256912137 | AS31: 0 | AT31: 0 | AU31: 0 | AV31: 0 | AW31: 0 | AX31: 0.05 | AY31: 0.1 | AZ31: 0.2 | BA31: 0.4 | BB31: 1 | BC31: 0 | BD31: =P31/Index!$E$23 -> 6495.355965 | BI31: 0.1487420518 | BJ31: 0.168704 | BL31: 36225 | BM31: 46574.00722 | BN31: 51604 | BO31: 0.2856868798 | BP31: =(1+BI31)*BN31 -> 59279.68484 | BQ31: =(1+BJ31)*BN31 -> 60309.80122 | BR31: 1 | BS31: 0.9612964384 | BT31: 0.9225928768 | BU31: 0.8838893152 | BV31: 0.9225928768 | BW31: 36225 | BX31: =L87 -> 60024.32818 | BY31: =N87 -> 69186.90995 | BZ31: =O87 -> 46310.03853 | CA31: 46574.00722 | CB31: 36225 | CC31: 62441.01796 | CD31: 74991.81024 | CE31: 52393.48155 | CF31: 50481.64623 | CG31: 53261.91891
A32: 23 | B32: Solar Central Receiver 12 hrs storage | C32: renewable | F32: 1 | G32: 50 | H32: 0.04 | I32: 0.05 | J32: 1 | K32: =SUMIF($B$217:$B$226,B32,$F$217:$F$226) -> 0.6 | L32: 0.96 | M32: ="" ->  | N32: 30 | O32: 245 | P32: 57378.78221 | S32: 603 | T32: 0 | U32: 2014 | V32: 0 | W32: 0 | X32: 0 | Y32: 0 | Z32: 0 | AA32: 0.05 | AB32: 0.05 | AC32: 0.1 | AD32: 0.2 | AE32: 0.6 | AF32: 3 | AG32: Solar thermal with Storage | AH32: =SUMIF('New Capacity basic data'!$B$152:$B$166,$AG32,'New Capacity basic data'!C$152:C$166) -> 1 | AI32: =SUMIF('New Capacity basic data'!$B$152:$B$166,$AG32,'New Capacity basic data'!D$152:D$166) -> 0.9225928768 | AJ32: =SUMIF('New Capacity basic data'!$B$152:$B$166,$AG32,'New Capacity basic data'!E$152:E$166) -> 0.8451857536 | AK32: =SUMIF('New Capacity basic data'!$B$152:$B$166,$AG32,'New Capacity basic data'!F$152:F$166) -> 0.7844654224 | AL32: =SUMIF('New Capacity basic data'!$B$152:$B$166,$AG32,'New Capacity basic data'!G$152:G$166) -> 0.7404318832 | AM32: =SUMIF('New Capacity basic data'!$B$152:$B$166,$AG32,'New Capacity basic data'!H$152:H$166) -> 0.696398344 | AN32: =SUMIF('New Capacity basic data'!$B$152:$B$166,$AG32,'New Capacity basic data'!I$152:I$166) -> 0.6591136907 | AO32: =SUMIF('New Capacity basic data'!$B$152:$B$166,$AG32,'New Capacity basic data'!J$152:J$166) -> 0.6218290374 | AP32: =SUMIF('New Capacity basic data'!$B$152:$B$166,$AG32,'New Capacity basic data'!K$152:K$166) -> 0.5737601256 | AQ32: =SUMIF('New Capacity basic data'!$B$152:$B$166,$AG32,'New Capacity basic data'!L$152:L$166) -> 0.5256912137 | AS32: 0 | AT32: 0 | AU32: 0 | AV32: 0 | AW32: 0 | AX32: 0.05 | AY32: 0.1 | AZ32: 0.2 | BA32: 0.4 | BB32: 1 | BC32: 0 | BD32: =P32/Index!$E$23 -> 6997.412464 | BI32: 0.1487420518 | BJ32: 0.168704 | BL32: 39025 | BM32: 50173.93048 | BN32: =BL32/BL31*BN31 -> 55592.71498 | BO32: 0.2856868798 | BR32: 1 | BS32: 0.9612964384 | BT32: 0.9225928768 | BU32: 0.8838893152 | BV32: 0.9225928768 | BW32: 39025 | BX32: 64663.88978 | BY32: 74534.69043 | BZ32: 49889.55842 | CA32: 50173.93048 | CB32: 39025 | CC32: 67267.37684 | CD32: 80788.27867 | CE32: 56443.21926 | CF32: 54383.60922 | CG32: 57378.78221
A33: 24 | B33: Solar Central Receiver 14 hrs storage | C33: renewable | F33: 1 | G33: 50 | H33: 0.04 | I33: 0.05 | J33: 1 | K33: =SUMIF($B$217:$B$226,B33,$F$217:$F$226) -> 0.7 | L33: 0.96 | M33: ="" ->  | N33: 30 | O33: 245 | P33: =OFFSET(CB33,0,$Q$8) -> 59106.39448 | S33: 603 | T33: 0 | U33: 2014 | V33: 0 | W33: 0 | X33: 0 | Y33: 0 | Z33: 0 | AA33: 0.05 | AB33: 0.05 | AC33: 0.1 | AD33: 0.2 | AE33: 0.6 | AF33: 3 | AG33: Solar thermal with Storage | AH33: =SUMIF('New Capacity basic data'!$B$152:$B$166,$AG33,'New Capacity basic data'!C$152:C$166) -> 1 | AI33: =SUMIF('New Capacity basic data'!$B$152:$B$166,$AG33,'New Capacity basic data'!D$152:D$166) -> 0.9225928768 | AJ33: =SUMIF('New Capacity basic data'!$B$152:$B$166,$AG33,'New Capacity basic data'!E$152:E$166) -> 0.8451857536 | AK33: =SUMIF('New Capacity basic data'!$B$152:$B$166,$AG33,'New Capacity basic data'!F$152:F$166) -> 0.7844654224 | AL33: =SUMIF('New Capacity basic data'!$B$152:$B$166,$AG33,'New Capacity basic data'!G$152:G$166) -> 0.7404318832 | AM33: =SUMIF('New Capacity basic data'!$B$152:$B$166,$AG33,'New Capacity basic data'!H$152:H$166) -> 0.696398344 | AN33: =SUMIF('New Capacity basic data'!$B$152:$B$166,$AG33,'New Capacity basic data'!I$152:I$166) -> 0.6591136907 | AO33: =SUMIF('New Capacity basic data'!$B$152:$B$166,$AG33,'New Capacity basic data'!J$152:J$166) -> 0.6218290374 | AP33: =SUMIF('New Capacity basic data'!$B$152:$B$166,$AG33,'New Capacity basic data'!K$152:K$166) -> 0.5737601256 | AQ33: =SUMIF('New Capacity basic data'!$B$152:$B$166,$AG33,'New Capacity basic data'!L$152:L$166) -> 0.5256912137 | AS33: 0 | AT33: 0 | AU33: 0 | AV33: 0 | AW33: 0 | AX33: 0.05 | AY33: 0.1 | AZ33: 0.2 | BA33: 0.4 | BB33: 1 | BC33: 0 | BD33: =P33/Index!$E$23 -> 7208.096888 | BI33: 0.1487420518 | BJ33: 0.168704 | BL33: 40200 | BM33: 51684.61257 | BN33: =BL33/BL32*BN32 -> 57266.55072 | BO33: 0.2856868798 | BR33: 1 | BS33: 0.9612964384 | BT33: 0.9225928768 | BU33: 0.8838893152 | BV33: 0.9225928768 | BW33: 40200 | BX33: 66610.84866 | BY33: 76778.84831 | BZ33: 51391.67837 | CA33: 51684.61257 | CB33: 40200 | CC33: 69292.72387 | CD33: 83220.72524 | CE33: 58142.66276 | CF33: 56021.04012 | CG33: 59106.39448
A34: 25 | B34: Landfill gas | C34: renewable | F34: 1 | G34: 10 | H34: 0.04 | I34: 0 | J34: 1 | K34: 0.5 | L34: 0.96 | M34: ="" ->  | N34: 30 | O34: 0 | P34: 23183.6 | S34: 953 | T34: 0 | U34: 2012 | V34: 0 | W34: 0 | X34: 0 | Y34: 0 | Z34: 0 | AA34: 0 | AB34: 0 | AC34: 0 | AD34: 0 | AE34: 1 | AF34: 1 | AG34: none | AH34: =SUMIF('New Capacity basic data'!$B$152:$B$166,$AG34,'New Capacity basic data'!C$152:C$166) -> 1 | AI34: =SUMIF('New Capacity basic data'!$B$152:$B$166,$AG34,'New Capacity basic data'!D$152:D$166) -> 1 | AJ34: =SUMIF('New Capacity basic data'!$B$152:$B$166,$AG34,'New Capacity basic data'!E$152:E$166) -> 1 | AK34: =SUMIF('New Capacity basic data'!$B$152:$B$166,$AG34,'New Capacity basic data'!F$152:F$166) -> 1 | AL34: =SUMIF('New Capacity basic data'!$B$152:$B$166,$AG34,'New Capacity basic data'!G$152:G$166) -> 1 | AM34: =SUMIF('New Capacity basic data'!$B$152:$B$166,$AG34,'New Capacity basic data'!H$152:H$166) -> 1 | AN34: =SUMIF('New Capacity basic data'!$B$152:$B$166,$AG34,'New Capacity basic data'!I$152:I$166) -> 1 | AO34: =SUMIF('New Capacity basic data'!$B$152:$B$166,$AG34,'New Capacity basic data'!J$152:J$166) -> 1 | AP34: =SUMIF('New Capacity basic data'!$B$152:$B$166,$AG34,'New Capacity basic data'!K$152:K$166) -> 1 | AQ34: =SUMIF('New Capacity basic data'!$B$152:$B$166,$AG34,'New Capacity basic data'!L$152:L$166) -> 1 | AS34: 0 | AT34: 0 | AU34: 0 | AV34: 0 | AW34: 0 | AX34: 0 | AY34: 0 | AZ34: 0 | BA34: 0 | BB34: 1 | BC34: 0.1 | BD34: =P34/Index!$E$23 -> 2827.268293 | BI34: 0.08 | BJ34: 0.08 | BL34: 21076 | BM34: 21076 | BN34: =BL34*(1+$BN$6) -> 23352.208 | BO34: 0 | BR34: 1 | BS34: 1 | BT34: 1 | BU34: 1 | BV34: 1 | BW34: 21076 | BX34: =BW34*(1+$BC34) -> 23183.6 | BY34: =BX34 -> 23183.6 | BZ34: =CA34*(1+$BC34) -> 25501.96 | CA34: 23183.6 | CB34: 21076 | CC34: =BX34/BS34 -> 23183.6 | CD34: 23183.6 | CE34: 25501.96 | CF34: 23183.6 | CG34: 23183.6
A35: 26 | B35: Micro hydro | C35: renewable | F35: 1 | G35: 5 | H35: 0.066 | I35: 0 | J35: 1 | K35: 0.5 | L35: 0.934 | M35: ="" ->  | N35: 50 | O35: 0 | P35: 22000 | S35: 130.27 | T35: 0 | U35: 2012 | V35: =V33 -> 0 | W35: 0 | X35: 0 | Y35: 0 | Z35: 0 | AA35: 0.05 | AB35: 0.05 | AC35: 0.1 | AD35: 0.2 | AE35: 0.6 | AF35: 3 | AG35: none | AH35: =SUMIF('New Capacity basic data'!$B$152:$B$166,$AG35,'New Capacity basic data'!C$152:C$166) -> 1 | AI35: =SUMIF('New Capacity basic data'!$B$152:$B$166,$AG35,'New Capacity basic data'!D$152:D$166) -> 1 | AJ35: =SUMIF('New Capacity basic data'!$B$152:$B$166,$AG35,'New Capacity basic data'!E$152:E$166) -> 1 | AK35: =SUMIF('New Capacity basic data'!$B$152:$B$166,$AG35,'New Capacity basic data'!F$152:F$166) -> 1 | AL35: =SUMIF('New Capacity basic data'!$B$152:$B$166,$AG35,'New Capacity basic data'!G$152:G$166) -> 1 | AM35: =SUMIF('New Capacity basic data'!$B$152:$B$166,$AG35,'New Capacity basic data'!H$152:H$166) -> 1 | AN35: =SUMIF('New Capacity basic data'!$B$152:$B$166,$AG35,'New Capacity basic data'!I$152:I$166) -> 1 | AO35: =SUMIF('New Capacity basic data'!$B$152:$B$166,$AG35,'New Capacity basic data'!J$152:J$166) -> 1 | AP35: =SUMIF('New Capacity basic data'!$B$152:$B$166,$AG35,'New Capacity basic data'!K$152:K$166) -> 1 | AQ35: =SUMIF('New Capacity basic data'!$B$152:$B$166,$AG35,'New Capacity basic data'!L$152:L$166) -> 1 | AS35: 0 | AT35: 0 | AU35: 0 | AV35: 0 | AW35: 0 | AX35: 0.05 | AY35: 0.1 | AZ35: 0.2 | BA35: 0.4 | BB35: 1 | BC35: 0.1 | BD35: =P35/Index!$E$23 -> 2682.926829 | BI35: 0.1487420518 | BJ35: 0.168704 | BL35: 20000 | BM35: 20000 | BN35: =BL35*(1+$BN$6) -> 22160 | BO35: 0 | BR35: 1 | BS35: 1 | BT35: 1 | BU35: 1 | BV35: 1 | BW35: 20000 | BX35: 22000 | BY35: 22000 | BZ35: 24200 | CA35: 22000 | CB35: 20000 | CC35: 22000 | CD35: 22000 | CE35: 24200 | CF35: 22000 | CG35: 22000
A36: 27 | B36: Mphanda Nkuwa hydro import (Moz A) | C36: renewable | F36: 1 | G36: 300 | H36: 0.04 | I36: 0.04 | J36: 1 | K36: 0.667 | L36: 0.96 | M36: ="" ->  | N36: 60 | O36: 0 | P36: 19315.20217 | S36: 344 | T36: 0 | U36: =COUNTIF(V36:AE36,">0")+2014 -> 2023 | V36: 0 | W36: 0.05 | X36: 0.05 | Y36: 0.05 | Z36: 0.05 | AA36: 0.1 | AB36: 0.25 | AC36: 0.2 | AD36: 0.2 | AE36: 0.05 | AF36: 7 | AG36: none | AH36: =SUMIF('New Capacity basic data'!$B$152:$B$166,$AG36,'New Capacity basic data'!C$152:C$166) -> 1 | AI36: =SUMIF('New Capacity basic data'!$B$152:$B$166,$AG36,'New Capacity basic data'!D$152:D$166) -> 1 | AJ36: =SUMIF('New Capacity basic data'!$B$152:$B$166,$AG36,'New Capacity basic data'!E$152:E$166) -> 1 | AK36: =SUMIF('New Capacity basic data'!$B$152:$B$166,$AG36,'New Capacity basic data'!F$152:F$166) -> 1 | AL36: =SUMIF('New Capacity basic data'!$B$152:$B$166,$AG36,'New Capacity basic data'!G$152:G$166) -> 1 | AM36: =SUMIF('New Capacity basic data'!$B$152:$B$166,$AG36,'New Capacity basic data'!H$152:H$166) -> 1 | AN36: =SUMIF('New Capacity basic data'!$B$152:$B$166,$AG36,'New Capacity basic data'!I$152:I$166) -> 1 | AO36: =SUMIF('New Capacity basic data'!$B$152:$B$166,$AG36,'New Capacity basic data'!J$152:J$166) -> 1 | AP36: =SUMIF('New Capacity basic data'!$B$152:$B$166,$AG36,'New Capacity basic data'!K$152:K$166) -> 1 | AQ36: =SUMIF('New Capacity basic data'!$B$152:$B$166,$AG36,'New Capacity basic data'!L$152:L$166) -> 1 | AS36: 0 | AT36: 0.05 | AU36: 0.1 | AV36: 0.15 | AW36: 0.2 | AX36: 0.3 | AY36: 0.55 | AZ36: 0.75 | BA36: 0.95 | BB36: 1 | BC36: 0.2 | BD36: =P36/Index!$E$23 -> 2355.512459 | BI36: 0.3838091191 | BJ36: 0.3766610898 | BL36: 15518 | BM36: 16096.00181 | BN36: 17834.37 | BO36: 0.03724718424 | BR36: 1 | BS36: 1 | BT36: 1 | BU36: 1 | BV36: 1 | BW36: 15518 | BX36: 18621.6 | BY36: 18621.6 | BZ36: 23178.2426 | CA36: 19315.20217 | CB36: =BW36/BR36 -> 15518 | CC36: 18621.6 | CD36: 18621.6 | CE36: 23178.2426 | CF36: 19315.20217 | CG36: 19315.20217
